Workbook

Sheet Инструкция
AA1: (требуется обновление)
B2: ="Код отчёта: " & GetCode() -> Код отчёта: ENERGY.CALC.NVV.TSO
B3: ="Версия " & GetVersion() -> Версия 1.1.5
B5: Расчет плановой необходимой валовой выручки от оказания услуг по передаче электрической энергии для территориальных сетевых организаций
E7: • На рабочем месте должен быть установлен MS Office 2007 SP3, 2010, 2013, 2016 с полной версией MS Excel • Макросы во время работы должны быть включены (!) • Для корректной работы отчёта требуется выбрать низкий уровень безопасности (В меню MS Excel 2007/2010/2013/2016: Параметры Excel | Центр управления безопасностью | Параметры центра управления безопасностью | Параметры макросов | Включить все макросы | ОК) • При работе в формате XLSB заметно быстрее происходит сохранение файла, а также уменьшается размер по сравнению с форматами XLS и XLSM • Не рекомендуется снимать защиту с листов и каким-либо образом модифицировать защищаемые формулы и расчётные поля, в противном случае, отчёт будет отклонён системой • При сохранении не следует выбирать формат XLSX (Книга Excel), так как в указанном формате макросы, необходимые для работы отчёта, безвозвратно удаляются
E20: A | F20: - предназначенные для заполнения | O20: A | P20: - ссылки и автозаполняемые поля
E21: A | F21: - с формулами и константами | O21: A | P21: - обязательные для заполнения
E22: A | F22: - выбором значений до двойному клику
E35: Если в предложенном Вам списке необходимая организация, МР/МО отсутствуют, обновите реестры с помощью кнопок В результате синхронизации с базой данных список организаций (МР/МО) будет заменён актуальным (механизм синхронизации требует подключения к сети Интернет и основан на использовании протокола HTTPS (TCP порт 443)) Если после обновления Вам не удалось найти необходимую организацию в списке, обратитесь к ответственному за поддержание реестра Вашего региона.
E46: • При сохранении шаблона осуществляется проверка корректности данных, в том числе на наличие значений в ячейках, обязательных для заполнения • Если какая-то ячейка не удовлетворяет условию проверки, на лист «Проверка» добавляется гиперссылка на данную ячейку и указывается причина ошибки • В колонке «Статус» для каждого сообщения возможны 2 значения: ошибка и предупреждение • При наличии сообщений со статусом «Ошибка» шаблон будет отклонён системой и не будет загружен в хранилище данных, сообщения со статусом «Предупреждение» носят информационный характер, и такой шаблон будет принят системой
E59: Консультация службы поддержки
E60: База знаний
E70: Законодательная основа шаблона Постановление Правительства Российской Федерации от 29.12.2011 № 1178 «О ценообразовании в области регулируемых цен (тарифов) в электроэнергетике» Принципы работы с шаблоном На листе «Титульный» нужно заполнить все ячейки голубого цвета. Затем необходимо нажать кнопку "Приступить к заполнению" на листе "Титульный", после чего в шаблоне отобразятся листы для дальнейшего заполнения. Если какой-либо из показателей на расчетных листах для Вашей организации отсутствует, введите в поле, обязательное для заполнение, «0» (для числовых показателей) и «-» (для текстовых).
E85: Инструкция по загрузке сопроводительных материалов с помощью 'ЕИАС Мониторинг'
E86: Руководство пользователя
E87: При наличии подключения к Интернет, можно автоматически проверять наличие доступных обновлений. Выберите способ оповещения о наличии обновлений для отчёта:
F89: проверять доступные обновления (рекомендуется) | AA89: y
F91: никогда не проверять наличие обновлений (не рекомендуется)

Sheet modVLDProv (hidden)

Sheet modCommandButton (hidden)

Sheet modVLDProvLIST_MO (hidden)
A1: NSRF | B1: MR_NAME | C1: MO_NAME | D1: OKTMO_NAME

Sheet modfrmRegion (hidden)

Sheet Лог обновления (hidden)
A2: 3/17/2012 12:12:41 AM | B2: Дата/Время | C2: Сообщение | D2: Статус
B3: 3/26/2020 2:19:34 PM | C3: Проверка доступных обновлений... | D3: Информация
B4: 3/26/2020 2:19:35 PM | C4: Нет доступных обновлений для отчёта с кодом ENERGY.CALC.NVV.TSO! | D4: Информация
B5: 3/26/2020 2:40:30 PM | C5: Проверка доступных обновлений... | D5: Информация
B6: 3/26/2020 2:40:31 PM | C6: Нет доступных обновлений для отчёта с кодом ENERGY.CALC.NVV.TSO! | D6: Информация
B7: 3/26/2020 3:21:24 PM | C7: Проверка доступных обновлений... | D7: Информация
B8: 3/26/2020 3:21:39 PM | C8: Нет доступных обновлений для отчёта с кодом ENERGY.CALC.NVV.TSO! | D8: Информация
B9: 4/28/2020 2:26:32 PM | C9: Проверка доступных обновлений... | D9: Информация
B10: 4/28/2020 2:26:34 PM | C10: Доступно обновление до версии 1.1.5 | D10: Информация
B11: 4/28/2020 2:26:35 PM | C11: Описание изменений: Версия 1.1.5: - Скорректированы формулы на листах '3_Форма раскрытия информации', 'Титульный' , '33_Расчет Амортизации план', '8_Расчет НВВ ', '9 Тариф', 'ЭЗ', '31_Прочие НПР ', '11_Корректировка НВВ', '33_Расчет Амортизации план', '37_Факт потери', '13_РПР Ремонт ', '40_ИПР факт ' Версия 1.1.4: - Скорректированы формулы на листах '3_Форма раскрытия информации', '8_Расчет НВВ' , '33_Расчет Амортизации план', '41_Бездоговор', '16_Персонал' Версия 1.1.3: - Скорректированы формулы на листах '17_ППР' , '31_Прочие НПР', '11_Корректировка НВВ', '32_Расчет амортизации факт', '32_Расчет амортизации факт макс', '33_Расчет Амортизации план', '46_PEREDACHA.XX.FACT.EXPENSES', '47_PEREDACHA.M.ХХ Индекс' Версия 1.1.2: - Индексация статей затрат подконтрольных расходов, отображены расходы по аренде, дивидендах и прочим расходам из прибыли - Скорректированы формулы на листах '8_Расчет НВВ' , '3_Форма раскрытия информации', '32_Расчет амортизации факт', '32_Расчет амортизации факт макс', '33_Расчет Амортизации план', '37_Факт потери', 'ЭЗ', '11_Корректировка НВВ', '21_Аренда ЭСХ план', '29_Аренда земли факт', '30_Аренда земли план', '36_Прибыль', '31_Прочие НПР' Версия 1.1.1: - Скорректированы формулы на листах '8_Расчет НВВ', '3_Форма раскрытия информации', '32_Расчет амортизации факт', '32_Расчет амортизации факт макс', '33_Расчет Амортизации план', '37_Факт потери', 'ЭЗ', '11_Корректировка НВВ', '21_Аренда ЭСХ план', '29_Аренда земли факт', '30_Аренда земли план', '36_Прибыль', '14_Ремонты ЭСХ', '31_Прочие НПР', '13_РПР Ремонт' | D11: Информация
B12: 4/28/2020 2:26:35 PM | C12: Размер файла обновления: 340033 байт | D12: Информация
B13: 4/28/2020 2:26:47 PM | C13: Подготовка к обновлению... | D13: Информация
B14: 4/28/2020 2:27:10 PM | C14: Сохранение файла резервной копии: C:\Users\vo_okromelidze\Desktop\11.BKP.xlsb | D14: Информация
B15: 4/28/2020 2:27:10 PM | C15: Резервная копия создана: C:\Users\vo_okromelidze\Desktop\11.BKP.xlsb | D15: Информация
B16: 4/28/2020 2:27:11 PM | C16: Создание книги для установки обновлений... | D16: Информация
B17: 4/28/2020 2:27:12 PM | C17: Файл обновления загружен: C:\Users\vo_okromelidze\Desktop\UPDATE.ENERGY.CALC.NVV.TSO.TO.1.1.5.48.xls | D17: Информация
B18: 4/28/2020 2:28:02 PM | C18: Обновление успешно завершено! Шаблон ENERGY.CALC.NVV.TSO.xlsb сохранен под именем 'ENERGY.CALC.NVV.TSO(v1.1.5).xlsb' | D18: Информация

Sheet Титульный (hidden)
E2: =version -> Версия 1.1.5
D3: Расчет плановой необходимой валовой выручки от оказания услуг по передаче электрической энергии для территориальных сетевых организаций
D5: Субъект Российской Федерации
D7: Версия | E7: Версия организации
D9: Наименование организации
D11: Организационно правовая форма
D13: ИНН
D14: КПП
D17: Метод
D19: Первый год текущего долгосрочного периода
D21: Количество лет регулирования
D23: Период регулирования
D25: Долгосрочный период регулирования | E25: =IF(god=0,"",FIRST_PERIOD_IN_LT &"-"& FIRST_PERIOD_IN_LT + PERIOD_LENGTH -1) -> 
D28: Укажите основной вид деятельности
D30: Преобладающее право владения электросетевым имуществом
D32: Наименование смежной сетевой организации (котлодержатель)
D34: ИНН
D35: КПП
D37: Количество точек поставки
D41: Выделенный абонентский номер для обращений потребителей услуг по передаче электрической энергии (номер)
D43: Официальный сайт в информационно-телекоммуникационной сети "Интернет" (ссылка)
E52: Адрес организации
D53: Юридический адрес
D54: Почтовый адрес
E56: Руководитель
D57: Фамилия, имя, отчество
D58: (код) номер телефона
E60: Главный бухгалтер
D61: Фамилия, имя, отчество
D62: (код) номер телефона
E64: Ответственный за предоставление информации
D65: Фамилия, имя, отчество
D66: Должность
D67: Контактный телефон
D68: e-mail
E70: (обновление не выполнялось)

Sheet modCheckCyan (hidden)
A1: =IF('36_Прибыль'!#REF!="",1,0) -> 
A2: =IF('36_Прибыль'!#REF!="",1,0) -> 

Sheet modDOC (hidden)

Sheet Список листов (hidden)
E3: Список листов
E5: № п/п | F5: Наименование листа | G5: Ссылка
A8: =Инструкция!A1 ->  | E8: 8 | F8: Инструкция | G8: Инструкция
A9: ='Список листов'!A1 -> 0 | E9: 9 | F9: Список листов | G9: Список листов
A10: ='Сопроводительные материалы'!A1 -> 0 | E10: 10 | F10: Сопроводительные материалы | G10: Сопроводительные материалы
A11: ='3_Форма раскрытия информации'!A1 -> 0 | E11: 11 | F11: 3_Форма раскрытия информации | G11: 3_Форма раскрытия информации
A12: ='5_ЛЭП у.е'!A1 -> 0 | E12: 12 | F12: 5_ЛЭП у.е | G12: 5_ЛЭП у.е
A13: ='6 _ПС у.е'!A1 -> 0 | E13: 13 | F13: 6 _ПС у.е | G13: 6 _ПС у.е
A14: ='7_Свод УЕ '!A1 -> 0 | E14: 14 | F14: 7_Свод УЕ | G14: 7_Свод УЕ
A15: ='4.1'!A1 -> HIDDEN | E15: 15 | F15: 4.1 | G15: 4.1
A16: ='4.2. расчет K_об'!A1 -> HIDDEN | E16: 16 | F16: 4.2. расчет K_об | G16: 4.2. расчет K_об
A17: ='Прил. 1'!A1 -> HIDDEN | E17: 17 | F17: Прил. 1 | G17: Прил. 1
A18: ='Прил. 2-6'!A1 -> HIDDEN | E18: 18 | F18: Прил. 2-6 | G18: Прил. 2-6
A19: ='индекс эффективности ОПР'!A1 -> HIDDEN | E19: 19 | F19: индекс эффективности ОПР | G19: индекс эффективности ОПР
A20: ='баз. ур. подк. расх. '!A1 -> HIDDEN | E20: 20 | F20: баз. ур. подк. расх. | G20: баз. ур. подк. расх.
A21: ='8_Расчет НВВ '!A1 ->  | E21: 21 | F21: 8_Расчет НВВ | G21: 8_Расчет НВВ
A22: ='9 Тариф'!A1 -> 0 | E22: 22 | F22: 9 Тариф | G22: 9 Тариф
A23: ='9_Расчет тарифов'!A1 -> HIDDEN | E23: 23 | F23: 9_Расчет тарифов | G23: 9_Расчет тарифов
A24: ='9 Тариф снизу'!A1 -> HIDDEN | E24: 24 | F24: 9 Тариф снизу | G24: 9 Тариф снизу
A25: ='11_Корректировка НВВ'!A1 -> 0 | E25: 25 | F25: 11_Корректировка НВВ | G25: 11_Корректировка НВВ
A26: ='12_Сырье и материалы'!A1 -> 0 | E26: 26 | F26: 12_Сырье и материалы | G26: 12_Сырье и материалы
A27: ='13_РПР Ремонт '!A1 -> 0 | E27: 27 | F27: 13_РПР Ремонт | G27: 13_РПР Ремонт
A28: ='14_Ремонты ЭСХ'!A1 -> 0 | E28: 28 | F28: 14_Ремонты ЭСХ | G28: 14_Ремонты ЭСХ
A29: ='15_Информация по ТО'!A1 -> 0 | E29: 29 | F29: 15_Информация по ТО | G29: 15_Информация по ТО
A30: ='16_Персонал'!A1 -> 0 | E30: 30 | F30: 16_Персонал | G30: 16_Персонал
A31: ='17_ППР'!A1 -> 0 | E31: 31 | F31: 17_ППР | G31: 17_ППР
A32: ='18_ФСК'!A1 -> 0 | E32: 32 | F32: 18_ФСК | G32: 18_ФСК
A33: ='19_Аренда ЭСХ факт'!A1 -> 0 | E33: 33 | F33: 19_Аренда ЭСХ факт | G33: 19_Аренда ЭСХ факт
A34: ='21_Аренда ЭСХ план'!A1 -> 0 | E34: 34 | F34: 21_Аренда ЭСХ план | G34: 21_Аренда ЭСХ план
A35: ='23_Лизинг ЭСХ факт'!A1 -> VISIBLE | E35: 35 | F35: 23_Лизинг ЭСХ факт | G35: 23_Лизинг ЭСХ факт
A36: ='24_Лизинг ЭСХ план'!A1 -> VISIBLE | E36: 36 | F36: 24_Лизинг ЭСХ план | G36: 24_Лизинг ЭСХ план
A37: ='25_Аренда прочее им. факт'!A1 -> 0 | E37: 37 | F37: 25_Аренда прочее им. факт | G37: 25_Аренда прочее им. факт
A38: ='26_Аренда прочее им. план '!A1 -> 0 | E38: 38 | F38: 26_Аренда прочее им. план | G38: 26_Аренда прочее им. план
A39: ='27_Лизинг прочее им. факт'!A1 -> VISIBLE | E39: 39 | F39: 27_Лизинг прочее им. факт | G39: 27_Лизинг прочее им. факт
A40: ='28_Лизинг прочее им. план'!A1 -> VISIBLE | E40: 40 | F40: 28_Лизинг прочее им. план | G40: 28_Лизинг прочее им. план
A41: ='29_Аренда земли факт'!A1 -> 0 | E41: 41 | F41: 29_Аренда земли факт | G41: 29_Аренда земли факт
A42: ='30_Аренда земли план'!A1 -> 0 | E42: 42 | F42: 30_Аренда земли план | G42: 30_Аренда земли план
A43: ='31_Прочие НПР '!A1 -> 0 | E43: 43 | F43: 31_Прочие НПР | G43: 31_Прочие НПР
A44: ='32_Расчет амортизации факт'!A1 -> 0 | E44: 44 | F44: 32_Расчет амортизации факт | G44: 32_Расчет амортизации факт
A45: ='32_Расчет амортизации факт макс'!A1 -> 0 | E45: 45 | F45: 32_Расчет амортизации факт макс | G45: 32_Расчет амортизации факт макс
A46: ='33_Расчет Амортизации план'!A1 -> 0 | E46: 46 | F46: 33_Расчет Амортизации план | G46: 33_Расчет Амортизации план
A47: ='34_Амортизация свод '!A1 -> VISIBLE | E47: 47 | F47: 34_Амортизация свод | G47: 34_Амортизация свод
A48: ='35_Средняя стоимость ОС'!A1 -> VISIBLE | E48: 48 | F48: 35_Средняя стоимость ОС | G48: 35_Средняя стоимость ОС
A49: ='36_Прибыль'!A1 -> 0 | E49: 49 | F49: 36_Прибыль | G49: 36_Прибыль
A50: ='37_Факт потери'!A1 -> 0 | E50: 50 | F50: 37_Факт потери | G50: 37_Факт потери
A51: ='38_товарная выручка факт'!A1 -> 0 | E51: 51 | F51: 38_товарная выручка факт | G51: 38_товарная выручка факт
A52: ='40_ИПР факт '!A1 -> Вернуться к перечню форм | E52: 52 | F52: 40_ИПР факт | G52: 40_ИПР факт
A53: ='41_Бездоговор'!A1 -> 0 | E53: 53 | F53: 41_Бездоговор | G53: 41_Бездоговор
A54: ='42_финансовые показатели'!A1 -> 0 | E54: 54 | F54: 42_финансовые показатели | G54: 42_финансовые показатели
A55: ='43_Депозиты'!A1 -> 0 | E55: 55 | F55: 43_Депозиты | G55: 43_Депозиты
A56: ='44_кредиты'!A1 -> HIDDEN | E56: 56 | F56: 44_кредиты | G56: 44_кредиты
A57: ='45_НВВ РСК'!A1 -> 0 | E57: 57 | F57: 45_НВВ РСК | G57: 45_НВВ РСК
A58: ='46_PEREDACHA.XX.FACT.EXPENSES'!A1 -> 0 | E58: 58 | F58: 46_PEREDACHA.XX.FACT.EXPENSES | G58: 46_PEREDACHA.XX.FACT.EXPENSES
A59: ='47_PEREDACHA.M.ХХ Индекс'!A1 -> 0 | E59: 59 | F59: 47_PEREDACHA.M.ХХ Индекс | G59: 47_PEREDACHA.M.ХХ Индекс
A60: ='Бухгалтерский баланс. Раздел А'!A1 -> 0 | E60: 60 | F60: Бухгалтерский баланс. Раздел А | G60: Бухгалтерский баланс. Раздел А
A61: ='Бухгалтерский баланс. Раздел П'!A1 -> 0 | E61: 61 | F61: Бухгалтерский баланс. Раздел П | G61: Бухгалтерский баланс. Раздел П
A62: ='Отчет о финансовых результатах'!A1 -> 0 | E62: 62 | F62: Отчет о финансовых результатах | G62: Отчет о финансовых результатах
A63: ='Стоимость активов'!A1 -> 0 | E63: 63 | F63: Стоимость активов | G63: Стоимость активов
A64: ='Оценка ликвидности'!A1 -> 0 | E64: 64 | F64: Оценка ликвидности | G64: Оценка ликвидности
A65: ='Оценка фин. уст'!A1 -> 0 | E65: 65 | F65: Оценка фин. уст | G65: Оценка фин. уст
A66: ='Оценка дел. активность'!A1 -> 0 | E66: 66 | F66: Оценка дел. активность | G66: Оценка дел. активность
A67: ='Обоб. анализ'!A1 -> 0 | E67: 67 | F67: Обоб. анализ | G67: Обоб. анализ
A68: =Комментарии!A1 -> 0 | E68: 68 | F68: Комментарии | G68: Комментарии

Sheet Сопроводительные материалы (hidden)
F10: Список листов
F11: Сопроводительные материалы
F13: № п/п | G13: Наименование | J13: № п/п | K13: Ссылка на документ | L13: Количество листов (комментарий)
F14: 0
A15: VISIBLE | G15: Добавить
A16: VISIBLE
A18: VISIBLE
A19: VISIBLE
A20: VISIBLE
A21: VISIBLE
A22: VISIBLE

Sheet Библиотека документов (hidden)
D10: Перечень документов
D12: № п/п | E12: Описание документа | F12: Реквизиты документа | G12: URL-ссылка на документ | H12: Примечание
D14: Список документов для подтверждения / подписи полей отчёта (редактирование производится в форме при подписи полей)
D15: 0
D18: 2.0
E19: Добавить

Sheet Регионы аналоги (hidden)
H11: Приложение № 4
D12: СТОИМОСТЬ ФИКСИРОВАННОГО НАБОРА ПОТРЕБИТЕЛЬСКИХ ТОВАРОВ И УСЛУГ В ДЕКАБРЕ 2012 Г. И ДЕКАБРЕ 2013 Г.
D15: № п.п. | E15: Субъект Российской Федерации | F15: Стоимость за декабрь 2012 года, руб. | G15: Сi=2012 | H15: Стоимость за декабрь 2013 года, руб. | I15: Сi=2013
D16: 1 | E16: =region_name -> 0
J20: Приложение № 5
D21: КОЭФФИЦИЕНТЫ ПРИВЕДЕНИЯ ЗАТРАТ ПО КЛИМАТИЧЕСКИМ УСЛОВИЯМ
D23: № п.п. | E23: Субъект Российской Федерации | F23: Средняя температура января, оС | H23: Толщина стенки гололеда | J23: Количество дней переходов температуры через ноль
E24: Единица измерения | F24: оС | G24: ед. | H24: мм | I24: ед. | K24: ед.
E25: Источник | F25: СНиП 23-01-99 | G25: Т1 | H25: СНиП 2.01.07-85 | I25: Т2 | J25: СНиП 23-01-99 | K25: Т3
D26: 1 | E26: =region_name -> 0

Sheet PATTERN_COSTS (hidden)
A1: P_L1 | B1: P_L2 | C1: P_L3 | D1: P_L4 | E1: P_L5 | F1: P_L6 | G1: P_L7 | H1: P_L8 | I1: P_L9 | J1: P_L10 | K1: P_L11 | L1: P_REGION_NAME
A2: 9915 | B2: 1.41 | C2: 10404 | D2: 1.48 | E2: -13.9 | F2: 1.04 | G2: 5 | H2: 1.01 | I2: 60 | J2: 1.03 | K2: N

Sheet 3_Форма раскрытия информации (hidden)
F8: ПРЕДЛОЖЕНИЕ
F9: о размере цен (тарифов), долгосрочных параметров регулирования
F10: =" (вид цены (тарифа) на "& god&" год" -> (вид цены (тарифа) на год
F11: (расчетный период регулирования)
F13: =ORG -> 0
F14: (полное и сокращенное наименование юридического лица)
F18: I. Информация об организации
F20: Полное наименование | H20: =ORG -> 0
F22: Сокращенное наименование | H22: =ORG -> 0
F23: Место нахождения | H23: =Титульный!E53 -> 0
F24: Фактический адрес | H24: =Титульный!E54 -> 0
F25: ИНН | H25: =INN -> 0
F26: КПП | H26: =KPP -> 0
F27: Ф.И.О. руководителя | H27: =Титульный!E57 -> 0
F28: Адрес электронной почты | H28: =Титульный!E68 -> 0
F29: Контактный телефон | H29: =Титульный!E58 -> 0
F30: Факс
F33: II. Основные показатели деятельности организации
F36: Наименование показателей | H36: Единица измерения | I36: Фактические показатели за год, предшествующий базовому периоду | J36: Показатели, утвержденные на базовый период * | K36: Предложения на расчетный период регулирования
F37: Основные показатели деятельности организаций, относящихся к субъектам естественных монополий, а также коммерческого оператора оптового рынка электрической энергии (мощности)
F38: 1 | G38: Показатели эффективности деятельности организации
F39: 1.1 | G39: Выручка | H39: тыс.руб. | I39: ='42_финансовые показатели'!$K$31 -> 0
F40: 1.2 | G40: Прибыль (убыток) от продаж | H40: тыс.руб. | I40: ='42_финансовые показатели'!$K$39 -> 0
F41: 1.3 | G41: EBITDA (прибыль до процентов, налогов и амортизации) | H41: тыс.руб. | I41: ='42_финансовые показатели'!$K$47 -> 0
F42: 1.4 | G42: Чистая прибыль (убыток) | H42: тыс.руб. | I42: ='42_финансовые показатели'!$K$49 -> 0
F43: 2 | G43: Показатели рентабельности организации
F44: 2.1 | G44: Рентабельность продаж (величина прибыли от продаж в каждом рубле выручки). Нормальное значение для отрасли электроэнергетики от 9 процентов и более | H44: %
F45: 3 | G45: Показатели регулируемых видов деятельности организации
F46: 3.1 | G46: Заявленная мощность <***> | H46: МВт | I46: ='9 Тариф'!I32 -> 0 | J46: ='9 Тариф'!J32 -> 0 | K46: ='9 Тариф'!N32 -> 0
F47: 3.2 | G47: Объем полезного отпуска электроэнергии - Всего <***> | H47: тыс.кВт*ч | I47: ='9 Тариф'!I33*1000 -> 0 | J47: ='9 Тариф'!J33*1000 -> 0 | K47: ='9 Тариф'!N33*1000 -> 0
F48: 3.3 | G48: Объем полезного отпуска электроэнергии населению и приравненным к нему категориям потребителей <***> | H48: тыс. кВт·ч
F49: 3.4 | G49: Уровень потерь электрической энергии <***> | H49: % | I49: ='9 Тариф'!I21 -> 0 | J49: ='9 Тариф'!J21 -> 0 | K49: ='9 Тариф'!N21 -> 0
F50: 3.5 | G50: Реквизиты программы энергоэффективности (кем утверждена, дата утверждения, номер приказа) <***>
F51: 4 | G51: Необходимая валовая выручка по регулируемым видам деятельности организации - Всего | H51: тыс.руб. | I51: ='8_Расчет НВВ '!J113 -> 0 | J51: ='8_Расчет НВВ '!N113 -> 0 | K51: ='8_Расчет НВВ '!P113 -> 0
F52: 4.1 | G52: Расходы, связанные с производством и реализацией товаров, работ и услуг <**>, <****>; операционные (подконтрольные) расходы <***> - Всего | H52: тыс.руб. | I52: ='8_Расчет НВВ '!J64 -> 0 | J52: ='8_Расчет НВВ '!N64 -> 0 | K52: ='8_Расчет НВВ '!P64 -> 0
G53: в том числе:
F54: 4.1.1 | G54: оплата труда | H54: тыс.руб. | I54: ='8_Расчет НВВ '!J38 -> 0 | J54: ='8_Расчет НВВ '!N38 -> 0 | K54: ='8_Расчет НВВ '!P38 -> 0
F55: 4.1.2 | G55: ремонт основных фондов | H55: тыс.руб. | I55: ='8_Расчет НВВ '!J40 -> 0 | J55: ='8_Расчет НВВ '!N40 -> 0 | K55: ='8_Расчет НВВ '!P40 -> 0
F56: 4.1.3 | G56: материальные затраты | H56: тыс.руб. | I56: ='8_Расчет НВВ '!J35 -> 0 | J56: ='8_Расчет НВВ '!N35 -> 0 | K56: ='8_Расчет НВВ '!P35 -> 0
F57: 4.2 | G57: Расходы, за исключением указанных в позиции 4.1 <**>, <****>;неподконтрольные расходы <***> - Всего <***> | H57: тыс.руб. | I57: ='8_Расчет НВВ '!J94-I52+'8_Расчет НВВ '!J112 -> 0 | J57: ='8_Расчет НВВ '!N94-J52+'8_Расчет НВВ '!N112 -> 0 | K57: ='8_Расчет НВВ '!P94-K52+'8_Расчет НВВ '!P112 -> 0
F58: 4.3 | G58: Выпадающие, излишние доходы (расходы) прошлых лет | H58: тыс.руб. | I58: ='8_Расчет НВВ '!J95 -> 0 | J58: ='8_Расчет НВВ '!N95 -> 0 | K58: ='8_Расчет НВВ '!P95 -> 0
F59: 4.4 | G59: Инвестиции, осуществляемые за счет тарифных источников | H59: тыс.руб.
F60: 4.4.1 | G60: Реквизиты инвестиционной программы (кем утверждена, дата утверждения, номер приказа)
F61: 4.5 | G61: Объем условных единиц <***> | H61: у.е. | I61: ='7_Свод УЕ '!L36 -> 0 | J61: ='7_Свод УЕ '!L38 -> 0 | K61: ='7_Свод УЕ '!L39 -> 0
F62: 4.6 | G62: Операционные (подконтрольные) расходы на условную единицу <***> | H62: тыс.руб./у.е. | I62: =IF('8_Расчет НВВ '!J27=0,0,'8_Расчет НВВ '!J64/'8_Расчет НВВ '!J27) -> 0 | J62: =IF('8_Расчет НВВ '!N27=0,0,'8_Расчет НВВ '!N64/'8_Расчет НВВ '!N27) -> 0 | K62: =IF('8_Расчет НВВ '!P27=0,0,'8_Расчет НВВ '!P64/'8_Расчет НВВ '!P27) -> 0
F63: 5 | G63: Показатели численности персонала и фонда оплаты труда по регулируемым видам деятельности
F64: 5.1 | G64: Среднесписочная численность персонала | H64: человек | I64: ='16_Персонал'!J20 -> 0 | J64: ='16_Персонал'!L20 -> 0 | K64: ='16_Персонал'!M20 -> 0
F65: 5.2 | G65: Среднемесячная заработная плата на одного работника | H65: тыс.руб. на человека | I65: ='16_Персонал'!J44/1000 -> 0 | K65: ='16_Персонал'!M44 -> 0
F66: 5.3 | G66: Реквизиты отраслевого тарифного соглашения (дата утверждения, срок действия)
F67: 6 | G67: Уставный капитал (складочный капитал, уставный фонд, вклады товарищей) | H67: тыс.руб.
F68: 7 | G68: Анализ финансовой устойчивости по величине излишка (недостатка) собственных оборотных средств | H68: тыс.руб.
F73: III. Цены (тарифы) по регулируемым видам деятельности организации
F75: Наименование показателей | H75: Единица изменения | I75: Фактические показатели за год, предшествующий базовому периоду | K75: Показатели, утвержденные на базовый период * | M75: Предложения на расчетный период регулирования
I76: первое полугодие | J76: второе полугодие | K76: первое полугодие | L76: второе полугодие | M76: первое полугодие | N76: второе полугодие
F77: услуги по передаче электрической энергии
F78: 1 | G78: двухставочный тариф
F79: 1.1 | G79: ставка на содержание сетей | H79: руб./МВт в месяц | I79: ='9 Тариф'!I43 -> 0 | J79: =I79 -> 0 | K79: ='9 Тариф'!J43 -> 0 | L79: =K79 -> 0 | M79: ='9 Тариф'!N43 -> 0 | N79: =M79 -> 0
F80: 1.2 | G80: ставка на оплату технологического расхода (потерь) | H80: руб./МВт·ч | I80: ='9 Тариф'!I46 -> 0 | J80: =I80 -> 0 | K80: ='9 Тариф'!J46 -> 0 | L80: 0 | M80: ='9 Тариф'!N46 -> 0 | N80: =M80 -> 0
F81: 2 | G81: одноставочный тариф | H81: руб./МВт·ч | I81: ='9 Тариф'!I47 -> 0 | J81: 0 | K81: ='9 Тариф'!J47 -> 0 | L81: 0 | M81: ='9 Тариф'!N47 -> 0 | N81: =M81 -> 0
F85: <*> Базовый период - год, предшествующий расчетному периоду регулирования (указаны показатели, опубликованные в установленном порядке).
F86: <**> Заполняются организацией, осуществляющей оперативно-диспетчерское управление в электроэнергетике.
F87: <***> Заполняются сетевыми организациями, осуществляющими передачу электрической энергии (мощности) по электрическим сетям.
F88: <****> Заполняются коммерческим оператором оптового рынка электрической энергии (мощности).

Sheet 4_Полезный отпуск (hidden)
V1: =IFERROR(IF(REPORT_OWNER="Версия организации","HIDDEN","VISIBLE"),0) -> HIDDEN | W1: =IFERROR(IF(REPORT_OWNER="Версия организации","HIDDEN","VISIBLE"),0) -> HIDDEN | X1: =IFERROR(IF(REPORT_OWNER="Версия организации","HIDDEN","VISIBLE"),0) -> HIDDEN | Y1: =IFERROR(IF(REPORT_OWNER="Версия организации","HIDDEN","VISIBLE"),0) -> HIDDEN
F5: Вернуться к перечню форм | U5: на основе таблицы 1.6 приложения к приказу ФСТ 20-э/2
F8: Структура полезного отпуска электрической энергии (мощности) по группам потребителей, присоединенных к сетям
F10: № п/п | G10: Показатели | H10: Объем полезного отпуска электрической энергии | V10: =god&", Версия регулятора" -> , Версия регулятора
H11: =god-2 &", утверждено версия ТСО" -> -2, утверждено версия ТСО | J11: =god-2&", факт" -> -2, факт | N11: =god-1&", утверждено версия ТСО" -> -1, утверждено версия ТСО | R11: =god&", предложение ТСО" -> , предложение ТСО
H12: I полугодие | I12: II полугодие | J12: I полугодие | K12: доля от общего объема, % | L12: II полугодие | M12: доля от общего объема, % | N12: I полугодие | O12: доля от общего объема, % | P12: II полугодие | Q12: доля от общего объема, % | R12: I полугодие | S12: доля от общего объема, % | T12: II полугодие | U12: доля от общего объема, % | V12: I полугодие | W12: доля от общего объема, % | X12: II полугодие | Y12: доля от общего объема, %
H13: млн.квт.ч. | I13: млн.квт.ч. | J13: млн.квт.ч. | L13: млн.квт.ч. | N13: млн.квт.ч. | P13: млн.квт.ч. | R13: млн.квт.ч. | T13: млн.квт.ч. | V13: млн.квт.ч. | X13: млн.квт.ч.
F16: 1 | G16: Собственное имущество | J16: =SUM(J17:J19) -> 0 | K16: =IF(J$28=0,0,J16/J$28*100) -> 0 | L16: =SUM(L17:L19) -> 0 | M16: =IF(L$28=0,0,L16/L$28*100) -> 0 | R16: =SUM(R17:R19) -> 0 | S16: =IF(R$28=0,0,R16/R$28*100) -> 0 | T16: =SUM(T17:T19) -> 0 | U16: =IF(T$28=0,0,T16/T$28*100) -> 0 | V16: =SUM(V17:V19) -> 0 | W16: =IFERROR(V16/V$28,0) -> 0 | X16: =SUM(X17:X19) -> 0 | Y16: =IFERROR(X16/X$28,0) -> 0
F17: 1.1 | G17: Население | K17: =IF(J$28=0,0,J17/J$28*100) -> 0 | M17: 0 | S17: 0 | U17: 0 | W17: 0 | Y17: 0
F18: 1.2 | G18: Прочие потребители | K18: 0 | M18: 0 | S18: 0 | U18: 0 | W18: 0 | Y18: 0
F19: 1.3 | G19: Переток в др.ТСО (транзит) | K19: 0 | M19: 0 | S19: 0 | U19: 0 | W19: 0 | Y19: 0
F20: 2 | G20: Арендуемое имущество | J20: =SUM(J21:J23) -> 0 | K20: 0 | L20: =SUM(L21:L23) -> 0 | M20: 0 | R20: =SUM(R21:R23) -> 0 | S20: 0 | T20: =SUM(T21:T23) -> 0 | U20: 0 | V20: =SUM(V21:V23) -> 0 | W20: 0 | X20: =SUM(X21:X23) -> 0 | Y20: 0
F21: 2.1 | G21: Население | K21: 0 | M21: 0 | S21: 0 | U21: 0 | W21: 0 | Y21: 0
F22: 2.2 | G22: Прочие потребители | K22: 0 | M22: 0 | S22: 0 | U22: 0 | W22: 0 | Y22: 0
F23: 3.3 | G23: Переток в др.ТСО (транзит) | K23: 0 | M23: 0 | S23: 0 | U23: 0 | W23: 0 | Y23: 0
F24: 3 | G24: Имущество в лизинге | J24: =SUM(J25:J27) -> 0 | K24: 0 | L24: =SUM(L25:L27) -> 0 | M24: 0 | R24: =SUM(R25:R27) -> 0 | S24: 0 | T24: =SUM(T25:T27) -> 0 | U24: 0 | V24: =SUM(V25:V27) -> 0 | W24: 0 | X24: =SUM(X25:X27) -> 0 | Y24: 0
F25: 3.1 | G25: Население | K25: 0 | M25: 0 | S25: 0 | U25: 0 | W25: 0 | Y25: 0
F26: 3.2 | G26: Прочие потребители | K26: 0 | M26: 0 | S26: 0 | U26: 0 | W26: 0 | Y26: 0
F27: 3.3 | G27: Переток в др.ТСО (транзит) | K27: 0 | M27: 0 | S27: 0 | U27: 0 | W27: 0 | Y27: 0
F28: 4 | G28: Всего | H28: =484.57/41.55 -> 11.66233454 | I28: =458.63/39.68 -> 11.55821573 | J28: =SUM(J16,J20,J24) -> 0 | K28: 0 | L28: =SUM(L16,L20,L24) -> 0 | M28: 0 | N28: =472.12/45.73 -> 10.3240761 | O28: =IFERROR(N28/N$28,0) -> 1 | P28: =454.11/44.48 -> 10.20930755 | Q28: =IFERROR(P28/P$28,0) -> 1 | R28: =SUM(R16,R20,R24) -> 0 | S28: 0 | T28: =SUM(T16,T20,T24) -> 0 | U28: 0 | V28: =SUM(V16,V20,V24) -> 0 | W28: 0 | X28: =SUM(X16,X20,X24) -> 0 | Y28: 0
F29: 5 | G29: Полезный отпуск потребителям | W29: 0 | Y29: 0
F30: 6 | G30: Переток в другие ТСО | W30: 0 | Y30: 0

Sheet 5_ЛЭП у.е (hidden)
S1: =IFERROR(IF(REPORT_OWNER="Версия организации","HIDDEN","VISIBLE"),0) -> HIDDEN | T1: =IFERROR(IF(REPORT_OWNER="Версия организации","HIDDEN","VISIBLE"),0) -> HIDDEN | W1: =IFERROR(IF(REPORT_OWNER="Версия организации","HIDDEN","VISIBLE"),0) -> HIDDEN | X1: =IFERROR(IF(REPORT_OWNER="Версия организации","HIDDEN","VISIBLE"),0) -> HIDDEN | AA1: =IFERROR(IF(REPORT_OWNER="Версия организации","HIDDEN","VISIBLE"),0) -> HIDDEN | AB1: =IFERROR(IF(REPORT_OWNER="Версия организации","HIDDEN","VISIBLE"),0) -> HIDDEN
D6: Список листов
D7: Объём воздушных линий электропередач (ВЛЭП) и кабельных линий электропередач (КЛЭП) в условных единицах в зависимости от протяженности, напряжения, конструктивного использования и материала опор
K9: =IF(god="","Не определено",god+4) -> Не определено | L9: =IF(god="","Не определено",god+5) -> Не определено | M9: Не определено | N9: Не определено | O9: Не определено | P9: Не определено | Q9: Не определено | R9: Не определено | S9: Не определено | T9: Не определено | U9: =IF(god="","Не определено",god+7) -> Не определено | V9: =IF(god="","Не определено",god+7) -> Не определено | W9: =IF(god="","Не определено",god+5) -> Не определено | X9: =IF(god="","Не определено",god+5) -> Не определено | Y9: =IF(god="","Не определено",god+7) -> Не определено | Z9: =IF(god="","Не определено",god+7) -> Не определено | AA9: =IF(god="","Не определено",god+5) -> Не определено | AB9: =IF(god="","Не определено",god+5) -> Не определено | AC9: =IF(god="","Не определено",god+8) -> Не определено | AD9: =IF(god="","Не определено",god+8) -> Не определено | AE9: =IF(god="","Не определено",god+8) -> Не определено | AF9: =IF(god="","Не определено",god+9) -> Не определено | AG9: Не определено | AH9: Не определено | AI9: Не определено | AJ9: Не определено | AK9: Не определено | AL9: =IF(god="","Не определено",god+10) -> Не определено | AM9: Не определено | AN9: Не определено | AO9: Не определено | AP9: Не определено | AQ9: Не определено | AR9: =IF(god="","Не определено",god+11) -> Не определено | AS9: Не определено | AT9: Не определено | AU9: Не определено | AV9: Не определено | AW9: Не определено | AX9: =IF(god="","Не определено",god+12) -> Не определено | AY9: Не определено | AZ9: Не определено | BA9: Не определено | BB9: Не определено | BC9: Не определено | BD9: =IF(god="","Не определено",god+13) -> Не определено | BE9: Не определено | BF9: Не определено | BG9: Не определено | BH9: Не определено | BI9: Не определено
D13: ЛЭП | E13: Напряжение, кВ | H13: Количество цепей на опоре | I13: Материал опор | K13: Количество условных единиц (у) на 100 км трассы ЛЭП | O13: =god-3&", факт" -> -3, факт | Q13: =god-2&", факт" -> -2, факт | S13: =god-2&", факт Версия регулятора " -> -2, факт Версия регулятора | U13: =god-1&", утверждено версия ТСО" -> -1, утверждено версия ТСО | W13: =god-1&", Версия регулятора " -> -1, Версия регулятора | Y13: =god&", предложение ТСО" -> , предложение ТСО | AA13: =god&", Версия регулятора " -> , Версия регулятора | BM13: Комментарии и примечания (не будут загружены в БД)
O14: Протяжённость | P14: Объём условных единиц | Q14: Протяжённость | R14: Объём условных единиц | S14: Протяжённость | T14: Объём условных единиц | U14: Протяжённость | V14: Объём условных единиц | W14: Протяжённость | X14: Объём условных единиц | Y14: Протяжённость | Z14: Объём условных единиц | AA14: Протяжённость | AB14: Объём условных единиц
K15: у/100км | O15: км | P15: у | Q15: км | R15: у | S15: км | T15: у | U15: км | V15: у | W15: км | X15: у | Y15: км | Z15: у | AA15: км | AB15: у
AA16: =AA12 & ".1" -> .1 | AB16: =AA12 & ".2" -> .2
D17: ВЛЭП | E17: 1150 | H17: - | I17: металл | K17: 800 | P17: =$K17*O17/100 -> 0 | R17: =$K17*Q17/100 -> 0 | T17: =$K17*S17/100 -> 0 | V17: =$K17*U17/100 -> 0 | X17: =$K17*W17/100 -> 0 | Z17: =$K17*Y17/100 -> 0 | AB17: =$K17*AA17/100 -> 0
E18: 750 | H18: 1 | I18: металл | K18: 600 | P18: 0 | R18: 0 | T18: 0 | V18: 0 | X18: 0 | Z18: 0 | AB18: 0
E19: 400-500 | F19: 400_500 | G19: 1 | H19: 1 | I19: металл | J19: ВЛЭП-400-500кВ-цепей:1-металл | K19: 400 | P19: 0 | R19: 0 | T19: 0 | V19: 0 | X19: 0 | Z19: 0 | AB19: 0
F20: 400_500 | G20: 1 | I20: ж/бетон | J20: ВЛЭП-400-500кВ-цепей:1-ж/бетон | K20: 300 | P20: 0 | R20: 0 | T20: 0 | V20: 0 | X20: 0 | Z20: 0 | AB20: 0
E21: 330 | F21: 330 | G21: 1 | H21: 1 | I21: металл | J21: ВЛЭП-330кВ-цепей:1-металл | K21: 230 | P21: 0 | R21: 0 | T21: 0 | V21: 0 | X21: 0 | Z21: 0 | AB21: 0
F22: 330 | G22: 1 | I22: ж/бетон | J22: ВЛЭП-330кВ-цепей:1-металл | K22: 170 | P22: 0 | R22: 0 | T22: 0 | V22: 0 | X22: 0 | Z22: 0 | AB22: 0
F23: 330 | G23: 2 | H23: 2 | I23: металл | J23: ВЛЭП-330кВ-цепей:2-металл | K23: 290 | P23: 0 | R23: 0 | T23: 0 | V23: 0 | X23: 0 | Z23: 0 | AB23: 0
F24: 300 | G24: 2 | I24: ж/бетон | J24: ВЛЭП-330кВ-цепей:2-ж/бетон | K24: 210 | P24: 0 | R24: 0 | T24: 0 | V24: 0 | X24: 0 | Z24: 0 | AB24: 0
E25: 220 | F25: 220 | G25: 1 | H25: 1 | I25: дерево | J25: ВЛЭП-220кВ-цепей:1-дерево | K25: 260 | P25: 0 | R25: 0 | T25: 0 | V25: 0 | X25: 0 | Z25: 0 | AB25: 0
F26: 220 | G26: 1 | I26: металл | J26: ВЛЭП-220кВ-металл | K26: 210 | P26: 0 | R26: 0 | T26: 0 | V26: 0 | X26: 0 | Z26: 0 | AB26: 0
F27: 220 | G27: 1 | I27: ж/бетон | J27: ВЛЭП-220кВ:1-ж/бетон | K27: 140 | P27: 0 | R27: 0 | T27: 0 | V27: 0 | X27: 0 | Z27: 0 | AB27: 0
F28: 220 | G28: 2 | H28: 2 | I28: металл | J28: ВЛЭП-220кВ-цепей:2-металл | K28: 270 | P28: 0 | R28: 0 | T28: 0 | V28: 0 | X28: 0 | Z28: 0 | AB28: 0
F29: 220 | G29: 2 | I29: ж/бетон | J29: ВЛЭП-220кВ:2-ж/бетон | K29: 180 | P29: 0 | R29: 0 | T29: 0 | V29: 0 | X29: 0 | Z29: 0 | AB29: 0
E30: 110-150 | F30: 110_150 | G30: 1 | H30: 1 | I30: дерево | J30: ВЛЭП-110-150кВ-цепей:1-дерево | K30: 180 | P30: 0 | R30: 0 | T30: 0 | V30: 0 | X30: 0 | Z30: 0 | AB30: 0
F31: 110_150 | G31: 1 | I31: металл | J31: ВЛЭП-110-150кВ-металл | K31: 160 | P31: 0 | R31: 0 | T31: 0 | V31: 0 | X31: 0 | Z31: 0 | AB31: 0
F32: 110_150 | G32: 1 | I32: ж/бетон | J32: ВЛЭП-110-150кВ:1-ж/бетон | K32: 130 | P32: 0 | R32: 0 | T32: 0 | V32: 0 | X32: 0 | Z32: 0 | AB32: 0
F33: 110_150 | G33: 2 | H33: 2 | I33: металл | J33: ВЛЭП-110-150кВ-цепей:2-металл | K33: 190 | P33: 0 | R33: 0 | T33: 0 | V33: 0 | X33: 0 | Z33: 0 | AB33: 0
F34: 110_150 | G34: 2 | I34: ж/бетон | J34: ВЛЭП-110-150кВ:2-ж/бетон | K34: 160 | P34: 0 | R34: 0 | T34: 0 | V34: 0 | X34: 0 | Z34: 0 | AB34: 0
D35: КЛЭП | E35: 220 | F35: 220 | G35: 0 | H35: - | I35: - | J35: КЛЭП-220кВ | K35: 3000 | P35: 0 | R35: 0 | T35: 0 | V35: 0 | X35: 0 | Z35: 0 | AB35: 0
E36: 110 | F36: 110 | G36: 0 | H36: - | I36: - | J36: КЛЭП-110кВ | K36: 2300 | P36: 0 | R36: 0 | T36: 0 | V36: 0 | X36: 0 | Z36: 0 | AB36: 0
D37: ВН, Всего | F37: =J37 -> ВН_Всего | J37: ВН_Всего | O37: =SUM(O17:O36) -> 0 | P37: =SUM(P17:P36) -> 0 | Q37: =SUM(Q17:Q36) -> 0 | R37: =SUM(R17:R36) -> 0 | S37: 0 | T37: 0 | U37: =SUM(U17:U36) -> 0 | V37: 0 | W37: 0 | X37: 0 | Y37: =SUM(Y17:Y36) -> 0 | Z37: 0 | AA37: 0 | AB37: 0
D38: ВЛЭП | E38: 35 | F38: 35 | G38: 1 | H38: 1 | I38: дерево | J38: ВЛЭП-35кВ-цепей:1-дерево | K38: 170 | P38: =$K38*O38/100 -> 0 | R38: =$K38*Q38/100 -> 0 | T38: =$K38*S38/100 -> 0 | V38: =$K38*U38/100 -> 0 | X38: =$K38*W38/100 -> 0 | Z38: =$K38*Y38/100 -> 0 | AB38: =$K38*AA38/100 -> 0
F39: 35 | G39: 1 | I39: металл | J39: ВЛЭП-35кВ-металл | K39: 140 | P39: 0 | R39: 0 | T39: 0 | V39: 0 | X39: 0 | Z39: 0 | AB39: 0
F40: 35 | G40: 1 | I40: ж/бетон | J40: ВЛЭП-35кВ:1-ж/бетон | K40: 120 | P40: 0 | R40: 0 | T40: 0 | V40: 0 | X40: 0 | Z40: 0 | AB40: 0
F41: 35 | G41: 2 | H41: 2 | I41: металл | J41: ВЛЭП-35кВ-цепей:2-металл | K41: 180 | P41: 0 | R41: 0 | T41: 0 | V41: 0 | X41: 0 | Z41: 0 | AB41: 0
F42: 35 | G42: 2 | I42: ж/бетон | J42: ВЛЭП-35кВ:2-ж/бетон | K42: 150 | P42: 0 | R42: 0 | T42: 0 | V42: 0 | X42: 0 | Z42: 0 | AB42: 0
E43: 1 - 20 | F43: 1_20 | G43: 0 | H43: - | I43: дерево | J43: ВЛЭП-1-20кВ-дерево | K43: 160 | P43: 0 | R43: 0 | T43: 0 | V43: 0 | X43: 0 | Z43: 0 | AB43: 0
F44: 1_20 | G44: 0 | I44: дерево на ж/б пасынках | J44: ВЛЭП-1-20кВ-дерево на ж/б пасынках | K44: 140 | P44: 0 | R44: 0 | T44: 0 | V44: 0 | X44: 0 | Z44: 0 | AB44: 0
F45: 1_20 | G45: 0 | I45: ж/бетон, металл | J45: ВЛЭП-1-20кВ-ж/бетон,металл | K45: 110 | P45: 0 | R45: 0 | T45: 0 | V45: 0 | X45: 0 | Z45: 0 | AB45: 0
D46: КЛЭП | E46: 20-35 | F46: 20_35 | G46: 0 | H46: - | I46: - | J46: КЛЭП-20-35кВ | K46: 470 | P46: 0 | R46: 0 | T46: 0 | V46: 0 | X46: 0 | Z46: 0 | AB46: 0
E48: 3 - 10 | F48: 3_10 | G48: 0 | H48: - | I48: - | J48: КЛЭП-3-10кВ | K48: 350 | P48: 0 | R48: 0 | T48: =$K48*S48/100 -> 0 | V48: 0 | X48: 0 | Z48: 0 | AB48: 0
D49: СН 1, Всего | F49: =J49 -> СН1_Всего | J49: СН1_Всего | O49: =SUM(O38:O42)+O46 -> 0 | P49: =SUM(P38:P42)+P46 -> 0 | Q49: 0 | R49: 0 | S49: 0 | T49: 0 | U49: 0 | V49: 0 | W49: 0 | X49: 0 | Y49: 0 | Z49: 0 | AA49: 0 | AB49: 0
D50: СН 2, Всего | F50: =J50 -> СН2_Всего | J50: СН2_Всего | O50: =SUM(O43:O45)+O48 -> 0 | P50: =SUM(P43:P45)+P48 -> 0 | Q50: 0 | R50: 0 | S50: 0 | T50: 0 | U50: 0 | V50: 0 | W50: 0 | X50: 0 | Y50: 0 | Z50: 0 | AA50: 0 | AB50: 0
D51: ВЛЭП | E51: 0,4 кВ | F51: 0,4 | G51: 0 | H51: - | I51: дерево | J51: ВЛЭП-0,4кВ-дерево | K51: 260 | P51: =$K51*O51/100 -> 0 | R51: =$K51*Q51/100 -> 0 | T51: =$K51*S51/100 -> 0 | V51: =$K51*U51/100 -> 0 | X51: =$K51*W51/100 -> 0 | Z51: =$K51*Y51/100 -> 0 | AB51: =$K51*AA51/100 -> 0
F52: 0,4 | G52: 0 | I52: дерево на ж/б пасынках | J52: ВЛЭП-0,4кВ-дерево на ж/б пасынках | K52: 220 | P52: =$K52*O52/100 -> 0 | R52: =$K52*Q52/100 -> 0 | T52: =$K52*S52/100 -> 0 | V52: =$K52*U52/100 -> 0 | X52: =$K52*W52/100 -> 0 | Z52: =$K52*Y52/100 -> 0 | AB52: =$K52*AA52/100 -> 0
F53: 0,4 | G53: 0 | I53: ж/бетон, металл | J53: ВЛЭП-0,4кВ-ж/бетон,металл | K53: 150 | P53: =$K53*O53/100 -> 0 | R53: =$K53*Q53/100 -> 0 | T53: =$K53*S53/100 -> 0 | V53: =$K53*U53/100 -> 0 | X53: =$K53*W53/100 -> 0 | Z53: =$K53*Y53/100 -> 0 | AB53: =$K53*AA53/100 -> 0
D54: КЛЭП | E54: до 1 кВ | F54: _1 | G54: 0 | H54: - | I54: - | J54: КЛЭП-до1кВ | K54: 270 | P54: =$K54*O54/100 -> 0 | R54: =$K54*Q54/100 -> 0 | T54: =$K54*S54/100 -> 0 | V54: =$K54*U54/100 -> 0 | X54: =$K54*W54/100 -> 0 | Z54: =$K54*Y54/100 -> 0 | AB54: =$K54*AA54/100 -> 0
D55: НН, Всего | F55: =J55 -> НН_Всего | J55: НН_Всего | O55: =SUM(O51:O54) -> 0 | P55: =SUM(P51:P54) -> 0 | Q55: =SUM(Q51:Q54) -> 0 | R55: =SUM(R51:R54) -> 0 | S55: =SUM(S51:S54) -> 0 | T55: 0 | U55: =SUM(U51:U54) -> 0 | V55: =SUM(V51:V54) -> 0 | W55: =SUM(W51:W54) -> 0 | X55: =SUM(X51:X54) -> 0 | Y55: 0 | Z55: 0 | AA55: =SUM(AA51:AA54) -> 0 | AB55: =SUM(AB51:AB54) -> 0
D56: Итого | H56: ВН | O56: =O37 -> 0 | P56: =P37 -> 0 | Q56: =Q37 -> 0 | R56: =R37 -> 0 | S56: =S37 -> 0 | T56: 0 | U56: =U37 -> 0 | V56: =V37 -> 0 | W56: =W37 -> 0 | X56: =X37 -> 0 | Y56: 0 | Z56: 0 | AA56: =AA37 -> 0 | AB56: =AB37 -> 0
H57: СН 1 | O57: =O49 -> 0 | P57: 0 | Q57: 0 | R57: 0 | S57: =S49 -> 0 | T57: 0 | U57: =U49 -> 0 | V57: 0 | W57: 0 | X57: 0 | Y57: 0 | Z57: 0 | AA57: =AA49 -> 0 | AB57: =AB49 -> 0
H58: СН 2 | O58: 0 | P58: 0 | Q58: 0 | R58: 0 | S58: 0 | T58: 0 | U58: 0 | V58: 0 | W58: 0 | X58: 0 | Y58: 0 | Z58: 0 | AA58: =AA50 -> 0 | AB58: =AB50 -> 0
H59: НН | O59: =O55 -> 0 | P59: =P55 -> 0 | Q59: =Q55 -> 0 | R59: =R55 -> 0 | S59: =S55 -> 0 | T59: 0 | U59: =U55 -> 0 | V59: =V55 -> 0 | W59: =W55 -> 0 | X59: =X55 -> 0 | Y59: 0 | Z59: 0 | AA59: =AA55 -> 0 | AB59: =AB55 -> 0
H60: Всего | O60: =O56+O57+O58+O59 -> 0 | P60: =P56+P57+P58+P59 -> 0 | Q60: =Q56+Q57+Q58+Q59 -> 0 | R60: =R56+R57+R58+R59 -> 0 | S60: =S56+S57+S58+S59 -> 0 | T60: 0 | U60: =U56+U57+U58+U59 -> 0 | V60: =V56+V57+V58+V59 -> 0 | W60: =W56+W57+W58+W59 -> 0 | X60: =X56+X57+X58+X59 -> 0 | Y60: 0 | Z60: 0 | AA60: =AA56+AA57+AA58+AA59 -> 0 | AB60: =AB56+AB57+AB58+AB59 -> 0

Sheet 6 _ПС у.е (hidden)
O1: =IFERROR(IF(REPORT_OWNER="Версия организации","HIDDEN","VISIBLE"),0) -> HIDDEN | P1: =IFERROR(IF(REPORT_OWNER="Версия организации","HIDDEN","VISIBLE"),0) -> HIDDEN | S1: =IFERROR(IF(REPORT_OWNER="Версия организации","HIDDEN","VISIBLE"),0) -> HIDDEN | T1: =IFERROR(IF(REPORT_OWNER="Версия организации","HIDDEN","VISIBLE"),0) -> HIDDEN | W1: =IFERROR(IF(REPORT_OWNER="Версия организации","HIDDEN","VISIBLE"),0) -> HIDDEN | X1: =IFERROR(IF(REPORT_OWNER="Версия организации","HIDDEN","VISIBLE"),0) -> HIDDEN
D6: Список листов
D7: Объём подстанций 35-1150 кВ, трансформаторных подстанций (ТП), комплексных трансформаторных подстанций (КТП) и распределительных пунктов(РП) 0,4-20 кВ в условных единицах
J9: =IF(god="","Не определено",god+4) -> Не определено | K9: =IF(god="","Не определено",god+5) -> Не определено | L9: Не определено | M9: Не определено | N9: Не определено | O9: Не определено | P9: Не определено | Q9: Не определено | R9: Не определено | S9: Не определено | T9: Не определено | U9: =IF(god="","Не определено",god+7) -> Не определено | V9: =IF(god="","Не определено",god+7) -> Не определено | W9: =IF(god="","Не определено",god+7) -> Не определено | X9: =IF(god="","Не определено",god+7) -> Не определено
D13: № п/п | E13: Наименование | H13: Единица измерения | I13: Напряжение, кВ | J13: Количество условных единиц (у) на единицу измерения | K13: =god-3&", факт" -> -3, факт | M13: =god-2&", факт" -> -2, факт | O13: =god-2&", факт версия регулятора" -> -2, факт версия регулятора | Q13: =god-1&", утверждено версия ТСО" -> -1, утверждено версия ТСО | S13: =god-1&", Версия регулятора " -> -1, Версия регулятора | U13: =god&", предложение ТСО" -> , предложение ТСО | W13: =god&", Версия регулятора " -> , Версия регулятора | AB13: Комментарии и примечания (не будут загружены в БД)
K14: Количество единиц измерения | L14: Объём условных единиц | M14: Количество единиц измерения | N14: Объём условных единиц | O14: Количество единиц измерения | P14: Объём условных единиц | Q14: Количество единиц измерения | R14: Объём условных единиц | S14: Количество единиц измерения | T14: Объём условных единиц | U14: Количество единиц измерения | V14: Объём условных единиц | W14: Количество единиц измерения | X14: Объём условных единиц
J15: у/ед.изм. | K15: ед.изм. | L15: у | M15: ед.изм. | N15: у | O15: ед.изм. | P15: у | Q15: ед.изм. | R15: у | S15: ед.изм. | T15: у | U15: ед.изм. | V15: у | W15: ед.изм. | X15: у
W16: =W12 & ".1" -> .1 | X16: =W12 & ".2" -> .2
D17: 1 | E17: Подстанция | H17: п/ст | I17: 1150 | J17: 1000 | L17: =$J17*K17 -> 0 | N17: =$J17*M17 -> 0 | P17: =$J17*O17 -> 0 | R17: =$J17*Q17 -> 0 | T17: =$J17*S17 -> 0 | V17: =$J17*U17 -> 0 | X17: =$J17*W17 -> 0
I18: 750 | J18: 600 | L18: 0 | N18: 0 | P18: 0 | R18: 0 | T18: 0 | V18: 0 | X18: 0
F19: 400_500 | G19: Подстанция | I19: 400-500 | J19: 500 | L19: 0 | N19: 0 | P19: 0 | R19: 0 | T19: 0 | V19: 0 | X19: 0
F20: 330 | G20: Подстанция | I20: 330 | J20: 250 | L20: 0 | N20: 0 | P20: 0 | R20: 0 | T20: 0 | V20: 0 | X20: 0
F21: 220 | G21: Подстанция | I21: 220 | J21: 210 | L21: 0 | N21: 0 | P21: 0 | R21: 0 | T21: 0 | V21: 0 | X21: 0
F22: 110_150 | G22: Подстанция | I22: 110-150 | J22: 105 | L22: 0 | N22: 0 | P22: 0 | R22: 0 | T22: 0 | V22: 0 | X22: 0
F23: 35 | G23: Подстанция | I23: 35 | J23: 75 | L23: 0 | N23: 0 | P23: 0 | R23: 0 | T23: 0 | V23: 0 | X23: 0
D24: 2 | E24: Силовой трансформатор или реактор (одно- или трехфазный), или вольтодобавочный трансформатор | F24: 1150 | G24: Силовой трансформатор или реактор (одно- или трехфазный), или вольтодобавочный трансформатор | H24: Единица оборудования | I24: 1150 | J24: 60 | L24: 0 | N24: 0 | P24: 0 | R24: 0 | T24: 0 | V24: 0 | X24: 0
F25: 750 | G25: Силовой трансформатор или реактор (одно- или трехфазный), или вольтодобавочный трансформатор | I25: 750 | J25: 43 | L25: 0 | N25: 0 | P25: 0 | R25: 0 | T25: 0 | V25: =$J25*U25 -> 0 | X25: 0
F26: 400_500 | G26: Силовой трансформатор или реактор (одно- или трехфазный), или вольтодобавочный трансформатор | I26: 400-500 | J26: 28 | L26: 0 | N26: 0 | P26: 0 | R26: 0 | T26: 0 | V26: 0 | X26: 0
F27: 330 | G27: Силовой трансформатор или реактор (одно- или трехфазный), или вольтодобавочный трансформатор | I27: 330 | J27: 18 | L27: 0 | N27: 0 | P27: 0 | R27: 0 | T27: 0 | V27: 0 | X27: 0
F28: 220 | G28: Силовой трансформатор или реактор (одно- или трехфазный), или вольтодобавочный трансформатор | I28: 220 | J28: 14 | L28: 0 | N28: 0 | P28: 0 | R28: 0 | T28: 0 | V28: 0 | X28: 0
F29: 110_150 | G29: Силовой трансформатор или реактор (одно- или трехфазный), или вольтодобавочный трансформатор | I29: 110-150 | J29: 7.8 | L29: 0 | N29: 0 | P29: 0 | R29: 0 | T29: 0 | V29: 0 | X29: 0
I30: 35 | J30: 2.1 | L30: 0 | N30: 0 | P30: 0 | R30: 0 | T30: 0 | V30: 0 | X30: 0
F31: 1_20 | G31: Силовой трансформатор или реактор (одно- или трехфазный), или вольтодобавочный трансформатор | I31: 1-20 | J31: 1 | L31: 0 | N31: 0 | P31: 0 | R31: 0 | T31: 0 | V31: 0 | X31: 0
D32: 3 | E32: Воздушный выключатель | F32: 1150 | G32: Воздушный выключатель | H32: 3 фазы | I32: 1150 | J32: 180 | L32: 0 | N32: 0 | P32: 0 | R32: 0 | T32: 0 | V32: 0 | X32: 0
F33: 750 | G33: Воздушный выключатель | I33: 750 | J33: 130 | L33: 0 | N33: 0 | P33: 0 | R33: 0 | T33: 0 | V33: 0 | X33: 0
F34: 400_500 | G34: Воздушный выключатель | I34: 400-500 | J34: 88 | L34: 0 | N34: 0 | P34: 0 | R34: 0 | T34: 0 | V34: 0 | X34: 0
F35: 330 | G35: Воздушный выключатель | I35: 330 | J35: 66 | L35: 0 | N35: 0 | P35: 0 | R35: 0 | T35: 0 | V35: 0 | X35: 0
F36: 220 | G36: Воздушный выключатель | I36: 220 | J36: 43 | L36: 0 | N36: 0 | P36: 0 | R36: 0 | T36: 0 | V36: 0 | X36: 0
F37: 110_150 | G37: Воздушный выключатель | I37: 110-150 | J37: 26 | L37: 0 | N37: 0 | P37: 0 | R37: 0 | T37: 0 | V37: 0 | X37: 0
I38: 35 | J38: 11 | L38: 0 | N38: 0 | P38: 0 | R38: 0 | T38: 0 | V38: 0 | X38: 0
F39: 1_20 | G39: Воздушный выключатель | I39: 1-20 | J39: 5.5 | L39: 0 | N39: 0 | P39: 0 | R39: 0 | T39: 0 | V39: 0 | X39: 0
D40: 4 | E40: Масляный (вакуумный) выключатель | F40: 220 | G40: Масляный (вакуумный) выключатель | H40: 3 фазы | I40: 220 | J40: 23 | L40: 0 | N40: 0 | P40: 0 | R40: 0 | T40: 0 | V40: 0 | X40: 0
F41: 110_150 | G41: Масляный (вакуумный) выключатель | I41: 110-150 | J41: 14 | L41: 0 | N41: 0 | P41: 0 | R41: 0 | T41: 0 | V41: 0 | X41: 0
I42: 35 | J42: 6.4 | L42: 0 | N42: 0 | P42: 0 | R42: 0 | T42: 0 | V42: 0 | X42: 0
F43: 1_20 | G43: Масляный (вакуумный) выключатель | I43: 1-20 | J43: 3.1 | L43: 0 | N43: 0 | P43: 0 | R43: 0 | T43: 0 | V43: 0 | X43: 0
D44: 5 | E44: Отделитель с короткозамыкателем | F44: 400_500 | G44: Отделитель с короткозамыкателем | H44: Единица оборудования | I44: 400-500 | J44: 35 | L44: 0 | N44: 0 | P44: 0 | R44: 0 | T44: 0 | V44: 0 | X44: 0
F45: 330 | G45: Отделитель с короткозамыкателем | I45: 330 | J45: 24 | L45: 0 | N45: 0 | P45: 0 | R45: 0 | T45: 0 | V45: 0 | X45: 0
F46: 220 | G46: Отделитель с короткозамыкателем | I46: 220 | J46: 19 | L46: 0 | N46: 0 | P46: 0 | R46: 0 | T46: 0 | V46: 0 | X46: 0
F47: 110_150 | G47: Отделитель с короткозамыкателем | I47: 110-150 | J47: 9.5 | L47: 0 | N47: 0 | P47: 0 | R47: 0 | T47: 0 | V47: 0 | X47: 0
F48: 35 | G48: Отделитель с короткозамыкателем | I48: 35 | J48: 4.7 | L48: 0 | N48: 0 | P48: 0 | R48: 0 | T48: 0 | V48: 0 | X48: 0
D49: 6 | E49: Выключатель нагрузки | H49: Единица оборудования | I49: 1-20 | J49: 2.3 | L49: 0 | N49: 0 | P49: 0 | R49: 0 | T49: 0 | V49: 0 | X49: 0
D50: 7 | E50: Синхронный компенсатор мощн. до 50 Мвар | F50: 1_20 | G50: Синхронный компенсатор мощн. до 50 Мвар | H50: Единица оборудования | I50: 1-20 | J50: 26 | L50: 0 | N50: 0 | P50: 0 | R50: 0 | T50: 0 | V50: 0 | X50: 0
D51: 8 | E51: То же, 50 Мвар и более | F51: 1_20 | G51: Синхронный компенсатор мощн. 50 Мвар и выше | H51: Единица оборудования | I51: 1-20 | J51: 48 | L51: 0 | N51: 0 | P51: 0 | R51: 0 | T51: 0 | V51: 0 | X51: 0
D52: 9 | E52: Статические конденсаторы | F52: 110_150 | G52: Статические конденсаторы | H52: 100 конд. | I52: 110-150 | J52: 2.4 | L52: 0 | N52: 0 | P52: 0 | R52: 0 | T52: 0 | V52: 0 | X52: 0
F53: 35 | G53: Статические конденсаторы | I53: 35 | J53: 2.4 | L53: 0 | N53: 0 | P53: 0 | R53: 0 | T53: 0 | V53: 0 | X53: 0
F54: 1_20 | G54: Статические конденсаторы | I54: 1-20 | J54: 2.4 | L54: 0 | N54: 0 | P54: 0 | R54: 0 | T54: 0 | V54: 0 | X54: 0
D55: 10 | E55: Мачтовая (столбовая) ТП | F55: 1_20 | G55: Мачтовая (столбовая) ТП | H55: ТП | I55: 1-20 | J55: 2.5 | L55: 0 | N55: 0 | P55: 0 | R55: 0 | T55: 0 | V55: 0 | X55: 0
D56: 11 | E56: Однотрансфор-маторная ТП, КТП | F56: ТП, КТП | G56: 1-20 | H56: ТП, КТП | I56: 1-20 | J56: 2.3 | L56: 0 | N56: 0 | P56: 0 | R56: 0 | T56: 0 | V56: 0 | X56: 0
D57: 12 | E57: Двухтрансформаторная ТП, КТП | F57: ТП, КТП | G57: 1-20 | H57: ТП, КТП | I57: 1-20 | J57: 3 | L57: 0 | N57: 0 | P57: 0 | R57: 0 | T57: 0 | V57: 0 | X57: 0
D60: 13 | E60: Однотрансфор-маторная подстанция 34/0,4 кВ | F60: п/ст | G60: 35 | H60: п/ст | I60: 35 | J60: 3.5 | L60: 0 | N60: 0 | P60: 0 | R60: 0 | T60: 0 | V60: 0 | X60: 0
D61: 14 | E61: Итого | F61: ВН | I61: ВН | L61: =SUM(L17:L22,L24:L29,L32:L37,L40:L41,L44:L47,L52) -> 0 | N61: =SUM(N17:N22,N24:N29,N32:N37,N40:N41,N44:N47,N52) -> 0 | P61: =SUM(P17:P22,P24:P29,P32:P37,P40:P41,P44:P47,P52) -> 0 | R61: =SUM(R17:R22,R24:R29,R32:R37,R40:R41,R44:R47,R52) -> 0 | T61: =SUM(T17:T22,T24:T29,T32:T37,T40:T41,T44:T47,T52) -> 0 | V61: =SUM(V17:V22,V24:V29,V32:V37,V40:V41,V44:V47,V52) -> 0 | X61: =SUM(X17:X22,X24:X29,X32:X37,X40:X41,X44:X47,X52) -> 0
F62: СН1 | I62: СН1 | L62: =L23+L30+L38+L42+L48+L53+L60 -> 0 | N62: =N23+N30+N38+N42+N48+N53+N60 -> 0 | P62: =P23+P30+P38+P42+P48+P53 -> 0 | R62: =R23+R30+R38+R42+R48+R53+R60 -> 0 | T62: =T23+T30+T38+T42+T48+T53 -> 0 | V62: =V23+V30+V38+V42+V48+V53+V60 -> 0 | X62: =X23+X30+X38+X42+X48+X53 -> 0
F63: СН2 | I63: СН2 | L63: =L31+L39+L43+L49+L50+L51+L54+L55+L56+L57+L58+L59 -> 0 | N63: =N31+N39+N43+N49+N50+N51+N54+N55+N56+N57+N58+N59 -> 0 | P63: =P31+P39+P43+P49+P50+P51+P54+P55+P56+P57+P58+P59 -> 0 | R63: =R31+R39+R43+R49+R50+R51+R54+R55+R56+R57+R58+R59 -> 0 | T63: =T31+T39+T43+T49+T50+T51+T54+T55+T56+T57+T58+T59 -> 0 | V63: =V31+V39+V43+V49+V50+V51+V54+V55+V56+V57+V58+V59 -> 0 | X63: =X31+X39+X43+X49+X50+X51+X54+X55+X56+X57+X58+X59 -> 0
F64: НН | I64: НН | L64: 0 | N64: 0 | P64: 0 | R64: 0 | T64: 0 | V64: 0 | X64: 0
D65: 14 | F65: Всего | I65: Всего | K65: =K61+K62+K63+K64 -> 0 | L65: =L61+L62+L63+L64 -> 0 | M65: =M61+M62+M63+M64 -> 0 | N65: 0 | O65: 0 | P65: 0 | Q65: =Q61+Q62+Q63+Q64 -> 0 | R65: =R61+R62+R63+R64 -> 0 | S65: =S61+S62+S63+S64 -> 0 | T65: =T61+T62+T63+T64 -> 0 | U65: 0 | V65: 0 | W65: =W61+W62+W63+W64 -> 0 | X65: =X61+X62+X63+X64 -> 0

Sheet 7_Свод УЕ (hidden)
F7: Список листов
F8: 7 - Свод УЕ
F14: № п/п | G14: Наименование показателей | H14: ВН | I14: СН-1 | J14: СН-2 | K14: НН | L14: Всего
F15: 1 | G15: Объем воздушных линий электропередач (ВЛЭП) и кабельных линий электропередач (КЛЭП) в условных единицах в зависимост от протяженности, напряжения, конструктивного использования и материала опор.
F16: 1.1 | G16: ='8_Расчет НВВ '!J$21&" "&'8_Расчет НВВ '!J$20-1 -> факт ТСО -3 | H16: ='5_ЛЭП у.е'!P56 -> 0 | I16: ='5_ЛЭП у.е'!P57 -> 0 | J16: ='5_ЛЭП у.е'!P58 -> 0 | K16: ='5_ЛЭП у.е'!P59 -> 0 | L16: =SUM(H16:K16) -> 0
F17: 1.2 | G17: ='8_Расчет НВВ '!$I$21&" "&'8_Расчет НВВ '!$I$20 -> утверждено (заполняет ТСО) -2
F18: 1.3 | G18: ='8_Расчет НВВ '!J$21&" "&'8_Расчет НВВ '!J$20 -> факт ТСО -2 | H18: ='5_ЛЭП у.е'!R56 -> 0 | I18: ='5_ЛЭП у.е'!R57 -> 0 | J18: ='5_ЛЭП у.е'!R58 -> 0 | K18: ='5_ЛЭП у.е'!R59 -> 0 | L18: =SUM(H18:K18) -> 0
A19: =IFERROR(IF(REPORT_OWNER="Версия организации","HIDDEN","VISIBLE"),0) -> HIDDEN | F19: 1.4 | G19: =G18& " версия регулятора" -> факт ТСО -2 версия регулятора | H19: ='5_ЛЭП у.е'!T56 -> 0 | I19: ='5_ЛЭП у.е'!T57 -> 0 | J19: ='5_ЛЭП у.е'!T58 -> 0 | K19: ='5_ЛЭП у.е'!T59 -> 0 | L19: =SUM(H19:K19) -> 0
F20: 1.5 | G20: ='8_Расчет НВВ '!N$21&" "&'8_Расчет НВВ '!N$20 -> утверждено (заполняет ТСО) -1 | H20: ='5_ЛЭП у.е'!V56 -> 0 | I20: ='5_ЛЭП у.е'!V57 -> 0 | J20: ='5_ЛЭП у.е'!V58 -> 0 | K20: ='5_ЛЭП у.е'!V59 -> 0 | L20: =SUM(H20:K20) -> 0
F21: 1.6 | G21: ='8_Расчет НВВ '!P$21&" "&'8_Расчет НВВ '!P$20 -> предложение ТСО 0 | H21: ='5_ЛЭП у.е'!$Z56 -> 0 | I21: ='5_ЛЭП у.е'!$Z57 -> 0 | J21: ='5_ЛЭП у.е'!$Z58 -> 0 | K21: ='5_ЛЭП у.е'!$Z59 -> 0 | L21: =SUM(H21:K21) -> 0
A22: =IFERROR(IF(REPORT_OWNER="Версия организации","HIDDEN","VISIBLE"),0) -> HIDDEN | F22: 1.7 | G22: =god&", Версия регулятора " -> , Версия регулятора | H22: ='5_ЛЭП у.е'!$AB56 -> 0 | I22: ='5_ЛЭП у.е'!$AB57 -> 0 | J22: ='5_ЛЭП у.е'!$AB58 -> 0 | K22: ='5_ЛЭП у.е'!$AB59 -> 0 | L22: =SUM(H22:K22) -> 0
F24: 2 | G24: Объем подстанций 35-1150 кВ, трансформаторных подстанций (ТП), комплексных трансформаторных подстанций (КТП) и распределительных пунктов (РП) 0,4-20 кВ в условных единицах.
F25: 2.1 | G25: ='8_Расчет НВВ '!J$21&" "&'8_Расчет НВВ '!J$20-1 -> факт ТСО -3 | H25: ='6 _ПС у.е'!$L61 -> 0 | I25: ='6 _ПС у.е'!$L62 -> 0 | J25: ='6 _ПС у.е'!$L63 -> 0 | K25: ='6 _ПС у.е'!$L64 -> 0 | L25: =SUM(H25:K25) -> 0
F26: 2.2 | G26: ='8_Расчет НВВ '!$I$21&" "&'8_Расчет НВВ '!$I$20 -> утверждено (заполняет ТСО) -2
F27: 2.3 | G27: ='8_Расчет НВВ '!J$21&" "&'8_Расчет НВВ '!J$20 -> факт ТСО -2 | H27: ='6 _ПС у.е'!$N61 -> 0 | I27: ='6 _ПС у.е'!$N62 -> 0 | J27: ='6 _ПС у.е'!$N63 -> 0 | K27: ='6 _ПС у.е'!$N64 -> 0 | L27: =SUM(H27:K27) -> 0
A28: =IFERROR(IF(REPORT_OWNER="Версия организации","HIDDEN","VISIBLE"),0) -> HIDDEN | F28: 2.4 | G28: =G27& " версия регулятора" -> факт ТСО -2 версия регулятора | H28: ='6 _ПС у.е'!$P61 -> 0 | I28: ='6 _ПС у.е'!$P62 -> 0 | J28: ='6 _ПС у.е'!$P63 -> 0 | K28: ='6 _ПС у.е'!$P64 -> 0 | L28: =SUM(H28:K28) -> 0
F29: 2.5 | G29: ='8_Расчет НВВ '!N$21&" "&'8_Расчет НВВ '!N$20 -> утверждено (заполняет ТСО) -1 | H29: ='6 _ПС у.е'!$R61 -> 0 | I29: ='6 _ПС у.е'!$R62 -> 0 | J29: ='6 _ПС у.е'!$R63 -> 0 | K29: ='6 _ПС у.е'!$R64 -> 0 | L29: =SUM(H29:K29) -> 0
F30: 2.6 | G30: ='8_Расчет НВВ '!P$21&" "&'8_Расчет НВВ '!P$20 -> предложение ТСО 0 | H30: ='6 _ПС у.е'!$V61 -> 0 | I30: ='6 _ПС у.е'!$V62 -> 0 | J30: ='6 _ПС у.е'!$V63 -> 0 | K30: ='6 _ПС у.е'!$V64 -> 0 | L30: =SUM(H30:K30) -> 0
A31: =IFERROR(IF(REPORT_OWNER="Версия организации","HIDDEN","VISIBLE"),0) -> HIDDEN | F31: 2.7 | G31: =god&", Версия регулятора " -> , Версия регулятора | H31: ='6 _ПС у.е'!$X61 -> 0 | I31: ='6 _ПС у.е'!$X62 -> 0 | J31: ='6 _ПС у.е'!$X63 -> 0 | K31: ='6 _ПС у.е'!$X64 -> 0 | L31: =SUM(H31:K31) -> 0
F33: 3 | G33: Всего условных единиц
F34: 3.1 | G34: ='8_Расчет НВВ '!J$21&" "&'8_Расчет НВВ '!J$20-1 -> факт ТСО -3 | H34: =H16+H25 -> 0 | I34: =I16+I25 -> 0 | J34: =J16+J25 -> 0 | K34: =K16+K25 -> 0 | L34: =SUM(H34:K34) -> 0
F35: 3.2 | G35: ='8_Расчет НВВ '!$I$21&" "&'8_Расчет НВВ '!$I$20 -> утверждено (заполняет ТСО) -2 | L35: 0
F36: 3.3 | G36: ='8_Расчет НВВ '!J$21&" "&'8_Расчет НВВ '!J$20 -> факт ТСО -2 | H36: =H18+H27 -> 0 | I36: =I18+I27 -> 0 | J36: =J18+J27 -> 0 | K36: =K18+K27 -> 0 | L36: 0
A37: =IFERROR(IF(REPORT_OWNER="Версия организации","HIDDEN","VISIBLE"),0) -> HIDDEN | F37: 3.4 | G37: =G36& " версия регулятора" -> факт ТСО -2 версия регулятора | H37: =H19+H28 -> 0 | I37: 0 | J37: 0 | K37: 0 | L37: 0
F38: 3.5 | G38: ='8_Расчет НВВ '!N$21&" "&'8_Расчет НВВ '!N$20 -> утверждено (заполняет ТСО) -1 | H38: 0 | I38: 0 | J38: 0 | K38: 0 | L38: 0
F39: 3.6 | G39: ='8_Расчет НВВ '!P$21&" "&'8_Расчет НВВ '!P$20 -> предложение ТСО 0 | H39: =SUM(H21,H30) -> 0 | I39: 0 | J39: 0 | K39: 0 | L39: 0
A40: =IFERROR(IF(REPORT_OWNER="Версия организации","HIDDEN","VISIBLE"),0) -> HIDDEN | F40: 3.7 | G40: =god&", Версия регулятора " -> , Версия регулятора | H40: 0 | I40: 0 | J40: 0 | K40: 0 | L40: 0

Sheet 4.1 (hidden)
A1: HIDDEN | J1: =IFERROR(IF(REPORT_OWNER="Версия организации","HIDDEN","VISIBLE"),0) -> HIDDEN
I6: Форма 4.1
F8: Показатели уровня надежности и уровня качества оказываемых услуг электросетевой организации
F14: № п/п | G14: Показатель | H14: № формулы Методических указаний | I14: Версия ТСО | J14: версия регулятора
F17: 1 | G17: Показатель средней продолжительности прекращений передачи электрической энергии (Пп) | H17: 1
F18: 2 | G18: Показатель уровня качества осуществляемого технологического присоединения Птпр | H18: 2.1
F19: 3 | G19: Показатель уровня качества обслуживания потребителей услуг территориальными сетевыми организациями, Птсо | H19: 3.2
F20: 4 | G20: Плановое значение показателя Пп , Пплп | H20: 4
F21: 5 | G21: Плановое значение показателя Птпр , Пплтпр | H21: 4
F22: 6 | G22: Плановое значение показателя Птсо , Пплтсо | H22: 4
F23: 7 | G23: Оценка достижения показателя уровня надежности оказываемых услуг, Кнад | H23: п. 5.1 Методических указаний
F24: 6 | G24: Оценка достижения показателя уровня качества оказываемых услуг, Ккач (для территориальной сетевой организации) | H24: п. 5.1 Методических указаний

Sheet 4.2. расчет K_об (hidden)
A1: HIDDEN | J1: =IFERROR(IF(REPORT_OWNER="Версия организации","HIDDEN","VISIBLE"),0) -> HIDDEN
I7: Форма 4.2
F8: Расчет обобщенного показателя уровня надежности и качества оказываемых услуг
F14: № п/п | G14: Показатель | H14: № формулы Методических указаний | I14: Значение | J14: версия регулятора
F17: 1 | G17: Коэффициент значимости показателя уровня надежности оказываемых услуг, α | H17: - | I17: Для территориальной сетевой организации: α = 0,65 | J17: Для территориальной сетевой организации: α = 0,65
F18: 2 | G18: Коэффициент значимости показателя уровня качества оказываемых услуг, β | H18: - | I18: β = 1 - α | J18: β = 1 - α
F19: 3 | G19: Оценка достижения показателя уровня надежности оказываемых услуг, Кнад | H19: п. 5.1 | I19: ='4.1'!I23 -> 0 | J19: ='4.1'!J23 -> 0
F20: 4 | G20: Оценка достижения показателя уровня качества оказываемых услуг, Ккач | H20: п. 5.1 | I20: =IF('4.1'!I24=0,0,'4.1'!I24) -> 0 | J20: =IF('4.1'!J24=0,0,'4.1'!J24) -> 0
F21: 5 | G21: Обобщенный показатель уровня надежности и качества оказываемых услуг, Коб | H21: п. 5.1 | I21: =IF(I19="","",I19*0.65+I20*0.35) -> 0 | J21: =IF(J19="","",J19*0.65+J20*0.35) -> 0

Sheet Прил. 1 (hidden)
A1: =IFERROR(IF(AND(god-FIRST_PERIOD_IN_LT=0,REGULATION_METHODS="Сравнение аналогов"),"VISIBLE","HIDDEN"),"HIDDEN") -> HIDDEN | K1: Приложение N 1 к Методическим указаниям по определению базового уровня операционных, подконтрольных расходов территориальных сетевых организаций, необходимых для осуществления регулируемой деятельности, и индекса эффективности операционных, подконтрольных расходов с применением метода сравнения аналогов, утвержденным приказом ФСТ от 18 марта 2015 г. N 421-э
F5: Список листов
F7: Данные о результатах регулирования и фактических результатах финансово-хозяйственной деятельности ТСО, в отношении которых осуществляется государственное регулирование тарифов на услуги по передаче электрической энергии - в целях применения метода сравнения аналогов
F15: N п.п. | G15: Наименование показателя | H15: Единица измерения | I15: =nerr(FIRST_PERIOD_IN_LT-3) -> -3 | K15: =nerr(FIRST_PERIOD_IN_LT-2) -> -2 | M15: =nerr(FIRST_PERIOD_IN_LT-1) -> -1
I18: Утверждено | J18: Факт | K18: Утверждено | L18: Факт | M18: Утверждено
F22: 1 | G22: Финансовые
F23: 1.1 | G23: Необходимая валовая выручка на содержание (собственная) | H23: тыс.руб. без НДС
F24: 1.2 | G24: Операционные, подконтрольные расходы, Всего | H24: тыс.руб. без НДС | M24: ='8_Расчет НВВ '!N64 -> 0
F25: 1.2.1 | G25: Материальные затраты | H25: тыс.руб без НДС | I25: =SUM(I26:I27) -> 0 | J25: =SUM(J26:J27) -> 0 | K25: =SUM(K26:K27) -> 0 | L25: =SUM(L26:L27) -> 0 | M25: =SUM(M26:M27) -> 0
F26: 1.2.1.1 | G26: Сырье, материалы, запасные части, инструмент, топливо | H26: тыс.руб без НДС
F27: 1.2.1.2 | G27: Работы и услуги производственного характера (в т.ч. услуги сторонних организаций по содержанию сетей и распределительных устройств) | H27: тыс.руб без НДС
F28: 1.2.2 | G28: Расходы на оплату труда | H28: тыс.руб без НДС
F29: 1.2.3 | G29: Прочие расходы, всего, из них: | H29: тыс.руб без НДС
F30: 1.2.3.1 | G30: Расходы на обслуживание операционных заемных средств в составе подконтрольных расходов | H30: тыс.руб без НДС
F31: 1.2.3.2 | G31: Расходы из прибыли в составе подконтрольных расходов | H31: тыс.руб без НДС
F32: 2 | G32: Натуральные
F33: 2.1 | G33: Максимальное фактическое за отчетный период регулирования количество точек поставки электрической энергии потребителем услуг, присоединенным к электросетевой организации * | H33: шт.
F34: 2.2 | G34: Полезный отпуск за год | H34: кВт.ч
F35: 2.3 | G35: Общее количество условных единиц на конец года | H35: у.е. | I35: =SUM(I36:I39) -> 0 | J35: =SUM(J36:J39) -> 0 | K35: =SUM(K36:K39) -> 0 | L35: =SUM(L36:L39) -> 0 | M35: =SUM(M36:M39) -> 0
F36: 2.3.1 | G36: ВН | H36: у.е.
F37: 2.3.2 | G37: СН1 | H37: у.е.
F38: 2.3.3 | G38: СН2 | H38: у.е.
F39: 2.3.4 | G39: НН | H39: у.е.
F40: 2.4 | G40: Общая протяженность сетей (воздушных и кабельных линий) на конец года ** | H40: км | I40: =SUM(I41:I44) -> 0 | J40: =SUM(J41:J44) -> 0 | K40: =SUM(K41:K44) -> 0 | L40: =SUM(L41:L44) -> 0 | M40: =SUM(M41:M44) -> 0
F41: 2.4.1 | G41: ВН | H41: км
F42: 2.4.2 | G42: СН1 | H42: км
F43: 2.4.3 | G43: СН2 | H43: км
F44: 2.4.4 | G44: НН | H44: км
F45: 2.5 | G45: Общая трансформаторная емкость подстанций на конец года *** | H45: МВА | I45: =SUM(I46:I49) -> 0 | J45: =SUM(J46:J49) -> 0 | K45: =SUM(K46:K49) -> 0 | L45: =SUM(L46:L49) -> 0 | M45: =SUM(M46:M49) -> 0
F46: 2.5.1 | G46: ВН | H46: МВА
F47: 2.5.2 | G47: СН1 | H47: МВА
F48: 2.5.3 | G48: СН2 | H48: МВА
F49: 2.5.4 | G49: НН | H49: МВА
F52: Примечания:
F53: Форма заполняется с 2015 года по год, предшествующий периоду регулирования
F54: * Фактическое максимальное за отчетный период регулирования число точек присоединения потребителей услуг к электрической сети электросетевой организации, в том числе принятых в опытно-промышленную эксплуатацию ТСО в указанном году в соответствующем субъекте Российской Федерации, шт. Определяется на основании заключенных договоров на оказание услуг по передаче электрической энергии в соответствии с Правилами недискриминационного доступа к услугам по передаче электрической энергии и оказании этих услуг, утвержденными постановлением Правительства Российской Федерации от 27 декабря 2004 г. № 861.
F55: ** Фактическая протяженность линий электропередач, эксплуатируемых на законных основаниях и участвующих в регулируемом виде деятельности, ТСО в указанном году в соответствующем субъекте Российской Федерации, км
F56: *** Фактическая установленная трансформаторная мощность электрооборудования, эксплуатируемого на законных основаниях и участвующая в регулируемом виде деятельности, ТСО в указанном году в соответствующем субъекте Российской Федерации, МВА

Sheet Прил. 2-6 (hidden)
A1: =IFERROR(IF(AND(god-FIRST_PERIOD_IN_LT=0,REGULATION_METHODS="Сравнение аналогов"),"VISIBLE","HIDDEN"),"HIDDEN") -> HIDDEN
G5: Список листов
J6: Приложение № 2
G7: Коэффициенты нормализации
H11: Lтпi | I11: Lкмi | J11: Lмваi
G13: =god-2 -> -2 | H13: 13,51*10-4 | I13: 16,89*10-4 | J13: 8,40*10-4
H14: 0.001351 | I14: 0.001689 | J14: 0.00084
H16: Lтпi | I16: Lкмi | J16: Lмваi
G17: =god-1 -> -1 | H17: 13,40*10-4 | I17: 16,99*10-4 | J17: 7,26*10-4
H18: 0.00134 | I18: 0.001699 | J18: 0.000726
H20: Мтпi | I20: Мкмi | J20: Ммваi
G21: =god-2 -> -2 | H21: 32,37*10-4 | I21: 692,66*10-4 | J21: 612,70*10-4
H22: 0.003237 | I22: 0.069266 | J22: 0.06127
H24: Мтпi | I24: Мкмi | J24: Ммваi
G25: =god-1 -> -1 | H25: 35,62*10-4 | I25: 766,71*10-4 | J25: 595,70*10-4
H26: 0.003562 | I26: 0.076671 | J26: 0.05957
G28: * Коэффициенты нормализации определены на основе анализа репрезентативной выборки ТСО, в отношении которых осуществляется государственное регулирование тарифов на услуги по передаче электрической энергии, в соответствии с приложением № 7 к Методическим указаниям.
I33: Приложение № 3
G34: Группы, индекс эффективности опр*
G36: Rin** | H36: Индекс эффективности операционных, подконтрольных расходов | I36: Группа | J36: Значение индекса иэффективности по группе
G38: [0 - 0,1) | H38: 0.01 | I38: 1 | J38: =IFERROR(IF(-'индекс эффективности ОПР'!K16>0,(IF(-'индекс эффективности ОПР'!K16<0.1,0.01,0)),0),0) -> 0.01
G39: [0,1 - 0,2) | H39: 0.02 | I39: 2 | J39: =IFERROR(IF(-'индекс эффективности ОПР'!K16>0.1,(IF(-'индекс эффективности ОПР'!K16<0.199999,0.02,0)),0),0) -> 0
G40: [0,2 - 0,3) | H40: 0.03 | I40: 3 | J40: =IFERROR(IF(-'индекс эффективности ОПР'!K16>0.2,(IF(-'индекс эффективности ОПР'!K16<0.299999,0.03,0)),0),0) -> 0
G41: [0,3 - 0,4) | H41: 0.04 | I41: 4 | J41: =IFERROR(IF(-'индекс эффективности ОПР'!K16>0.3,(IF(-'индекс эффективности ОПР'!K16<0.399999,0.04,0)),0),0) -> 0
G42: [0,4 - 0,5) | H42: 0.05 | I42: 5 | J42: =IFERROR(IF(-'индекс эффективности ОПР'!K16>0.4,(IF(-'индекс эффективности ОПР'!K16<0.499999,0.05,0)),0),0) -> 0
G43: [0,5 - 0,6) | H43: 0.06 | I43: 6 | J43: =IFERROR(IF(-'индекс эффективности ОПР'!K16>0.5,(IF(-'индекс эффективности ОПР'!K16<0.499999,0.06,0)),0),0) -> 0
G44: [0,6 - 1) | H44: 0.07 | I44: 7 | J44: =IFERROR(IF(-'индекс эффективности ОПР'!K16>0.6,(IF(-'индекс эффективности ОПР'!K16<0.599999,0.07,0)),0),0) -> 0
G45: Нет данных / недостоверные данные | H45: 0.1 | I45: 8 | J45: =IFERROR(IF(-'индекс эффективности ОПР'!K16>1,0.1,0),0) -> 0
G47: * Значение индекса эффективности ОПР определяется в соответствии с распределением ТСО по группам эффективности на основании рейтинга эффективности компании, рассчитанного для года m - 1 в соответствии с формулой 1 Методических указаний.
G48: ** Квадратная скобка означает "включительно". Круглая скобка означает "исключая".
K53: Приложение № 4
G54: Стоимость фиксированного набора потребительских товаров и услуг в декабре 2012 г. и декабре 2013 г.
G56: № п.п. | H56: Субъект Российской Федерации | I56: ="Стоимость за декабрь "&god-2&" года, руб." -> Стоимость за декабрь -2 года, руб. | J56: =god-2 -> -2 | K56: ="Стоимость за декабрь "&god-1&" года, руб." -> Стоимость за декабрь -1 года, руб. | L56: =god-1 -> -1
G58: 1 | H58: =region_name -> 0 | I58: =P_L1 -> 0 | J58: =P_L2 -> 0 | K58: =P_L3 -> 0 | L58: =P_L4 -> 0
G60: Показатели определены с учетом стоимости фиксированного набора потребительских товаров и услуг в регионе, в котором осуществляется деятельность ТСО, в соответствии с приложением № 8 к Методическим указаниям.
M66: Приложение № 5
G67: Коэффициенты приведения затрат по климатическим условиям
G69: № п.п. | H69: Субъект Российской Федерации | I69: Средняя температура января | K69: Толщина стенки гололеда | M69: Количество дней переходов температуры через ноль
H70: Единица измерения | I70: оС | J70: ед. | K70: мм | L70: ед. | M70: Количество дней переходов температуры через ноль | N70: ед.
H71: Источник | I71: СНиП 23-01-99 | J71: Т1 | K71: СНиП 2.01.07-85 | L71: Т2 | M71: СНиП 23-01-99 | N71: Т3
G73: 1 | H73: =region_name -> 0 | I73: =P_L5 -> 0 | J73: =P_L6 -> 0 | K73: =P_L7 -> 0 | L73: =P_L8 -> 0 | M73: =P_L9 -> 0 | N73: =P_L10 -> 0
H79: Приложение № 6
G80: Параметры определения способа расчета базового уровня операционных подконтрольных расходов
G82: Наименование параметра | H82: Значение параметра
G84: b* | H84: -0.3
G85: p** | H85: 0.07
G87: * Значение параметра соответствует установленному приложением № 3 предельному уровню индекса эффективности ОПР, составляющему при наличии достоверных данных 7%.
G88: ** Значение параметра определено как максимально допустимое для обеспечения сопоставимости с результатами анализа репрезентативной выборки ТСО, в отношении которых осуществляется государственное регулирование тарифов на услуги по передаче электрической энергии, превышение фактических операционных, подконтрольных расходов над установленными и составляет 30%.

Sheet индекс эффективности ОПР (hidden)
A1: =IFERROR(IF(AND(god-FIRST_PERIOD_IN_LT=0,REGULATION_METHODS="Сравнение аналогов"),"VISIBLE","HIDDEN"),"HIDDEN") -> HIDDEN
F7: Список листов
G8: Расчет индекса эффективности ОПР
F14: № п/п | G14: Показатель | K14: =IFERROR(FIRST_PERIOD_IN_LT-1,0) -> -1 | L14: =IFERROR(FIRST_PERIOD_IN_LT-2,0) -> -2 | M14: =IFERROR(FIRST_PERIOD_IN_LT-3,0) -> -3
F16: 1 | G16: Rin = (Nтпin + Nкмin + Nмваin) / 3 | K16: =IF(3=0,0,(K22+K26+K30)/3) -> -0.046601 | L16: =IF(3=0,0,(L22+L26+L30)/3) -> -0.02792433333 | M16: =IF(3=0,0,(M22+M26+M30)/3) -> -0.044591
G18: где:
G19: Rin - значение рейтинга эффективности ТСО в году i.
G20: Nin - значение нормализованных удельных показателей, определяющихся как:
F22: 2 | G22: Nтпin = Yтпin * Lтпi - Mтпi | K22: =K38*'Прил. 2-6'!H18-'Прил. 2-6'!H26 -> -0.003562 | L22: =L38*'Прил. 2-6'!H14-'Прил. 2-6'!H22 -> -0.003237 | M22: =M38*'Прил. 2-6'!H14-'Прил. 2-6'!H22 -> -0.003237
G23: Nтпin = 0, если Nтпin < 0
G24: Nтпin = 1, если Nтпin > 1
F26: 3 | G26: Nкмin = Yкмin * Lкмi - Mкмi | K26: =K39*'Прил. 2-6'!I18-'Прил. 2-6'!I26 -> -0.076671 | L26: =L39*'Прил. 2-6'!I14-'Прил. 2-6'!I22 -> -0.069266 | M26: =M39*'Прил. 2-6'!I14-'Прил. 2-6'!I22 -> -0.069266
G27: Nкмin = 0, если Nкмin < 0
G28: Nкмin = 1, если Nкмin > 1
F30: 4 | G30: Nмваin = Yмваin * Lмваi - Mмваi | K30: =K40*'Прил. 2-6'!J18-'Прил. 2-6'!J26 -> -0.05957 | L30: =L40*'Прил. 2-6'!J14-'Прил. 2-6'!J22+0.05 -> -0.01127 | M30: =M40*'Прил. 2-6'!J14-'Прил. 2-6'!J22 -> -0.06127
G31: Nмваin = 0, если Nмваin < 0
G32: Nмваin = 1, если Nмваin > 1
G34: где:
G35: Lтпi, Lкмi, Lмваi, Mтпi, Mкмi, Mмваi - коэффициенты нормализации (преобразование в значения в диапазоне от 0 до 1) ТСО для года i, определяемые в соответствии с приложением № 2 к Методическим указаниям.
G36: Yтпin, Yкмin, Yмваin - значения приведенных удельных показателей ТСО в году i, характеризующие отношение фактических операционных (подконтрольных) расходов к фактическим показателям по протяженности линий электропередач, трансформаторной мощности электрооборудования и числу точек присоединения потребителей услуг к электрической сети.
F38: 5 | G38: Yтпin = (OPEXin * Cin * Tn) / тпin | K38: =IFERROR(IF('Прил. 1'!M24=0,0,('Прил. 1'!M24*'Прил. 2-6'!L58*K47)/'Прил. 1'!M33),0) -> 0 | L38: =IFERROR(IF('Прил. 1'!L33=0,0,('Прил. 1'!L24*'Прил. 2-6'!J58*L47)/'Прил. 1'!L33),0) -> 0 | M38: =IFERROR(IF('Прил. 1'!J33=0,0,('Прил. 1'!J24*'Прил. 2-6'!J58*M47)/'Прил. 1'!J33),0) -> 0
F39: 6 | G39: Yкмin = (OPEXin * Cin * Tn) / кмin | K39: =IFERROR(IF('Прил. 1'!M40=0,0,('Прил. 1'!M24*'Прил. 2-6'!L58*K47)/'Прил. 1'!M40),0) -> 0 | L39: =IFERROR(IF('Прил. 1'!L40=0,0,('Прил. 1'!L24*'Прил. 2-6'!J58*L47)/'Прил. 1'!L40),0) -> 0 | M39: =IFERROR(IF('Прил. 1'!J40=0,0,('Прил. 1'!J24*'Прил. 2-6'!J58*M47)/'Прил. 1'!J40),0) -> 0
F40: 7 | G40: Yмваin = (OPEXin * Cin * Tn) / мваin | K40: =IFERROR(IF('Прил. 1'!M45=0,0,('Прил. 1'!M24*'Прил. 2-6'!L58*K47)/'Прил. 1'!M45),0) -> 0 | L40: =IFERROR(IF('Прил. 1'!L45=0,0,('Прил. 1'!L24*'Прил. 2-6'!J58*L47)/'Прил. 1'!L45),0) -> 0 | M40: =IFERROR(IF('Прил. 1'!J45=0,0,('Прил. 1'!J24*'Прил. 2-6'!J58*M47)/'Прил. 1'!J45),0) -> 0
G42: где:
G43: OPEXin - значение фактических операционных, подконтрольных расходов (далее - значение фактических ОПР), представленных ТСО за год i, в соответствии с перечнем статей затрат, определенных в приложении № 1 к Методическим указаниям, и принятых органом регулирования с учетом норм п. 7 Основ ценообразования.
G44: Cin - коэффициент приведения затрат по уровню цен для ТСО в году i, в соответствии с приложением № 4 к Методическим указаниям.
G45: Tn - коэффициент приведения затрат по климатическим условиям, рассчитываемый как:
F47: 8 | G47: Tn = 1 / (Tn1 * Tn2 *Tn3) | K47: =IF(('Прил. 2-6'!J73*'Прил. 2-6'!L73*'Прил. 2-6'!N73)=0,0,1/('Прил. 2-6'!J73*'Прил. 2-6'!L73*'Прил. 2-6'!N73)) -> 0 | L47: =IF(('Регионы аналоги'!G26*'Регионы аналоги'!I26*'Регионы аналоги'!K26)=0,0,1/('Регионы аналоги'!G26*'Регионы аналоги'!I26*'Регионы аналоги'!K26)) -> 0 | M47: =IF(('Регионы аналоги'!G26*'Регионы аналоги'!I26*'Регионы аналоги'!K26)=0,0,1/('Регионы аналоги'!G26*'Регионы аналоги'!I26*'Регионы аналоги'!K26)) -> 0
G49: где:
G50: Tn1 * Tn2 *Tn3 - коэффициенты приведения затрат по климатическим условиям, в соответствии с приложением № 5 к Методическим указаниям.
G51: кмin - фактическая протяженность линий электропередач, эксплуатируемых на законных основаниях и участвующих в регулируемом виде деятельности, ТСО в году i в соответствующем субъекте Российской Федерации, км.
G52: мваin - фактическая установленная трансформаторная мощность электрооборудования, эксплуатируемого на законных основаниях и участвующая в регулируемом виде деятельности, ТСО в году i в соответствующем субъекте Российской Федерации, МВА.
G53: тпin - фактическое максимальное за отчетный период регулирования число точек присоединения потребителей услуг к электрической сети электросетевой организации, в том числе принятых в опытно-промышленную эксплуатацию ТСО в году i в соответствующем субъекте Российской Федерации, шт.

Sheet modLT (hidden)

Sheet баз. ур. подк. расх. (hidden)
A1: =IFERROR(IF(AND(god-FIRST_PERIOD_IN_LT=0,REGULATION_METHODS="Сравнение аналогов"),"VISIBLE","HIDDEN"),"HIDDEN") -> HIDDEN
F11: Список листов
G12: Расчет величины базового уровня операционных, подконтрольных расходов
F14: № п/п | G14: Показатель | H14: =FIRST_PERIOD_IN_LT -> 0
F16: 1 | G16: БазOPEXnm+1 = 0,3×Эф. Орехnm+1 + 0,7×ОПРn муm+1 | H16: =IFERROR(0.3*H61+0.7*'8_Расчет НВВ '!P61,0) -> 0
G18: где:
G19: ="БазOPEXnm+1 - базовый уровень ОПР ТСО в году m+1 ("&H14&" год)." -> БазOPEXnm+1 - базовый уровень ОПР ТСО в году m+1 (0 год).
G20: Эф. Орехnm+1 - значение эффективного уровня ОПР ТСО в году m+1, рассчитываемого в соответствии с п. 10 Методических указаний. | H20: =IFERROR('8_Расчет НВВ '!P61,0) -> 0
G21: ="ОПРn муm+1 - уровень ОПР, рассчитанный органом регулирования для ТСО в году m + 1 ("&H14&" год) в соответствии с Методическими указаниями " -> ОПРn муm+1 - уровень ОПР, рассчитанный органом регулирования для ТСО в году m + 1 (0 год) в соответствии с Методическими указаниями | H21: =IFERROR(H61,0) -> 0
F23: 2 | G23: kn = (Σm-1i=2013 (Rni -Rni-1)) / m-2013 | H23: =IFERROR(IFERROR(('индекс эффективности ОПР'!K16+'индекс эффективности ОПР'!L16)/(H14-2013),0),0) -> 3.702202351e-05
G25: где:
G26: kn - коэффициент изменения рейтинга эффективности ТСО.
G27: m - год, предшествующий периоду регулирования. | H27: =IFERROR(IFERROR(FIRST_PERIOD_IN_LT-1,0),0) -> -1
G28: Rni - значение рейтинга эффективности ТСО в году i.
F30: 3 | G30: Если kn ≥ - xn / 100, то величина эффективного уровня ОПР определяется по формуле:
F32: 4 | G32: Эф. Орехnm+1 = (1-kn-xn) × OPEXnm-1 × (1-xn) × (1+ИПЦnm) × (1+ИПЦnm+1) × (1+ИКАmn) × (1+ИКАm+1n) | H32: =IFERROR((1-H23-H37)*H38*(1-H37)*(1+H35)*(1+H36)*(1+H41)*(1+H46),0) -> 0
G33: где:
G34: m - год, предшествующий периоду регулирования. | H34: =IFERROR(IFERROR(FIRST_PERIOD_IN_LT -1,0),0) -> -1
G35: ="ИПЦ "&H34 -> ИПЦ -1 | H35: =IFERROR('8_Расчет НВВ '!N25,0) -> 0
G36: ="ИПЦ "&H14 -> ИПЦ 0 | H36: =IFERROR('8_Расчет НВВ '!P25,0) -> 0
F37: 5 | G37: xn - значение индекса эффективности ОПР ТСО, определенное на основании расчета рейтинга эффективности в соответствии с приложением № 3 к Методическим указаниям. | H37: =IFERROR(SUM('Прил. 2-6'!J36:J43),0) -> 0.01
G38: ="OPEXnm-1 - значение фактических экономически обоснованных операционных, подконтрольных расходов ТСО в году m - 1 ("&H27-1&" год), сформированное в соответствии с Методическими указаниями по регулированию тарифов с применением метода доходности инвестированного капитала или с Методическими указаниями по расчету тарифов на услуги по передаче электрической энергии" -> OPEXnm-1 - значение фактических экономически обоснованных операционных, подконтрольных расходов ТСО в году m - 1 (-2 год), сформированное в соответствии с Методическими указаниями по регулированию тарифов с применением метода доходности инвестированного капитала или с Методическими указаниями по расчету тарифов на услуги по передаче электрической энергии | H38: =IFERROR('Прил. 1'!L24,0) -> 0
G39: ="ИКАmn - индекс изменения количества активов, установленный на год m ("&H27&" год) при расчете долгосрочных тарифов, определяемый как:" -> ИКАmn - индекс изменения количества активов, установленный на год m (-1 год) при расчете долгосрочных тарифов, определяемый как:
F41: 6 | G41: ИКАmn = Кэл × (УЕnm - УЕnm-1) / УЕnm-1 | H41: =IFERROR(IF(H44=0,0,H51*(H49-H44)/H44),0) -> 0
G43: ="ИКАm+1n - индекс изменения количества активов, установленный на год m + 1m ("&H14&" год) при расчете долгосрочных тарифов, определяемый как:" -> ИКАm+1n - индекс изменения количества активов, установленный на год m + 1m (0 год) при расчете долгосрочных тарифов, определяемый как:
G44: ="УЕnm-1 - количество условных единиц, относящихся к активам, необходимым для осуществления регулируемой деятельности в году m-1 ("&H27-1&" год)" -> УЕnm-1 - количество условных единиц, относящихся к активам, необходимым для осуществления регулируемой деятельности в году m-1 (-2 год) | H44: =IFERROR('8_Расчет НВВ '!I27,0) -> 0
F46: 7 | G46: ИКАm+1n = Кэл × (УЕnm+1 - УЕnm) / УЕnm | H46: =IFERROR(IF(H49=0,0,H51*(H50-H49)/H49),0) -> 0
G48: где:
G49: ="УЕnm - количество условных единиц, относящихся к активам, необходимым для осуществления регулируемой деятельности в году m ("&H34&" год)" -> УЕnm - количество условных единиц, относящихся к активам, необходимым для осуществления регулируемой деятельности в году m (-1 год) | H49: =IFERROR('8_Расчет НВВ '!N27,0) -> 0
G50: ="УЕnm+1 - количество условных единиц, относящихся к активам, необходимым для осуществления регулируемой деятельности в году m + 1 ("&H14&" год)" -> УЕnm+1 - количество условных единиц, относящихся к активам, необходимым для осуществления регулируемой деятельности в году m + 1 (0 год) | H50: =IFERROR('8_Расчет НВВ '!P27,0) -> 0
G51: Кэл - коэффициент эластичности операционных, подконтрольных расходов по количеству активов, необходимых для осуществления регулируемой деятельности, устанавливаемый органом регулирования на долгосрочный период регулирования в соответствии с Методическими указаниями по регулированию тарифов с применением метода доходности инвестированного капитала или с Методическими указаниями по расчету тарифов на услуги по передаче электрической энергии, устанавливаемых с применением метода долгосрочной индексации НВВ, в зависимости от применяемого в отношении ТСО метода регулирования. | H51: =IFERROR('8_Расчет НВВ '!N29,0) -> 0.75
F53: 8 | G53: Если kn < - xn / 100, то величина эффективного уровня ОПР определяется по формуле:
F55: 9 | G55: Эф. Орехnm+1 = OPEXnm-1 × (1-xn)2 × (1+ИПЦnm) × (1+ИПЦnm+1) × (1+ИКАmn) × (1+ИКАm+1n) | H55: =IFERROR('Прил. 1'!K24*(1-H37)^2*(1+H35)*(1+H36)*(1+H41)*(1+H46),0) -> 0
G57: D = (b / p) × xn - b × 100%
G58: где:
G59: b и p - параметры, определяющие допустимое превышение фактических операционных, подконтрольных расходов над установленным в зависимости от расчетной эффективности ТСО, установленные в соответствии с приложением № 6 к Методическим указаниям.
G60: xn - значение индекса эффективности ОПР ТСО, определенное на основании расчета рейтинга эффективности в соответствии с приложением № 3 к Методическим указаниям.
F61: 9 | G61: величина эффективного уровня ОПР | H61: =IFERROR(IF(H23<H37,H55,H32),0) -> 0

Sheet 8_Расчет НВВ (hidden)
L1: =IFERROR(IF(REPORT_OWNER="Версия организации","HIDDEN","VISIBLE"),"HIDDEN") -> HIDDEN | M1: =IFERROR(IF(REPORT_OWNER="Версия организации","HIDDEN","VISIBLE"),"HIDDEN") -> HIDDEN | O1: =IFERROR(IF(REPORT_OWNER="Версия организации","HIDDEN","VISIBLE"),"HIDDEN") -> HIDDEN | Q1: =IFERROR(IF(REPORT_OWNER="Версия организации","HIDDEN","VISIBLE"),"HIDDEN") -> HIDDEN | R1: HIDDEN | S1: HIDDEN | T1: HIDDEN | U1: HIDDEN | V1: HIDDEN | W1: =IFERROR(IF(god+1>FIRST_PERIOD_IN_LT+PERIOD_LENGTH-1,"HIDDEN","VISIBLE"),"HIDDEN") -> HIDDEN | X1: =IFERROR(IF(AND(REPORT_OWNER="Версия регулятора",W1 = "VISIBLE"),"VISIBLE","HIDDEN"),"HIDDEN") -> HIDDEN | Y1: =IFERROR(IF(god+2>FIRST_PERIOD_IN_LT+PERIOD_LENGTH-1,"HIDDEN","VISIBLE"),"HIDDEN") -> HIDDEN | Z1: =IFERROR(IF(AND(REPORT_OWNER="Версия регулятора",Y1 = "VISIBLE"),"VISIBLE","HIDDEN"),"HIDDEN") -> HIDDEN | AA1: =IFERROR(IF(god+3>FIRST_PERIOD_IN_LT+PERIOD_LENGTH-1,"HIDDEN","VISIBLE"),"HIDDEN") -> HIDDEN | AB1: =IFERROR(IF(AND(REPORT_OWNER="Версия регулятора",AA1 = "VISIBLE"),"VISIBLE","HIDDEN"),"HIDDEN") -> HIDDEN | AC1: =IFERROR(IF(god+4>FIRST_PERIOD_IN_LT+PERIOD_LENGTH-1,"HIDDEN","VISIBLE"),"HIDDEN") -> HIDDEN | AD1: =IFERROR(IF(AND(REPORT_OWNER="Версия регулятора",AC1 = "VISIBLE"),"VISIBLE","HIDDEN"),"HIDDEN") -> HIDDEN
F13: Список листов
F16: Расчет нвв на услуги по передаче электрической энергии по сетям
F20: № п/п | G20: Показатель | H20: Единица измерения | I20: =god-2 -> -2 | J20: =god-2 -> -2 | K20: отклонение | L20: =god-2 -> -2 | M20: отклонение утв/факт рег. | N20: =god-1 -> -1 | O20: =god-1 -> -1 | P20: =god -> 0 | Q20: =god -> 0 | R20: 1 полугодие | S20: 2 полугодие | T20: =god -> 0 | U20: 1 полугодие | V20: 2 полугодие | W20: =P20+1 -> 1 | X20: =Q20+1 -> 1 | Y20: =W20+1 -> 2 | Z20: 2 | AA20: 3 | AB20: 3 | AC20: 4 | AD20: 4
I21: утверждено (заполняет ТСО) | J21: факт ТСО | L21: факт версия регулятора | N21: утверждено (заполняет ТСО) | O21: утверждено Версия регулятора | P21: предложение ТСО | Q21: Версия регулятора | T21: Версия регулятора в котле | W21: предложение ТСО | X21: Версия регулятора | Y21: предложение ТСО | Z21: Версия регулятора | AA21: предложение ТСО | AB21: Версия регулятора | AC21: предложение ТСО | AD21: Версия регулятора
G23: Расчёт коэффициента индексации
F25: 0.1 | G25: Индекс потребительских цен | H25: % | K25: =J25-I25 -> 0 | M25: =L25-I25 -> 0 | T25: =Q25 -> 0
F26: 0.2 | G26: Индекс эффективности подконтрольных расходов | H26: % | T26: =Q26 -> 0
F27: 0.3 | G27: Количество активов | H27: у.е. | I27: ='7_Свод УЕ '!L35 -> 0 | J27: ='7_Свод УЕ '!L36 -> 0 | K27: =J27-I27 -> 0 | L27: ='7_Свод УЕ '!L37 -> 0 | M27: =L27-I27 -> 0 | N27: ='7_Свод УЕ '!L38 -> 0 | P27: ='7_Свод УЕ '!L39 -> 0 | Q27: ='7_Свод УЕ '!L40 -> 0 | T27: =Q27*'9 Тариф'!$P$35 -> 0 | W27: =P27 -> 0 | X27: =Q27 -> 0 | Y27: =W27 -> 0 | Z27: =X27 -> 0
F28: 0.4 | G28: Индекс изменения количества активов (без учета коэффициента эластичности) | H28: % | Q28: =IF(O27=0,0,(Q27-O27)/O27) -> 0 | T28: =Q28 -> 0 | W28: =IF(P27=0,0,(W27-P27)/P27) -> 0 | X28: =IF(Q27=0,0,(X27-Q27)/Q27) -> 0 | Y28: =IF(W27=0,0,(Y27-W27)/W27) -> 0 | Z28: =IF(X27=0,0,(Z27-X27)/X27) -> 0 | AA28: =IF(Y27=0,0,(AA27-Y27)/Y27) -> 0 | AB28: =IF(X27=0,0,(AB27-X27)/X27) -> 0 | AC28: =IF(AA27=0,0,(AC27-AA27)/AA27) -> 0 | AD28: =IF(Z27=0,0,(AD27-Z27)/Z27) -> 0
F29: 0.5 | G29: Коэффициент эластичности подконтрольных расходов по количеству активов | I29: 0.75 | J29: 0.75 | L29: 0.75 | N29: 0.75 | O29: 1 | P29: 0.75 | Q29: 0.75 | T29: =Q29 -> 0.75 | W29: 0.75 | X29: 0.75 | Y29: 0.75 | Z29: 0.75 | AA29: 0.75 | AB29: 0.75 | AC29: 0.75 | AD29: 0.75
F30: 0.6 | G30: Итого коэффициент индексации | I30: =(1+I25)*(1-I26)*(1+I28*I29) -> 1 | J30: =(1+J25)*(1-J26)*(1+J28*J29) -> 1 | N30: =(1+N25)*(1-N26)*(1+N28*N29) -> 1 | O30: =(1+O25)*(1-O26)*(1+O28*O29) -> 1 | P30: =(1+P25)*(1-P26)*(1+P28*P29) -> 1 | Q30: =(1+Q25)*(1-Q26)*(1+Q28*Q29) -> 1 | T30: =Q30 -> 1 | W30: =(1+W25)*(1-W26)*(1+W28*W29) -> 1 | X30: 1 | Y30: 1 | Z30: 1 | AA30: 1 | AB30: 1 | AC30: 1 | AD30: 1
F33: 1. Расчет подконтрольных расходов
F35: 1.1 | G35: Материальные затраты | H35: тыс.руб. | I35: =I36+I37 -> 0 | J35: =J36+J37 -> 0 | K35: =J35-I35 -> 0 | L35: =L36+L37 -> 0 | M35: =L35-I35 -> 0 | N35: =N36+N37 -> 0 | P35: =P36+P37 -> 0 | Q35: 0 | R35: 0 | S35: 0 | T35: 0 | U35: 0 | V35: =T35-U35 -> 0 | W35: =W36+W37 -> 0 | Y35: =Y36+Y37 -> 0 | AA35: =AA36+AA37 -> 0 | AC35: =AC36+AC37 -> 0
F36: 1.1.1 | G36: Сырье, основные материалы, вспомогательные материалы, инструмент | H36: тыс.руб. | I36: ='12_Сырье и материалы'!V54 -> 0 | J36: ='12_Сырье и материалы'!W54 -> 0 | K36: 0 | L36: ='12_Сырье и материалы'!Y54 -> 0 | M36: 0 | N36: ='12_Сырье и материалы'!AC54 -> 0 | P36: =(IF(FIRST_PERIOD_IN_LT=god,'12_Сырье и материалы'!AF54,N36*P30)) -> 0 | Q36: =P36 -> 0 | R36: =Q36*'9 Тариф'!$Q$41 -> 0 | S36: =Q36-R36 -> 0 | T36: =Q36*'9 Тариф'!$P$35 -> 0 | U36: =R36*'9 Тариф'!$P$35 -> 0 | V36: =T36-U36 -> 0 | W36: =P36*W$30 -> 0 | Y36: =W36*Y$30 -> 0 | AA36: 0 | AC36: 0
F37: 1.1.2 | G37: Работы и услуги производ. характера | H37: тыс.руб. | I37: ='13_РПР Ремонт '!U23 -> 0 | J37: ='13_РПР Ремонт '!Y23 -> 0 | K37: 0 | L37: ='13_РПР Ремонт '!V23 -> 0 | M37: 0 | N37: ='13_РПР Ремонт '!AE23 -> 0 | P37: =(IF(FIRST_PERIOD_IN_LT=god,'13_РПР Ремонт '!AF23,N37*P30)) -> 0 | Q37: =P37 -> 0 | R37: =Q37*'9 Тариф'!$Q$41 -> 0 | S37: 0 | T37: =Q37*'9 Тариф'!$P$35 -> 0 | U37: =R37*'9 Тариф'!$P$35 -> 0 | V37: 0 | W37: =P37*W$30 -> 0 | Y37: 0 | AA37: 0 | AC37: 0
F38: 1.2 | G38: Расходы на оплату труда | H38: тыс.руб. | I38: ='16_Персонал'!I53 -> 0 | J38: ='16_Персонал'!J53 -> 0 | K38: 0 | L38: ='16_Персонал'!K53 -> 0 | M38: 0 | N38: ='16_Персонал'!L53 -> 0 | P38: =(IF(FIRST_PERIOD_IN_LT=god,'16_Персонал'!M53,N38*P30)) -> 0 | Q38: =P38 -> 0 | R38: =Q38*'9 Тариф'!$Q$41 -> 0 | S38: 0 | T38: =Q38*'9 Тариф'!$P$35 -> 0 | U38: =R38*'9 Тариф'!$P$35 -> 0 | V38: 0 | W38: =P38*W$30 -> 0 | Y38: 0 | AA38: 0 | AC38: 0
F39: 1.3 | G39: Прочие расходы Всего, в том числе: | H39: тыс.руб. | I39: =I40+I41+I48+I49+I50+I51+I52+I53+I54+I57 -> 0 | J39: =J40+J41+J48+J49+J50+J51+J52+J53+J54+J57 -> 0 | K39: 0 | L39: =L40+L41+L48+L49+L50+L51+L52+L53+L54+L57 -> 0 | M39: 0 | N39: =N40+N41+N48+N49+N50+N51+N52+N53+N54+N57 -> 0 | P39: =P40+P41+P48+P49+P50+P51+P52+P53+P54+P57 -> 0 | Q39: 0 | R39: 0 | S39: 0 | T39: 0 | U39: 0 | V39: 0 | W39: =W40+W41+W48+W49+W50+W51+W52+W53+W54+W57 -> 0 | Y39: =Y40+Y41+Y48+Y49+Y50+Y51+Y52+Y53+Y54+Y57 -> 0 | AA39: =AA40+AA41+AA48+AA49+AA50+AA51+AA52+AA53+AA54+AA57 -> 0 | AC39: =AC40+AC41+AC48+AC49+AC50+AC51+AC52+AC53+AC54+AC57 -> 0
F40: 1.3.1 | G40: Ремонт основных средств | H40: тыс.руб. | I40: ='13_РПР Ремонт '!U34 -> 0 | J40: ='13_РПР Ремонт '!Y34 -> 0 | K40: 0 | L40: ='13_РПР Ремонт '!V34 -> 0 | M40: 0 | N40: ='13_РПР Ремонт '!AE34 -> 0 | P40: =(IF(FIRST_PERIOD_IN_LT=god,'13_РПР Ремонт '!AF34,N40*P30)) -> 0 | Q40: =P40 -> 0 | R40: =Q40*'9 Тариф'!$Q$41 -> 0 | S40: 0 | T40: =Q40*'9 Тариф'!$P$35 -> 0 | U40: =R40*'9 Тариф'!$P$35 -> 0 | V40: 0 | W40: =P40*W$30 -> 0 | Y40: =W40*Y$30 -> 0 | AA40: =Y40*AA$30 -> 0 | AC40: =AA40*AC$30 -> 0
F41: 1.3.2 | G41: Оплата работ и услуг сторонних организаций | H41: тыс.руб. | I41: =I42+I43+I44+I45+I46+I47 -> 0 | J41: =J42+J43+J44+J45+J46+J47 -> 0 | K41: 0 | L41: =L42+L43+L44+L45+L46+L47 -> 0 | M41: 0 | N41: =N42+N43+N44+N45+N46+N47 -> 0 | P41: =P42+P43+P44+P45+P46+P47 -> 0 | Q41: 0 | R41: 0 | S41: 0 | T41: 0 | U41: 0 | V41: 0 | W41: =W42+W43+W44+W45+W46+W47 -> 0 | Y41: =Y42+Y43+Y44+Y45+Y46+Y47 -> 0 | AA41: =AA42+AA43+AA44+AA45+AA46+AA47 -> 0 | AC41: =AC42+AC43+AC44+AC45+AC46+AC47 -> 0
F42: 1.3.2.1 | G42: расходы на услуги связи | H42: тыс.руб. | I42: ='17_ППР'!AQ21 -> 0 | J42: ='17_ППР'!AS21 -> 0 | K42: 0 | L42: ='17_ППР'!AR21 -> 0 | M42: 0 | N42: ='17_ППР'!BA21 -> 0 | P42: =(IF(FIRST_PERIOD_IN_LT=god,'17_ППР'!BB21,N42*P30)) -> 0 | Q42: =P42 -> 0 | R42: =Q42*'9 Тариф'!$Q$41 -> 0 | S42: 0 | T42: =Q42*'9 Тариф'!$P$35 -> 0 | U42: =R42*'9 Тариф'!$P$35 -> 0 | V42: 0 | W42: =P42*W$30 -> 0 | Y42: =W42*Y$30 -> 0 | AA42: =Y42*AA$30 -> 0 | AC42: =AA42*AC$30 -> 0
F43: 1.3.2.2 | G43: расходы на услуги вневедомственной охраны и пожарную безопасность | H43: тыс.руб. | I43: ='17_ППР'!AQ24 -> 0 | J43: ='17_ППР'!AS24 -> 0 | K43: 0 | L43: ='17_ППР'!AR24 -> 0 | M43: 0 | N43: ='17_ППР'!BA24 -> 0 | P43: =(IF(FIRST_PERIOD_IN_LT=god,'17_ППР'!BB24,N43*P30)) -> 0 | Q43: 0 | R43: =Q43*'9 Тариф'!$Q$41 -> 0 | S43: 0 | T43: =Q43*'9 Тариф'!$P$35 -> 0 | U43: =R43*'9 Тариф'!$P$35 -> 0 | V43: 0 | W43: 0 | Y43: 0 | AA43: 0 | AC43: 0
F44: 1.3.2.3 | G44: расходы на юридические и информационные услуги | H44: тыс.руб. | I44: ='17_ППР'!AQ27 -> 0 | J44: ='17_ППР'!AS27 -> 0 | K44: 0 | L44: ='17_ППР'!AR27 -> 0 | M44: 0 | N44: ='17_ППР'!BA27 -> 0 | P44: =(IF(FIRST_PERIOD_IN_LT=god,'17_ППР'!BB27,N44*P30)) -> 0 | Q44: 0 | R44: =Q44*'9 Тариф'!$Q$41 -> 0 | S44: 0 | T44: =Q44*'9 Тариф'!$P$35 -> 0 | U44: =R44*'9 Тариф'!$P$35 -> 0 | V44: 0 | W44: 0 | Y44: 0 | AA44: 0 | AC44: 0
F45: 1.3.2.4 | G45: расходы на аудиторские и консультационные услуги | H45: тыс.руб. | I45: ='17_ППР'!AQ30 -> 0 | J45: ='17_ППР'!AS30 -> 0 | K45: 0 | L45: ='17_ППР'!AR30 -> 0 | M45: 0 | N45: ='17_ППР'!BA30 -> 0 | P45: =(IF(FIRST_PERIOD_IN_LT=god,'17_ППР'!BB30,N45*P30)) -> 0 | Q45: 0 | R45: =Q45*'9 Тариф'!$Q$41 -> 0 | S45: 0 | T45: =Q45*'9 Тариф'!$P$35 -> 0 | U45: =R45*'9 Тариф'!$P$35 -> 0 | V45: 0 | W45: 0 | Y45: 0 | AA45: 0 | AC45: 0
F46: 1.3.2.5 | G46: расходы на услуги транспорта | H46: тыс.руб. | I46: ='17_ППР'!AQ33 -> 0 | J46: ='17_ППР'!AS33 -> 0 | K46: 0 | L46: ='17_ППР'!AR33 -> 0 | M46: 0 | N46: ='17_ППР'!BA33 -> 0 | P46: =(IF(FIRST_PERIOD_IN_LT=god,'17_ППР'!BB33,N46*P30)) -> 0 | Q46: 0 | R46: =Q46*'9 Тариф'!$Q$41 -> 0 | S46: 0 | T46: =Q46*'9 Тариф'!$P$35 -> 0 | U46: =R46*'9 Тариф'!$P$35 -> 0 | V46: 0 | W46: 0 | Y46: 0 | AA46: 0 | AC46: 0
F47: 1.3.2.6 | G47: прочие услуги сторонних организаций | H47: тыс.руб. | I47: ='17_ППР'!AQ36 -> 0 | J47: ='17_ППР'!AS36 -> 0 | K47: 0 | L47: ='17_ППР'!AR36 -> 0 | M47: 0 | N47: ='17_ППР'!BA36 -> 0 | P47: =(IF(FIRST_PERIOD_IN_LT=god,'17_ППР'!BB36,N47*P30)) -> 0 | Q47: 0 | R47: =Q47*'9 Тариф'!$Q$41 -> 0 | S47: 0 | T47: =Q47*'9 Тариф'!$P$35 -> 0 | U47: =R47*'9 Тариф'!$P$35 -> 0 | V47: 0 | W47: 0 | Y47: 0 | AA47: 0 | AC47: 0
F48: 1.3.3 | G48: Расходы на командировки и представительские | H48: тыс.руб. | I48: ='17_ППР'!AQ39 -> 0 | J48: ='17_ППР'!AS39 -> 0 | K48: 0 | L48: ='17_ППР'!AR39 -> 0 | M48: 0 | N48: ='17_ППР'!BA39 -> 0 | P48: =(IF(FIRST_PERIOD_IN_LT=god,'17_ППР'!BB39,N48*P30)) -> 0 | Q48: 0 | R48: =Q48*'9 Тариф'!$Q$41 -> 0 | S48: 0 | T48: =Q48*'9 Тариф'!$P$35 -> 0 | U48: =R48*'9 Тариф'!$P$35 -> 0 | V48: 0 | W48: 0 | Y48: 0 | AA48: 0 | AC48: 0
F49: 1.3.4 | G49: Расходы на повышение квалификации, подготовку кадров | H49: тыс.руб. | I49: ='17_ППР'!AQ42 -> 0 | J49: ='17_ППР'!AS42 -> 0 | K49: 0 | L49: ='17_ППР'!AR42 -> 0 | M49: 0 | N49: ='17_ППР'!BA42 -> 0 | P49: =(IF(FIRST_PERIOD_IN_LT=god,'17_ППР'!BB42,N49*P30)) -> 0 | Q49: 0 | R49: =Q49*'9 Тариф'!$Q$41 -> 0 | S49: 0 | T49: =Q49*'9 Тариф'!$P$35 -> 0 | U49: =R49*'9 Тариф'!$P$35 -> 0 | V49: 0 | W49: 0 | Y49: 0 | AA49: 0 | AC49: 0
F50: 1.3.5 | G50: Расходы на обеспечение нормальных условий труда и мер по технике безопасности | H50: тыс.руб. | I50: ='17_ППР'!AQ45 -> 0 | J50: ='17_ППР'!AS45 -> 0 | K50: 0 | L50: ='17_ППР'!AR45 -> 0 | M50: 0 | N50: ='17_ППР'!BA45 -> 0 | P50: =(IF(FIRST_PERIOD_IN_LT=god,'17_ППР'!BB45,N50*P30)) -> 0 | Q50: 0 | R50: =Q50*'9 Тариф'!$Q$41 -> 0 | S50: 0 | T50: =Q50*'9 Тариф'!$P$35 -> 0 | U50: =R50*'9 Тариф'!$P$35 -> 0 | V50: 0 | W50: 0 | Y50: 0 | AA50: 0 | AC50: 0
F51: 1.3.6 | G51: Расходы на страхование | H51: тыс.руб. | I51: ='17_ППР'!AQ48 -> 0 | J51: ='17_ППР'!AS48 -> 0 | K51: 0 | L51: ='17_ППР'!AR48 -> 0 | M51: 0 | N51: ='17_ППР'!BA48 -> 0 | P51: =(IF(FIRST_PERIOD_IN_LT=god,'17_ППР'!BB48,N51*P30)) -> 0 | Q51: 0 | R51: =Q51*'9 Тариф'!$Q$41 -> 0 | S51: 0 | T51: =Q51*'9 Тариф'!$P$35 -> 0 | U51: =R51*'9 Тариф'!$P$35 -> 0 | V51: 0 | W51: 0 | Y51: 0 | AA51: 0 | AC51: 0
F52: 1.3.7 | G52: Коммунальные услуги | H52: тыс.руб. | K52: =J52-I52 -> 0 | M52: =L52-I52 -> 0 | R52: =Q52*'9 Тариф'!$Q$41 -> 0 | S52: 0 | T52: =Q52*'9 Тариф'!$P$35 -> 0 | U52: =R52*'9 Тариф'!$P$35 -> 0 | V52: 0 | W52: =P52*W$30 -> 0 | Y52: =W52*Y$30 -> 0 | AA52: =Y52*AA$30 -> 0 | AC52: =AA52*AC$30 -> 0
F53: 1.3.8 | G53: Электроэнергия на хоз. нужды | H53: тыс.руб. | K53: =J53-I53 -> 0 | M53: =L53-I53 -> 0 | R53: =Q53*'9 Тариф'!$Q$41 -> 0 | S53: 0 | T53: =Q53*'9 Тариф'!$P$35 -> 0 | U53: =R53*'9 Тариф'!$P$35 -> 0 | V53: 0 | W53: 0 | Y53: =W53*Y$30 -> 0 | AA53: =Y53*AA$30 -> 0 | AC53: =AA53*AC$30 -> 0
F54: 1.3.9 | G54: Другие прочие расходы | H54: тыс.руб. | I54: ='17_ППР'!AQ57 -> 0 | J54: ='17_ППР'!AS57 -> 0 | K54: 0 | L54: ='17_ППР'!AR57 -> 0 | M54: 0 | N54: ='17_ППР'!BA57 -> 0 | P54: =(IF(FIRST_PERIOD_IN_LT=god,'17_ППР'!BB57,N54*P30)) -> 0 | Q54: =P54 -> 0 | R54: =Q54*'9 Тариф'!$Q$41 -> 0 | S54: 0 | T54: =Q54*'9 Тариф'!$P$35 -> 0 | U54: =R54*'9 Тариф'!$P$35 -> 0 | V54: 0 | W54: 0 | Y54: 0 | AA54: 0 | AC54: 0
F55: 1.3.9.1 | G55: Расходы на услуги банка | H55: тыс.руб. | I55: ='17_ППР'!AQ58 -> 0 | J55: ='17_ППР'!AS58 -> 0 | K55: 0 | L55: ='17_ППР'!AR58 -> 0 | M55: 0 | N55: ='17_ППР'!BA58 -> 0 | P55: =(IF(FIRST_PERIOD_IN_LT=god,'17_ППР'!BB58,N55*P30)) -> 0 | Q55: =P55 -> 0 | R55: =Q55*'9 Тариф'!$Q$41 -> 0 | S55: 0 | T55: =Q55*'9 Тариф'!$P$35 -> 0 | U55: =R55*'9 Тариф'!$P$35 -> 0 | V55: 0 | W55: 0 | Y55: 0 | AA55: 0 | AC55: 0
F56: 1.3.9.2 | G56: Иные прочие расходы | H56: тыс.руб. | I56: ='17_ППР'!AQ61 -> 0 | J56: ='17_ППР'!AS61 -> 0 | K56: 0 | L56: ='17_ППР'!AR61 -> 0 | M56: 0 | N56: ='17_ППР'!BA61 -> 0 | P56: =(IF(FIRST_PERIOD_IN_LT=god,'17_ППР'!BB61,N56*P30)) -> 0 | Q56: =P56 -> 0 | R56: =Q56*'9 Тариф'!$Q$41 -> 0 | S56: 0 | T56: =Q56*'9 Тариф'!$P$35 -> 0 | U56: =R56*'9 Тариф'!$P$35 -> 0 | V56: 0 | W56: 0 | Y56: 0 | AA56: 0 | AC56: 0
F57: 1.3.10 | G57: Расходы из прибыли Всего, в том числе: | H57: тыс.руб. | I57: =I58+I59+I60 -> 0 | J57: =J58+J59+J60 -> 0 | K57: 0 | L57: =L58+L59+L60 -> 0 | M57: 0 | N57: =N58+N59+N60 -> 0 | P57: =P58+P59+P60 -> 0 | Q57: 0 | R57: 0 | S57: 0 | T57: 0 | U57: 0 | V57: 0 | W57: 0 | Y57: =W57*Y$30 -> 0 | AA57: =Y57*AA$30 -> 0 | AC57: =AA57*AC$30 -> 0
F58: 1.3.10.1 | G58: Льготы, компенсации и проч.выплаты по колдоговору,прибыль на соц.развитие | H58: тыс.руб. | I58: ='36_Прибыль'!H33+'36_Прибыль'!H34 -> 0 | J58: ='36_Прибыль'!I33+'36_Прибыль'!I34 -> 0 | K58: 0 | L58: ='36_Прибыль'!J33+'36_Прибыль'!J34 -> 0 | M58: 0 | N58: ='36_Прибыль'!K33+'36_Прибыль'!K34 -> 0 | P58: =(IF(FIRST_PERIOD_IN_LT=god,'36_Прибыль'!L33+'36_Прибыль'!L34,N58*P30)) -> 0 | Q58: =P58 -> 0 | R58: =Q58*'9 Тариф'!$Q$41 -> 0 | S58: 0 | T58: =Q58*'9 Тариф'!$P$35 -> 0 | U58: =R58*'9 Тариф'!$P$35 -> 0 | V58: 0 | W58: 0 | Y58: =W58*Y$30 -> 0 | AA58: =Y58*AA$30 -> 0 | AC58: =AA58*AC$30 -> 0
F59: 1.3.10.2 | G59: Дивиденды по акциям | H59: тыс.руб. | I59: ='36_Прибыль'!H35 -> 0 | J59: ='36_Прибыль'!I35 -> 0 | K59: =J59-I59 -> 0 | L59: ='36_Прибыль'!J35 -> 0 | M59: =L59-I59 -> 0 | N59: ='36_Прибыль'!K35 -> 0 | P59: =(IF(FIRST_PERIOD_IN_LT=god,'36_Прибыль'!L35,N59*P$30)) -> 0 | Q59: =P59 -> 0 | R59: =Q59*'9 Тариф'!$Q$41 -> 0 | S59: =Q59-R59 -> 0 | T59: =Q59*'9 Тариф'!$P$35 -> 0 | U59: =R59*'9 Тариф'!$P$35 -> 0 | V59: =T59-U59 -> 0 | W59: =P59*W$30 -> 0 | Y59: =W59*Y$30 -> 0 | AA59: =Y59*AA$30 -> 0 | AC59: =AA59*AC$30 -> 0
F60: 1.3.10.3 | G60: Прибыль на прочие цели | H60: тыс.руб. | I60: ='36_Прибыль'!H36 -> 0 | J60: ='36_Прибыль'!I36 -> 0 | K60: =J60-I60 -> 0 | L60: ='36_Прибыль'!J36 -> 0 | M60: =L60-I60 -> 0 | N60: ='36_Прибыль'!K36 -> 0 | P60: =(IF(FIRST_PERIOD_IN_LT=god,'36_Прибыль'!L36,N60*P$30)) -> 0 | Q60: =P60 -> 0 | R60: =Q60*'9 Тариф'!$Q$41 -> 0 | S60: =Q60-R60 -> 0 | T60: =Q60*'9 Тариф'!$P$35 -> 0 | U60: =R60*'9 Тариф'!$P$35 -> 0 | V60: =T60-U60 -> 0 | W60: =P60*W$30 -> 0 | Y60: =W60*Y$30 -> 0 | AA60: =Y60*AA$30 -> 0 | AC60: =AA60*AC$30 -> 0
F61: 1.4 | G61: «Итого подконтрольные расходы с учетом метода экономически обоснованных расходов» | H61: тыс.руб. | J61: =J35+J38+J39 -> 0 | M61: 0 | P61: =P35+P38+P39 -> 0 | Q61: 0 | R61: 0 | S61: 0 | T61: 0 | U61: 0 | V61: 0
A62: =IFERROR(IF(AND(god-FIRST_PERIOD_IN_LT=0,REGULATION_METHODS="Сравнение аналогов"),"VISIBLE","HIDDEN"),"HIDDEN") -> HIDDEN | F62: 1.5 | G62: «Итого подконтрольные расходы с учетом метода сравнения аналогов» | H62: тыс.руб. | I62: =IF(I20=FIRST_PERIOD_IN_LT,'баз. ур. подк. расх. '!$H$61,"") ->  | J62: =IF(J20=FIRST_PERIOD_IN_LT,'баз. ур. подк. расх. '!$H$61,"") ->  | K62: =IF(K20=FIRST_PERIOD_IN_LT,'баз. ур. подк. расх. '!$H$61,"") ->  | L62: =IF(L20=FIRST_PERIOD_IN_LT,'баз. ур. подк. расх. '!$H$61,"") ->  | N62: =IF(N20=FIRST_PERIOD_IN_LT,'баз. ур. подк. расх. '!$H$61,"") ->  | O62: =IF(O20=FIRST_PERIOD_IN_LT,'баз. ур. подк. расх. '!$H$61,"") ->  | P62: =IF(P20=FIRST_PERIOD_IN_LT,'баз. ур. подк. расх. '!$H$61,"") -> 0 | Q62: =IF(Q20=FIRST_PERIOD_IN_LT,'баз. ур. подк. расх. '!$H$61,"") -> 0 | R62: =IFERROR(Q62*'9 Тариф'!$Q$41,0) -> 0 | S62: =IFERROR(Q62-R62,0) -> 0 | T62: =IFERROR(Q62*'9 Тариф'!$P$35,0) -> 0 | U62: =R62*'9 Тариф'!$P$35 -> 0 | V62: =T62-U62 -> 0 | W62: =IF(W20=FIRST_PERIOD_IN_LT,'баз. ур. подк. расх. '!$H$61,"") ->  | X62: =IF(X20=FIRST_PERIOD_IN_LT,'баз. ур. подк. расх. '!$H$61,"") ->  | Y62: =IF(Y20=FIRST_PERIOD_IN_LT,'баз. ур. подк. расх. '!$H$61,"") ->  | Z62: =IF(Z20=FIRST_PERIOD_IN_LT,'баз. ур. подк. расх. '!$H$61,"") ->  | AB62: =IF(AB20=FIRST_PERIOD_IN_LT,'баз. ур. подк. расх. '!$H$61,"") ->  | AD62: =IF(AD20=FIRST_PERIOD_IN_LT,'баз. ур. подк. расх. '!$H$61,"") -> 
A63: =IFERROR(IF(AND(god-FIRST_PERIOD_IN_LT=0,REGULATION_METHODS="Сравнение аналогов"),"VISIBLE","HIDDEN"),"HIDDEN") -> HIDDEN | F63: 1.6 | G63: «Итого подконтрольные расходы 0,7*МЭОР+0,3*МСА» | H63: тыс.руб. | P63: =IFERROR(P62*0.3+P61*0.7,0) -> 0 | Q63: =IFERROR(Q62*0.3+Q61*0.7,0) -> 0 | R63: =IFERROR(Q63*'9 Тариф'!$Q$41,0) -> 0 | S63: =IFERROR(Q63-R63,0) -> 0 | T63: =IFERROR(Q63*'9 Тариф'!$P$35,0) -> 0 | U63: =IFERROR(R63*'9 Тариф'!$P$35,0) -> 0 | V63: =IFERROR(T63-U63,0) -> 0 | W63: =IFERROR(W62*0.3+W61*0.7,0) -> 0 | X63: 0 | Y63: 0 | Z63: 0 | AA63: 0 | AB63: 0 | AC63: 0 | AD63: 0
F64: 1.7 | G64: Итого подконтрольные расходы, принятые к расчету тарифа | H64: тыс.руб. | I64: =I35+I38+I39 -> 0 | J64: =J35+J38+J39 -> 0 | K64: =J64-I64 -> 0 | L64: =L35+L38+L39 -> 0 | M64: =L64-I64 -> 0 | N64: =N35+N38+N39 -> 0 | O64: =N64 -> 0 | P64: =IF(REGULATION_METHODS = "Сравнение аналогов", '8_Расчет НВВ '!P63, (IF(FIRST_PERIOD_IN_LT = god, P61, N64*P30))) -> 0 | Q64: =IF(Титульный!F18="Аналоги",'8_Расчет НВВ '!Q62,(IF(FIRST_PERIOD_IN_LT=god,Q61,O64*Q30))) -> 0 | R64: =Q64*'9 Тариф'!$Q$41 -> 0 | S64: =Q64-R64 -> 0 | T64: =Q64*'9 Тариф'!$P$35 -> 0 | U64: =R64*'9 Тариф'!$P$35 -> 0 | V64: =T64-U64 -> 0 | W64: =P64*W$30 -> 0 | X64: =Q64*X$30 -> 0 | Y64: =W64*Y$30 -> 0 | Z64: 0 | AA64: 0 | AB64: 0 | AC64: 0 | AD64: 0
F66: 2. Расчет неподконтрольных расходов
F68: 2.1 | G68: Плата ФСК ЕЭС | H68: тыс.руб. | I68: ='18_ФСК'!I20 -> 0 | J68: ='18_ФСК'!J20 -> 0 | K68: =J68-I68 -> 0 | L68: ='18_ФСК'!K20 -> 0 | M68: =L68-J68 -> 0 | N68: ='18_ФСК'!M20 -> 0 | O68: ='18_ФСК'!M20 -> 0 | P68: ='18_ФСК'!N20 -> 0 | Q68: =R68+S68 -> 0 | R68: ='18_ФСК'!O22+'18_ФСК'!O29 -> 0 | S68: ='18_ФСК'!O25+'18_ФСК'!O34 -> 0 | T68: =Q68*'9 Тариф'!$P$35 -> 0 | U68: =R68*'9 Тариф'!$P$35 -> 0 | V68: =T68-U68 -> 0
F69: 2.2 | G69: Плата за аренду имущества и лизинг Всего, в том числе | H69: тыс.руб. | I69: =SUM(I70,I73) -> 0 | J69: =SUM(J70,J73) -> 0 | K69: =J69-I69 -> 0 | L69: =SUM(L70,L73) -> 0 | M69: =L69-J69 -> 0 | N69: =N70+N73 -> 0 | O69: =O70+O73 -> 0 | P69: =SUM(P70,P73) -> 0 | Q69: 0 | R69: =SUM(R70,R73) -> 0 | S69: =SUM(S70,S73) -> 0 | T69: =SUM(T70,T73) -> 0 | U69: =SUM(U70,U73) -> 0 | V69: =T69-U69 -> 0 | W69: 0 | X69: 0 | Y69: 0 | Z69: 0 | AA69: 0 | AB69: 0 | AC69: 0 | AD69: 0
F70: 2.2.1 | G70: Расходы на арендную плату | H70: тыс.руб. | I70: =I71+I72+I87 -> 0 | J70: =J71+J72+J87 -> 0 | K70: =K71+K72+K87 -> 0 | L70: =L71+L72+L87 -> 0 | M70: =M71+M72 -> 0 | N70: =N71+N72+N87 -> 0 | O70: 0 | P70: =P71+P72+P87 -> 0 | Q70: =Q71+Q72+Q87 -> 0 | R70: 0 | S70: 0 | T70: 0 | U70: 0 | V70: 0 | W70: 0 | X70: 0 | Y70: 0 | Z70: 0 | AA70: 0 | AB70: 0 | AC70: 0 | AD70: 0
F71: 2.2.1.1 | G71: аренда электросетевого имущества | H71: тыс.руб. | I71: ='19_Аренда ЭСХ факт'!Y26 -> 0 | J71: ='19_Аренда ЭСХ факт'!Z26 -> 0 | K71: =J71-I71 -> 0 | L71: ='19_Аренда ЭСХ факт'!AA26 -> 0 | M71: =L71-J71 -> 0 | N71: ='21_Аренда ЭСХ план'!AA26 -> 0 | O71: ='21_Аренда ЭСХ план'!AB28 -> 0 | P71: ='21_Аренда ЭСХ план'!AH26 -> 0 | Q71: ='21_Аренда ЭСХ план'!AI28 -> 0 | R71: =Q71*'9 Тариф'!$Q$41 -> 0 | S71: =Q71-R71 -> 0 | T71: =Q71*'9 Тариф'!$P$35 -> 0 | U71: =R71*'9 Тариф'!$P$35 -> 0 | V71: =T71-U71 -> 0
F72: 2.2.1.2 | G72: аренда прочего имущества | H72: тыс.руб. | I72: ='25_Аренда прочее им. факт'!W39 -> 0 | J72: ='25_Аренда прочее им. факт'!X39 -> 0 | K72: =J72-I72 -> 0 | L72: ='25_Аренда прочее им. факт'!Y39 -> 0 | M72: =L72-J72 -> 0 | N72: ='26_Аренда прочее им. план '!W39 -> 0 | O72: ='26_Аренда прочее им. план '!W39 -> 0 | P72: ='26_Аренда прочее им. план '!X39 -> 0 | Q72: ='26_Аренда прочее им. план '!Y39 -> 0 | R72: =Q72*'9 Тариф'!$Q$41 -> 0 | S72: =Q72-R72 -> 0 | T72: =Q72*'9 Тариф'!$P$35 -> 0 | U72: =R72*'9 Тариф'!$P$35 -> 0 | V72: =T72-U72 -> 0
F73: 2.2.2 | G73: Лизинг | H73: тыс.руб. | I73: =I74+I75 -> 0 | J73: =J74+J75 -> 0 | K73: =J73-I73 -> 0 | L73: =L74+L75 -> 0 | M73: =L73-J73 -> 0 | N73: =N74+N75 -> 0 | O73: =O74+O75 -> 0 | P73: 0 | Q73: 0 | R73: 0 | S73: 0 | T73: 0 | U73: 0 | V73: 0 | W73: 0 | X73: 0 | Y73: 0 | Z73: 0 | AA73: 0 | AB73: 0 | AC73: 0 | AD73: 0
F74: 2.2.2.1 | G74: лизинг электросетевого имущества | H74: тыс.руб. | I74: ='23_Лизинг ЭСХ факт'!Z27 -> 0 | J74: ='23_Лизинг ЭСХ факт'!AB27 -> 0 | K74: =J74-I74 -> 0 | L74: ='23_Лизинг ЭСХ факт'!AA27 -> 0 | M74: =L74-J74 -> 0 | N74: ='24_Лизинг ЭСХ план'!Z26 -> 0 | O74: ='24_Лизинг ЭСХ план'!Z28 -> 0 | P74: ='24_Лизинг ЭСХ план'!AA26 -> 0 | Q74: ='24_Лизинг ЭСХ план'!AB28 -> 0 | R74: =Q74*'9 Тариф'!$Q$41 -> 0 | S74: =Q74-R74 -> 0 | T74: =Q74*'9 Тариф'!$P$35 -> 0 | U74: =R74*'9 Тариф'!$P$35 -> 0 | V74: 0
F75: 2.2.2.2 | G75: лизинг прочего имущества | H75: тыс.руб. | I75: ='27_Лизинг прочее им. факт'!U39 -> 0 | J75: ='27_Лизинг прочее им. факт'!W39 -> 0 | K75: =J75-I75 -> 0 | L75: ='27_Лизинг прочее им. факт'!V39 -> 0 | M75: =L75-J75 -> 0 | N75: ='28_Лизинг прочее им. план'!U39 -> 0 | O75: ='26_Аренда прочее им. план '!W39 -> 0 | P75: ='28_Лизинг прочее им. план'!V39 -> 0 | Q75: ='28_Лизинг прочее им. план'!W39 -> 0 | R75: =Q75*'9 Тариф'!$Q$41 -> 0 | S75: =Q75-R75 -> 0 | T75: =Q75*'9 Тариф'!$P$35 -> 0 | U75: =R75*'9 Тариф'!$P$35 -> 0 | V75: 0
F76: 2.3 | G76: Налоги и сборы Всего, в том числе | H76: тыс.руб. | I76: =I77+I78+I79+I80 -> 0 | J76: 0 | K76: 0 | L76: 0 | M76: 0 | N76: 0 | O76: =O77+O78+O79+O80 -> 0 | P76: 0 | Q76: 0 | R76: 0 | S76: 0 | T76: 0 | U76: 0 | V76: 0 | W76: 0 | X76: 0 | Y76: =Y77+Y78+Y79+Y80 -> 0 | Z76: 0 | AA76: 0 | AB76: 0 | AC76: 0 | AD76: 0
F77: 2.3.1 | G77: Налог на имущество | H77: тыс.руб. | I77: ='32_Расчет амортизации факт'!AG28 -> 0 | J77: ='32_Расчет амортизации факт'!AN28 -> 0 | K77: =J77-I77 -> 0 | L77: ='32_Расчет амортизации факт макс'!AI28 -> 0 | M77: =L77-J77 -> 0 | N77: ='32_Расчет амортизации факт макс'!AP28 -> 0 | O77: ='32_Расчет амортизации факт макс'!AO28 -> 0 | P77: ='33_Расчет Амортизации план'!AF23 -> 0 | Q77: ='33_Расчет Амортизации план'!AK24 -> 0 | R77: =Q77*'9 Тариф'!$Q$41 -> 0 | S77: =Q77-R77 -> 0 | T77: =Q77*'9 Тариф'!$P$35 -> 0 | U77: =R77*'9 Тариф'!$P$35 -> 0 | V77: 0
F78: 2.3.2 | G78: Плата за землю | H78: тыс.руб. | I78: ='36_Прибыль'!H48 -> 0 | J78: ='36_Прибыль'!I48 -> 0 | K78: 0 | L78: ='36_Прибыль'!J48 -> 0 | M78: 0 | N78: ='36_Прибыль'!K48 -> 0 | O78: ='36_Прибыль'!K49 -> 0 | P78: ='36_Прибыль'!L48 -> 0 | Q78: ='36_Прибыль'!M49 -> 0 | R78: =Q78*'9 Тариф'!$Q$41 -> 0 | S78: 0 | T78: =Q78*'9 Тариф'!$P$35 -> 0 | U78: =R78*'9 Тариф'!$P$35 -> 0 | V78: 0
F79: 2.3.3 | G79: Транспортный налог | H79: тыс.руб. | I79: ='36_Прибыль'!H49 -> 0 | J79: ='36_Прибыль'!I49 -> 0 | K79: 0 | L79: ='36_Прибыль'!J49 -> 0 | M79: 0 | N79: ='36_Прибыль'!K49 -> 0 | O79: ='36_Прибыль'!K50 -> 0 | P79: ='36_Прибыль'!L49 -> 0 | Q79: ='36_Прибыль'!M50 -> 0 | R79: =Q79*'9 Тариф'!$Q$41 -> 0 | S79: 0 | T79: =Q79*'9 Тариф'!$P$35 -> 0 | U79: =R79*'9 Тариф'!$P$35 -> 0 | V79: 0
F80: 2.3.4 | G80: Прочие налоги | H80: тыс.руб. | I80: ='36_Прибыль'!H50 -> 0 | J80: ='36_Прибыль'!I50 -> 0 | K80: 0 | L80: ='36_Прибыль'!J50 -> 0 | M80: 0 | N80: ='36_Прибыль'!K50 -> 0 | O80: ='36_Прибыль'!K51 -> 0 | P80: ='36_Прибыль'!L50 -> 0 | Q80: ='36_Прибыль'!M51 -> 0 | R80: =Q80*'9 Тариф'!$Q$41 -> 0 | S80: 0 | T80: =Q80*'9 Тариф'!$P$35 -> 0 | U80: =R80*'9 Тариф'!$P$35 -> 0 | V80: 0
F81: 2.4 | G81: Отчисления на социальные нужды | H81: тыс.руб. | K81: 0 | M81: 0 | R81: =Q81*'9 Тариф'!$Q$41 -> 0 | S81: 0 | T81: =Q81*'9 Тариф'!$P$35 -> 0 | U81: =R81*'9 Тариф'!$P$35 -> 0 | V81: 0
F82: 2.5 | G82: Финансирование капитальных вложений из прибыли | H82: тыс.руб. | I82: ='36_Прибыль'!H28 -> 0 | J82: ='36_Прибыль'!I28 -> 0 | K82: 0 | L82: ='36_Прибыль'!J28 -> 0 | M82: 0 | N82: ='36_Прибыль'!K28 -> 0 | O82: ='36_Прибыль'!K28 -> 0 | P82: ='36_Прибыль'!L28 -> 0 | Q82: ='36_Прибыль'!M28 -> 0 | R82: =Q82*'9 Тариф'!$Q$41 -> 0 | S82: 0 | T82: =Q82*'9 Тариф'!$P$35 -> 0 | U82: =R82*'9 Тариф'!$P$35 -> 0 | V82: 0
F83: 2.6 | G83: Налог на прибыль | H83: тыс.руб. | I83: ='36_Прибыль'!H42 -> 0 | J83: ='36_Прибыль'!I42 -> 0 | K83: 0 | L83: ='36_Прибыль'!J42 -> 0 | M83: 0 | N83: ='36_Прибыль'!K42 -> 0 | O83: ='36_Прибыль'!K47 -> 0 | P83: ='36_Прибыль'!L42 -> 0 | Q83: ='36_Прибыль'!M47 -> 0 | R83: =Q83*'9 Тариф'!$Q$41 -> 0 | S83: 0 | T83: =Q83*'9 Тариф'!$P$35 -> 0 | U83: =R83*'9 Тариф'!$P$35 -> 0 | V83: 0
F84: 2.6.1 | G84: в том числе налог на прибыль на кап.вложения | H84: тыс.руб. | K84: 0 | M84: 0 | R84: =Q84*'9 Тариф'!$Q$41 -> 0 | S84: 0 | T84: =Q84*'9 Тариф'!$P$35 -> 0 | U84: =R84*'9 Тариф'!$P$35 -> 0 | V84: 0
F85: 2.7 | G85: Прочие неподконтрольные расходы | H85: тыс.руб. | I85: ='31_Прочие НПР '!L16 -> 0 | J85: ='31_Прочие НПР '!M16 -> 0 | K85: 0 | L85: ='31_Прочие НПР '!N16 -> 0 | M85: 0 | N85: ='31_Прочие НПР '!V16 -> 0 | O85: ='31_Прочие НПР '!V16 -> 0 | P85: ='31_Прочие НПР '!W16 -> 0 | Q85: ='31_Прочие НПР '!X16 -> 0 | R85: =Q85*'9 Тариф'!$Q$41 -> 0 | S85: 0 | T85: =Q85*'9 Тариф'!$P$35 -> 0 | U85: =R85*'9 Тариф'!$P$35 -> 0 | V85: 0
F86: 2.7.1 | G86: в том числе расходы на обслуживание заемных средств, направляемых на финансирование капитальных вложений | H86: тыс.руб. | I86: ='31_Прочие НПР '!L18 -> 0 | J86: ='31_Прочие НПР '!M18 -> 0 | K86: 0 | L86: ='31_Прочие НПР '!N18 -> 0 | M86: 0 | N86: ='31_Прочие НПР '!V18 -> 0 | O86: ='31_Прочие НПР '!V18 -> 0 | P86: ='31_Прочие НПР '!W18 -> 0 | R86: =Q86*'9 Тариф'!$Q$41 -> 0 | S86: 0 | T86: =Q86*'9 Тариф'!$P$35 -> 0 | U86: =R86*'9 Тариф'!$P$35 -> 0 | V86: 0
F87: 2.2.1.3 | G87: Аренда земли | H87: тыс.руб. | J87: ='29_Аренда земли факт'!AA27 -> 0 | K87: =J87-I87 -> 0 | M87: =L87-J87 -> 0 | P87: ='30_Аренда земли план'!AF27 -> 0 | R87: =Q87*'9 Тариф'!$Q$41 -> 0 | S87: =Q87-R87 -> 0 | T87: =Q87*'9 Тариф'!$P$35 -> 0 | U87: =R87*'9 Тариф'!$P$35 -> 0 | V87: =T87-U87 -> 0
G88: Добавить НПР | S88: =Q88-R88 -> 0
F89: 2.8 | G89: Компенсация выпадающих доходов по технологическому присоединению (пункт 87 Основ ценообразования) | H89: тыс.руб. | K89: =J89-I89 -> 0 | M89: =L89-J89 -> 0 | R89: =Q89*'9 Тариф'!$Q$41 -> 0 | S89: 0 | T89: =Q89*'9 Тариф'!$P$35 -> 0 | U89: =R89*'9 Тариф'!$P$35 -> 0 | V89: =T89-U89 -> 0
F90: 2.9 | G90: Амортизация | H90: тыс.руб. | I90: ='34_Амортизация свод '!H25 -> 0 | J90: ='34_Амортизация свод '!I25 -> 0 | K90: =J90-I90 -> 0 | L90: ='34_Амортизация свод '!J25 -> 0 | M90: =L90-J90 -> 0 | N90: ='34_Амортизация свод '!K25 -> 0 | O90: =N90 -> 0 | P90: ='34_Амортизация свод '!L25 -> 0 | Q90: ='34_Амортизация свод '!M25 -> 0 | R90: =Q90*'9 Тариф'!$Q$41 -> 0 | S90: 0 | T90: =Q90*'9 Тариф'!$P$35 -> 0 | U90: =R90*'9 Тариф'!$P$35 -> 0 | V90: =T90-U90 -> 0
F91: 2.10 | G91: Коммунальные услуги | H91: тыс.руб. | K91: =J91-I91 -> 0 | M91: =L91-I91 -> 0 | O91: =N91 -> 0 | R91: =Q91*'9 Тариф'!$Q$41 -> 0 | S91: 0 | T91: =Q91*'9 Тариф'!$P$35 -> 0 | U91: =R91*'9 Тариф'!$P$35 -> 0 | V91: =T91-U91 -> 0
F92: 2.11 | G92: Электроэнергия на хоз. нужды | H92: тыс.руб. | K92: =J92-I92 -> 0 | M92: =L92-I92 -> 0 | O92: =N92 -> 0 | R92: =Q92*'9 Тариф'!$Q$41 -> 0 | S92: 0 | T92: =Q92*'9 Тариф'!$P$35 -> 0 | U92: =R92*'9 Тариф'!$P$35 -> 0 | V92: =T92-U92 -> 0
F93: 3 | G93: Итого неподконтрольные расходы | H93: тыс.руб. | I93: =I68+I69+I76+I81+I82+I83+I85+I89+I90+I91+I92 -> 0 | J93: 0 | K93: 0 | L93: 0 | M93: 0 | N93: 0 | O93: 0 | P93: 0 | Q93: =Q68+Q69+Q76+Q81+Q82+Q83+Q85+Q89+Q90+Q91+Q92 -> 0 | R93: 0 | S93: 0 | T93: 0 | U93: 0 | V93: 0 | W93: 0 | X93: 0 | Y93: 0 | Z93: 0 | AA93: 0 | AB93: 0 | AC93: 0 | AD93: 0
F94: 4 | G94: Итого НВВ на содержание без учета корректировок | H94: тыс.руб. | I94: =I93+I64 -> 0 | J94: 0 | K94: 0 | L94: 0 | M94: 0 | N94: 0 | O94: =O93+O64 -> 0 | P94: 0 | Q94: 0 | R94: 0 | S94: 0 | T94: 0 | U94: 0 | V94: 0 | W94: 0 | X94: 0 | Y94: =Y93+Y64 -> 0 | Z94: 0 | AA94: 0 | AB94: 0 | AC94: 0 | AD94: 0
F95: 5 | G95: Сумма корректировок НВВ | I95: =SUM(I96,I103,I104:I107,I108,I109) -> 0 | J95: 0 | K95: 0 | L95: 0 | M95: 0 | N95: 0 | O95: 0 | P95: 0 | Q95: 0 | R95: 0 | S95: 0 | T95: 0 | U95: 0 | V95: 0 | W95: 0 | X95: 0 | Y95: 0 | Z95: 0 | AA95: 0 | AB95: 0 | AC95: 0 | AD95: 0
F96: 5.1 | G96: Корректировки по методике 98-э | I96: =SUM(I97:I102) -> 0 | J96: =SUM(J97:J102) -> 0 | K96: =J96-I96 -> 0 | L96: =SUM(L97:L102) -> 0 | M96: =L96-J96 -> 0 | N96: =SUM(N97:N102) -> 0 | O96: =SUM(O97:O102) -> 0 | P96: 0 | Q96: =SUM(Q97:Q102) -> 0 | R96: =SUM(R97:R102) -> 0 | S96: 0 | T96: =SUM(T97:T102) -> 0 | U96: =SUM(U97:U102) -> 0 | V96: =T96-U96 -> 0 | W96: 0 | X96: 0 | Y96: 0 | Z96: 0 | AA96: 0 | AB96: 0 | AC96: 0 | AD96: 0
F97: 5.1.1 | G97: Корректировка ПР | H97: тыс.руб. | K97: 0 | M97: 0 | P97: ='11_Корректировка НВВ'!K21 -> 0 | Q97: ='11_Корректировка НВВ'!L20 -> 0 | R97: =Q97*'9 Тариф'!$Q$41 -> 0 | S97: 0 | T97: =Q97*'9 Тариф'!$P$35 -> 0 | U97: =R97*'9 Тариф'!$P$35 -> 0 | V97: =T97-U97 -> 0
F98: 5.1.2 | G98: Корректировка НР | H98: тыс.руб. | K98: 0 | M98: 0 | P98: ='11_Корректировка НВВ'!K30 -> 0 | Q98: ='11_Корректировка НВВ'!L30 -> 0 | R98: =Q98*'9 Тариф'!$Q$41 -> 0 | S98: 0 | T98: =Q98*'9 Тариф'!$P$35 -> 0 | U98: =R98*'9 Тариф'!$P$35 -> 0 | V98: 0
F99: 5.1.3 | G99: Корректировка по изменению полезного отпуска и цен | H99: тыс.руб. | K99: 0 | M99: 0 | P99: ='11_Корректировка НВВ'!K33 -> 0 | Q99: ='11_Корректировка НВВ'!L33 -> 0 | R99: =Q99*'9 Тариф'!$Q$41 -> 0 | S99: 0 | T99: =Q99*'9 Тариф'!$P$35 -> 0 | U99: =R99*'9 Тариф'!$P$35 -> 0 | V99: 0
F100: 5.1.4 | G100: Корректировка необходимой валовой выручки по доходам от осуществления регулируемой деятельности | H100: тыс.руб. | K100: 0 | M100: 0 | P100: ='11_Корректировка НВВ'!K39 -> 0 | Q100: ='11_Корректировка НВВ'!L39 -> 0 | R100: =Q100*'9 Тариф'!$Q$41 -> 0 | S100: 0 | T100: =Q100*'9 Тариф'!$P$35 -> 0 | U100: =R100*'9 Тариф'!$P$35 -> 0 | V100: 0
F101: 5.1.5 | G101: Выполнение инвестиционной программы | H101: тыс.руб. | K101: 0 | M101: 0 | P101: ='11_Корректировка НВВ'!K43 -> 0 | Q101: ='11_Корректировка НВВ'!L43 -> 0 | R101: =Q101*'9 Тариф'!$Q$41 -> 0 | S101: 0 | T101: =Q101*'9 Тариф'!$P$35 -> 0 | U101: =R101*'9 Тариф'!$P$35 -> 0 | V101: 0
F102: 5.1.6 | G102: Корректировка НВВ по исполнению показателей надежности и качества | H102: тыс.руб. | K102: 0 | M102: 0 | P102: ='11_Корректировка НВВ'!K49 -> 0 | Q102: ='11_Корректировка НВВ'!L49 -> 0 | R102: =Q102*'9 Тариф'!$Q$41 -> 0 | S102: 0 | T102: =Q102*'9 Тариф'!$P$35 -> 0 | U102: =R102*'9 Тариф'!$P$35 -> 0 | V102: 0
F103: 5.2 | G103: Корректировка НВВ по решению суда или ФАС | H103: тыс.руб. | K103: 0 | M103: 0 | R103: =Q103*'9 Тариф'!$Q$41 -> 0 | S103: 0 | T103: =Q103*'9 Тариф'!$P$35 -> 0 | U103: =R103*'9 Тариф'!$P$35 -> 0 | V103: 0
F104: 5.3 | G104: Корректировка НВВ в соответствии с актом проверки | H104: тыс.руб. | K104: 0 | M104: 0 | R104: =Q104*'9 Тариф'!$Q$41 -> 0 | S104: 0 | T104: =Q104*'9 Тариф'!$P$35 -> 0 | U104: =R104*'9 Тариф'!$P$35 -> 0 | V104: 0
F105: 5.4 | G105: Недополученная/излишне полученная товарная выручка | H105: тыс.руб. | K105: 0 | M105: 0 | R105: =Q105*'9 Тариф'!$Q$41 -> 0 | S105: 0 | T105: =Q105*'9 Тариф'!$P$35 -> 0 | U105: =R105*'9 Тариф'!$P$35 -> 0 | V105: 0
F106: 5.4.0
G107: Добавить корректировку
F108: 5.5 | G108: Экономически не обоснованные доходы, взысканные с лиц, осуществляющих бездоговорное потребление энергии | K108: =J108-I108 -> 0 | M108: =L108-J108 -> 0 | O108: =N108 -> 0 | Q108: =P108 -> 0 | R108: =Q108*'9 Тариф'!$Q$41 -> 0 | S108: =Q108-R108 -> 0 | T108: =Q108*'9 Тариф'!$P$35 -> 0 | U108: =R108*'9 Тариф'!$P$35 -> 0 | V108: =T108-U108 -> 0
F109: 5.6 | G109: Выпадающие доходы / излишне полученные по результатам осуществления деятельности (заполняется в случае, если НВВ в предыдущем периоде была установлена методом экономически обоснованных затрат) | K109: 0 | M109: 0 | R109: =Q109*'9 Тариф'!$Q$41 -> 0 | S109: =Q109-R109 -> 0 | T109: =Q109*'9 Тариф'!$P$35 -> 0 | U109: =R109*'9 Тариф'!$P$35 -> 0 | V109: =T109-U109 -> 0
F110: 6 | G110: Распределение в целях сглаживания экономически необоснованных/обоснованных доходов и расходов | H110: тыс.руб. | K110: 0 | M110: 0 | R110: =Q110*'9 Тариф'!$Q$41 -> 0 | S110: =Q110-R110 -> 0 | T110: =Q110*'9 Тариф'!$P$35 -> 0 | U110: =R110*'9 Тариф'!$P$35 -> 0 | V110: =T110-U110 -> 0
F111: 7 | G111: Итого НВВ на содержание | H111: тыс.руб. | I111: =I93+I95+I64 -> 0 | J111: =J93+J95+J64 -> 0 | K111: 0 | L111: 0 | M111: 0 | N111: 0 | O111: 0 | P111: 0 | Q111: 0 | R111: 0 | S111: 0 | T111: 0 | U111: 0 | V111: 0 | W111: 0 | X111: 0 | Y111: 0 | Z111: 0 | AA111: 0 | AB111: 0 | AC111: 0 | AD111: 0
F112: 8 | G112: Расходы на потери | H112: тыс.руб. | I112: ='9 Тариф'!H45 -> 0 | J112: ='9 Тариф'!I45 -> 0 | K112: 0 | M112: 0 | N112: ='9 Тариф'!J45 -> 0 | O112: ='9 Тариф'!K45 -> 0 | P112: ='9 Тариф'!N45 -> 0 | Q112: ='9 Тариф'!P45 -> 0
F113: 9 | G113: Итого НВВ на передачу | H113: тыс.руб. | I113: =I112+I111 -> 0 | J113: =J112+J111 -> 0 | K113: 0 | L113: =L112+L111 -> 0 | M113: 0 | N113: =N112+N111 -> 0 | O113: 0 | P113: 0 | Q113: 0 | R113: 0 | S113: 0 | T113: 0 | U113: 0 | V113: 0

Sheet 9 Тариф (hidden)
K1: =IFERROR(IF(REPORT_OWNER="Версия организации","HIDDEN","VISIBLE"),0) -> HIDDEN | L1: =IFERROR(IF(REPORT_OWNER="Версия организации","HIDDEN","VISIBLE"),0) -> HIDDEN | M1: =IFERROR(IF(REPORT_OWNER="Версия организации","HIDDEN","VISIBLE"),0) -> HIDDEN | P1: =IFERROR(IF(REPORT_OWNER="Версия организации","HIDDEN","VISIBLE"),0) -> HIDDEN | Q1: =IFERROR(IF(REPORT_OWNER="Версия организации","HIDDEN","VISIBLE"),0) -> HIDDEN | R1: =IFERROR(IF(REPORT_OWNER="Версия организации","HIDDEN","VISIBLE"),0) -> HIDDEN | S1: =IFERROR(IF(REPORT_OWNER="Версия организации","HIDDEN","VISIBLE"),0) -> HIDDEN | T1: =IFERROR(IF(god+1>FIRST_PERIOD_IN_LT+PERIOD_LENGTH-1,"HIDDEN","VISIBLE"),"HIDDEN") -> HIDDEN | U1: =IFERROR(IF(AND(REPORT_OWNER="Версия регулятора",T1 = "VISIBLE"),"VISIBLE","HIDDEN"),"HIDDEN") -> HIDDEN | V1: =IFERROR(IF(god+2>FIRST_PERIOD_IN_LT+PERIOD_LENGTH-1,"HIDDEN","VISIBLE"),"HIDDEN") -> HIDDEN | W1: =IFERROR(IF(AND(REPORT_OWNER="Версия регулятора",V1 = "VISIBLE"),"VISIBLE","HIDDEN"),"HIDDEN") -> HIDDEN | X1: =IFERROR(IF(god+3>FIRST_PERIOD_IN_LT+PERIOD_LENGTH-1,"HIDDEN","VISIBLE"),"HIDDEN") -> HIDDEN | Y1: =IFERROR(IF(AND(REPORT_OWNER="Версия регулятора",X1 = "VISIBLE"),"VISIBLE","HIDDEN"),"HIDDEN") -> HIDDEN | Z1: =IFERROR(IF(god+4>FIRST_PERIOD_IN_LT+PERIOD_LENGTH-1,"HIDDEN","VISIBLE"),"HIDDEN") -> HIDDEN | AA1: =IFERROR(IF(AND(REPORT_OWNER="Версия регулятора",Z1 = "VISIBLE"),"VISIBLE","HIDDEN"),"HIDDEN") -> HIDDEN
E8: Список листов
F9: Расчет тарифа на услуги по передаче электрической энергии
E14: № п/п | F14: Показатели | G14: Единица измерения | H14: ="Утверждено (заполняется) ТСО на "&Титульный!E23-2&" год" -> Утверждено (заполняется) ТСО на -2 год | I14: ="Факт "&Титульный!E23-2&" года" -> Факт -2 года | J14: ="Утверждено версия ТСО на "&Титульный!E23-1&" год" -> Утверждено версия ТСО на -1 год | K14: ="Утверждено версия регулятора на "&Титульный!E23-1&" год" -> Утверждено версия регулятора на -1 год | N14: ="Предложение ТСО на "&Титульный!E23&" год" -> Предложение ТСО на год | O14: ="%"&Титульный!E23&"/"&Титульный!E23-1 -> %/-1 | P14: ="План версия регулятора на "&Титульный!E23&" год" -> План версия регулятора на год | S14: ="%"&Титульный!E23&" план ВР /"&Титульный!E23-1&" утверждено" -> % план ВР /-1 утверждено | T14: ="Предложение ТСО на "&Титульный!E23 + 1&" год" -> Предложение ТСО на 1 год | U14: ="План версия регулятора на "&Титульный!E23+1&" год" -> План версия регулятора на 1 год | V14: ="Предложение ТСО на "&Титульный!E23+ 2&" год" -> Предложение ТСО на 2 год | W14: ="План версия регулятора на "&Титульный!E23+2&" год" -> План версия регулятора на 2 год | X14: ="Предложение ТСО на "&Титульный!E23 + 3&" год" -> Предложение ТСО на 3 год | Y14: ="План версия регулятора на "&Титульный!E23+3&" год" -> План версия регулятора на 3 год | Z14: ="Предложение ТСО на "&Титульный!E23 + 4&" год" -> Предложение ТСО на 4 год | AA14: ="План версия регулятора на "&Титульный!E23+4&" год" -> План версия регулятора на 4 год
K15: год | L15: 1 полугодие | M15: 2 полугодие | P15: год | Q15: 1 полугодие | R15: 2 полугодие
E17: 1 | F17: Поступление мощности в сеть | G17: МВт | O17: =IF(J17=0,0,N17/J17) -> 0 | S17: =IF(K17=0,0,P17/K17) -> 0
E18: 2 | F18: Поступление энергии в сеть | G18: млн.кВтч | M18: =K18-L18 -> 0 | O18: =IF(J18=0,0,N18/J18) -> 0 | R18: =P18-Q18 -> 0 | S18: =IF(K18=0,0,P18/K18) -> 0
E19: 2.1 | F19: ЧЧИМ | H19: =IF(H17=0,0,H18/H17*1000) -> 0 | I19: 0 | J19: 0 | K19: 0 | L19: 0 | M19: 0 | N19: 0 | P19: =IF(P17=0,0,P18/P17*1000) -> 0 | Q19: =IF(Q17=0,0,Q18/Q17*1000) -> 0 | R19: =IF(R17=0,0,R18/R17*1000) -> 0 | T19: =IF(T17=0,0,T18/T17*1000) -> 0 | U19: 0 | V19: 0 | W19: 0 | X19: 0 | Y19: 0 | Z19: 0 | AA19: 0
E20: 3 | F20: Потери энергии, всего | G20: млн.кВтч | M20: =K20-L20 -> 0 | O20: =IF(J20=0,0,N20/J20) -> 0 | P20: =ROUND(P18*P23/100,3) -> 0 | Q20: =ROUND(Q23*Q18/100,3) -> 0 | R20: =P20-Q20 -> 0 | S20: =IF(K20=0,0,P20/K20) -> 0 | T20: =ROUND(T18*T23/100,3) -> 0 | U20: 0 | V20: 0 | W20: 0 | X20: 0 | Y20: 0 | Z20: 0 | AA20: 0
E21: 3.1 | F21: Процент потерь | G21: % | H21: =IF(H18*100=0,0,H20/H18*100) -> 0 | I21: 0 | J21: 0 | K21: 0 | L21: 0 | M21: 0 | N21: 0 | P21: =IF(P18*100=0,0,P20/P18*100) -> 0 | Q21: =IF(Q18*100=0,0,Q20/Q18*100) -> 0 | R21: =IF(R18*100=0,0,R20/R18*100) -> 0 | T21: =IF(T18*100=0,0,T20/T18*100) -> 0 | U21: 0 | V21: 0 | W21: 0 | X21: 0 | Y21: 0 | Z21: 0 | AA21: 0
E22: 4 | F22: Потери мощности | G22: МВт | O22: =IF(J22=0,0,N22/J22) -> 0 | S22: =IF(K22=0,0,P22/K22) -> 0
E23: 4.1 | F23: Процент потерь | G23: % | H23: =IF(H17*100=0,0,H22/H17*100) -> 0 | I23: 0 | J23: 0 | K23: 0 | L23: 0 | M23: 0 | N23: 0 | P23: =IF(P17*100=0,0,P22/P17*100) -> 0 | Q23: =IF(Q17*100=0,0,Q22/Q17*100) -> 0 | R23: =IF(R17*100=0,0,R22/R17*100) -> 0 | T23: =IF(T17*100=0,0,T22/T17*100) -> 0 | U23: 0 | V23: 0 | W23: 0 | X23: 0 | Y23: 0 | Z23: 0 | AA23: 0
E24: 5 | F24: Потери энергии на транзит | G24: млн.кВтч | J24: =J20 -> 0 | K24: =K20 -> 0 | L24: =L20 -> 0 | M24: =M20 -> 0 | O24: =IF(J24=0,0,N24/J24) -> 0 | R24: =R20 -> 0 | S24: =IF(K24=0,0,P24/K24) -> 0
E25: 6 | F25: Потери мощности на транзит | G25: МВт | J25: =J22 -> 0 | O25: =IF(J25=0,0,N25/J25) -> 0 | S25: =IF(K25=0,0,P25/K25) -> 0
E26: 6.1 | F26: ЧЧИМ | H26: =IF(H25=0,0,H24/H25*1000) -> 0 | I26: 0 | J26: 0 | K26: 0 | L26: 0 | M26: 0 | N26: 0 | P26: =IF(P25=0,0,P24/P25*1000) -> 0 | Q26: =IF(Q25=0,0,Q24/Q25*1000) -> 0 | R26: =IF(R25=0,0,R24/R25*1000) -> 0 | T26: =IF(T25=0,0,T24/T25*1000) -> 0 | U26: =IF(U25=0,0,U24/U25*1000) -> 0 | V26: =IF(V25=0,0,V24/V25*1000) -> 0 | W26: 0 | X26: 0 | Y26: 0 | Z26: 0 | AA26: 0
E27: 7 | F27: Полезный отпуск энергии, в т.ч: | G27: млн.кВтч | H27: =H18-H20 -> 0 | I27: =I18-I20 -> 0 | J27: =J18-J20 -> 0 | K27: =K18-K20 -> 0 | L27: =L18-L20 -> 0 | M27: =K27-L27 -> 0 | N27: =N18-N20 -> 0 | O27: =IF(J27=0,0,N27/J27) -> 0 | P27: =P18-P20 -> 0 | Q27: =Q18-Q20 -> 0 | R27: =P27-Q27 -> 0 | S27: =IF(K27=0,0,P27/K27) -> 0 | T27: =T18-T20 -> 0 | U27: 0 | V27: 0 | W27: 0 | X27: 0 | Y27: 0 | Z27: 0 | AA27: 0
E28: 7.1 | F28: собственное потребление энергии | G28: млн.кВтч | O28: 0 | S28: 0
E29: 7.2 | F29: Собственное потребление мощности | G29: МВт | O29: 0 | S29: 0
E30: 7.3 | F30: сальдо переток в другие организации | G30: млн.кВтч | L30: =K30/2 -> 0 | M30: =K30/2 -> 0 | O30: 0 | S30: =IF(K30=0,0,P30/K30) -> 0
E31: 7.4 | F31: сальдо переток в другие организации | G31: МВт | O31: 0 | S31: =IF(K31=0,0,P31/K31) -> 0
E32: 7.5 | F32: ="Оплачиваемый "&ORG_DOP&" сальдопереток мощности" -> Оплачиваемый сальдопереток мощности | G32: МВт | H32: =H17-H29-H22 -> 0 | I32: =I17-I29-I22 -> 0 | J32: 0 | N32: 0 | O32: 0 | S32: 0 | T32: =T17-T29-T22 -> 0 | U32: 0 | V32: 0 | W32: 0 | X32: 0 | Y32: 0 | Z32: 0 | AA32: 0
E33: 7.6 | F33: ="Оплачиваемый "&ORG_DOP&" сальдопереток энергии" -> Оплачиваемый сальдопереток энергии | G33: млн.кВтч | H33: =H27-H28 -> 0 | I33: =I27-I28 -> 0 | J33: =J27-J28 -> 0 | K33: =K27-K28 -> 0 | L33: =L27-L28 -> 0 | M33: =M27-M28 -> 0 | N33: =N27-N28 -> 0 | O33: 0 | P33: =P27-P28 -> 0 | Q33: =Q27-Q28 -> 0 | R33: =R27-R28 -> 0 | S33: 0 | T33: =T27-T28 -> 0 | U33: 0 | V33: 0 | W33: 0 | X33: 0 | Y33: 0 | Z33: 0 | AA33: 0
E34: 8 | F34: Доля вне собственных нужд | H34: =IF((H33+H28)=0,0,H33/(H33+H28)) -> 0 | I34: =IF((I33+I28)=0,0,I33/(I33+I28)) -> 0 | J34: 0 | K34: 0 | L34: 0 | M34: 0 | N34: 0 | P34: =IF((P33+P28)=0,0,P33/(P33+P28)) -> 0 | Q34: =IF((Q33+Q28)=0,0,Q33/(Q33+Q28)) -> 0 | R34: =IF((R33+R28)=0,0,R33/(R33+R28)) -> 0 | T34: =IF((T33+T28)=0,0,T33/(T33+T28)) -> 0 | U34: =IF((U33+U28)=0,0,U33/(U33+U28)) -> 0 | V34: 0 | W34: 0 | X34: 0 | Y34: 0 | Z34: 0 | AA34: 0
E35: 9 | F35: Доля "в котле" | G35: % | H35: =IF(H27=0,0,H30/H27) -> 0 | I35: =IF(I27=0,0,I30/I27) -> 0 | J35: 0 | K35: 0 | L35: 0 | M35: 0 | N35: 0 | P35: =IFERROR(IF((P34/(P27+P28))=0,'9 Тариф снизу'!R36,P34/(P27+P28)),1) -> 1 | Q35: =IFERROR(IF((Q34/(Q27+Q28))=0,'9 Тариф снизу'!H36,Q34/(Q27+Q28)),1) -> 1 | R35: =IFERROR(IF((R34/(R27+R28))=0,'9 Тариф снизу'!M36,R34/(R27+R28)),1) -> 1 | T35: =IF((T34+T29)=0,0,T34/(T34+T29)) -> 0 | U35: =IF((U34+U29)=0,0,U34/(U34+U29)) -> 0 | V35: 0 | W35: 0 | X35: 0 | Y35: 0 | Z35: 0 | AA35: 0
E36: 9 | F36: Необходимая валовая выручка, установленная на долгосрочный период регулирования | G36: тыс. рублей | H36: ='8_Расчет НВВ '!I111 -> 0 | I36: ='8_Расчет НВВ '!J111 -> 0 | J36: ='8_Расчет НВВ '!N111 -> 0 | K36: ='8_Расчет НВВ '!O111 -> 0 | L36: =SUM(L37:L40) -> 0 | M36: =K36-L36 -> 0 | N36: ='8_Расчет НВВ '!P111 -> 0 | O36: =IF(J36=0,0,N36/J36) -> 0 | P36: ='8_Расчет НВВ '!Q111 -> 0 | Q36: =SUM(Q37:Q40) -> 0 | R36: =SUM(R37:R40) -> 0 | S36: 0 | T36: ='8_Расчет НВВ '!W111 -> 0 | U36: ='8_Расчет НВВ '!X111 -> 0 | V36: ='8_Расчет НВВ '!Y111 -> 0 | W36: ='8_Расчет НВВ '!Z111 -> 0 | X36: ='8_Расчет НВВ '!AA111 -> 0 | Y36: ='8_Расчет НВВ '!AB111 -> 0 | Z36: ='8_Расчет НВВ '!AC111 -> 0 | AA36: ='8_Расчет НВВ '!AD111 -> 0
E37: 9.1 | F37: Операционные расходы | G37: тыс. рублей | H37: ='8_Расчет НВВ '!I64 -> 0 | I37: ='8_Расчет НВВ '!J64 -> 0 | J37: ='8_Расчет НВВ '!N64 -> 0 | K37: ='8_Расчет НВВ '!O64 -> 0 | L37: =K37*$L$41/100 -> 0 | M37: 0 | N37: ='8_Расчет НВВ '!P64 -> 0 | O37: =IF(J37=0,0,N37/J37) -> 0 | P37: ='8_Расчет НВВ '!Q64 -> 0 | Q37: =P37*$Q$41/100 -> 0 | R37: =P37-Q37 -> 0 | S37: 0 | T37: ='8_Расчет НВВ '!W64 -> 0 | U37: ='8_Расчет НВВ '!X64 -> 0 | V37: ='8_Расчет НВВ '!Y64 -> 0 | W37: ='8_Расчет НВВ '!Z64 -> 0 | X37: ='8_Расчет НВВ '!AA64 -> 0 | Y37: ='8_Расчет НВВ '!AB64 -> 0 | Z37: ='8_Расчет НВВ '!AC64 -> 0 | AA37: ='8_Расчет НВВ '!AD64 -> 0
E38: 9.2 | F38: Неподконтрольные расходы, в том числе | G38: тыс. рублей | H38: ='8_Расчет НВВ '!I93 -> 0 | I38: ='8_Расчет НВВ '!J93 -> 0 | J38: ='8_Расчет НВВ '!N93 -> 0 | K38: ='8_Расчет НВВ '!O93 -> 0 | L38: =K38*$L$41/100 -> 0 | M38: 0 | N38: ='8_Расчет НВВ '!P93 -> 0 | O38: =IF(J38=0,0,N38/J38) -> 0 | P38: ='8_Расчет НВВ '!Q93 -> 0 | Q38: =P38*$Q$41/100 -> 0 | R38: =P38-Q38 -> 0 | S38: 0 | T38: ='8_Расчет НВВ '!W93 -> 0 | U38: ='8_Расчет НВВ '!X93 -> 0 | V38: ='8_Расчет НВВ '!Y93 -> 0 | W38: ='8_Расчет НВВ '!Z93 -> 0 | X38: ='8_Расчет НВВ '!AA93 -> 0 | Y38: ='8_Расчет НВВ '!AB93 -> 0 | Z38: ='8_Расчет НВВ '!AC93 -> 0 | AA38: ='8_Расчет НВВ '!AD93 -> 0
E39: 9.3 | F39: оплата услуг ПАО "ФСК" | G39: тыс. рублей | H39: ='8_Расчет НВВ '!I68 -> 0 | I39: ='8_Расчет НВВ '!J68 -> 0 | J39: ='8_Расчет НВВ '!N68 -> 0 | K39: ='8_Расчет НВВ '!O68 -> 0 | L39: =K39*$L$41/100 -> 0 | M39: 0 | N39: ='8_Расчет НВВ '!P68 -> 0 | O39: =IF(J39=0,0,N39/J39) -> 0 | P39: ='8_Расчет НВВ '!Q68 -> 0 | Q39: =P39*$Q$41/100 -> 0 | R39: =P39-Q39 -> 0 | S39: 0 | T39: ='8_Расчет НВВ '!W68 -> 0 | U39: ='8_Расчет НВВ '!X68 -> 0 | V39: ='8_Расчет НВВ '!Y68 -> 0 | W39: ='8_Расчет НВВ '!Z68 -> 0 | X39: ='8_Расчет НВВ '!AA68 -> 0 | Y39: ='8_Расчет НВВ '!AB68 -> 0 | Z39: ='8_Расчет НВВ '!AC68 -> 0 | AA39: ='8_Расчет НВВ '!AD68 -> 0
E40: 9.4 | F40: Корректировка НВВ | G40: тыс. рублей | H40: ='8_Расчет НВВ '!I95 -> 0 | I40: ='8_Расчет НВВ '!J95 -> 0 | J40: ='8_Расчет НВВ '!N95 -> 0 | K40: ='8_Расчет НВВ '!O95 -> 0 | L40: =K40*$L$41/100 -> 0 | M40: 0 | N40: ='8_Расчет НВВ '!P95 -> 0 | O40: =IF(J40=0,0,N40/J40) -> 0 | P40: ='8_Расчет НВВ '!Q95 -> 0 | Q40: =P40*$Q$41/100 -> 0 | R40: =P40-Q40 -> 0 | S40: 0 | T40: ='8_Расчет НВВ '!W95 -> 0 | U40: ='8_Расчет НВВ '!X95 -> 0 | V40: ='8_Расчет НВВ '!Y95 -> 0 | W40: ='8_Расчет НВВ '!Z95 -> 0 | X40: ='8_Расчет НВВ '!AA95 -> 0 | Y40: ='8_Расчет НВВ '!AB95 -> 0 | Z40: ='8_Расчет НВВ '!AC95 -> 0 | AA40: ='8_Расчет НВВ '!AD95 -> 0
E41: 9.5 | F41: Коэффициент деления по полугодиям | G41: тыс. рублей | J41: 0.5 | K41: 1 | L41: 0.5 | M41: 0.5 | N41: 0.5 | P41: 1 | Q41: ='9 Тариф снизу'!M37 -> 0 | R41: =P41-Q41 -> 1 | T41: 1 | U41: 1 | V41: 1 | W41: 1 | X41: 1 | Y41: 1 | Z41: 1 | AA41: 1
E42: 10 | F42: Двуставочный тариф
E43: 10.1 | F43: Индивидуальный тариф на содержание сетей | G43: руб./МВтч*месяц | H43: =IF(H32/12*1000=0,0,H36/H32/12*1000) -> 0 | I43: 0 | J43: 0 | K43: 0 | L43: 0 | M43: 0 | N43: 0 | P43: =IF(P32/12*1000=0,0,P36/P32/12*1000) -> 0 | Q43: =IF(Q32/12*1000=0,0,Q36/Q32/12*1000) -> 0 | R43: =IF(R32/12*1000=0,0,R36/R32/12*1000) -> 0 | T43: =IF(T32/12*1000=0,0,T36/T32/12*1000) -> 0 | U43: 0 | V43: 0 | W43: 0 | X43: 0 | Y43: 0 | Z43: 0 | AA43: 0
E44: 10.2 | F44: Стоимость потерь | G44: руб./МВтч
E45: 10.3 | F45: Затраты на компенсацию потерь | G45: тыс. руб. | H45: =H44*H20 -> 0 | I45: =I44*I20 -> 0 | J45: =J44*J20 -> 0 | K45: =K44*K20 -> 0 | L45: =L44*L20 -> 0 | M45: =M44*M20 -> 0 | N45: =N44*N20 -> 0 | O45: =IF(J45=0,0,N45/J45) -> 0 | P45: =P44*P20 -> 0 | Q45: =Q44*Q20 -> 0 | R45: =R44*R20 -> 0 | S45: =IF(N45=0,0,R45/N45) -> 0 | T45: =T44*T20 -> 0 | U45: =U44*U20 -> 0 | V45: =V44*V20 -> 0 | W45: =W44*W20 -> 0 | X45: =X44*X20 -> 0 | Y45: =Y44*Y20 -> 0 | Z45: =Z44*Z20 -> 0 | AA45: =AA44*AA20 -> 0
E46: 10.4 | F46: Индивидуальный тариф на покупку всех потерь | G46: руб./МВтч | H46: =IF(H33*1000=0,0,H44*H20/H33) -> 0 | I46: =IF(I33*1000=0,0,I44*I20/I33) -> 0 | J46: 0 | K46: 0 | L46: 0 | M46: 0 | N46: 0 | P46: =IF(P33*1000=0,0,P44*P20/P33) -> 0 | Q46: 0 | R46: 0 | T46: =IF(T33*1000=0,0,T44*T20/T33) -> 0 | U46: 0 | V46: 0 | W46: 0 | X46: 0 | Y46: 0 | Z46: 0 | AA46: 0
E47: 11 | F47: Одноставочный тариф | G47: руб./кВтч | H47: =IFERROR((H48*H32*12+H50*H27)/H27,0) -> 0 | I47: =IFERROR((I48*I32*12+I50*I27)/I27,0) -> 0 | J47: =IFERROR((J48*J32*12+J50*J27)/J27,0) -> 0 | K47: =IFERROR((K48*K32*12+K50*K27)/K27,0) -> 0 | L47: =IFERROR((L48*L32*6+L50*L27)/L27,0) -> 0 | M47: =IFERROR((M48*M32*6+M50*M27)/M27,0) -> 0 | N47: =IFERROR((N48*N32*12+N50*N27)/N27,0) -> 0 | O47: =IF(J47=0,0,N47/J47) -> 0 | P47: =IFERROR((P48*P32*12+P50*P27)/P27,0) -> 0 | Q47: =IFERROR((Q48*Q32*6+Q50*Q27)/Q27,0) -> 0 | R47: =IFERROR((R48*R32*6+R50*R27)/R27,0) -> 0 | S47: =IF(N47=0,0,R47/N47) -> 0 | T47: =IFERROR((T48*T32*12+T50*T27)/T27,0) -> 0 | U47: 0 | V47: 0 | W47: 0 | X47: 0 | Y47: 0 | Z47: 0 | AA47: 0
E48: 11.1 | F48: Ставка на содержание сетей | G48: руб./кВтч | H48: =IF(H32*1000=0,0,H36/H32/12) -> 0 | I48: =IF(I32*1000=0,0,I36/I32/12) -> 0 | J48: 0 | K48: 0 | L48: 0 | M48: 0 | N48: 0 | P48: =IF(P32*1000=0,0,P36/P32/12) -> 0 | Q48: 0 | R48: 0 | T48: =IF(T32*1000=0,0,T36/T32/12) -> 0 | U48: 0 | V48: 0 | W48: 0 | X48: 0 | Y48: 0 | Z48: 0 | AA48: 0
E49: 11.2 | F49: Затраты на компенсацию потерь | G49: тыс. руб. | H49: =H45 -> 0 | I49: =I45 -> 0 | J49: 0 | K49: 0 | L49: 0 | M49: 0 | N49: 0 | O49: =IF(J49=0,0,N49/J49) -> 0 | P49: =P45 -> 0 | Q49: 0 | R49: 0 | S49: =IF(N49=0,0,R49/N49) -> 0 | T49: =T45 -> 0 | U49: 0 | V49: 0 | W49: 0 | X49: 0 | Y49: 0 | Z49: 0 | AA49: 0
E50: 11.3 | F50: Ставка на потери | G50: руб./МВтч | H50: =H46 -> 0 | I50: =I46 -> 0 | J50: 0 | K50: 0 | L50: 0 | M50: 0 | N50: 0 | P50: 0 | Q50: 0 | R50: 0 | T50: 0 | U50: 0 | V50: 0 | W50: 0 | X50: 0 | Y50: 0 | Z50: 0 | AA50: 0
E51: 12 | F51: Валовая выручка на возмещение | G51: тыс. руб. | H51: =H43*H32*12/1000 -> 0 | I51: 0 | J51: 0 | K51: 0 | L51: 0 | M51: 0 | N51: 0 | O51: =IF(J51=0,0,N51/J51) -> 0 | P51: =P43*P32*12/1000 -> 0 | Q51: =Q43*Q32*12/1000 -> 0 | R51: =R43*R32*12/1000 -> 0 | S51: =IF(N51=0,0,R51/N51) -> 0 | T51: =T43*T32*12/1000 -> 0 | U51: 0 | V51: 0 | W51: 0 | X51: 0 | Y51: 0 | Z51: 0 | AA51: 0
E52: 13 | F52: Валовая выручка на возмещение, всего | G52: тыс. руб. | H52: =H51+H45 -> 0 | I52: 0 | J52: 0 | K52: 0 | L52: 0 | M52: 0 | N52: 0 | O52: =IF(J52=0,0,N52/J52) -> 0 | P52: =P51+P45 -> 0 | Q52: =Q51+Q45 -> 0 | R52: =R51+R45 -> 0 | S52: =IF(N52=0,0,R52/N52) -> 0 | T52: =T51+T45 -> 0 | U52: 0 | V52: 0 | W52: 0 | X52: 0 | Y52: 0 | Z52: 0 | AA52: 0

Sheet 9_Расчет тарифов (hidden)
A1: HIDDEN | P1: =IFERROR(IF(AND(REPORT_OWNER="Версия регулятора",O1 = "VISIBLE"),"VISIBLE","HIDDEN"),"HIDDEN") -> HIDDEN | Q1: =IFERROR(IF(AND(REPORT_OWNER="Версия регулятора",P1 = "VISIBLE"),"VISIBLE","HIDDEN"),"HIDDEN") -> HIDDEN | R1: =IFERROR(IF(AND(REPORT_OWNER="Версия регулятора",Q1 = "VISIBLE"),"VISIBLE","HIDDEN"),"HIDDEN") -> HIDDEN | V1: =IFERROR(IF(god - FIRST_PERIOD_IN_LT>=PERIOD_LENGTH,"VISIBLE","HIDDEN"),"HIDDEN") -> VISIBLE | W1: =IFERROR(IF(god - FIRST_PERIOD_IN_LT>=PERIOD_LENGTH,"VISIBLE","HIDDEN"),"HIDDEN") -> VISIBLE | X1: =IFERROR(IF(god - FIRST_PERIOD_IN_LT>=PERIOD_LENGTH,"VISIBLE","HIDDEN"),"HIDDEN") -> VISIBLE | Y1: =IFERROR(IF(AND(REPORT_OWNER="Версия регулятора",X1 = "VISIBLE"),"VISIBLE","HIDDEN"),"HIDDEN") -> HIDDEN | Z1: =IFERROR(IF(AND(REPORT_OWNER="Версия регулятора",Y1 = "VISIBLE"),"VISIBLE","HIDDEN"),"HIDDEN") -> HIDDEN | AA1: =IFERROR(IF(AND(REPORT_OWNER="Версия регулятора",Z1 = "VISIBLE"),"VISIBLE","HIDDEN"),"HIDDEN") -> HIDDEN | AB1: =IFERROR(IF(god - FIRST_PERIOD_IN_LT>=PERIOD_LENGTH,"VISIBLE","HIDDEN"),"HIDDEN") -> VISIBLE | AC1: =IFERROR(IF(god - FIRST_PERIOD_IN_LT>=PERIOD_LENGTH,"VISIBLE","HIDDEN"),"HIDDEN") -> VISIBLE | AD1: =IFERROR(IF(god - FIRST_PERIOD_IN_LT>=PERIOD_LENGTH,"VISIBLE","HIDDEN"),"HIDDEN") -> VISIBLE | AE1: =IFERROR(IF(AND(REPORT_OWNER="Версия регулятора",AD1 = "VISIBLE"),"VISIBLE","HIDDEN"),"HIDDEN") -> HIDDEN | AF1: =IFERROR(IF(AND(REPORT_OWNER="Версия регулятора",AE1 = "VISIBLE"),"VISIBLE","HIDDEN"),"HIDDEN") -> HIDDEN | AG1: =IFERROR(IF(AND(REPORT_OWNER="Версия регулятора",AF1 = "VISIBLE"),"VISIBLE","HIDDEN"),"HIDDEN") -> HIDDEN | AH1: =IFERROR(IF(god - FIRST_PERIOD_IN_LT>=PERIOD_LENGTH,"VISIBLE","HIDDEN"),"HIDDEN") -> VISIBLE | AI1: =IFERROR(IF(god - FIRST_PERIOD_IN_LT>=PERIOD_LENGTH,"VISIBLE","HIDDEN"),"HIDDEN") -> VISIBLE | AJ1: =IFERROR(IF(god - FIRST_PERIOD_IN_LT>=PERIOD_LENGTH,"VISIBLE","HIDDEN"),"HIDDEN") -> VISIBLE | AK1: =IFERROR(IF(AND(REPORT_OWNER="Версия регулятора",AJ1 = "VISIBLE"),"VISIBLE","HIDDEN"),"HIDDEN") -> HIDDEN | AL1: =IFERROR(IF(AND(REPORT_OWNER="Версия регулятора",AK1 = "VISIBLE"),"VISIBLE","HIDDEN"),"HIDDEN") -> HIDDEN | AM1: =IFERROR(IF(AND(REPORT_OWNER="Версия регулятора",AL1 = "VISIBLE"),"VISIBLE","HIDDEN"),"HIDDEN") -> HIDDEN | AN1: =IFERROR(IF(god - FIRST_PERIOD_IN_LT>=PERIOD_LENGTH,"VISIBLE","HIDDEN"),"HIDDEN") -> VISIBLE | AO1: =IFERROR(IF(god - FIRST_PERIOD_IN_LT>=PERIOD_LENGTH,"VISIBLE","HIDDEN"),"HIDDEN") -> VISIBLE | AP1: =IFERROR(IF(god - FIRST_PERIOD_IN_LT>=PERIOD_LENGTH,"VISIBLE","HIDDEN"),"HIDDEN") -> VISIBLE | AQ1: =IFERROR(IF(AND(REPORT_OWNER="Версия регулятора",AP1 = "VISIBLE"),"VISIBLE","HIDDEN"),"HIDDEN") -> HIDDEN | AR1: =IFERROR(IF(AND(REPORT_OWNER="Версия регулятора",AQ1 = "VISIBLE"),"VISIBLE","HIDDEN"),"HIDDEN") -> HIDDEN | AS1: =IFERROR(IF(AND(REPORT_OWNER="Версия регулятора",AR1 = "VISIBLE"),"VISIBLE","HIDDEN"),"HIDDEN") -> HIDDEN | AT1: =IFERROR(IF(god - FIRST_PERIOD_IN_LT>=PERIOD_LENGTH,"VISIBLE","HIDDEN"),"HIDDEN") -> VISIBLE | AU1: =IFERROR(IF(god - FIRST_PERIOD_IN_LT>=PERIOD_LENGTH,"VISIBLE","HIDDEN"),"HIDDEN") -> VISIBLE | AV1: =IFERROR(IF(god - FIRST_PERIOD_IN_LT>=PERIOD_LENGTH,"VISIBLE","HIDDEN"),"HIDDEN") -> VISIBLE | AW1: =IFERROR(IF(AND(REPORT_OWNER="Версия регулятора",AV1 = "VISIBLE"),"VISIBLE","HIDDEN"),"HIDDEN") -> HIDDEN | AX1: =IFERROR(IF(AND(REPORT_OWNER="Версия регулятора",AW1 = "VISIBLE"),"VISIBLE","HIDDEN"),"HIDDEN") -> HIDDEN | AY1: =IFERROR(IF(AND(REPORT_OWNER="Версия регулятора",AX1 = "VISIBLE"),"VISIBLE","HIDDEN"),"HIDDEN") -> HIDDEN
F8: Расчет тарифа на услуги по передаче электрической энергии по сетям
F11: № п/п | G11: Показатели | H11: Единица измерения | I11: =god-2 & " год (утверждено версия ТСО)" -> -2 год (утверждено версия ТСО) | L11: =god-2 & " год (факт)" -> -2 год (факт) | O11: Отклонение | P11: =god-2 & " год (факт версия регулятора)" -> -2 год (факт версия регулятора) | S11: =god-1& " год (утверждено версия ТСО)" -> -1 год (утверждено версия ТСО) | T11: 0 | V11: =god& " год предложение ТСО" -> год предложение ТСО | W11: 0 | Y11: =god& " год версия регулятора" -> год версия регулятора | AB11: =god+1& " год предложение ТСО" -> 1 год предложение ТСО | AE11: =god+1& " год версия регулятора" -> 1 год версия регулятора | AH11: =god+2& " год предложение ТСО" -> 2 год предложение ТСО | AK11: =god+2& " год версия регулятора" -> 2 год версия регулятора | AN11: =god+3& " год предложение ТСО" -> 3 год предложение ТСО | AQ11: =god+3& " год версия регулятора" -> 3 год версия регулятора | AT11: =god+4& " год предложение ТСО" -> 4 год предложение ТСО | AW11: =god+4& " год версия регулятора" -> 4 год версия регулятора
I13: год | J13: I полугодие | K13: II полугодие | L13: год | M13: I полугодие | N13: II полугодие | P13: год | Q13: 1 полугодие | R13: 2 полугодие | S13: год | T13: I полугодие | U13: II полугодие | V13: год | W13: I полугодие | X13: II полугодие | Y13: год | Z13: I полугодие | AA13: II полугодие | AB13: год | AC13: I полугодие | AD13: II полугодие | AE13: год | AF13: I полугодие | AG13: II полугодие | AH13: год | AI13: I полугодие | AJ13: II полугодие | AK13: год | AL13: I полугодие | AM13: II полугодие | AN13: год | AO13: I полугодие | AP13: II полугодие | AQ13: год | AR13: I полугодие | AS13: II полугодие | AT13: год | AU13: I полугодие | AV13: II полугодие | AW13: год | AX13: I полугодие | AY13: II полугодие
F16: 1 | G16: Итого НВВ на содержание | H16: тыс.руб. | I16: ='8_Расчет НВВ '!I111 -> 0 | L16: ='8_Расчет НВВ '!J111 -> 0 | O16: ='8_Расчет НВВ '!K111 -> 0 | P16: ='8_Расчет НВВ '!M111 -> 0 | S16: ='8_Расчет НВВ '!N111 -> 0 | T16: =S16*T28 -> 0 | U16: =S16-T16 -> 0 | V16: ='8_Расчет НВВ '!P111 -> 0 | W16: =V16*W28 -> 0 | X16: =V16-W16 -> 0 | Y16: ='8_Расчет НВВ '!Q111 -> 0 | Z16: =Y16*Z28 -> 0 | AA16: =Y16-Z16 -> 0 | AB16: ='8_Расчет НВВ '!W111 -> 0 | AC16: =AB16*AC28 -> 0 | AD16: =AB16-AC16 -> 0 | AE16: ='8_Расчет НВВ '!X111 -> 0 | AF16: =AE16*AF28 -> 0 | AG16: =AE16-AF16 -> 0 | AK16: ='8_Расчет НВВ '!AD111 -> 0 | AL16: =AK16*AL28 -> 0 | AM16: =AK16-AL16 -> 0 | AQ16: ='8_Расчет НВВ '!AJ111 -> 0 | AR16: =AQ16*AR28 -> 0 | AS16: =AQ16-AR16 -> 0 | AW16: ='8_Расчет НВВ '!AP111 -> 0 | AX16: =AW16*AX28 -> 0 | AY16: =AW16-AX16 -> 0
F17: 2 | G17: Расчетные данные
F18: 2.1 | G18: Полезный отпуск электрической энергии | H18: млн.кВтч | I18: =J18+K18 -> 23.22055026 | J18: ='4_Полезный отпуск'!H28 -> 11.66233454 | K18: ='4_Полезный отпуск'!I28 -> 11.55821573 | L18: =M18+N18 -> 0 | M18: ='4_Полезный отпуск'!J28 -> 0 | N18: ='4_Полезный отпуск'!L28 -> 0 | O18: =L18-I18 -> -23.22055026 | P18: =Q18+R18 -> 0 | S18: =T18+U18 -> 20.53338365 | T18: ='4_Полезный отпуск'!N28 -> 10.3240761 | U18: ='4_Полезный отпуск'!P28 -> 10.20930755 | V18: =W18+X18 -> 0 | W18: ='4_Полезный отпуск'!R28 -> 0 | X18: ='4_Полезный отпуск'!T28 -> 0 | Y18: =Z18+AA18 -> 0 | Z18: ='4_Полезный отпуск'!V28 -> 0 | AA18: ='4_Полезный отпуск'!X28 -> 0 | AB18: =AC18+AD18 -> 0 | AC18: =W18 -> 0 | AD18: =X18 -> 0 | AE18: =AF18+AG18 -> 0 | AF18: =Z18 -> 0 | AG18: =AA18 -> 0 | AH18: =AI18+AJ18 -> 0 | AI18: =AC18 -> 0 | AJ18: =AD18 -> 0 | AK18: =AL18+AM18 -> 0 | AL18: =AF18 -> 0 | AM18: =AG18 -> 0 | AN18: =AO18+AP18 -> 0 | AO18: =AI18 -> 0 | AP18: =AJ18 -> 0 | AQ18: =AR18+AS18 -> 0 | AR18: =AL18 -> 0 | AS18: =AM18 -> 0 | AT18: =AU18+AV18 -> 0 | AU18: =AO18 -> 0 | AV18: =AP18 -> 0 | AW18: =AX18+AY18 -> 0 | AX18: =AR18 -> 0 | AY18: =AS18 -> 0
F19: 2.2 | G19: Потери электрической энергии в сетях | H19: млн.кВтч | I19: =J19+K19 -> 0 | J19: =IF(J21=0,0,J18*41.55/J21) -> 0 | K19: =IF(K21=0,0,K18*39.68/K21) -> 0 | L19: =M19+N19 -> 0 | O19: =L19-I19 -> 0 | P19: =Q19+R19 -> 0 | S19: =T19+U19 -> 0 | T19: =IF(T21=0,0,T18*45.73/T21) -> 0 | U19: =IF(U21=0,0,U18*44.48/U21) -> 0 | V19: =W19+X19 -> 0 | Y19: =Z19+AA19 -> 0 | AB19: =AC19+AD19 -> 0 | AE19: =AF19+AG19 -> 0 | AH19: =AI19+AJ19 -> 0 | AK19: =AL19+AM19 -> 0 | AN19: =AO19+AP19 -> 0 | AQ19: =AR19+AS19 -> 0 | AT19: =AU19+AV19 -> 0 | AW19: =AX19+AY19 -> 0
F20: 2.3 | G20: Полезный отпуск электрической мощности | H20: МВт | I20: =IFERROR(AVERAGE(J20:K20),0) -> 0 | L20: =IFERROR(AVERAGE(M20:N20),0) -> 0 | O20: =IFERROR(L20-I20,0) -> 0 | S20: =IFERROR(AVERAGE(T20:U20),0) -> 0 | V20: =IFERROR(AVERAGE(W20:X20),0) -> 0 | Y20: =IFERROR(AVERAGE(Z20:AA20),0) -> 0 | AB20: =IFERROR(AVERAGE(AC20:AD20),0) -> 0 | AE20: =IFERROR(AVERAGE(AF20:AG20),0) -> 0 | AH20: =IFERROR(AVERAGE(AI20:AJ20),0) -> 0 | AN20: =IFERROR(AVERAGE(AO20:AP20),0) -> 0 | AT20: =IFERROR(AVERAGE(AU20:AV20),0) -> 0
F21: 2.4 | G21: Цена на электроэнергию (покупка потерь) | H21: руб/МВтч | I21: =IF(I19=0,0,(J21*J19+K21*K19)/I19) -> 0 | L21: =IF(L19=0,0,(M21*M19+N21*N19)/L19) -> 0 | O21: =L21-I21 -> 0 | S21: =IF(S19=0,0,(T21*T19+U21*U19)/S19) -> 0 | V21: =IF(V19=0,0,(W21*W19+X21*X19)/V19) -> 0 | X21: =ROUND(W21*1.03,2) -> 0 | AA21: =ROUND(Z21*1.03,2) -> 0 | AB21: =IFERROR((AC21*AC19+AD21*AD19)/AB19,0) -> 0 | AD21: =ROUND(AC21*1.03,2) -> 0 | AG21: =ROUND(AF21*1.03,2) -> 0 | AH21: =IFERROR((AI21*AI19+AJ21*AJ19)/AH19,0) -> 0 | AJ21: =ROUND(AI21*1.03,2) -> 0 | AM21: =ROUND(AL21*1.03,2) -> 0 | AN21: =IFERROR((AO21*AO19+AP21*AP19)/AN19,0) -> 0 | AP21: =ROUND(AO21*1.03,2) -> 0 | AS21: =ROUND(AR21*1.03,2) -> 0 | AT21: =IF(AT19=0,0,(AU21*AU19+AV21*AV19)/AT19) -> 0 | AV21: =ROUND(AU21*1.03,2) -> 0 | AY21: =ROUND(AX21*1.03,2) -> 0
F25: 2.8 | G25: Стоимость потерь | H25: тыс.руб. | L25: =SUM(M25:N25) -> 0 | M25: =M23*M24 -> 0 | N25: =N23*N24 -> 0 | O25: =L25-I25 -> 0 | P25: =SUM(Q25:R25) -> 0 | Q25: =Q23*Q24 -> 0 | R25: =R23*R24 -> 0 | V25: =SUM(W25:X25) -> 0 | W25: =W23*W24 -> 0 | X25: =X23*X24 -> 0 | Y25: =SUM(Z25:AA25) -> 0 | Z25: =Z23*Z24 -> 0 | AA25: =AA23*AA24 -> 0 | AB25: =SUM(AC25:AD25) -> 0 | AC25: =AC23*AC24 -> 0 | AD25: =AD23*AD24 -> 0 | AE25: =SUM(AF25:AG25) -> 0 | AF25: =AF23*AF24 -> 0 | AG25: =AG23*AG24 -> 0 | AH25: =SUM(AI25:AJ25) -> 0 | AI25: =AI23*AI24 -> 0 | AJ25: =AJ23*AJ24 -> 0 | AK25: =SUM(AL25:AM25) -> 0 | AL25: =AL23*AL24 -> 0 | AM25: =AM23*AM24 -> 0 | AN25: =SUM(AO25:AP25) -> 0 | AO25: =AO23*AO24 -> 0 | AP25: =AP23*AP24 -> 0 | AQ25: =SUM(AR25:AS25) -> 0 | AR25: =AR23*AR24 -> 0 | AS25: =AS23*AS24 -> 0 | AT25: =SUM(AU25:AV25) -> 0 | AU25: =AU23*AU24 -> 0 | AV25: =AV23*AV24 -> 0 | AW25: =SUM(AX25:AY25) -> 0 | AX25: =AX23*AX24 -> 0 | AY25: =AY23*AY24 -> 0
F26: 3 | G26: Расчет тарифа
F27: 3.1 | G27: Полезный отпуск электрической мощности | H27: МВт | I27: =IFERROR(AVERAGE(J27:K27),0) -> 0 | J27: =J20 -> 0 | K27: =K20 -> 0 | L27: =IFERROR(AVERAGE(M27:N27),0) -> 0 | M27: =M20 -> 0 | N27: =N20 -> 0 | O27: =L27-I27 -> 0 | P27: =IFERROR(AVERAGE(Q27:R27),0) -> 0 | Q27: =Q20 -> 0 | R27: =R20 -> 0 | S27: =IFERROR(AVERAGE(T27:U27),0) -> 0 | T27: =T20 -> 0 | U27: =U20 -> 0 | V27: =IFERROR(AVERAGE(W27:X27),0) -> 0 | W27: =W20 -> 0 | X27: =X20 -> 0 | Y27: =IFERROR(AVERAGE(Z27:AA27),0) -> 0 | Z27: =Z20 -> 0 | AA27: =AA20 -> 0 | AB27: =IFERROR(AVERAGE(AC27:AD27),0) -> 0 | AC27: =AC20 -> 0 | AD27: =AD20 -> 0 | AE27: =IFERROR(AVERAGE(AF27:AG27),0) -> 0 | AF27: =AF20 -> 0 | AG27: =AG20 -> 0 | AH27: =IFERROR(AVERAGE(AI27:AJ27),0) -> 0 | AI27: =AI20 -> 0 | AJ27: =AJ20 -> 0 | AK27: =IFERROR(AVERAGE(AL27:AM27),0) -> 0 | AL27: =AL20 -> 0 | AM27: =AM20 -> 0 | AN27: =IFERROR(AVERAGE(AO27:AP27),0) -> 0 | AO27: =AO20 -> 0 | AP27: =AP20 -> 0 | AQ27: =IFERROR(AVERAGE(AR27:AS27),0) -> 0 | AR27: =AR20 -> 0 | AS27: =AS20 -> 0 | AT27: =IFERROR(AVERAGE(AU27:AV27),0) -> 0 | AU27: =AU20 -> 0 | AV27: =AV20 -> 0 | AW27: =IFERROR(AVERAGE(AX27:AY27),0) -> 0 | AX27: =AX20 -> 0 | AY27: =AY20 -> 0
F28: 3.2 | G28: Доля НВВ на содержание по полугодиям | H28: % | I28: 1 | K28: =I28-J28 -> 1 | L28: 1 | N28: =L28-M28 -> 1 | P28: 1 | Q28: =IFERROR(7410.23336/P29,0) -> 0 | R28: =P28-Q28 -> 1 | S28: 1 | U28: =S28-T28 -> 1 | V28: 1 | X28: =V28-W28 -> 1 | Y28: 1 | AA28: =Y28-Z28 -> 1 | AB28: 1 | AD28: =AB28-AC28 -> 1 | AE28: 1 | AG28: =AE28-AF28 -> 1 | AH28: 1 | AJ28: =AH28-AI28 -> 1 | AK28: 1 | AM28: =AK28-AL28 -> 1 | AN28: 1 | AP28: =AN28-AO28 -> 1 | AQ28: 1 | AS28: =AQ28-AR28 -> 1 | AT28: 1 | AV28: =AT28-AU28 -> 1 | AW28: 1 | AY28: =AW28-AX28 -> 1
F29: 3.3 | G29: НВВ с учётом потерь в сетях | H29: тыс.руб. | I29: =I16+I25 -> 0 | L29: =L16+L25 -> 0 | O29: =L29-I29 -> 0 | P29: =P16+P25 -> 0 | S29: =S16+S25 -> 0 | V29: =V16+V25 -> 0 | W29: =W32*W27*6/1000+W33*W22 -> 0 | X29: =X32*X27*6/1000+X33*X22 -> 0 | Y29: =Y16+Y25 -> 0 | Z29: =Z32*Z27*6/1000+Z33*Z22 -> 0 | AA29: =AA32*AA27*6/1000+AA33*AA22 -> 0 | AB29: =AB16+AB25 -> 0 | AC29: =AC32*AC27*6/1000+AC33*AC22 -> 0 | AD29: =AD32*AD27*6/1000+AD33*AD22 -> 0 | AE29: =AE16+AE25 -> 0 | AF29: =AF32*AF27*6/1000+AF33*AF22 -> 0 | AG29: =AG32*AG27*6/1000+AG33*AG22 -> 0 | AH29: =AH16+AH25 -> 0 | AI29: =AI32*AI27*6/1000+AI33*AI22 -> 0 | AJ29: =AJ32*AJ27*6/1000+AJ33*AJ22 -> 0 | AK29: =AK16+AK25 -> 0 | AL29: =AL32*AL27*6/1000+AL33*AL22 -> 0 | AM29: =AM32*AM27*6/1000+AM33*AM22 -> 0 | AN29: =AN16+AN25 -> 0 | AO29: =AO32*AO27*6/1000+AO33*AO22 -> 0 | AP29: =AP32*AP27*6/1000+AP33*AP22 -> 0 | AQ29: =AQ16+AQ25 -> 0 | AR29: =AR32*AR27*6/1000+AR33*AR22 -> 0 | AS29: =AS32*AS27*6/1000+AS33*AS22 -> 0 | AT29: =AT16+AT25 -> 0 | AU29: =AU32*AU27*6/1000+AU33*AU22 -> 0 | AV29: =AV32*AV27*6/1000+AV33*AV22 -> 0 | AW29: =AW16+AW25 -> 0 | AX29: =AX32*AX27*6/1000+AX33*AX22 -> 0 | AY29: =AY32*AY27*6/1000+AY33*AY22 -> 0
F30: 3.4 | G30: Одноставочный тариф | H30: руб./тыс. кВтч | I30: =(J30*J18+K30*K18)/I18 -> 0 | S30: =(T30*T18+U30*U18)/S18 -> 0 | V30: =IFERROR((W30*W18+X30*X18)/V18,0) -> 0 | W30: =IFERROR(W29/W22,0) -> 0 | X30: =IFERROR(X29/X22,0) -> 0 | Z30: =IFERROR(Z29/Z22,0) -> 0 | AA30: =IFERROR(AA29/AA22,0) -> 0 | AB30: =IFERROR((AC30*AC18+AD30*AD18)/AB18,0) -> 0 | AC30: =IFERROR(AC29/AC22,0) -> 0 | AD30: =IFERROR(AD29/AD22,0) -> 0 | AF30: =IFERROR(AF29/AF22,0) -> 0 | AG30: =IFERROR(AG29/AG22,0) -> 0 | AH30: =IFERROR((AI30*AI18+AJ30*AJ18)/AH18,0) -> 0 | AI30: =IFERROR(AI29/AI22,0) -> 0 | AJ30: =IFERROR(AJ29/AJ22,0) -> 0 | AL30: =IFERROR(AL29/AL22,0) -> 0 | AM30: =IFERROR(AM29/AM22,0) -> 0 | AN30: =IFERROR((AO30*AO18+AP30*AP18)/AN18,0) -> 0 | AO30: =IFERROR(AO29/AO22,0) -> 0 | AP30: =IFERROR(AP29/AP22,0) -> 0 | AR30: =IFERROR(AR29/AR22,0) -> 0 | AS30: =IFERROR(AS29/AS22,0) -> 0 | AT30: =IFERROR((AU30*AU18+AV30*AV18)/AT18,0) -> 0 | AU30: =IFERROR(AU29/AU22,0) -> 0 | AV30: =IFERROR(AV29/AV22,0) -> 0 | AX30: =IFERROR(AX29/AX22,0) -> 0 | AY30: =IFERROR(AY29/AY22,0) -> 0
F31: 3.5 | G31: Двухставочный тариф:
F32: 3.5.1 | G32: ставка на содержание сетей | H32: руб./ МВт мес | I32: =IF((I20*12)=0,0,(J32*6*J20+K32*6*K20)/(I20*12)) -> 0 | S32: =IF((S20*12)=0,0,(T32*6*T20+U32*6*U20)/(S20*12)) -> 0 | V32: =IF((V20*12)=0,0,(W32*6*W20+X32*6*X20)/(V20*12)) -> 0 | W32: =IFERROR(('8_Расчет НВВ '!P111*W28)/(W27)/6*1000,0) -> 0 | X32: =IFERROR(('8_Расчет НВВ '!P111*X28)/(X27)/6*1000,0) -> 0 | Z32: =IFERROR(('8_Расчет НВВ '!X111*Z28)/(Z27)/6*1000,0) -> 0 | AA32: =IFERROR(('8_Расчет НВВ '!X111*AA28)/(AA27)/6*1000,0) -> 0 | AB32: =IF((AB20*12)=0,0,(AC32*6*AC20+AD32*6*AD20)/(AB20*12)) -> 0 | AC32: =IFERROR(('8_Расчет НВВ '!AA111*AC28)/(AC27)/6*1000,0) -> 0 | AD32: =IFERROR(('8_Расчет НВВ '!AA111*AD28)/(AD27)/6*1000,0) -> 0 | AF32: =IFERROR(AF16/(AF27)/6*1000,0) -> 0 | AG32: =IFERROR(AG16/(AG27)/6*1000,0) -> 0 | AH32: =IF((AH20*12)=0,0,(AI32*6*AI20+AJ32*6*AJ20)/(AH20*12)) -> 0 | AI32: =IFERROR(('8_Расчет НВВ '!AG111*AI28)/(AI27)/6*1000,0) -> 0 | AJ32: =IFERROR(('8_Расчет НВВ '!AG111*AJ28)/(AJ27)/6*1000,0) -> 0 | AL32: =IFERROR(AL16/(AL27)/6*1000,0) -> 0 | AM32: =IFERROR(AM16/(AM27)/6*1000,0) -> 0 | AN32: =IF((AN20*12)=0,0,(AO32*6*AO20+AP32*6*AP20)/(AN20*12)) -> 0 | AO32: =IFERROR(('8_Расчет НВВ '!AM111*AO28)/(AO27)/6*1000,0) -> 0 | AP32: =IFERROR(('8_Расчет НВВ '!AM111*AP28)/(AP27)/6*1000,0) -> 0 | AR32: =IFERROR(AR16/(AR27)/6*1000,0) -> 0 | AS32: =IFERROR(AS16/(AS27)/6*1000,0) -> 0 | AT32: =IF((AT20*12)=0,0,(AU32*6*AU20+AV32*6*AV20)/(AT20*12)) -> 0 | AU32: =IFERROR(('8_Расчет НВВ '!AS111*AU28)/(AU27)/6*1000,0) -> 0 | AV32: =IFERROR(('8_Расчет НВВ '!AS111*AV28)/(AV27)/6*1000,0) -> 0 | AX32: =IFERROR(AX16/(AX27)/6*1000,0) -> 0 | AY32: =IFERROR(AY16/(AY27)/6*1000,0) -> 0
F33: 3.5.2 | G33: ставка на компенсацию потерь | H33: руб./тыс. кВтч | I33: =(J33*J18+K33*K18)/I18 -> 0 | S33: =(T33*T18+U33*U18)/S18 -> 0 | V33: =IFERROR((W33*W18+X33*X18)/V18,0) -> 0 | W33: =IFERROR(W25/W22,0) -> 0 | X33: =IFERROR(X25/X22,0) -> 0 | Z33: =IFERROR(Z25/Z22,0) -> 0 | AA33: =IFERROR(AA25/AA22,0) -> 0 | AB33: =IFERROR((AC33*AC18+AD33*AD18)/AB18,0) -> 0 | AC33: =IFERROR(AC25/AC22,0) -> 0 | AD33: =IFERROR(AD25/AD22,0) -> 0 | AF33: =IFERROR(AF25/AF22,0) -> 0 | AG33: =IFERROR(AG25/AG22,0) -> 0 | AH33: =IFERROR((AI33*AI18+AJ33*AJ18)/AH18,0) -> 0 | AI33: =IFERROR(AI25/AI22,0) -> 0 | AJ33: =IFERROR(AJ25/AJ22,0) -> 0 | AL33: =IFERROR(AL25/AL22,0) -> 0 | AM33: =IFERROR(AM25/AM22,0) -> 0 | AN33: =IFERROR((AO33*AO18+AP33*AP18)/AN18,0) -> 0 | AO33: =IFERROR(AO25/AO22,0) -> 0 | AP33: =IFERROR(AP25/AP22,0) -> 0 | AR33: =IFERROR(AR25/AR22,0) -> 0 | AS33: =IFERROR(AS25/AS22,0) -> 0 | AT33: =IFERROR((AU33*AU18+AV33*AV18)/AT18,0) -> 0 | AU33: =IFERROR(AU25/AU22,0) -> 0 | AV33: =IFERROR(AV25/AV22,0) -> 0 | AX33: =IFERROR(AX25/AX22,0) -> 0 | AY33: =IFERROR(AY25/AY22,0) -> 0

Sheet 9 Тариф снизу (hidden)
A1: =IFERROR(IF(REPORT_OWNER="Версия организации","HIDDEN",IF(A2="HIDDEN","HIDDEN","VISIBLE")),0) -> HIDDEN | B1: HIDDEN
E8: Список листов
F9: Расчет тарифа на услуги по передаче электрической энергии
E14: № п/п | F14: Исходные данные | G14: Ед. изм. | H14: I полугодие | M14: II полугодие | R14: ="Всего, "&Титульный!E23&" год" -> Всего, год
H15: Всего | I15: ВН | J15: СН1 | K15: СН2 | L15: НН | M15: Всего | N15: ВН | O15: СН1 | P15: СН2 | Q15: НН
F19: Тарифная выручка
E20: 1 | F20: Тарифная выручка | G20: тыс. руб. | H20: =H23+H24 -> 0 | I20: =IFERROR(I23+I24,0) -> 0 | J20: 0 | K20: 0 | L20: 0 | M20: 0 | N20: 0 | O20: 0 | P20: 0 | Q20: 0 | R20: 0
E21: 2 | F21: Условные единицы | G21: УЕ | H21: ='7_Свод УЕ '!L40 -> 0 | I21: =IFERROR('7_Свод УЕ '!H40,0) -> 0 | J21: =IFERROR('7_Свод УЕ '!I40,0) -> 0 | K21: =IFERROR('7_Свод УЕ '!J40,0) -> 0 | L21: =IFERROR('7_Свод УЕ '!K40,0) -> 0 | M21: =IFERROR(H21,0) -> 0 | N21: 0 | O21: 0 | P21: 0 | Q21: 0 | R21: 0
E22: 2.1 | F22: Доля условных единиц | G22: % | H22: 100 | I22: =IFERROR(I21*100/$H$21,0) -> 0 | J22: =IFERROR(J21*100/$H$21,0) -> 0 | K22: =IFERROR(K21*100/$H$21,0) -> 0 | L22: =IFERROR(L21*100/$H$21,0) -> 0 | M22: 100 | N22: =IFERROR(N21*100/$H$21,0) -> 0 | O22: =IFERROR(O21*100/$H$21,0) -> 0 | P22: =IFERROR(P21*100/$H$21,0) -> 0 | Q22: =IFERROR(Q21*100/$H$21,0) -> 0
E23: 3 | F23: НВВ на содержание электрических сетей | G23: тыс. руб. | H23: ='8_Расчет НВВ '!U111 -> 0 | I23: =IFERROR($H$23*I22/100,0) -> 0 | J23: =IFERROR($H$23*J22/100,0) -> 0 | K23: =IFERROR($H$23*K22/100,0) -> 0 | L23: =IFERROR($H$23*L22/100,0) -> 0 | M23: =IFERROR('8_Расчет НВВ '!V111,0) -> 0 | N23: =IFERROR($M$23*N22/100,0) -> 0 | O23: =IFERROR($M$23*O22/100,0) -> 0 | P23: =IFERROR($M$23*P22/100,0) -> 0 | Q23: =IFERROR($M$23*Q22/100,0) -> 0 | R23: =IFERROR(M23+H23,0) -> 0
E24: 4 | F24: Затраты на оплату технологических потерь | G24: тыс.руб. | H24: =SUM(I24:L24) -> 0 | I24: =H29*H40+H39*H28 -> 0 | M24: =SUM(N24:Q24) -> 0 | N24: =M29*M40+M39*M28 -> 0 | R24: =M24+H24 -> 0
E25: 5 | F25: Отпуск электрической энергии в сеть | G25: тыс кВт.ч. | H25: =SUM(I25:L25) -> 0 | M25: =SUM(N25:Q25) -> 0 | R25: =M25+H25 -> 0
E26: 6 | F26: Потери электрической энергии в сети | G26: тыс кВт.ч. | H26: =H28+H29 -> 0 | I26: =I28+I29 -> 0 | J26: 0 | K26: 0 | L26: 0 | M26: 0 | N26: 0 | O26: 0 | P26: 0 | Q26: 0 | R26: =M26+H26 -> 0
E30: 7 | F30: Норматив потерь электрической энергии | G30: % | H30: =IF(H25*100=0,0,H26/H25*100) -> 0 | M30: =IF(M25*100=0,0,M26/M25*100) -> 0 | R30: =IF(R25*100=0,0,R26/R25*100) -> 0
E31: 8 | F31: Расход электроэнергии на производственные и хозяйственные нужды (собственное потребление организаций, для которых оказание услуг по передаче не является основным видом деятельности) | G31: тыс кВт.ч. | H31: =SUM(I31:L31) -> 0 | M31: =SUM(N31:Q31) -> 0 | R31: =M31+H31 -> 0
E32: 9 | F32: Отпуск электрической энергии из сети | G32: тыс кВт.ч. | H32: =H25-H26 -> 0 | M32: =M25-M26 -> 0 | R32: =M32+H32 -> 0
E33: 10 | F33: Отпуск электрической мощности в сеть | G33: МВт | H33: =SUM(I33:L33) -> 0 | M33: =SUM(N33:Q33) -> 0 | R33: =(M33+H33)/2 -> 0
E34: 11 | F34: Потери электрической мощности в сети | G34: МВт | H34: =SUM(I34:L34) -> 0 | M34: =SUM(N34:Q34) -> 0 | R34: =(M34+H34)/2 -> 0
E35: 12 | F35: Полезный отпуск мощности (заявленная мощность) | G35: МВт | H35: =SUM(I35:L35) -> 0 | M35: =SUM(N35:Q35) -> 0 | R35: =(M35+H35)/2 -> 0
E36: 13 | F36: Доля "в котле" | H36: =IF((H32+H31)=0,0,H32/(H32+H31)) -> 0 | M36: =IF((M32+M31)=0,0,M32/(M32+M31)) -> 0 | R36: =IF((R32+R31)=0,0,R32/(R32+R31)) -> 0
E37: 14 | F37: Коэффициент деления по полугодиям | H37: =R37-M37 -> 1 | R37: 1
F44: Единые котловые тарифы
E46: 16 | F46: Население
E47: 16.1 | F47: Население городское газовые плиты (в том числе по зонам суток) | G47: руб./кВт.ч.
E48: 16.2 | F48: Население городское, электроплиты (в том числе по зонам суток) | G48: руб./кВт.ч.
E49: 16.3 | F49: Население сельское (в том числе по зонам суток) | G49: руб./кВт.ч.
E50: 16.4 | F50: Садоводческие товарищества (в том числе по зонам суток) | G50: руб./кВт.ч.
E51: 16.5 | F51: Юр лица (осужденные) (в том числе по зонам суток) | G51: руб./кВт.ч.
E52: 16.6 | F52: Религиозные организации (втом числе по зонам суток) | G52: руб./кВт.ч.
E53: 16.7 | F53: Гаражи, сараи (в том числе по зонам суток) | G53: руб./кВт.ч.
E54: 17 | F54: Прочие потребители
E55: 17.1 | F55: Одноставочный | G55: руб./кВт.ч.
E56: 17.2 | F56: Ставка на содержание | G56: руб./МВт.мес
E57: 17.3 | F57: Ставка на потери | G57: руб./кВт.ч.
F58: Объем оказываемых услуг
E60: 18 | F60: Население, Всего | G60: тыс кВт.ч. | H60: =H61+H62+H63+H64+H65+H66+H67 -> 0 | I60: =SUM(I61:I67) -> 0 | J60: =SUM(J61:J67) -> 0 | K60: 0 | L60: 0 | M60: =M61+M62+M63+M64+M65+M66+M67 -> 0 | N60: 0 | O60: 0 | P60: 0 | Q60: 0 | R60: =H60+M60 -> 0
E61: 18.1 | F61: Население городское газовые плиты (в том числе по зонам суток) | G61: тыс кВт.ч. | H61: =SUM(I61:L61) -> 0 | M61: =SUM(N61:Q61) -> 0 | R61: =H61+M61 -> 0
E62: 18.2 | F62: Население городское, электроплиты (в том числе по зонам суток) | G62: тыс кВт.ч. | H62: =SUM(I62:L62) -> 0 | M62: =SUM(N62:Q62) -> 0 | R62: 0
E63: 18.3 | F63: Население сельское (в том числе по зонам суток) | G63: тыс кВт.ч. | H63: 0 | M63: 0 | R63: 0
E64: 18.4 | F64: Садоводческие товарищества (в том числе по зонам суток) | G64: тыс кВт.ч. | H64: 0 | M64: 0 | R64: 0
E65: 18.5 | F65: Юр лица (осужденные) (в том числе по зонам суток) | G65: тыс кВт.ч. | H65: 0 | M65: 0 | R65: 0
E66: 18.6 | F66: Религиозные организации (втом числе по зонам суток) | G66: тыс кВт.ч. | H66: 0 | M66: 0 | R66: 0
E67: 18.7 | F67: Гаражи, сараи (в том числе по зонам суток) | G67: тыс кВт.ч. | H67: 0 | M67: 0 | R67: 0
E68: 18.8 | F68: Мощность потребителей, относящихся к населению и приравненным категориям | G68: МВт | H68: =SUM(I68:L68) -> 0 | M68: =SUM(N68:Q68) -> 0 | R68: =(H68+M68)/2 -> 0
E69: 19 | F69: Прочие потребители, всего | G69: тыс кВт.ч. | H69: =SUM(I69:L69) -> 0 | I69: =I71+I74 -> 0 | J69: =J71+J74 -> 0 | K69: 0 | L69: 0 | M69: =SUM(N69:Q69) -> 0 | N69: 0 | O69: 0 | P69: 0 | Q69: =Q71+Q74 -> 0 | R69: =H69+M69 -> 0
F70: Рассчитывающиеся по одноставочному тарифу
E71: 19.1 | F71: Полезный отпуск | G71: тыс кВт.ч. | H71: =SUM(I71:L71) -> 0 | M71: =SUM(N71:Q71) -> 0 | R71: =H71+M71 -> 0
E72: 19.2 | F72: Заявленная мощность | G72: МВт | H72: =SUM(I72:L72) -> 0 | M72: =SUM(N72:Q72) -> 0 | R72: =(H72+M72)/2 -> 0
F73: Рассчитывающиеся по двухставочному тарифу
E74: 20 | F74: Полезный отпуск | G74: тыс кВт.ч. | H74: =SUM(I74:L74) -> 0 | M74: =SUM(N74:Q74) -> 0 | R74: =H74+M74 -> 0
E75: 21 | F75: Заявленная мощность | G75: МВт | H75: =SUM(I75:L75) -> 0 | M75: =SUM(N75:Q75) -> 0 | R75: =(H75+M75)/2 -> 0
F77: Итого объем услуг, оказанных в зоне рассчетов по единым котловым тарифам
E79: 22 | F79: Полезный отпуск | G79: тыс кВт.ч. | H79: =SUM(I79:L79) -> 0 | I79: =I69+I60 -> 0 | J79: =J69+J60 -> 0 | K79: 0 | L79: 0 | M79: =SUM(N79:Q79) -> 0 | N79: 0 | O79: 0 | P79: =P69+P60 -> 0 | Q79: 0 | R79: =H79+M79 -> 0
E80: 23 | F80: Заявленная мощность | G80: МВт | H80: =SUM(I80:L80) -> 0 | I80: =I75+I68+I72 -> 0 | J80: =J75+J68+J72 -> 0 | K80: =K75+K68+K72 -> 0 | L80: =L75+L68+L72 -> 0 | M80: =SUM(N80:Q80) -> 0 | N80: =N75+N68+N72 -> 0 | O80: =O75+O68+O72 -> 0 | P80: =P75+P68+P72 -> 0 | Q80: =Q75+Q68+Q72 -> 0 | R80: =(H80+M80)/2 -> 0
F81: Потери э/э в зоне расчетов по единым котловым тарифам
E82: 24 | F82: Относимые на группу "Население"
E83: 24.1 | F83: Электроэнергия | G83: тыс кВт.ч. | H83: =SUM(I83:L83) -> 0 | M83: =SUM(N83:Q83) -> 0 | R83: =H83+M83 -> 0
E84: 24.2 | F84: Мощность | G84: МВт | H84: =SUM(I84:L84) -> 0 | M84: =SUM(N84:Q84) -> 0 | R84: =(H84+M84)/2 -> 0
E85: 25 | F85: Относимые на группу "Прочие"
E86: 25.1 | F86: Электроэнергия | G86: тыс кВт.ч. | H86: =SUM(I86:L86) -> 0 | M86: =SUM(N86:Q86) -> 0 | R86: =H86+M86 -> 0
E87: 25.2 | F87: Мощность | G87: МВт | H87: =SUM(I87:L87) -> 0 | M87: =SUM(N87:Q87) -> 0 | R87: =(H87+M87)/2 -> 0
F88: Тарифная выручка в зоне расчетов по единым котловым тарифам
E90: 26 | F90: Население | G90: тыс.руб. | H90: =SUM(I90:L90) -> 0 | I90: =SUM(I91:I97) -> 0 | J90: =SUM(J91:J97) -> 0 | K90: =SUM(K91:K97) -> 0 | L90: =SUM(L91:L97) -> 0 | M90: =SUM(N90:Q90) -> 0 | N90: =SUM(N91:N97) -> 0 | O90: =SUM(O91:O97) -> 0 | P90: =SUM(P91:P97) -> 0 | Q90: =SUM(Q91:Q97) -> 0 | R90: =H90+M90 -> 0
E91: 26.1 | F91: Население городское газовые плиты (в том числе по зонам суток) | G91: тыс.руб. | H91: =SUM(I91:L91) -> 0 | I91: =I47*I61 -> 0 | J91: 0 | K91: 0 | L91: 0 | M91: =SUM(N91:Q91) -> 0 | N91: =N47*N61 -> 0 | O91: 0 | P91: 0 | Q91: 0 | R91: =H91+M91 -> 0
E92: 26.2 | F92: Население городское, электроплиты (в том числе по зонам суток) | G92: тыс.руб. | H92: 0 | I92: 0 | J92: 0 | K92: 0 | L92: 0 | M92: 0 | N92: 0 | O92: 0 | P92: 0 | Q92: 0 | R92: 0
E93: 26.3 | F93: Население сельское (в том числе по зонам суток) | G93: тыс.руб. | H93: 0 | I93: 0 | J93: 0 | K93: 0 | L93: 0 | M93: 0 | N93: 0 | O93: 0 | P93: =P49*P63 -> 0 | Q93: 0 | R93: 0
E94: 26.4 | F94: Садоводческие товарищества (в том числе по зонам суток) | G94: тыс.руб. | H94: 0 | I94: 0 | J94: 0 | K94: 0 | L94: 0 | M94: 0 | N94: 0 | O94: 0 | P94: 0 | Q94: 0 | R94: 0
E95: 26.5 | F95: Юр лица (осужденные) (в том числе по зонам суток) | G95: тыс.руб. | H95: 0 | I95: 0 | J95: 0 | K95: 0 | L95: 0 | M95: 0 | N95: 0 | O95: 0 | P95: 0 | Q95: 0 | R95: 0
E96: 26.6 | F96: Религиозные организации (втом числе по зонам суток) | G96: тыс.руб. | H96: 0 | I96: 0 | J96: 0 | K96: 0 | L96: 0 | M96: 0 | N96: 0 | O96: 0 | P96: =P52*P66 -> 0 | Q96: 0 | R96: 0
E97: 26.7 | F97: Гаражи, сараи (в том числе по зонам суток) | G97: тыс.руб. | H97: 0 | I97: 0 | J97: 0 | K97: 0 | L97: 0 | M97: 0 | N97: 0 | O97: 0 | P97: 0 | Q97: 0 | R97: 0
E98: 27 | F98: Прочие потребители | G98: тыс.руб. | H98: =H99+H100 -> 0 | I98: 0 | J98: 0 | K98: 0 | L98: 0 | M98: 0 | N98: 0 | O98: 0 | P98: 0 | Q98: 0 | R98: 0
E99: 27.1 | F99: Одноставочный | G99: тыс.руб. | H99: =SUM(I99:L99) -> 0 | I99: =I71*I55 -> 0 | J99: =J71*J55 -> 0 | K99: =K71*K55 -> 0 | L99: =L71*L55 -> 0 | M99: =SUM(N99:Q99) -> 0 | N99: =N71*N55 -> 0 | O99: =O71*O55 -> 0 | P99: =P71*P55 -> 0 | Q99: =Q71*Q55 -> 0 | R99: 0
E100: 28 | F100: Двухставочный | G100: тыс.руб. | H100: =SUM(I100:L100) -> 0 | I100: =I101+I102 -> 0 | J100: =J101+J102 -> 0 | K100: =K101+K102 -> 0 | L100: =L101+L102 -> 0 | M100: =SUM(N100:Q100) -> 0 | N100: =N101+N102 -> 0 | O100: =O101+O102 -> 0 | P100: =P101+P102 -> 0 | Q100: =Q101+Q102 -> 0 | R100: 0
E101: 28.1 | F101: Ставка на содержание | G101: тыс.руб. | H101: =SUM(I101:L101) -> 0 | I101: =I56*I75*6/1000 -> 0 | J101: =J56*J75*6/1000 -> 0 | K101: =K56*K75*6/1000 -> 0 | L101: =L56*L75*6/1000 -> 0 | M101: =SUM(N101:Q101) -> 0 | N101: =N56*N75*6/1000 -> 0 | O101: =O56*O75*6/1000 -> 0 | P101: =P56*P75*6/1000 -> 0 | Q101: =Q56*Q75*6/1000 -> 0 | R101: 0
E102: 28.2 | F102: Ставка на потери | G102: тыс.руб. | H102: =SUM(I102:L102) -> 0 | I102: =I57*I74 -> 0 | J102: =J57*J74 -> 0 | K102: =K57*K74 -> 0 | L102: =L57*L74 -> 0 | M102: =SUM(N102:Q102) -> 0 | N102: =N57*N74 -> 0 | O102: =O57*O74 -> 0 | P102: =P57*P74 -> 0 | Q102: =Q57*Q74 -> 0 | R102: 0
E103: 29 | F103: Итого тарифная выручка | G103: тыс.руб. | H103: =H98+H90 -> 0 | I103: =I98+I90 -> 0 | J103: =J98+J90 -> 0 | K103: 0 | L103: 0 | M103: =M98+M90 -> 0 | N103: 0 | O103: 0 | P103: 0 | Q103: 0 | R103: =H103+M103 -> 0
F106: В зоне оплаты по идивидуальным тарифам на услуги по передаче электрической энергии
E108: 30 | F108: Экономически обоснованная выручка | G108: тыс.руб. | H108: =H20-H103 -> 0 | M108: =M20-M103 -> 0 | R108: =M108+H108 -> 0
E109: 31 | F109: НВВ на содержание электрических сетей | G109: тыс.руб. | H109: =H108-H110 -> 0 | M109: =M108-M110 -> 0 | R109: =M109+H109 -> 0
E110: 32 | F110: Затраты на оплату технологических потерь | G110: тыс.руб. | H110: =(H118-H29)*H39+H29*H40 -> 0 | M110: =(M118-M29)*M39+M29*M40 -> 0 | R110: =M110+H110 -> 0
F114: В зоне оплаты по индивидуальным тарифам на услуги по передаче э/э
F116: Балансовые показатели
E117: 33 | F117: Отпуск электрической энергии в сеть | G117: тыс кВт.ч. | H117: =H25-H79-H83-H86 -> 0 | M117: =M25-M79-M83-M86 -> 0 | R117: =M117+H117 -> 0
E118: 34 | F118: Потери электрической энергии | G118: тыс кВт.ч. | H118: =H28+H29-H83-H86 -> 0 | M118: =M28+M29-M83-M86 -> 0 | R118: =M118+H118 -> 0
E119: 35 | F119: Отпуск электрической энергии из сети | G119: тыс кВт.ч. | H119: =H32-H79-H83-H86 -> 0 | M119: =M32-M79-M83-M86 -> 0 | R119: =M119+H119 -> 0
E120: 36 | F120: Заявленная мощность потребителей | G120: МВт | H120: =H35-H68-H72-H75 -> 0 | M120: =M35-M68-M72-M75 -> 0 | R120: =R33-R80-R84-R87 -> 0
F123: Индивидуальные тарифы на услуги по передаче электрической энергии
E125: 37 | F125: Одноставочный тариф | G125: руб./кВт ч | H125: =IF(H117=0,0,H108/H117) -> 0 | M125: =IF(M117=0,0,M108/M117) -> 0
E126: 38 | F126: Двухставочный тариф
E127: 39 | F127: Ставка на содержание электрических сетей | G127: руб./МВТ мес | H127: =IFERROR(H109/H120/6*1000,0) -> 0 | M127: =IFERROR(M109/M120/6*1000,0) -> 0
E128: 40 | F128: Ставка на оплату технологического расхода (потерь) | G128: руб./МВт ч | H128: =IF(H117*1000=0,0,H110/H117*1000) -> 0 | M128: =IF(M117*1000=0,0,M110/M117*1000) -> 0
E129: 41
F130: Проверка сходимости НВВ
E131: 41 | F131: выручка по двухставочному минус выручка по одноставочному | G131: тыс.руб. | H131: =H127*H120*6/1000+H128*H117/1000-H125*H117 -> 0 | M131: =M127*M120*6/1000+M128*M117/1000-M125*M117 -> 0
E132: 42 | F132: выручка по двухставочному минус ЭО выручка | G132: тыс.руб. | H132: =H128*H117/1000+H127*H120*6/1000-H108 -> 0 | M132: =M128*M117/1000+M127*M120*6/1000-M108 -> 0
E133: 43 | F133: выручка по двухставочному минус ЭО выручка | G133: тыс.руб. | H133: =H125*H117-H108 -> 0 | M133: =M125*M117-M108 -> 0
E134: 44 | F134: выручка по тарифам минус расчетная выручка | G134: тыс.руб. | H134: =H108+H103-H20 -> 0 | M134: =M108+M103-M20 -> 0

Sheet ЭЗ (hidden)
A1: =IF(region_name<> "Пермский край","HIDDEN","VISIBLE") -> HIDDEN
G14: ="Экспертное заключение об установлении (корректировке) тарифов на услуги по передаче электрической энергии по сетям "&Титульный!E9&" на "&Титульный!E23&" год в рамках долгосрочного периода регулирования ("&Титульный!E25&" г.г.)" -> Экспертное заключение об установлении (корректировке) тарифов на услуги по передаче электрической энергии по сетям на год в рамках долгосрочного периода регулирования ( г.г.)
G16: I Сведения об организации:
G18: Наименование: | L18: =Титульный!E9 -> 0
G19: ИНН/КПП | L19: =Титульный!E13&" / "&Титульный!E14 -> /
G20: Реквизиты: | L20: =Титульный!E53 -> 0
G21: Ф.И.О. Руководителя | L21: =Титульный!E57 -> 0
G22: Уполномоченный по делу от организации: | L22: =Титульный!E65 -> 0
G24: II Информация о рассмотрении дела об установлении тарифов:
G26: Действующие тарифы установлены постановлением: | M26: дата | Q26: номер
G27: Дата представления документов в регулирующий орган: | M27: дата
G28: Приказ об открытии дела об установлении тарифов: | M28: дата | Q28: номер
G29: Дата начала и окончания экспертизы тарифов: | M29: начало | Q29: окончание
G30: Уполномоченный по делу:
G32: III Нормативно-правовые акты, применяемые при регулировании тарифов на услуги по передаче электрической энергии:
G34: 1. Федеральный закон Российской Федерации от 26.03.2003 № 35-ФЗ «Об электроэнергетике»;
G35: 2. Постановление Правительства Российской Федерации от 29.12.2011 № 1178 «О ценообразовании в области регулируемых цен (тарифов) в электроэнергетике»;
G36: 3. Постановление Правительства Российской Федерации от 28.02.2015 № 184 «Об отнесении владельцев объектов электросетевого хозяйства к территориальным сетевым организациям».
G37: 4. Постановление Правительства Российской Федерации от 31.12.2009 № 1220 «Об определении применяемых при установлении долгосрочных тарифов показателей надежности и качества поставляемых товаров и оказываемых услуг»;
G38: 5. Приказ Федеральной службы по тарифам России от 28.03.2013 № 313-э «Об утверждении Регламента установления цен (тарифов) и (или) их предельных уровней, предусматривающего порядок регистрации, принятия к рассмотрению и выдачи отказов в рассмотрении заявлений об установлении цен (тарифов) и (или) их предельных уровней и формы принятия решения органом исполнительной власти субъекта Российской Федерации в области государственного регулирования тарифов»;
G39: 6. Приказ Федеральной службы по тарифам России от 06.08.2004 № 20-э/2 «Об утверждении Методических указаний по расчету регулируемых тарифов и цен на электрическую (тепловую) энергию на розничном (потребительском) рынке»;
G40: 7. Приказ Федеральной службы по тарифам России от 17.02.2012 № 98-э «Об утверждении методических указаний по расчету тарифов на услуги по передаче электрической энергии, устанавливаемых с применением метода долгосрочной индексации необходимой валовой выручки»;
G41: 8. Приказ Федеральной службы по тарифам России от 26.10.2010 № 254-э/1 «Об утверждении Методических указаний по расчету и применению понижающих (повышающих) коэффициентов, позволяющих обеспечить соответствие уровня тарифов, установленных для организаций, осуществляющих регулируемую деятельность, уровню надежности и качества поставляемых товаров и оказываемых услуг»;
G42: 9. Приказ Министерства энергетики Российской Федерации от 14.10.2013 г. № 718 «Об утверждении методических указаний по расчету уровня надежности и качества поставляемых товаров и оказываемых услуг для организации по управлению Единой национальной (общероссийской) электрической сетью и территориальных сетевых организаций»;
G43: 10. Приказ Министерства энергетики Российской Федерации от 26.09.2017 № 887 «Об утверждении нормативов потерь электрической энергии при ее передаче по электрическим сетям территориальных сетевых организаций».
G45: IV Основные цели проведения экспертизы:
G47: ="1. Оценка экономической обоснованности затрат организации по передаче электрической энергии в "&Титульный!E23&" году;" -> 1. Оценка экономической обоснованности затрат организации по передаче электрической энергии в году;
G48: ="2. Определение тарифов на услуги по передаче электрической энергии, оказываемые организацией в "&Титульный!E23&" году, с учетом корректировки необходимой валовой выручки." -> 2. Определение тарифов на услуги по передаче электрической энергии, оказываемые организацией в году, с учетом корректировки необходимой валовой выручки.
G50: V Материалы используемые для проведения экспертизы:
G51: ="1. Отчет по статьям затрат, включенных в расчет тарифов на услуги по передаче электрической энергии на "&Титульный!E23-2&" год (с приложением подтверждающих документов);" -> 1. Отчет по статьям затрат, включенных в расчет тарифов на услуги по передаче электрической энергии на -2 год (с приложением подтверждающих документов);
G52: ="2. Договор на оказание услуг по передаче электрической энергии с "&Титульный!E32 -> 2. Договор на оказание услуг по передаче электрической энергии с
G53: 3. Договор на покупку электрической энергии c энергосбытовой организацией в целях компенсации потерь;
G54: 4. Список потребителей электрической энергии (субабонентов) с актами разграничения (границами раздела) балансовой принадлежности;
G55: 5. Уточненная однолинейная схема электроснабжения, выполненная в соответствии с техническими показателями электрических сетей по диапазонам напряжений, с актами разграничения (границами раздела) балансовой принадлежности и эксплуатационной ответственности с поставщиком электрической энергии (приложение к договору), значением питающего напряжения центра питания – подстанции (ПС) и количественными показателями выделенных участков электрических сетей, используемых для передачи электроэнергии конкретному потребителю (протяженность ЛЭП: ВЛ и КЛ в км., наименование одно- и двух трансформаторных ТП, трансформаторов собственных нужд (ТСН), количество масляных (вакуумных, элегазовых) выключателей и выключателей нагрузки, состоящих на балансе) в соответствии с формами П2.1, П2.2;
G56: 6. Расчет условных единиц согласно Методическим указаниям ФСТ России от 06.08.2004 № 20-э/2 (приложение 2, таблицы № П2.1, П2.2, П2.3);
G57: ="7. Баланс электроэнергии и мощности по форме № П1.4. и П1.5. Методических указаний, выполненный в соответствии с разъяснениями ФСТ России от 18.02.2005 № СН-570/14, согласованный с "&Титульный!E32 -> 7. Баланс электроэнергии и мощности по форме № П1.4. и П1.5. Методических указаний, выполненный в соответствии с разъяснениями ФСТ России от 18.02.2005 № СН-570/14, согласованный с
G58: 8. Данные по технической документации: характеристика электрических сетей (Таблица 1.1.), технические показатели (Таблица 1.2.), технические единицы ТП – 6-10/0,4 кВ (Таблица 1.3.), результаты расчета нормативных потерь электроэнергии в электрических сетях за расчетный период (Таблица 1.4.1.), расход электроэнергии токоприемниками собственных нужд (СН) подстанций (Таблица 1.4.2.);
G59: ="9. Бухгалтерский баланс и статистическая отчетность по регулируемым видам деятельности за "&Титульный!E23-2&" год (со всеми приложениями)" -> 9. Бухгалтерский баланс и статистическая отчетность по регулируемым видам деятельности за -2 год (со всеми приложениями)
G60: 10. Данные по расчету амортизации (расчет амортизационных отчислений, отчет об использовании амортизационных отчислений, копии приказа о проведении переоценки основных средств (в случае если переоценка проводилась), лицензии организации, осуществившей переоценку, договор на проведение переоценки, прочие обосновывающие документы);
G61: 11. Данные по расчету арендной платы (информация об амортизации и налоге на имущество по арендованному оборудованию);
G62: 12. Данные по расчету обязательных отчислений, платежей, налогов (расчет налогов, ставка налога на землю, уведомление о страховании от несчастных случаев и т.д.);
G63: 13. Данные по расчету прочих неподконтрольных расходов (с представлением подтверждающих документов).
G64: 14. Данные по расчету выпадающих доходов (с представлением подтверждающих документов);
G65: 15. Информация о соответствии критериям отнесения владельцев объектов электросетевого хозяйства к территориальным сетевым организациям
G67: VI Расчет тарифов произведен регулируемой организацией по формам нормативно-методических документов.
G69: VII Материалы, представленные организацией для установления тарифов на услуги по передаче электрической энергии, признаны достоверными.
G71: VIII Организация соответствует критериям отнесения владельцев объектов электросетевого хозяйства к территориальным сетевым организациям, утвержденным постановлением Правительства РФ от 28.02.2015 № 184:
G73: № | H73: Критерии отнесения владельцев объектов электросетевого хозяйства к ТСО | U73: Отметка о соответствии
G74: 1 | H74: Владение на праве собственности или на ином законном основании на срок не менее очередного расчетного периода регулирования силовыми трансформаторами, используемыми для осуществления регулируемой деятельности в административных границах субъекта РФ, суммарная установленная мощность которых составляет не менее 10 МВА.
G75: 2 | H75: Владение на праве собственности или на ином законном основании на срок не менее очередного расчетного периода регулирования линиями электропередачи (воздушными и (или) кабельными), используемыми для осуществления регулируемой деятельности в административных границах субъекта Российской Федерации, не менее 2 уровней напряжения из следующих уровней напряжения:
G76: 2.1 | H76: высокое напряжение (ВН) - 110 кВ и выше
G77: 2.2 | H77: среднее первое напряжение (СН1) - 35 кВ
G78: 2.3 | H78: среднее второе напряжение (СН2) - 1 - 20 кВ
G79: 2.4 | H79: низкое напряжение (НН) - ниже 1 кВ
G80: 3 | H80: Отсутствие за 3 предшествующих расчетных периода регулирования 3 фактов применения органами исполнительной власти субъектов РФ в области государственного регулирования тарифов понижающих коэффициентов, позволяющих обеспечить соответствие уровня тарифов, установленных для владельца объектов электросетевого хозяйства, уровню надежности и качества поставляемых товаров и оказываемых услуг, а также корректировки цен (тарифов), установленных на долгосрочный период регулирования, в случае представления владельцем объектов электросетевого хозяйства, для которого такие цены (тарифы) установлены, недостоверных отчетных данных, используемых при расчете фактических значений показателей надежности и качества поставляемых товаров и оказываемых услуг, или непредставления таких данных.
G81: 4 | H81: Наличие выделенного абонентского номера для обращений потребителей услуг по передаче электрической энергии и (или) технологическому присоединению. | U81: =Титульный!E41 -> 0
G82: 5 | H82: Наличие официального сайта в информационно-телекоммуникационной сети «Интернет». | U82: =Титульный!E43 -> 0
G84: IX Оценка финансового состояния организации:
G86: № п/п | H86: Наименование показателя | M86: Значения / динамика | Q86: Оценка предприятия | U86: Баллы
M87: Вне установленных нормативных границах / отрицательная динамика | Q87: В рамках рекомендуемых значений / положительная динамика
G89: 1 | H89: Коэффициент текущей ликвидности | M89: <2 | O89: 1 | Q89: <2 | S89: 2 | T89: 2 | U89: ='Оценка ликвидности'!P89 -> 0 | V89: =IF($U$89<2,2,1) -> 2 | W89: =IF($U$89<2,2,1) -> 2
G90: 2 | H90: Коэффициент быстрой ликвидности | I90: <1 | J90: 1 | K90: <1 | L90: 2 | M90: <1 | O90: 1 | Q90: <1 | S90: 2 | T90: 2 | U90: ='Оценка ликвидности'!P90 -> 0 | V90: =IF($U$90<1,2,1) -> 2 | W90: =IF($U$90<1,2,1) -> 2
G91: 3 | H91: Коэффициент абсолютной ликвидности | I91: <0,05-0,1 | J91: 1 | K91: <0,05-0,1 | L91: 2 | M91: <0,05-0,1 | O91: 1 | Q91: <0,05-0,1 | S91: 2 | T91: 2 | U91: ='Оценка ликвидности'!P91 -> 0 | V91: =IF($U$91<1,2,1) -> 2 | W91: =IF($U$91<1,2,1) -> 2
G92: 4 | H92: Доля собственных оборотных средств в покрытии запасов | I92: <0,5 | J92: 1 | K92: <0,5 | L92: 2 | M92: <0,5 | O92: 1 | Q92: <0,5 | S92: 2 | T92: 2 | U92: ='Оценка ликвидности'!P93 -> 0 | V92: =IF($U$92<0.5,2,1) -> 2 | W92: =IF($U$92<0.5,2,1) -> 2
G93: 5 | H93: Коэффициент покрытия запасов | I93: <1 | J93: 1 | K93: <1 | L93: 2 | M93: <1 | O93: 1 | Q93: <1 | S93: 2 | T93: 2 | U93: ='Оценка ликвидности'!P96 -> 0 | V93: =IF($U$93<1,2,1) -> 2 | W93: =IF($U$93<1,2,1) -> 2
G94: 6 | H94: Коэффициент концентрации собственного капитала (финансовой автономии) | I94: <0,5 | J94: 1 | K94: <0,5 | L94: 2 | M94: <0,5 | O94: 1 | Q94: <0,5 | S94: 2 | T94: 2 | U94: ='Оценка фин. уст'!R76 -> 0 | V94: =IF($U$94<0.5,2,1) -> 2 | W94: =IF($U$94<0.5,2,1) -> 2
G95: 7 | H95: Коэффициент финансовой зависимости | I95: <0 и >2 | J95: 1 | K95: <0 и >2 | L95: 2 | M95: <0 и >2 | O95: 1 | Q95: <0 и >2 | S95: 2 | T95: 2 | U95: ='Оценка фин. уст'!R77 -> 0 | V95: =IF(AND($U$95>2,$U$95<0),2,1) -> 1 | W95: =IF(AND($U$95>2,$U$95<0),2,1) -> 1
G96: 8 | H96: Коэффициент маневренности собственного капитала | I96: <0,5 | J96: 1 | K96: <0,5 | L96: 2 | M96: <0,5 | O96: 1 | Q96: <0,5 | S96: 2 | T96: 2 | U96: ='Оценка фин. уст'!R78 -> 0 | V96: =IF($U$96<0.5,2,1) -> 2 | W96: =IF($U$96<0.5,2,1) -> 2
G97: 9 | H97: Коэффициент задолженности | I97: <0 и >0,7 | J97: 1 | K97: <0 и >0,7 | L97: 2 | M97: <0 и >0,7 | O97: 1 | Q97: <0 и >0,7 | S97: 2 | T97: 2 | U97: ='Оценка фин. уст'!R83 -> 0 | V97: =IF($U$97<0.5,2,1) -> 2 | W97: =IF($U$97<0.5,2,1) -> 2
G98: 10 | H98: Оборачиваемость средств в расчетах | I98: ↓ ( - ) | J98: 1 | K98: ↑ ( + ) | L98: 2 | M98: ↓ ( - ) | O98: 1 | Q98: ↑ ( + ) | S98: 2 | T98: 2 | U98: ='Оценка дел. активность'!O80 -> 0 | V98: =IF($U$98>1,2,1) -> 1 | W98: =IF($U$98>1,2,1) -> 1
G99: 11 | H99: Период оборачиваемости запасов | I99: ↑ ( - ) | J99: 1 | K99: ↓ ( + ) | L99: 2 | M99: ↑ ( - ) | O99: 1 | Q99: ↓ ( + ) | S99: 2 | T99: 2 | U99: ='Оценка дел. активность'!O83 -> 0 | V99: =IF($U$99>1,2,1) -> 1 | W99: =IF($U$99>1,2,1) -> 1
G100: 12 | H100: Оборачиваемость кредиторской задолженности | I100: ↑ ( - ) | J100: 1 | K100: ↓ ( + ) | L100: 2 | M100: ↑ ( - ) | O100: 1 | Q100: ↓ ( + ) | S100: 2 | T100: 2 | U100: ='Оценка дел. активность'!O84 -> 0 | V100: =IF($U$100>1,2,1) -> 1 | W100: =IF($U$100>1,2,1) -> 1
G101: 13 | H101: Продолжительность операционного цикла | I101: ↑ ( - ) | J101: 1 | K101: ↓ ( + ) | L101: 2 | M101: ↑ ( - ) | O101: 1 | Q101: ↓ ( + ) | S101: 2 | T101: 2 | U101: ='Оценка дел. активность'!O85 -> 0 | V101: =IF($U$101>1,2,1) -> 1 | W101: =IF($U$101>1,2,1) -> 1
G102: 14 | H102: Оборачиваемость активов | I102: ↓ ( - ) | J102: 1 | K102: ↑ ( + ) | L102: 2 | M102: ↓ ( - ) | O102: 1 | Q102: ↑ ( + ) | S102: 2 | T102: 2 | U102: ='Оценка дел. активность'!O88 -> 0 | V102: =IF($U$102>1,2,1) -> 1 | W102: =IF($U$102>1,2,1) -> 1
G103: 15 | H103: Итого | J103: =SUM(J89:J102) -> 13 | L103: =SUM(L89:L102) -> 26 | O103: =SUM(O89:O102) -> 14 | S103: =SUM(S89:S102) -> 28 | W103: =SUM(W89:W102) -> 22
G107: =CONCATENATE(" X Отчет по статьям затрат, включенных в расчет тарифов на услуги по передаче электрической энергии на ",Титульный!E23-2," год, ", L18) -> X Отчет по статьям затрат, включенных в расчет тарифов на услуги по передаче электрической энергии на -2 год, 0
G109: № | H109: Статьи затрат | L109: Единицы измерения | M109: =god-2 -> -2 | P109: Отклонение | R109: Примечание
M110: Утверждено | N110: Факт | P110: нат. ед. | Q110: %
G111: I | H111: Натуральные показатели
G112: 1 | H112: Поступление электроэнергии в сеть, в том числе: | L112: млн.кВтч | M112: ='9 Тариф'!H18 -> 0 | N112: ='9 Тариф'!I18 -> 0 | P112: =N112-M112 -> 0 | Q112: =IF(M112=0,"",N112/M112) -> 
G113: 2 | H113: Нормативные потери1 | L113: млн.кВтч | M113: ='9 Тариф'!H20 -> 0 | N113: ='9 Тариф'!I20 -> 0 | O113: ='[3]9 Тариф'!J20 -> 0 | P113: =N113-M113 -> 0 | Q113: =IF(M113=0,"",N113/M113) -> 
H114: то же в % | L114: % | M114: ='9 Тариф'!H21 -> 0 | N114: ='9 Тариф'!I21 -> 0 | O114: ='[3]9 Тариф'!J21 -> 0 | P114: 0
G115: 3 | H115: Сальдо-переток, в том числе: | L115: млн.кВтч | M115: ='9 Тариф'!H33 -> 0 | N115: ='9 Тариф'!I33 -> 0 | O115: ='[3]9 Тариф'!J33 -> 0 | P115: 0
G116: 4 | H116: Заявленная мощность | L116: МВт | M116: ='9 Тариф'!H32 -> 0 | N116: ='9 Тариф'!I32 -> 0 | O116: ='[3]9 Тариф'!J32 -> 0 | P116: 0
G117: 5 | H117: Количество часов использования мощности | L117: час | M117: ='9 Тариф'!H19 -> 0 | N117: ='9 Тариф'!I19 -> 0 | P117: 0
G118: 6 | H118: Энергия на собственные нужды | L118: млн.кВтч | M118: ='9 Тариф'!H28 -> 0 | N118: ='9 Тариф'!I28 -> 0 | O118: ='[3]9 Тариф'!J28 -> 0 | P118: 0
G119: 7 | H119: Покупной тариф на нормативные потери | L119: руб./МВтч | M119: ='9 Тариф'!H44 -> 0 | N119: ='9 Тариф'!I44 -> 0 | O119: ='[3]9 Тариф'!J44 -> 0 | P119: 0
G120: 8 | H120: Численность персонала | L120: чел. | M120: ='16_Персонал'!I20 -> 0 | N120: ='16_Персонал'!K20 -> 0 | O120: ='[3]16_Персонал'!K20 -> 0 | P120: 0
G121: 9 | H121: Средняя заработная плата | L121: руб. | M121: =IFERROR(M126/M120/12*1000,0) -> 0 | N121: =IFERROR(N126/N120/12*1000,0) -> 0 | P121: 0
G122: 10 | H122: Количество активов | L122: у.е. | M122: ='8_Расчет НВВ '!I27 -> 0 | N122: ='8_Расчет НВВ '!L27 -> 0 | O122: ='[3]8_Расчет НВВ '!K27 -> 0 | P122: =N122-M122 -> 0
G123: II | H123: Подконтрольные расходы
G124: 11 | H124: Материалы | L124: тыс.руб. | M124: ='8_Расчет НВВ '!I35 -> 0 | N124: ='8_Расчет НВВ '!L35 -> 0 | P124: =N124-M124 -> 0 | Q124: =IF(N124=0,"",N124/M124) -> 
G125: 12 | H125: Работы и услуги производственного характера | L125: тыс.руб. | M125: ='8_Расчет НВВ '!I37 -> 0 | N125: ='8_Расчет НВВ '!L37 -> 0 | P125: =N125-M125 -> 0
G126: 13 | H126: Затраты на оплату труда | L126: тыс.руб. | M126: ='8_Расчет НВВ '!I38 -> 0 | N126: ='8_Расчет НВВ '!L38 -> 0 | P126: 0
G127: 14 | H127: Прочие расходы, в том числе: | L127: тыс.руб. | M127: ='8_Расчет НВВ '!I39 -> 0 | N127: ='8_Расчет НВВ '!L39 -> 0 | P127: 0
G128: 14.1. | H128: ремонт основных средств | L128: тыс.руб. | M128: ='8_Расчет НВВ '!I40 -> 0 | N128: ='8_Расчет НВВ '!L40 -> 0 | P128: 0
G129: 14.2. | H129: работы и услуги сторонних организаций: | L129: тыс.руб. | M129: ='8_Расчет НВВ '!I41 -> 0 | N129: ='8_Расчет НВВ '!L41 -> 0 | P129: 0
G130: 14.2.1. | H130: услуги связи | L130: тыс.руб. | M130: ='8_Расчет НВВ '!I42 -> 0 | N130: ='8_Расчет НВВ '!L42 -> 0 | P130: 0
G131: 14.2.2. | H131: затраты на охрану и пожарную безопасность | L131: тыс.руб. | M131: ='8_Расчет НВВ '!I43 -> 0 | N131: ='8_Расчет НВВ '!L43 -> 0 | P131: 0
G132: 14.2.3. | H132: затраты на юридические и информационные услуги | L132: тыс.руб. | M132: ='8_Расчет НВВ '!I44 -> 0 | N132: ='8_Расчет НВВ '!L44 -> 0 | P132: 0
G133: 14.2.4. | H133: транспортные услуги | L133: тыс.руб. | M133: ='8_Расчет НВВ '!I46 -> 0 | N133: ='8_Расчет НВВ '!L46 -> 0 | P133: 0
G134: 14.2.5. | H134: прочие услуги сторонних организаций | L134: тыс.руб. | M134: ='8_Расчет НВВ '!I47 -> 0 | N134: ='8_Расчет НВВ '!L47 -> 0 | P134: 0
G135: 14.3. | H135: расходы на командировки и представительские | L135: тыс.руб. | M135: ='8_Расчет НВВ '!I48 -> 0 | N135: ='8_Расчет НВВ '!L48 -> 0 | P135: 0
G136: 14.4. | H136: расходы на подготовку кадров | L136: тыс.руб. | M136: ='8_Расчет НВВ '!I49 -> 0 | N136: ='8_Расчет НВВ '!L49 -> 0 | P136: 0
G137: 14.5. | H137: расходы на обеспечение нормальных условий труда | L137: тыс.руб. | M137: ='8_Расчет НВВ '!I50 -> 0 | N137: ='8_Расчет НВВ '!L50 -> 0 | P137: 0
G138: 14.6. | H138: расходы на страхование | L138: тыс.руб. | M138: ='8_Расчет НВВ '!I51 -> 0 | N138: ='8_Расчет НВВ '!L51 -> 0 | P138: 0
G139: 14.7. | H139: другие прочие расходы | L139: тыс.руб. | M139: ='8_Расчет НВВ '!I54 -> 0 | N139: ='8_Расчет НВВ '!L54 -> 0 | P139: 0
G140: 15 | H140: Затраты из прибыли, в том числе: | L140: тыс.руб. | M140: ='8_Расчет НВВ '!I57 -> 0 | N140: ='8_Расчет НВВ '!L57 -> 0 | P140: 0
G141: 15.1. | H141: прибыль на социальное развитие | L141: тыс.руб. | M141: ='8_Расчет НВВ '!I58 -> 0 | N141: ='8_Расчет НВВ '!L58 -> 0 | P141: 0
G142: 15.2. | H142: прибыль на прочие цели | L142: тыс.руб. | M142: ='36_Прибыль'!H36 -> 0 | N142: ='36_Прибыль'!J36 -> 0 | P142: =N142-M142 -> 0 | Q142: =IF(N142=0,"",N142/M142) -> 
G143: 16 | H143: Итого подконтрольных расходов | L143: тыс.руб. | M143: ='8_Расчет НВВ '!I64 -> 0 | N143: ='8_Расчет НВВ '!L64 -> 0 | P143: =N143-M143 -> 0 | Q143: =IF(N143=0,"",N143/M143) -> 
G145: № | H145: Статьи затрат | L145: Единицы измерения | M145: =god-2 -> -2 | P145: Отклонение | R145: Примечание
M146: Утверждено | N146: Факт | P146: нат. ед. | Q146: %
G147: III | H147: Неподконтрольные расходы
G148: 17 | H148: Электроэнергия на хозяйственные нужды | L148: тыс.руб. | M148: ='8_Расчет НВВ '!I92 -> 0 | N148: ='8_Расчет НВВ '!L92 -> 0 | P148: =N148-M148 -> 0 | Q148: =IF(N148=0,"",N148/M148) -> 
G149: 18 | H149: Теплоэнергия | L149: тыс.руб. | M149: ='8_Расчет НВВ '!I91 -> 0 | N149: ='8_Расчет НВВ '!L91 -> 0 | P149: =N149-M149 -> 0
G150: 19 | H150: Аренда и лизинг | L150: тыс.руб. | M150: ='8_Расчет НВВ '!I69 -> 0 | N150: ='8_Расчет НВВ '!L69 -> 0 | P150: 0
G151: 20 | H151: Налоги, в том числе: | L151: тыс.руб. | M151: ='8_Расчет НВВ '!I76 -> 0 | N151: ='8_Расчет НВВ '!L76 -> 0 | P151: 0
G152: 20.1. | H152: плата за землю | L152: тыс.руб. | M152: ='8_Расчет НВВ '!I78 -> 0 | N152: ='8_Расчет НВВ '!L78 -> 0 | P152: 0
G153: 20.2. | H153: налог на имущество | L153: тыс.руб. | M153: ='8_Расчет НВВ '!I77 -> 0 | N153: ='8_Расчет НВВ '!L77 -> 0 | P153: 0
G154: 20.3. | H154: прочие налоги и сборы | L154: тыс.руб. | M154: ='8_Расчет НВВ '!I80 -> 0 | N154: ='8_Расчет НВВ '!L80 -> 0 | P154: 0
G155: 21 | H155: Отчисления на социальные нужды | L155: тыс.руб. | M155: ='8_Расчет НВВ '!I81 -> 0 | N155: ='8_Расчет НВВ '!L81 -> 0 | P155: 0
G156: 22 | H156: Прочие неподконтрольные расходы | L156: тыс.руб. | M156: ='8_Расчет НВВ '!I85 -> 0 | N156: ='8_Расчет НВВ '!L85 -> 0 | P156: 0
G157: 23 | H157: Амортизация | L157: тыс.руб. | M157: ='8_Расчет НВВ '!I90 -> 0 | N157: ='8_Расчет НВВ '!L90 -> 0 | P157: 0
G158: 24 | H158: Выпадающие доходы (избыток средств) | L158: тыс.руб. | M158: ='8_Расчет НВВ '!I105 -> 0 | N158: ='8_Расчет НВВ '!L105 -> 0 | P158: 0
G159: 25 | H159: Прибыль на капитальные вложения | L159: тыс.руб. | M159: ='36_Прибыль'!H28 -> 0 | N159: ='36_Прибыль'!J28 -> 0 | P159: 0
G160: 26 | H160: Налог на прибыль | L160: тыс.руб. | M160: ='8_Расчет НВВ '!I83 -> 0 | N160: ='8_Расчет НВВ '!L83 -> 0 | O160: ='[3]8_Расчет НВВ '!K83 -> 0 | P160: 0
G161: 27 | H161: Итого неподконтрольных расходов | L161: тыс.руб. | M161: ='8_Расчет НВВ '!I93 -> 0 | N161: ='8_Расчет НВВ '!L93 -> 0 | P161: 0
G162: IV | H162: Стоимость электрической энергии приобретаемой в целях компенсации потерь | L162: тыс.руб. | M162: ='9 Тариф'!H45 -> 0 | N162: ='9 Тариф'!I45 -> 0 | P162: 0
G163: V | H163: Необходимая валовая выручка, в том числе: | L163: тыс.руб. | M163: ='8_Расчет НВВ '!I111 -> 0 | P163: 0
G164: 28 | H164: Себестоимость (без учета выпадающих расходов, корректировок и потерь э/э) | L164: тыс.руб. | M164: ='8_Расчет НВВ '!I94 -> 0 | P164: 0
G165: 30 | H165: Затраты на содержание 1 у.е. | L165: тыс.руб./1.у.е. | M165: =IFERROR((M164-M157-M150)/M122,0) -> 0 | N165: =IFERROR((N164-N150-N157)/N122,0) -> 0 | P165: 0
G166: 31 | H166: Среднеотпускной тариф | L166: руб./МВтч | M166: =IFERROR(M163/M115,0) -> 0 | N166: =IFERROR(N163/N115,0) -> 0 | P166: 0
G168: ="XI Пересмотр (корректировка) тарифов на услуги по передаче электрической энергии на "&Титульный!E23&" год" -> XI Пересмотр (корректировка) тарифов на услуги по передаче электрической энергии на год
G170: № | H170: Статьи затрат | L170: Единицы измерения | M170: =god-1 -> -1 | O170: =god -> 0
M171: Утверждено | O171: Утверждено | R171: Предложение организации | S171: Корректировка РСТ | Y171: ="Изменение "&god&" / "&god-1&" в среднем за год в %" -> Изменение / -1 в среднем за год в %
M172: всего | N172: в "котле" | O172: всего | Q172: в "котле" | S172: всего | T172: 1 пол. | U172: 2 пол. | V172: в "котле" | W172: 1 пол. | X172: 2 пол.
G173: I | H173: Натуральные показатели
G174: 1 | H174: Поступление электроэнергии в сеть, в том числе: | L174: млн.кВтч | M174: ='9 Тариф'!K18 -> 0 | N174: =ROUND(M174*$W$206,5) -> 0 | Q174: =ROUND(O174*$W$206,5) -> 0 | R174: ='9 Тариф'!N18 -> 0 | S174: ='9 Тариф'!P18 -> 0 | T174: ='9 Тариф'!Q18 -> 0 | U174: ='9 Тариф'!R18 -> 0 | V174: =ROUND(S174*$P$206,5) -> 0 | W174: =IFERROR(ROUND(V174*$J$206,5),0) -> 0 | X174: =IFERROR(ROUND(V174*$K$206,5),0) -> 0 | Y174: =IF(M174=0,"",S174/M174) -> 
G175: 2 | H175: Нормативные потери1 | L175: млн.кВтч | M175: ='9 Тариф'!K20 -> 0 | N175: =ROUND(M175*$W$206,5) -> 0 | Q175: =ROUND(O175*$W$206,5) -> 0 | R175: ='9 Тариф'!N20 -> 0 | S175: ='9 Тариф'!P20 -> 0 | T175: ='9 Тариф'!Q20 -> 0 | U175: ='9 Тариф'!R20 -> 0 | V175: =ROUND(S175*$P$206,5) -> 0 | W175: =IFERROR(ROUND(V175*$J$206,5),0) -> 0 | X175: =IFERROR(ROUND(V175*$K$206,5),0) -> 0 | Y175: =IF(M175=0,"",S175/M175) -> 
H176: то же в % | L176: % | M176: =IFERROR(M175/M174*100,0) -> 0 | N176: =IFERROR(N175/N174*100,0) -> 0 | Q176: =IFERROR(Q175/Q174*100,0) -> 0 | R176: 0 | S176: 0 | T176: 0 | U176: 0 | V176: 0 | W176: 0 | X176: 0 | Y176: =IFERROR(IF(M176=0,"",S176/M176),0) -> 
G177: 3 | H177: Сальдо-переток 2 | L177: млн.кВтч | M177: ='9 Тариф'!K33 -> 0 | N177: =ROUND(M177*$W$206,5) -> 0 | Q177: =ROUND(O177*$W$206,5) -> 0 | R177: ='9 Тариф'!N33 -> 0 | S177: ='9 Тариф'!P33 -> 0 | T177: ='9 Тариф'!Q33 -> 0 | U177: ='9 Тариф'!R33 -> 0 | V177: =IFERROR(V176/V175*100,0) -> 0 | W177: =IFERROR(W176/W175*100,0) -> 0 | X177: =IFERROR(X176/X175*100,0) -> 0
G178: 4 | H178: Заявленная мощность 3 | L178: МВт | M178: ='9 Тариф'!K32 -> 0 | N178: =ROUND(M178*$W$207,5) -> 0 | Q178: =ROUND(O178*$W$207,5) -> 0 | R178: ='9 Тариф'!N32 -> 0 | S178: ='9 Тариф'!P32 -> 0 | T178: ='9 Тариф'!Q32 -> 0 | U178: ='9 Тариф'!R32 -> 0 | V178: =ROUND(S178*P207,5) -> 0 | W178: =ROUND(SUM(M201:R201)*$P$207/6,5) -> 0 | X178: =ROUND(SUM(S201:X201)*$P$207/6,5) -> 0
G179: 5 | H179: Количество часов использования мощности | L179: час | M179: =IFERROR(M177/M178*1000,0) -> 0 | N179: =IFERROR(N177/N178*1000,0) -> 0 | O179: =IFERROR(O177/O178*1000,0) -> 0 | Q179: =IFERROR(Q177/Q178*1000,0) -> 0 | R179: 0 | S179: 0 | T179: 0 | U179: 0 | V179: 0 | W179: 0 | X179: 0 | Y179: =IFERROR(IF(M179=0,"",S179/M179),0) -> 
G180: 6 | H180: Энергия на собственные нужды | L180: млн.кВтч | M180: ='9 Тариф'!K28 -> 0 | N180: =ROUND(M180*$W$206,5) -> 0 | Q180: =ROUND(O180*$W$206,5) -> 0 | R180: ='9 Тариф'!N28 -> 0 | S180: ='9 Тариф'!P28 -> 0 | T180: ='9 Тариф'!Q28 -> 0 | U180: ='9 Тариф'!R28 -> 0 | V180: =ROUND(S180*$P$206,5) -> 0 | W180: =IFERROR(ROUND(V180*$J$206,5),0) -> 0 | X180: =IFERROR(ROUND(V180*$K$206,5),0) -> 0 | Y180: =IF(M180=0,"",S180/M180) -> 
G181: 7 | H181: Покупной тариф на нормативные потери 4 | L181: руб./МВтч | M181: ='9 Тариф'!K44 -> 0 | N181: =M181 -> 0 | Q181: =O181 -> 0 | R181: ='9 Тариф'!N44 -> 0 | S181: ='9 Тариф'!P44 -> 0 | T181: ='9 Тариф'!Q44 -> 0 | U181: ='9 Тариф'!R44 -> 0 | V181: =S181 -> 0 | W181: =T181 -> 0 | X181: =U181 -> 0
G183: 1 | H183: =CONCATENATE("Уровень потерь учтен в соответствии с пунктом 38 Основ ценообразования в области регулируемых цен (тарифов) в электроэнергетике,", "утвержденных постановлением Правительства РФ от 29.12.2011 № 1178. Уровень потерь является долгосрочным параметром регулирования и установлен на весь долгосрочный период ",Титульный!E25," годы") -> Уровень потерь учтен в соответствии с пунктом 38 Основ ценообразования в области регулируемых цен (тарифов) в электроэнергетике,утвержденных постановлением Правительства РФ от 29.12.2011 № 1178. Уровень потерь является долгосрочным параметром регулирования и установлен на весь долгосрочный период годы
G184: 2 | H184: ="Баланс на "&god&" год согласован с "&Титульный!E32 -> Баланс на год согласован с
G185: 3 | H185: ="Баланс на "&god&" год согласован с "&Титульный!E32 -> Баланс на год согласован с
G186: 4 | H186: ="Утвержденный тариф на потери электрической энергии с учетом сбытовой надбавки гарантирующего поставщика " -> Утвержденный тариф на потери электрической энергии с учетом сбытовой надбавки гарантирующего поставщика
H187: от | K187: №
G189: ="Факт "&Титульный!E23-2&" год" -> Факт -2 год | L189: Единицы измерения | M189: январь | N189: февраль | O189: март | P189: апрель | Q189: май | R189: июнь | S189: июль | T189: август | U189: сентябрь | V189: октябрь | W189: ноябрь | X189: декабрь | Y189: год
G190: Полезный отпуск электрической энергии | L190: млн.кВтч | Y190: =SUM(M190:X190) -> 0
G191: Полезный отпуск электрической мощности | L191: МВт | Y191: =SUM(M191:X191)/12 -> 0
G192: Нормативные потери | L192: млн.кВтч | Y192: =SUM(M192:X192) -> 0
G194: ="Ожидаемое "&Титульный!E23-1&" год" -> Ожидаемое -1 год | L194: Единицы измерения | M194: январь | N194: февраль | O194: март | P194: апрель | Q194: май | R194: июнь | S194: июль | T194: август | U194: сентябрь | V194: октябрь | W194: ноябрь | X194: декабрь | Y194: год
G195: Полезный отпуск электрической энергии | L195: млн.кВтч | Y195: =SUM(M195:X195) -> 0
G196: Полезный отпуск электрической мощности | L196: МВт | Y196: =SUM(M196:X196)/12 -> 0
G197: Нормативные потери | L197: млн.кВтч | Y197: =SUM(M197:X197) -> 0
G199: ="План "&Титульный!E23&" год" -> План год | L199: Единицы измерения | M199: январь | N199: февраль | O199: март | P199: апрель | Q199: май | R199: июнь | S199: июль | T199: август | U199: сентябрь | V199: октябрь | W199: ноябрь | X199: декабрь | Y199: год
G200: Полезный отпуск электрической энергии | L200: млн.кВтч | Y200: =SUM(M200:X200) -> 0
G201: Полезный отпуск электрической мощности | L201: МВт | Y201: =SUM(M201:X201)/12 -> 0
G202: Нормативные потери | L202: млн.кВтч | Y202: =SUM(M202:X202) -> 0
G204: =god&" год (план всего)" -> год (план всего) | M204: =god&" год (план в части котла)" -> год (план в части котла) | T204: ="справочно: доля в котле в "&god-1&" году" -> справочно: доля в котле в -1 году
G205: Доля | J205: 1 пол. | K205: 2 пол. | M205: Доля в "котле" | P205: % | Q205: 1 пол. | R205: 2 пол. | T205: Доля в "котле" | W205: %
G206: по энергии | J206: =IFERROR(SUM(M200:R200)/Y200,0) -> 0 | K206: =IFERROR(1-J206,0) -> 1 | M206: по энергии, млн. кВтч | P206: ='9 Тариф'!P35 -> 1 | Q206: =W177 -> 0 | R206: =X177 -> 0 | T206: по энергии
G207: по мощности | J207: =IFERROR((SUM(M201:R201)/6)/Y201,0) -> 0 | K207: =IFERROR((SUM(S201:X201)/6)/Y201,0) -> 0 | M207: по мощности, МВт | Q207: =W178 -> 0 | R207: =X178 -> 0 | T207: по мощности
G210: Расчет коэффициента индексации | L210: Единицы измерения | M210: 2019 | O210: =god -> 0
M211: Утверждено | O211: Утверждено | Q211: Корректировка
G212: Инфляция | L212: % | M212: ='8_Расчет НВВ '!O25 -> 0 | Q212: ='8_Расчет НВВ '!Q25 -> 0
G213: Индекс эффективности операционных расходов | L213: % | M213: ='8_Расчет НВВ '!O26 -> 0 | Q213: ='8_Расчет НВВ '!Q26 -> 0
G214: Количество активов | L214: у.е. | M214: ='8_Расчет НВВ '!O27 -> 0 | Q214: ='8_Расчет НВВ '!Q27 -> 0
G215: Индекс изменения количества активов | L215: % | M215: ='8_Расчет НВВ '!O28 -> 0 | Q215: ='8_Расчет НВВ '!Q28 -> 0
G216: Коэффициент эластичности затрат по росту активов | M216: ='8_Расчет НВВ '!O29 -> 1 | Q216: ='8_Расчет НВВ '!Q29 -> 0.75
G217: Итого коэффициент индексации | M217: =M212*(1+M216*M215)*(1-M213) -> 0 | O217: =O212*(1+O216*O215)*(1-O213) -> 0 | Q217: =Q212*(1+Q216*Q215)*(1-Q213) -> 0
G220: № | H220: Статьи затрат | L220: Единицы измерения | M220: =god-1 -> -1 | O220: =god -> 0 | Y220: ="Изменение "&god&" / "&god-1&" в среднем за год в %" -> Изменение / -1 в среднем за год в %
M221: Утверждено | O221: Утверждено | R221: Корректировка РСТ
M222: всего | N222: в "котле" | O222: всего | Q222: в "котле" | R222: год | T222: 1 пол. | U222: 2 пол. | V222: в "котле" | W222: 1 пол. | X222: 2 пол.
G223: II | H223: Подконтрольные расходы*
G224: 8 | H224: Материалы | L224: тыс.руб. | M224: ='8_Расчет НВВ '!N35 -> 0 | N224: =ROUND(M224*$W$207,5) -> 0 | Q224: =ROUND(O224*$W$207,5) -> 0
G225: 9 | H225: Работы и услуги производственного характера | L225: тыс.руб. | M225: ='8_Расчет НВВ '!N37 -> 0 | N225: =ROUND(M225*$W$207,5) -> 0 | Q225: =ROUND(O225*$W$207,5) -> 0
G226: 10 | H226: Затраты на оплату труда | L226: тыс.руб. | M226: ='8_Расчет НВВ '!N38 -> 0 | N226: 0 | Q226: 0
G227: 11 | H227: Прочие расходы, в том числе: | L227: тыс.руб. | M227: ='8_Расчет НВВ '!N39 -> 0 | N227: =N228+N229+N235+N236+N237+N238+N239 -> 0 | Q227: =Q228+Q229+Q235+Q236+Q237+Q238+Q239 -> 0
G228: 11.1. | H228: ремонт основных средств | L228: тыс.руб. | M228: ='8_Расчет НВВ '!N40 -> 0 | N228: 0 | Q228: 0
G229: 11.2. | H229: работы и услуги сторонних организаций: | L229: тыс.руб. | M229: ='8_Расчет НВВ '!N41 -> 0 | N229: =SUM(N230:N234) -> 0 | Q229: =O229*$W$207 -> 0
G230: 11.2.1. | H230: услуги связи | L230: тыс.руб. | M230: ='8_Расчет НВВ '!N42 -> 0 | N230: 0 | Q230: 0
G231: 11.2.2. | H231: затраты на охрану и пожарную безопасность | L231: тыс.руб. | M231: ='8_Расчет НВВ '!N43 -> 0 | N231: 0 | Q231: 0
G232: 11.2.3. | H232: затраты на юридические и информационные услуги | L232: тыс.руб. | M232: ='8_Расчет НВВ '!N44 -> 0 | N232: 0 | Q232: 0
G233: 11.2.4. | H233: транспортные услуги | L233: тыс.руб. | M233: ='8_Расчет НВВ '!N45 -> 0 | N233: 0 | Q233: 0
G234: 11.2.5. | H234: прочие услуги сторонних организаций | L234: тыс.руб. | M234: ='8_Расчет НВВ '!N46 -> 0 | N234: 0 | Q234: 0
G235: 11.3. | H235: расходы на командировки и представительские | L235: тыс.руб. | M235: ='8_Расчет НВВ '!N47 -> 0 | N235: 0 | Q235: 0
G236: 11.4. | H236: расходы на подготовку кадров | L236: тыс.руб. | M236: ='8_Расчет НВВ '!N48 -> 0 | N236: 0 | Q236: 0
G237: 11.5. | H237: расходы на обеспечение нормальных условий труда | L237: тыс.руб. | M237: ='8_Расчет НВВ '!N49 -> 0 | N237: 0 | Q237: 0
G238: 11.6. | H238: расходы на страхование | L238: тыс.руб. | M238: ='8_Расчет НВВ '!N50 -> 0 | N238: 0 | Q238: =ROUND(O238*$W$207,5) -> 0
G239: 11.7. | H239: другие прочие расходы | L239: тыс.руб. | M239: ='8_Расчет НВВ '!N54 -> 0 | N239: 0 | Q239: 0
G240: 12 | H240: Затраты из прибыли, в том числе: | L240: тыс.руб. | M240: ='8_Расчет НВВ '!N57 -> 0 | N240: 0 | Q240: =O240*$W$207 -> 0
G241: 12.1. | H241: прибыль на социальное развитие | L241: тыс.руб. | M241: ='8_Расчет НВВ '!N58 -> 0 | N241: 0 | Q241: =ROUND(O241*$W$207,5) -> 0
G242: 13 | H242: Итого подконтрольных расходов | L242: тыс.руб. | M242: =M224+M225+M226+M227+M240 -> 0 | N242: =N224+N225+N226+N227+N240 -> 0 | O242: =O224+O225+O226+O227+O240 -> 0 | Q242: =Q224+Q225+Q226+Q227+Q240 -> 0 | R242: ='8_Расчет НВВ '!Q64 -> 0 | T242: ='8_Расчет НВВ '!R64 -> 0 | U242: ='8_Расчет НВВ '!S64 -> 0 | V242: ='8_Расчет НВВ '!T64 -> 0 | W242: ='8_Расчет НВВ '!U64 -> 0 | X242: ='8_Расчет НВВ '!V64 -> 0 | Y242: =IFERROR(R242/M242,0) -> 0
G244: * Подконтрольные расходы скорректированы с учетом изменения количества активов организации и индекса потребительских цен в соответствии с прогнозом социально-экономического развития РФ.
G246: № | H246: Статьи затрат | L246: Единицы измерения | M246: =god-1 -> -1 | O246: =god -> 0
... 50 more rows

Sheet 11_Корректировка НВВ (hidden)
L1: =IFERROR(IF(REPORT_OWNER="Версия организации","HIDDEN","VISIBLE"),0) -> HIDDEN
F9: Список листов
F10: Расчет корректировки НВВ
F15: № п/п | G15: Показатель | J15: Единица измерения | K15: =god& " год предложение ТСО" -> год предложение ТСО | L15: =god&" версия регулятора" -> версия регулятора | N15: Комментарий
F20: 1 | G20: В инд =∆ПР+∆НР+ПО+∆НВВсод | J20: тыс.руб. | K20: =K21+K30+K33+K39 -> 0 | L20: =L21+L30+L33+L39 -> 0
F21: 1.1 | G21: ∆ПР - корректировка подконтрольных | J21: тыс.руб. | K21: =K22*(1-K24)*(1+K25)*(1+K26*K27)-K23 -> 0 | L21: =L22*(1-L24)*(1+L25)*(1+L26*L27)-L23 -> 0
F22: 1.1.1 | G22: ="Подконтрольные расходы план за "&(god-3)&" год" -> Подконтрольные расходы план за -3 год | J22: тыс.руб. | L22: =K22 -> 0
F23: 1.1.2 | G23: ="Подконтрольные расходы план за "&(god-2)&" год" -> Подконтрольные расходы план за -2 год | J23: тыс.руб. | K23: ='8_Расчет НВВ '!I64 -> 0 | L23: =K23 -> 0
F24: 1.1.3 | G24: Индекс эффективности | J24: % | K24: ='8_Расчет НВВ '!I26 -> 0 | L24: =K24 -> 0
F25: 1.1.4 | G25: ="ИПЦ факт на "&(god-2)&" год" -> ИПЦ факт на -2 год | J25: % | K25: ='8_Расчет НВВ '!J25 -> 0 | L25: ='8_Расчет НВВ '!K25 -> 0
F26: 1.1.5 | G26: Коэффициент эластичности | J26: % | K26: ='8_Расчет НВВ '!N29 -> 0.75 | L26: ='8_Расчет НВВ '!K26 -> 0
F27: 1.1.6 | G27: ="ИКА факт на "&(god-2)&" год" -> ИКА факт на -2 год | J27: - | K27: =IF(K29=0,0,(K28-K29)/K29) -> 0 | L27: =IF(L29=0,0,(L28-L29)/L29) -> 0
F28: 1.1.7 | G28: ="УЕ факт на "&(god-2)&" год" -> УЕ факт на -2 год | J28: у.е. | K28: ='7_Свод УЕ '!L36 -> 0 | L28: ='7_Свод УЕ '!L37 -> 0
F29: 1.1.8 | G29: ="УЕ факт на "&(god-3)&" год" -> УЕ факт на -3 год | J29: у.е. | K29: ='7_Свод УЕ '!L34 -> 0 | L29: =K29 -> 0
F30: 1.2 | G30: ∆НР - корректировка неподконтрольных | J30: тыс.руб. | K30: =K31-K32 -> 0 | L30: =L31-L32 -> 0
F31: 1.2.1 | G31: ="Неподконтрольные расходы факт за "&(god-2)&" год" -> Неподконтрольные расходы факт за -2 год | J31: тыс.руб. | K31: ='8_Расчет НВВ '!J93-K46 -> 0 | L31: =K31 -> 0
F32: 1.2.2 | G32: ="Неподконтрольные расходы план за "&(god-2)&" год" -> Неподконтрольные расходы план за -2 год | J32: тыс.руб. | K32: ='8_Расчет НВВ '!I93-K47 -> 0 | L32: ='8_Расчет НВВ '!I93-L47 -> 0
F33: 1.3 | G33: ПО - корректировка с учетом изменения ПО и цен на э/э | J33: тыс.руб. | K33: =((K34-K35)*K36*K37+K35*(K36-K38)*K37)/1000 -> 0 | L33: =((L34-L35)*L36*L37+L35*(L36-L38)*L37)/1000 -> 0
F34: 1.3.1 | G34: ="Фактический объем отпуска э/э в сеть "&(god-2)&" год" -> Фактический объем отпуска э/э в сеть -2 год | J34: млн.кВтч | K34: ='9 Тариф'!I18 -> 0 | L34: =K34 -> 0
F35: 1.3.2 | G35: ="Прогнозный объем отпуска э/э в сеть "&(god-2)&" год" -> Прогнозный объем отпуска э/э в сеть -2 год | J35: млн.кВтч | K35: ='9 Тариф'!H18 -> 0 | L35: =K35 -> 0
F36: 1.3.3 | G36: ="Фактическая цена покупки потерь "&(god-2)&" год" -> Фактическая цена покупки потерь -2 год | J36: руб/МВтч | L36: =K36 -> 0
F37: 1.3.4 | G37: ="Уровень технологического расхода (потерь) э/э (утв.) "&(god-2)&" год" -> Уровень технологического расхода (потерь) э/э (утв.) -2 год | J37: % | L37: =K37 -> 0
F38: 1.3.5 | G38: ="Прогнозная цена покупки потерь "&(god-2)&" год" -> Прогнозная цена покупки потерь -2 год | J38: руб/МВтч | L38: =K38 -> 0
F39: 1.4 | G39: ∆НВВсод - Корректировка НВВ по доходам от осуществления регулируемой деятельности | J39: тыс.руб. | K39: =K40-K41-K42 -> 0 | L39: =L40-L41-L42 -> 0
F40: 1.4.1 | G40: ="Установленная НВВ в части содержания электрических сетей, "&(god-2)&" год" -> Установленная НВВ в части содержания электрических сетей, -2 год | J40: тыс.руб. | K40: ='8_Расчет НВВ '!I111 -> 0 | L40: =K40 -> 0
F41: 1.4.2 | G41: ="Фактическая НВВ в части содержания электрических сетей, "&(god-2)&" год" -> Фактическая НВВ в части содержания электрических сетей, -2 год | J41: тыс.руб. | L41: =K41 -> 0
F42: 1.4.3 | G42: Недополученная товарная выручка по зависящим от ТСО причинам | J42: тыс.руб. | L42: =K42 -> 0
F43: 2 | G43: Выполнение инвестиционной программы (B корр.ИП) | J43: тыс.руб. | K43: =IFERROR(K44-K48,0) -> 0 | L43: =IFERROR(L44-L48,0) -> 0
F44: 2.1 | G44: ="Корректировка неисполнения ИПР за "&(god-2)&" год" -> Корректировка неисполнения ИПР за -2 год | J44: тыс.руб. | K44: =IF(K47=0,0,K45*(K46/K47-1)) -> 0 | L44: =IF(L47=0,0,L45*(L46/L47-1)) -> 0
F45: 2.1.1 | G45: ="Расчетная величина собственных средств РО для финансирования ИПР, настановленная на "&(god-2)&" год" -> Расчетная величина собственных средств РО для финансирования ИПР, настановленная на -2 год | J45: тыс.руб. | L45: =K45 -> 0
F46: 2.1.2 | G46: ="Фактический размер финансирования ИПР, "&(god-2)&" год" -> Фактический размер финансирования ИПР, -2 год | J46: тыс.руб. | K46: ='40_ИПР факт '!J18 -> 0 | L46: ='40_ИПР факт '!L18 -> 0
F47: 2.1.3 | G47: ="Плановый размер финансирования ИПР, "&(god-2)&" год" -> Плановый размер финансирования ИПР, -2 год | J47: тыс.руб. | K47: ='40_ИПР факт '!H18 -> 0 | L47: =K47 -> 0
F48: 2.2 | G48: ="Учтенная при расчете тарифов на "&(god-1)&" год корректировка НВВ на "&(god-2)&" год по результатам 9 месяцев" -> Учтенная при расчете тарифов на -1 год корректировка НВВ на -2 год по результатам 9 месяцев | J48: тыс.руб. | L48: =K48 -> 0
F49: 3 | G49: Корректировка НВВ по исполнению показателей надежности и качества | J49: тыс.руб. | L49: =K49 -> 0
F50: 4 | G50: Корректировка НВВ (по методике 98-э) | J50: тыс.руб. | K50: =K20+K44+K49 -> 0 | L50: =L20+L44+L49 -> 0

Sheet 12_Сырье и материалы (hidden)
Y1: =IFERROR(IF(REPORT_OWNER="Версия организации","HIDDEN","VISIBLE"),0) -> HIDDEN
F9: Список листов
F10: Расходы на сырье и материалы
F17: № п/п | G17: Предмет договора, описание закупаемых сырья и материалов | K17: Наименование контрагента по договору | O17: Доп. Соглашение (номер) | T17: Ссылка на документ | U17: Наименование контрагента | V17: =god-2 & " год (утверждено)" -> -2 год (утверждено) | W17: =god-2 & " , факт (отражен в отчете об исполнении сметы расходов)" -> -2 , факт (отражен в отчете об исполнении сметы расходов) | X17: =god-2 & " факт, подтвержденный первичными документами (договоры/акты и пр.)" -> -2 факт, подтвержденный первичными документами (договоры/акты и пр.) | Y17: =god-2 & " факт версия регулятора" -> -2 факт версия регулятора | Z17: =god-2 & " факт, подтвержденный бухгалтерскими документами (оборотно-сальдовые ведомости, карточки счетов)" -> -2 факт, подтвержденный бухгалтерскими документами (оборотно-сальдовые ведомости, карточки счетов) | AC17: =god-1& " год (утверждено)" -> -1 год (утверждено) | AD17: Объем материалов | AE17: Цена | AF17: =god & ", предложение ТСО" -> , предложение ТСО | AJ17: Комментарии** (согласно примечаниям к таблице)
Z18: Всего | AA18: Прямые расходы | AB18: Косвенные общепроизводственные расходы, отнесенные на деятельность по передаче э/э
V19: тыс.руб. | W19: тыс.руб. | X19: тыс.руб. | Y19: тыс.руб. | Z19: тыс.руб. | AA19: тыс.руб. | AB19: тыс.руб. | AC19: тыс.руб. | AD19: шт, м, л | AE19: тыс.руб. | AF19: тыс.руб.
F23: 1 | G23: Материалы для эксплуатации (в том числе выполнение ремонтных работ хозяйственным способом), Всего, в том числе: | V23: =SUM(V25,V28,V31) -> 0 | W23: =W25+W28+W31 -> 0 | X23: =X25+X28+X31 -> 0 | Y23: =SUBTOTAL(9,Y25:Y33) -> 0 | Z23: =SUM(Z25,Z28,Z31) -> 0 | AA23: =SUM(AA25,AA28,AA31) -> 0 | AB23: =SUM(AB25,AB28,AB31) -> 0 | AC23: =SUM(AC25,AC28,AC31) -> 0 | AF23: =AF25+AF28+AF31 -> 0
F25: 1.1 | G25: Вспомогательные материалы для ремонтно-эксплуатационных нужд (РЭН) | W25: =SUM(W26:W27) -> 0 | X25: =SUM(X26:X27) -> 0 | Y25: =SUM(Y26:Y27) -> 0 | Z25: =SUM(AA25:AB25) -> 0 | AF25: =SUM(AF26:AF27) -> 0
F26: 1.1.0
G27: Добавить группу затрат
F28: 1.2 | G28: Приборы, инструменты для РЭН | W28: =SUM(W29:W30) -> 0 | X28: =SUM(X29:X30) -> 0 | Y28: =SUBTOTAL(9,Y29:Y30) -> 0 | Z28: =SUM(AA28:AB28) -> 0 | AF28: =SUM(AF29:AF30) -> 0
F29: 1.2.0
G30: Добавить группу затрат
F31: 1.3 | G31: Прочие материалы для эксплуатации | W31: =SUM(W32:W33) -> 0 | X31: =SUM(X32:X33) -> 0 | Y31: =SUBTOTAL(9,Y32:Y33) -> 0 | Z31: =SUM(AA31:AB31) -> 0 | AF31: =SUM(AF32:AF33) -> 0
F32: 1.3.0
G33: Добавить группу затрат
F34: 2 | G34: Горюче-смазочные материалы | W34: =SUM(W35:W36) -> 0 | X34: =SUM(X35:X36) -> 0 | Y34: =SUBTOTAL(9,Y35:Y36) -> 0 | Z34: =SUM(AA34:AB34) -> 0 | AF34: =SUM(AF35:AF36) -> 0
F35: 2.1.0
G36: Добавить группу затрат
F37: 3 | G37: Основные средства до 40 тыс.руб., Всего, в том числе: | I37: 0 | V37: =SUM(V38,V41) -> 0 | W37: =SUM(W38,W41) -> 0 | X37: =SUM(X38,X41) -> 0 | Y37: =SUBTOTAL(9,Y38:Y43) -> 0 | Z37: =SUM(Z38,Z41) -> 0 | AC37: =SUM(AC38,AC41) -> 0 | AF37: =SUM(AF38,AF41) -> 0
F38: 3.1 | G38: Приобретение оргтехники | I38: 0 | W38: =SUM(W39:W40) -> 0 | X38: =SUM(X39:X40) -> 0 | Y38: =SUBTOTAL(9,Y39:Y40) -> 0 | Z38: =SUM(AA38:AB38) -> 0 | AF38: =SUM(AF39:AF40) -> 0
F39: 3.1.0
G40: Добавить группу затрат
F41: 3.2 | G41: Прочие основные средства до 40 тыс.руб. | W41: =SUM(W42:W43) -> 0 | X41: =SUM(X42:X43) -> 0 | Y41: =SUBTOTAL(9,Y42:Y43) -> 0 | Z41: =SUM(AA41:AB41) -> 0 | AF41: =SUM(AF42:AF43) -> 0
F42: 3.2.0
G43: Добавить группу затрат
A44: HIDDEN
A45: HIDDEN
A46: HIDDEN
A47: HIDDEN
A48: HIDDEN
A49: HIDDEN
A50: HIDDEN
A51: HIDDEN
A52: HIDDEN
A53: HIDDEN
F54: 4 | G54: Итого | V54: =SUM(V23,V34,V37,V44) -> 0 | W54: 0 | X54: 0 | Y54: 0 | Z54: 0 | AA54: 0 | AB54: 0 | AC54: 0 | AF54: =SUM(AF23,AF34,AF37,AF44) -> 0

Sheet modMaterials (hidden)

Sheet 13_РПР Ремонт (hidden)
V1: =IFERROR(IF(REPORT_OWNER="Версия организации","HIDDEN","VISIBLE"),0) -> HIDDEN | AC1: HIDDEN | AD1: HIDDEN
F8: Список листов
F10: Расходы на оплату работ (услуг) производственного характера, расходы на ремонт основных средств
Y14: -
F15: № п/п | G15: Предмет договора, характер выполненных/планируемых к выполнению работ | K15: Наименование контрагента по договору | O15: Доп. Соглашение (номер) | T15: Ссылка на документ | U15: =god-2 & " год (утверждено)" -> -2 год (утверждено) | V15: =god-2 & " факт, версия регулятора" -> -2 факт, версия регулятора | W15: =god-2&" , факт (отражен в отчете об исполнении сметы расходов за "&god-2&" год)" -> -2 , факт (отражен в отчете об исполнении сметы расходов за -2 год) | X15: =god-2&" факт, подтвержденный первичными документами (договоры/акты и пр.)" -> -2 факт, подтвержденный первичными документами (договоры/акты и пр.) | Y15: =god-2&" факт, подтвержденный бухгалтерскими документами (оборотно-сальдовые ведомости, карточки счетов)" -> -2 факт, подтвержденный бухгалтерскими документами (оборотно-сальдовые ведомости, карточки счетов) | AE15: =god-1&" , утверждено версия ТСО" -> -1 , утверждено версия ТСО | AF15: =god&" , предложение ТСО" -> , предложение ТСО | AH15: Комментарии**
Y16: Всего | Z16: Прямые расходы | AA16: Косвенные общепроизводственные расходы, отнесенные на деятельность по передаче э/э | AB16: Фактический процент распределения расходов на деятельность по передаче э/э
U18: тыс.руб. | V18: тыс.руб. | W18: тыс.руб. | X18: тыс.руб. | Y18: тыс.руб. | Z18: тыс.руб. | AA18: тыс.руб. | AB18: % | AE18: % | AF18: тыс.руб.
F23: 1 | G23: Работы и услуги производственного характера, Всего: | I23: 0 | U23: =SUM(U25,U28,U31) -> 0 | V23: =SUM(V25,V28,V31) -> 0 | W23: =SUM(W25,W28,W31) -> 0 | X23: =SUBTOTAL(9,X25:X33) -> 0 | Y23: =SUM(Y25,Y28,Y31) -> 0 | Z23: =SUM(Z25,Z28,Z31) -> 0 | AA23: =SUM(AA25,AA28,AA31) -> 0 | AE23: =SUM(AE25,AE28,AE31) -> 0 | AF23: =SUM(AF25,AF28,AF31) -> 0
F25: 1.1 | G25: Оперативное и техническое обслуживание объектов ЭСХ | I25: 0 | V25: =SUM(V26:V27) -> 0 | W25: =SUM(W26:W27) -> 0 | X25: =SUBTOTAL(9,X26:X27) -> 0 | Y25: =SUM(Z25:AA25)+AC25 -> 0 | AE25: =SUM(AE26:AE27) -> 0 | AF25: =SUM(AF26:AF27) -> 0
F26: 1.1.0
G27: Добавить группу затрат
F28: 1.2 | G28: Проведение испытаний и измерений | I28: 0 | V28: =SUM(V29:V30) -> 0 | W28: =SUM(W29:W30) -> 0 | X28: =SUBTOTAL(9,X29:X30) -> 0 | Y28: =SUM(Z28:AA28)+AC28 -> 0 | AE28: =SUM(AE29:AE30) -> 0 | AF28: =SUM(AF29:AF30) -> 0
F29: 1.2.0
G30: Добавить группу затрат
F31: 1.3 | G31: Прочие работы и услуги производственного характера | I31: 0 | U31: =SUM(U32:U33) -> 0 | V31: =SUM(V32:V33) -> 0 | W31: =SUM(W32:W33) -> 0 | X31: =SUBTOTAL(9,X32:X33) -> 0 | Y31: =SUM(Z31:AA31)+AC31 -> 0 | AE31: =SUM(AE32:AE33) -> 0 | AF31: =SUM(AF32:AF33) -> 0
F32: 1.3.0
G33: Добавить группу затрат
F34: 2 | G34: Ремонт основных средств (способ выполнения ремонтных работ: подрядный) Всего, в том числе: | I34: 0 | U34: =SUM(U35,U38,U41) -> 0 | V34: 0 | W34: 0 | X34: 0 | Y34: 0 | Z34: 0 | AA34: 0 | AE34: =SUM(AE35,AE38,AE41) -> 0 | AF34: =SUM(AF35,AF38,AF41) -> 0
F35: 2.1 | G35: Текущий ремонт | I35: 0 | V35: 0 | W35: 0 | X35: 0 | Y35: =SUM(Z35:AA35)+AC35 -> 0 | AE35: =SUM(AE36:AE37) -> 0 | AF35: =SUM(AF36:AF37) -> 0
F36: 2.1.1 | G36: Ремонт ЭСХ текущий ремонт | I36: 0 | Y36: ='14_Ремонты ЭСХ'!U23 -> 0 | Z36: 0 | AA36: 0 | AE36: ='14_Ремонты ЭСХ'!AA23 -> 0 | AF36: ='14_Ремонты ЭСХ'!AB23 -> 0
G37: Добавить группу затрат
F38: 2.2 | G38: Капитальный ремонт | I38: 0 | V38: 0 | W38: 0 | X38: 0 | Y38: =SUM(Z38:AA38)+AC38 -> 0 | AE38: =SUM(AE39:AE40) -> 0 | AF38: =SUM(AF39:AF40) -> 0
F39: 2.2.1 | G39: Ремонт ЭСХ капитальный ремонт | I39: 0 | Y39: ='14_Ремонты ЭСХ'!U26 -> 0 | Z39: 0 | AA39: 0 | AE39: ='14_Ремонты ЭСХ'!AA26 -> 0 | AF39: ='14_Ремонты ЭСХ'!AB26 -> 0
G40: Добавить группу затрат
F41: 2.3 | G41: Аварийный ремонт | I41: 0 | V41: 0 | W41: 0 | X41: 0 | Y41: =SUM(Z41:AA41)+AC41 -> 0 | AE41: =SUM(AE42:AE43) -> 0 | AF41: =SUM(AF42:AF43) -> 0
F42: 2.3.1 | G42: Ремонт ЭСХ | I42: 0 | Y42: ='14_Ремонты ЭСХ'!U29 -> 0 | Z42: 0 | AA42: 0 | AE42: ='14_Ремонты ЭСХ'!AA29 -> 0 | AF42: ='14_Ремонты ЭСХ'!AB29 -> 0
G43: Добавить группу затрат
G46: Примечания:
G47: * При указании затрат по отдельным актам, не следует указывать их сумму в строке договора по избежание задвоения
G48: ="**Указать комментарий по фактически завершенному периоду "&Титульный!E23-2&" / по плановому периоду "&Титульный!E23&" год" -> **Указать комментарий по фактически завершенному периоду -2 / по плановому периоду год
G49: 1) в случае отличия факта, отраженного в смете затрат от показателей, подтвержденных бухгалтерскими документами - указать обоснование

Sheet modRPR_Repair (hidden)

Sheet 14_Ремонты ЭСХ (hidden)
R1: =IFERROR(IF(REPORT_OWNER="Версия организации","HIDDEN","VISIBLE"),0) -> HIDDEN | Y1: HIDDEN | Z1: HIDDEN
F9: Список листов
F10: Расходы на ремонт объектов ЭСХ выполняемых хозяйственным способом
U14: -
F15: № п/п | G15: Наименование основного средства (группы ОС) | H15: Ссылка на документ с обоснованием необходимостью проведения ремонта | I15: Инвентарный номер | J15: Вид объекта сетевого хозяйства (КЛЭП, ВЛЭП, Подстанция, прочее) | K15: Уровень напряжения, кВ | L15: Дата последнего капитального ремонта | M15: Предмет договора, характер выполненных/планируемых к выполнению работ | N15: Договоры/доп. соглашения/ при заполнении факта дополнительно - акты выполненных работ | O15: Дата начала очередного ремонта | P15: Дата окончания очередного ремонта | Q15: =god -2&", утверждено версия ТСО" -> -2, утверждено версия ТСО | R15: =god -2&", факт, версия регулятора" -> -2, факт, версия регулятора | S15: =god -2&", факт (отражен в отчете об исполнении сметы расходов)" -> -2, факт (отражен в отчете об исполнении сметы расходов) | T15: =god -2&" факт, подтвержденный первичными документами (договоры/акты и пр.)" -> -2 факт, подтвержденный первичными документами (договоры/акты и пр.) | U15: =god-2&" факт, подтвержденный бухгалтерскими документами (оборотно-сальдовые ведомости, карточки счетов)" -> -2 факт, подтвержденный бухгалтерскими документами (оборотно-сальдовые ведомости, карточки счетов) | AA15: =god-1&" , утверждено версия ТСО" -> -1 , утверждено версия ТСО | AB15: =god&" , предложение ТСО" -> , предложение ТСО | AE15: Комментарии*
U16: Всего | V16: Прямые расходы | W16: Косвенные общепроизводственные расходы, отнесенные на деятельность по передаче э/э | X16: Фактический процент распределения расходов на деятельность по передаче э/э
Q18: тыс.руб. | R18: тыс.руб. | S18: тыс.руб. | T18: тыс.руб. | U18: тыс.руб. | V18: тыс.руб. | W18: тыс.руб. | X18: % | AA18: тыс.руб. | AB18: тыс.руб.
F23: 1 | G23: Текущий ремонт | S23: =SUM(S24:S25) -> 0 | T23: =SUM(T24:T25) -> 0 | U23: =SUM(V23:W23)+Y23 -> 0 | AB23: =SUM(AB24:AB25) -> 0
F24: 1.0
G25: Добавить ОС
F26: 2 | G26: Капитальный ремонт | S26: =SUM(S27:S28) -> 0 | T26: =SUM(T27:T28) -> 0 | U26: =SUM(V26:W26)+Y26 -> 0 | AB26: =SUM(AB27:AB28) -> 0
F27: 2.0
G28: Добавить ОС
A29: HIDDEN | F29: 3 | G29: Аварийный ремонт | S29: =SUM(S30:S31) -> 0 | T29: =SUM(T30:T31) -> 0 | U29: =SUM(V29:W29)+Y29 -> 0 | AB29: =SUM(AB30:AB31) -> 0
A30: HIDDEN | F30: 3.0
A31: HIDDEN | G31: Добавить ОС
F33: Примечания:
F35: 1) в случае отличия факта, отраженного в смете затрат от показателей, подтвержденных бухгалтерскими документами - указать обоснование

Sheet modESX_Repair (hidden)

Sheet 15_Информация по ТО (hidden)
Q1: Договор подряда
F9: Список листов
F10: ="Информация по организации оперативного и технического обслуживания объектов электросетевого хозяйства за "&god-2&" год " -> Информация по организации оперативного и технического обслуживания объектов электросетевого хозяйства за -2 год
F19: Электросетевые объекты (собственные, арендованные, по договорам лизинга) | M19: Организация оперативного и технического обслуживания объектов электросетевого хозяйства (собственные силы/договор подряда)
F20: № п/п | G20: Наименование объекта | H20: Инвентарный номер | I20: Адрес расположения объекта | J20: № и дата договора аренды/лизинга | K20: Арендодатель | L20: Срок действия договора (с учетом доп.соглашений) | M20: Собственные силы/ договор подряда | N20: Объем у.е. оборудования, обслуживаемого по договору | O20: № и дата договора | P20: Срок действия договора (с учетом доп.соглашений) | Q20: Предмет договора | R20: Контрагент
F26: 1 | G26: Собственные объекты | N26: =SUM(N27:N28) -> 0
F27: 1.0
G28: Добавить строку
F29: 2 | G29: Арендованные объекты | N29: =SUM(N30:N31) -> 0
F30: 2.0
G31: Добавить строку
F32: 3 | G32: Объекты по договору лизинга | N32: =SUM(N33:N34) -> 0
F33: 3.0
G34: Добавить строку
F35: 4 | G35: Итого собственными силами | N35: =SUMIF(M27:M40,"собственные силы",N27:N40) -> 0
F36: 5 | G36: Итого по договорам подряда | N36: =SUMIF(M27:M39,"договор подряда",N27:N39) -> 0
F37: 6 | G37: Итого | N37: =SUM(N26,N29,N32) -> 0

Sheet modInformation_TO (hidden)

Sheet modStaff (hidden)

Sheet 16_Персонал (hidden)
K1: =IFERROR(IF(REPORT_OWNER="Версия организации","HIDDEN","VISIBLE"),0) -> HIDDEN | M1: VISIBLE
I8: =IF(god="","Не определено",god+3) -> Не определено | J8: =IF(god="","Не определено",god+3) -> Не определено | K8: =IF(god="","Не определено",god+3) -> Не определено | L8: =IF(god="","Не определено",god+4) -> Не определено | M8: =IF(god="","Не определено",god+4) -> Не определено
F9: Список листов
F10: Затраты на оплату труда
P12: Комментарии и примечания (не будут загружены в БД)
F13: № п/п | G13: Показатели | H13: Единица измерения | I13: =god-2&" год утверждено" -> -2 год утверждено | J13: =god-2&", факт (отражен в отчете об исполнении сметы расходов за "&god-2&" год)" -> -2, факт (отражен в отчете об исполнении сметы расходов за -2 год) | K13: =god-2&", факт версия регулятора " -> -2, факт версия регулятора | L13: =god-1&" год утверждено" -> -1 год утверждено | M13: =god&" год предложение" -> год предложение
F15: 1 | G15: ЧИСЛЕННОСТЬ
F16: 1.1 | G16: Численность | H16: чел.
F17: 1.2 | G17: Численность ППП | H17: чел.
F19: 1.3 | G19: Численность на вводы по нормативу | H19: чел.
F20: 1.3 | G20: Численность, принятая для расчёта | H20: чел.
F21: 2 | G21: СРЕДНЯЯ ЗАРПЛАТА
F22: 2.1 | G22: Тарифная ставка рабочего 1 разряда | H22: руб.
F23: 2.2 | G23: Дефлятор по заработной плате | H23: %
F24: 2.3 | G24: Тарифная ставка рабочего 1 разряда с учётом дефлятора | H24: руб. | J24: =J22*J23 -> 0 | K24: =K22*K23/100 -> 0 | M24: =M22*M23 -> 0
F25: 2.4 | G25: Средняя ступень оплаты труда
F26: 2.5 | G26: Тарифный коэффициент, соответствующий ступени по оплате труда
F27: 2.6 | G27: Среднемесячная тарифная ставка ППП | H27: руб. | J27: =J24*J26 -> 0 | K27: =K24*K26 -> 0 | M27: =M24*M26 -> 0
F28: 2.7 | G28: Выплаты, связанные с режимом работы, с условиями труда 1 работника:
G29: процент выплаты | H29: %
G30: сумма выплат | H30: руб. | J30: =(J$27*J29/100) -> 0 | K30: =K27*K29 / 100 -> 0 | M30: =M27*M29 / 100 -> 0 | N30: sum
F31: 2.8 | G31: Текущее премирование:
G32: процент выплаты | H32: %
G33: сумма выплат | H33: руб. | J33: =(J$27*J32/100) -> 0 | K33: =(K27+K30)*K32/100 -> 0 | M33: =(M27+M30)*M32/100 -> 0 | N33: sum
F34: 2.9 | G34: Вознаграждение за выслугу лет:
G35: процент выплаты | H35: %
G36: сумма выплат | H36: руб. | J36: =(J$27*J35/100) -> 0 | K36: =K27*K35/100 -> 0 | M36: =M27*M35/100 -> 0 | N36: sum
F37: 2.10 | G37: Выплаты по итогам года:
G38: процент выплаты | H38: %
G39: сумма выплат | H39: руб. | J39: =(J$27*J38/100) -> 0 | K39: =(K27*K38/100) -> 0 | M39: =(M27*M38/100) -> 0 | N39: sum
F40: 2.11
G41: процент выплаты | H41: %
G42: сумма выплат | H42: руб. | J42: =(J$27*J41/100) -> 0 | K42: =(K$27*K41/100) -> 0 | M42: =(M$27*M41/100) -> 0 | N42: sum
G43: Добавить выплаты
F44: 3 | G44: Итого среднемесячная оплата труда на 1 работника | H44: руб. | J44: =SUMIF($N28:$N43,$N44,J28:J43)+J27 -> 0 | K44: =SUMIF($N28:$N43,$N44,K28:K43)+K27 -> 0 | M44: =SUMIF($N28:$N43,$N44,M28:M43)+M27 -> 0 | N44: sum
F45: 4 | G45: Расчет средств на оплату труда ППП (включенного в себестоимость) | H45: тыс. руб. | J45: =J44/1000*J20*J50 -> 0 | K45: =K44/1000*K20*K50 -> 0 | M45: =M44/1000*M20*M50 -> 0
F46: 4.1 | G46: Льготный проезд к месту отдыха | H46: тыс.руб.
F47: 4.2 | G47: По постановлению №1206 от 03.11.94 | H47: тыс.руб.
F48: 4.3 | G48: Итого средства на оплату труда непромышленного персонала | H48: тыс.руб. | J48: =J44*(J16-J17)*J50/1000+J46+J47 -> 0 | K48: =K44*(K16-K17)*K50/1000+K46+K47 -> 0 | M48: =M44*(M16-M17)*M50/1000+M46+M47 -> 0
F49: 4.4 | G49: Расчет по денежным выплатам
G50: Количество месяцев в периоде регулирования
F51: 5 | G51: Денежные выплаты на 1 работника | H51: руб./чел.
F52: 6 | G52: Итого по денежным выплатам | H52: тыс.руб. | J52: =(J51/1000)*J20*J50 -> 0 | K52: =(K51/1000)*K20*K50 -> 0 | M52: =(M51/1000)*M20*M50 -> 0
F53: 7 | G53: Итого средства на оплату труда ППП | H53: тыс.руб. | J53: =J52+J48+J45 -> 0 | K53: =K52+K48+K45 -> 0 | M53: =M52+M48+M45 -> 0

Sheet modPpr (hidden)

Sheet TECHSHEET (hidden)
A1: REGIONS
A2: Кемеровская область | E2: XML_MR_MO_OKTMO_LIST_TAG_NAMES | K2: POSSIBLE_PERIOD_LENGTH | L2: YEAR | N2: TYPE_RENT | O2: TYPE_DOC_RENT | P2: STATUS_CONTRACT | Q2: STATUS_CONTRACT_REESTR
A3: Ленинградская область | E3: NSRF | K3: 1 | L3: 2014 | N3: собственность | O3: Договор аренды | P3: новый | Q3: да
A4: Пермский край | E4: MR_NAME | K4: 3 | L4: 2015 | N4: аренда | O4: Договор субаренды | P4: расторгнут | Q4: нет
A5: Республика Крым | E5: OKTMO_MR_NAME | K5: 4 | L5: 2016 | N5: лизинг | P5: действующий | Q5: получен отказ в регистрации
A6: Республика Хакасия | E6: MO_NAME | K6: 5 | L6: 2017
A7: Тверская область | E7: OKTMO_NAME | L7: 2018
A8: Ульяновская область | E8: TYPE | K8: POSSIBLE_PERIODS_1 | L8: 2019
A9: Челябинская область | E9: SAX_PARSER_FEATURE | K9: =FIRST_PERIOD_IN_LT -> 0 | L9: 2020 | N9: OWNERSHIP_LIST | O9: logic
A10: Чувашская Республика | E10: NO | L10: 2021 | N10: аренда | O10: да
K11: POSSIBLE_PERIODS_3 | L11: 2022 | N11: лизинг | O11: нет
E12: YES_NO | K12: =FIRST_PERIOD_IN_LT -> 0 | L12: 2023 | N12: собственность
E13: да | K13: =FIRST_PERIOD_IN_LT+1 -> 1 | L13: 2024 | N13: строительство
E14: нет | K14: =FIRST_PERIOD_IN_LT+2 -> 2 | L14: 2025 | N14: Хоз. Ведение
L15: 2026 | N15: Оп. Управление
E16: MONTH_LIST | K16: POSSIBLE_PERIODS_4 | L16: 2027 | N16: безвозмез. Пользование
E17: Январь | K17: =FIRST_PERIOD_IN_LT -> 0 | L17: 2028 | N17: Концессионное соглашение
E18: Февраль | K18: =FIRST_PERIOD_IN_LT+1 -> 1 | L18: 2029
E19: Март | K19: =FIRST_PERIOD_IN_LT+2 -> 2 | L19: 2030
E20: Апрель | K20: =FIRST_PERIOD_IN_LT+3 -> 3 | L20: 2031 | N20: LEVEL_VOLTAGE
E21: Май | L21: 2032 | N21: ВН
E22: Июнь | K22: POSSIBLE_PERIODS_5 | L22: 2033 | N22: СН1
E23: Июль | K23: =FIRST_PERIOD_IN_LT -> 0 | L23: 2034 | N23: СН2
E24: Август | K24: =FIRST_PERIOD_IN_LT+1 -> 1 | N24: НН
E25: Сентябрь | K25: =FIRST_PERIOD_IN_LT+2 -> 2 | N25: нет
E26: Октябрь | K26: =FIRST_PERIOD_IN_LT+3 -> 3
E27: Ноябрь | K27: =FIRST_PERIOD_IN_LT+4 -> 4
E28: Декабрь | N28: TYPE_OBJECT
K29: POSSIBLE_PERIODS_6 | N29: КЛЭП
K30: 2020 | N30: ВЛЭП
K31: 2021 | N31: Подстанция
K32: 2022 | N32: Прочее ЭСХ
K33: 2023 | N33: Прочее не ЭСХ
E34: XML_LOCATION_LIST_TAG_NAMES | F34: XML_LINK_TO_DOC | K34: 2024
E35: OKTMO_LOCATION_NAME | F35: ID | K35: 2025 | N35: INFORMATION_TO_LIST
E36: LOCATION_NAME | F36: LINK_NAME | N36: собственные силы
F37: REGION | K37: SETTINGS_CALC_METHOD | N37: договор подряда
K38: Долгосрочная индексация
K39: Затраты+ | N39: VD_LIST
E40: XML_REGIONS_LIST_TAG_NAMES | K40: Корректировка | N40: Передача ЭЭ
E41: REGIONS | K41: Сравнение аналогов | N41: Другое
K44: SETTINGS_CALC_METHOD_4_47
E45: XML_PATTERN_COSTS_LIST_TAG_NAMES | K45: Затраты+
E46: P_L1 | K46: Корректировка
E47: P_L2 | K47: Сравнение аналогов
E48: P_L3
E49: P_L4
E50: P_L5
E51: P_L6
E52: P_L7
E53: P_L8
E54: P_L9
E55: P_L10
E56: P_L11

Sheet 17_ППР (hidden)
AR1: =IFERROR(IF(REPORT_OWNER="Версия организации","HIDDEN","VISIBLE"),0) -> HIDDEN | BB1: =IFERROR(IF(Титульный!E18="Корректировка","HIDDEN",(IF(FIRST_PERIOD_IN_LT=god,"VISIBLE","HIDDEN"))),0) -> VISIBLE
I8: =IF(god="","Не определено",god-2) -> Не определено | J8: Не определено | K8: Не определено | L8: Не определено | M8: Не определено | N8: Не определено | O8: =IF(god="","Не определено",god-1) -> Не определено | P8: Не определено | Q8: Не определено | R8: Не определено | S8: Не определено | T8: Не определено | U8: =IF(god="","Не определено",god) -> Не определено | V8: Не определено | W8: Не определено | X8: Не определено | Y8: Не определено | Z8: Не определено | AA8: =IF(god="","Не определено",god+1) -> Не определено | AB8: Не определено | AC8: Не определено | AD8: Не определено | AE8: Не определено | AF8: Не определено | AG8: =IF(god="","Не определено",god+2) -> Не определено | AH8: Не определено | AI8: Не определено | AJ8: Не определено | AK8: Не определено | AL8: Не определено | AM8: =IF(god="","Не определено",god+4) -> Не определено | AN8: =IF(god="","Не определено",god+4) -> Не определено | AO8: =IF(god="","Не определено",god+4) -> Не определено | AQ8: =IF(god="","Не определено",god+5) -> Не определено | AR8: =IF(god="","Не определено",god+5) -> Не определено | AS8: =IF(god="","Не определено",god+5) -> Не определено | AY8: HIDDEN | AZ8: HIDDEN | BA8: =IF(god="","Не определено",god+6) -> Не определено | BB8: =IF(god="","Не определено",god+7) -> Не определено
F9: Список листов
F10: Расшифровка подконтрольных расходов
AU14: -
F15: № п/п | G15: Показатели, тыс.руб. | AO15: Договоры/доп. соглашения/ при заполнении факта дополнительно - акты выполненных работ | AP15: Ссылка на документ | AQ15: =god-2&", утверждено" -> -2, утверждено | AR15: =god-2&" факт, версия регулятора" -> -2 факт, версия регулятора | AS15: =god-2&", факт (отражен в отчете об исполнении сметы расходов за "&god-2&" год)" -> -2, факт (отражен в отчете об исполнении сметы расходов за -2 год) | AT15: =god-2&" факт, подтвержденный первичными документами (договоры/акты и пр.)" -> -2 факт, подтвержденный первичными документами (договоры/акты и пр.) | AU15: =god-2&" факт, подтвержденный первичными документами (договоры/акты и пр.)" -> -2 факт, подтвержденный первичными документами (договоры/акты и пр.) | BA15: =god-1&" , утверждено" -> -1 , утверждено | BB15: =god&", предложение" -> , предложение | BE15: Комментарии и примечания (не будут загружены в БД)
F16: № п/п | G16: Показатели, тыс.руб. | AG16: 2013 год план (утверждённый органами регулирования) | AJ16: 2013 год факт | AQ16: 2016 год план (утверждённый органами регулирования) | AR16: 2016 год план (утверждённый органами регулирования) | AS16: 2016 факт (отражен в отчете об исполнении сметы расходов за 2016 год) | AT16: 2016, факт (отражен в отчете об исполнении сметы расходов за 2016 год) | AU16: Всего | AV16: Прямые расходы | AW16: Косвенные общехозяйственные расходы, отнесенные на деятельность по передаче э/э | AX16: Фактический процент распределения расходов на деятельность по передаче э/э | BA16: 2017 год план (утверждённый органами регулирования) | BB16: 2018 год план
F18: 1 | G18: Прочие подконтрольные расходы, связанные с производством и/или реализацией продукции (за исключением расходов на ремонт основных средств) | AG18: =SUM(AG19:AG38) -> 0 | AJ18: =SUM(AJ19:AJ38) -> 0 | AQ18: =AQ20 -> 0 | AR18: 0 | AS18: 0 | AT18: 0 | AU18: 0 | AV18: 0 | AW18: 0 | BA18: =BA20 -> 0 | BB18: =BB20 -> 0
F19: =F18 & ".0" -> 1.0
F20: 1.1 | G20: Оплата работ и услуг сторонних организаций Всего, в том числе: | AQ20: =AQ21+AQ24+AQ27+AQ33+AQ36+AQ30+AQ39+AQ42+AQ45+AQ48+AQ51+AQ54 -> 0 | AR20: 0 | AS20: 0 | AT20: 0 | AU20: 0 | AV20: 0 | AW20: 0 | BA20: =BA21+BA24+BA27+BA33+BA36+BA30+BA39+BA42+BA45+BA48+BA51+BA54 -> 0 | BB20: =BB21+BB24+BB27+BB33+BB36+BB30+BB39+BB42+BB45+BB48+BB51+BB54 -> 0
F21: 1.1.1 | G21: Расходы на услуги связи | AS21: =SUM(AS22:AS23) -> 0 | AT21: =SUM(AT22:AT23) -> 0 | AU21: =SUM(AV21:AW21,AY21) -> 0 | BB21: =SUM(BB22:BB23) -> 0
F22: 1.1.1.0
G23: Добавить строку
F24: 1.1.2 | G24: Расходы на услуги вневедомственной охраны и пожарную безопасность | AS24: =SUM(AS25:AS26) -> 0 | AT24: =SUM(AT25:AT26) -> 0 | AU24: =SUM(AV24:AW24,AY24) -> 0 | BB24: =SUM(BB25:BB26) -> 0
F25: 1.1.2.0
G26: Добавить строку
F27: 1.1.3 | G27: Расходы на юридические и информационные услуги | AS27: =SUM(AS28:AS29) -> 0 | AT27: =SUM(AT28:AT29) -> 0 | AU27: =SUM(AV27:AW27,AY27) -> 0 | BB27: =SUM(BB28:BB29) -> 0
F28: 1.1.3.0
G29: Добавить строку
F30: 1.1.4 | G30: Расходы на аудиторские и консультационные услуги | AS30: =SUM(AS31:AS32) -> 0 | AT30: =SUM(AT31:AT32) -> 0 | AU30: =SUM(AV30:AW30,AY30) -> 0 | BB30: =SUM(BB31:BB32) -> 0
F31: 1.1.4.0
G32: Добавить строку
F33: 1.1.5 | G33: Расходы на услуги транспорта | AS33: =SUM(AS34:AS35) -> 0 | AT33: =SUM(AT34:AT35) -> 0 | AU33: =SUM(AV33:AW33,AY33) -> 0 | BB33: =SUM(BB34:BB35) -> 0
F34: 1.1.5.0
G35: Добавить строку
F36: 1.1.6 | G36: Прочие услуги сторонних организаций | AS36: =SUM(AS37:AS38) -> 0 | AT36: =SUM(AT37:AT38) -> 0 | AU36: =SUM(AV36:AW36,AY36) -> 0 | BB36: =SUM(BB37:BB38) -> 0
F37: 1.1.6.0
G38: Добавить строку
F39: 1.1.7 | G39: Расходы на командировки и представительские | AS39: =SUM(AS40:AS41) -> 0 | AT39: =SUM(AT40:AT41) -> 0 | AU39: =SUM(AV39:AW39,AY39) -> 0 | BB39: =SUM(BB40:BB41) -> 0
F40: 1.1.7.0
G41: Добавить строку
F42: 1.1.8 | G42: Расходы на повышение квалификации, подготовку кадров | AS42: =SUM(AS43:AS44) -> 0 | AT42: =SUM(AT43:AT44) -> 0 | AU42: =SUM(AV42:AW42,AY42) -> 0 | BB42: =SUM(BB43:BB44) -> 0
F43: 1.1.8.0
G44: Добавить строку
F45: 1.1.9 | G45: Расходы на обеспечение нормальных условий труда и мер по технике безопасности | AS45: =SUM(AS46:AS47) -> 0 | AT45: =SUM(AT46:AT47) -> 0 | AU45: =SUM(AV45:AW45,AY45) -> 0 | BB45: =SUM(BB46:BB47) -> 0
F46: 1.1.9.0
G47: Добавить строку
F48: 1.1.10 | G48: Расходы на страхование | AS48: =SUM(AS49:AS50) -> 0 | AT48: =SUM(AT49:AT50) -> 0 | AU48: =SUM(AV48:AW48,AY48) -> 0 | BB48: =SUM(BB49:BB50) -> 0
F49: 1.1.10.0 | AU49: =SUM(AV49:AW49,AY49) -> 0
G50: Добавить строку
F55: 1.1.12.0
F57: 2 | G57: Другие прочие расходы | AQ57: =AQ58+AQ61 -> 0 | AR57: 0 | AS57: 0 | AT57: 0 | AU57: 0 | AV57: 0 | AW57: 0 | BA57: =BA58+BA61 -> 0 | BB57: =BB58+BB61 -> 0
F58: 2.1 | G58: Расходы на услуги банка | AS58: =SUM(AS59:AS60) -> 0 | AT58: =SUM(AT59:AT60) -> 0 | AU58: =SUM(AV58:AW58,AY58) -> 0 | BB58: =SUM(BB59:BB60) -> 0
F59: 2.1.0
G60: Добавить строку
F61: 2.2 | G61: Иные прочие расходы | AS61: =SUM(AS62:AS63) -> 0 | AT61: =SUM(AT62:AT63) -> 0 | AU61: =SUM(AV61:AW61,AY61) -> 0 | AV61: =SUM(AV62:AV63) -> 0 | AW61: =SUM(AW62:AW63) -> 0 | BA61: =SUM(BA62:BA63) -> 0 | BB61: =SUM(BB62:BB63) -> 0
F62: 2.2.0 | AU62: =SUM(AV62:AW62,AY62) -> 0
G63: Добавить строку

Sheet 18_ФСК (hidden)
K1: =IFERROR(IF(REPORT_OWNER="Версия организации","HIDDEN","VISIBLE"),0) -> HIDDEN | O1: =IFERROR(IF(REPORT_OWNER="Версия организации","HIDDEN","VISIBLE"),0) -> HIDDEN
F9: Список листов
F10: Расчет суммы платы за услуги по передаче электрической энергиипо единой национальной (общероссийской) электрической сети (ЕНЭС)
F16: № п/п | G16: Наименование показателей | H16: Единицы измерения | I16: =god-2&" год, утверждено" -> -2 год, утверждено | J16: =god-2&" год, факт(отражен в отчете об исполнении сметы расходов за год)" -> -2 год, факт(отражен в отчете об исполнении сметы расходов за год) | K16: 2016 год, факт версия регулятора | L16: отклонение | M16: =god-1&" год, утверждено" -> -1 год, утверждено | N16: =god&" год, предложение организации" -> год, предложение организации | O16: 2018 год, версия регулятора
F20: 1 | G20: Плата ФСК | H20: тыс.руб | J20: =J21+J28 -> 0 | K20: =K21+K28 -> 0 | L20: =J20-I20 -> 0 | N20: =N21+N28 -> 0 | O20: =O21+O28 -> 0
F21: 1.1 | G21: Содержание сетей ФСК | H21: тыс.руб | J21: =J22+J25 -> 0 | K21: =K22+K25 -> 0 | L21: =J21-I21 -> 0 | N21: =N22+N25 -> 0 | O21: =O22+O25 -> 0
F22: 1.1.1 | G22: 1 полугодие | H22: тыс.руб | K22: =J22 -> 0 | L22: =J22-I22 -> 0 | N22: =N23*N24*6/1000 -> 0 | O22: =O23*O24*6/1000 -> 0
F23: 1.1.1.1 | G23: Заявленная мощность к сетям ФСК | H23: МВт | K23: =J23 -> 0 | O23: =N23 -> 0
F24: 1.1.1.2 | G24: Тариф на содержание сетей ФСК | H24: руб.Мвт в месяц | O24: =N24 -> 0
F25: 1.1.2 | G25: 2 полугодие | H25: тыс.руб | K25: 0 | L25: =J25-I25 -> 0 | N25: =N26*N27*6/1000 -> 0 | O25: =O26*O27*6/1000 -> 0
F26: 1.1.2.1 | G26: Заявленная мощность к сетям ФСК | H26: МВт | K26: 0 | O26: =N26 -> 0
F27: 1.1.2.2 | G27: Тариф на содержание сетей ФСК | H27: руб.Мвт в месяц | O27: =N27 -> 0
F28: 1.2 | G28: Стоимость потерь в сетях ФСК | H28: тыс.руб | J28: =SUM(J29,J34) -> 0 | K28: =SUM(K29,K34) -> 0 | L28: =J28-I28 -> 0 | N28: =N29+N34 -> 0 | O28: =O29+O34 -> 0
F29: 1.2.1 | G29: 1 полугодие | H29: тыс.руб | K29: 0 | L29: =J29-I29 -> 0 | N29: =N30*N33/1000 -> 0 | O29: =O30*O33/1000 -> 0
F30: 1.2.1.1 | G30: объем потерь в сетях ФСК | H30: МВтч | K30: 0 | N30: =N31*N32/100 -> 0 | O30: =O31*O32/100 -> 0
F31: 1.2.1.1.1 | G31: отпуск из сети ФСК | H31: МВтч | O31: =N31 -> 0
F32: 1.2.1.1.2 | G32: норматив технологич.потерь ээ | H32: % | O32: =N32 -> 0
F33: 1.2.1.2 | G33: тариф покупки потерь | H33: руб./МВтч | O33: =N33 -> 0
F34: 1.2.2 | G34: 2 полугодие | H34: тыс.руб | K34: =J34 -> 0 | L34: =J34-I34 -> 0 | N34: =N35*N38/1000 -> 0 | O34: =O35*O38/1000 -> 0
F35: 1.2.2.1 | G35: объем потерь в сетях ФСК | H35: МВтч | K35: =J35 -> 0 | N35: =N36*N37/100 -> 0 | O35: =O36*O37/100 -> 0
F36: 1.2.2.1.1 | G36: =G31 -> отпуск из сети ФСК | H36: =H31 -> МВтч | O36: =N36 -> 0
F37: 1.2.2.1.2 | G37: =G32 -> норматив технологич.потерь ээ | H37: =H32 -> % | O37: =N37 -> 0
F38: 1.2.2.2 | G38: тариф покупки потерь | H38: руб./МВтч | O38: =N38 -> 0

Sheet 19_Аренда ЭСХ факт (hidden)
I1: Дополнительное соглашение/договор в исходной редакции | AA1: =IFERROR(IF(REPORT_OWNER="Версия организации","HIDDEN","VISIBLE"),0) -> HIDDEN
F9: Список листов
F10: ="Форма для представления сведений по аренде электросетевого имущества за "&(god-2)&" год" -> Форма для представления сведений по аренде электросетевого имущества за -2 год
F19: № п/п | G19: Вид документа | H19: № договора | I19: Арендодатель | J19: Собственник арендованных объектов электросетевого хозяйства (полное наименование) | K19: Дата подписания договора | O19: № доп. соглашения (если применимо) | P19: Дата подписания доп. соглашения (если применимо) | Q19: Предмет доп. соглашения (если применимо) | R19: Доп. соглашение к договору на передачу э/э на включение точек поставки | S19: Дата начала действия договора / доп. соглашения | T19: Дата окончания действия договора / доп. соглашения | U19: Статус документа - зарегистрирован в Росреестре (да/нет/ получен отказ в регистрации) | V19: Объекты аренды | W19: Адрес объектов аренды | X19: Количество арендуемого оборудования в условных единицах, у.е. | Y19: ="Величина арендной платы за владение и (или) пользование электросетевым имуществом на "&Титульный!E23-2&" год, утверждено,тыс.руб." -> Величина арендной платы за владение и (или) пользование электросетевым имуществом на -2 год, утверждено,тыс.руб. | Z19: ="Величина арендной платы за владение и (или) пользование имуществом за "&(god-2)&" год, тыс. руб. (без НДС)" -> Величина арендной платы за владение и (или) пользование имуществом за -2 год, тыс. руб. (без НДС)
Z20: =god-2&" , факт (отражен в отчете об исполнении сметы расходов за "&(god-2)&" год)" -> -2 , факт (отражен в отчете об исполнении сметы расходов за -2 год) | AA20: =god-2&", факт версия регулятора" -> -2, факт версия регулятора | AB20: =(god-2)&" факт, подтвержденный первичными документами (договоры/акты и пр.)" -> -2 факт, подтвержденный первичными документами (договоры/акты и пр.) | AC20: =(god-2)&" факт, подтвержденный бухгалтерскими документами (оборотно-сальдовые ведомости, карточки счетов)" -> -2 факт, подтвержденный бухгалтерскими документами (оборотно-сальдовые ведомости, карточки счетов) | AD20: в соответствии с пп. 5 п. 28 Основ ценообразования, утв. ПП РФ от 29.12.2011 № 1178
AD21: Всего | AE21: в том числе
AE22: амортизация | AF22: налог на имущество | AG22: др. обязательные платежи*
F24: 1.0
G25: Добавить строку
F26: 2 | G26: Итого | X26: =SUM(X24:X25) -> 0 | Z26: =SUM(Z24:Z25) -> 0 | AA26: =SUM(AA23:AA25) -> 0 | AB26: =SUM(AB24:AB25) -> 0 | AC26: 0 | AD26: 0 | AE26: 0 | AF26: 0 | AG26: 0
F31: Примечание:
F32: * сумму представлять с расшифровкой по видам фактически произведенных платежей, к суммам платежей приложить подтверждающие документы
F34: 1) в случае отличия факта, отраженного в смете затрат от показателей, подтвержденных бухгалтерскими документами - указать обоснование

Sheet modRent_ESX_FACT (hidden)

Sheet modCONS_STRUCT_FACT (hidden)

Sheet 20_Структура потребления факт (hidden)
A1: HIDDEn
F10: ="Детализация данных по структуре потребления э/э по арендуемым объектам ЭСХ " & god-2 & " год, факт" -> Детализация данных по структуре потребления э/э по арендуемым объектам ЭСХ -2 год, факт
F19: № п/п | G19: № договора | H19: Прогнозный полезный объем электрической энергии, передаваемый через арендованные объекты электросетевого хозяйства за год, тыс. кВтч | L19: Крупнейшие потребители по указанному договору/ доп. соглашению (указываются в одной ячейке через запятую) | M19: Ссылка на документ, подтверждающий отсутствие факта 100% доли собственника арендуемого имущества в ПО
H21: Всего | I21: Собственнику арендуемого имущества | J21: Доля собственника арендуемого имущества | K21: Прочим потребителям
F24: 1.0
G25: Добавить строку
F27: 2 | G27: Итого | H27: =SUM(H24:H26) -> 0 | I27: =SUM(I24:I26) -> 0 | J27: =IF(H27=0,0,I27/H27) -> 0 | K27: =SUM(K24:K26) -> 0

Sheet modRent_ESX_PLAN (hidden)

Sheet modCONS_STRUCT_PLAN (hidden)

Sheet 21_Аренда ЭСХ план (hidden)
L1: Дополнительное соглашение/договор в исходной редакции | AI1: =IFERROR(IF(REPORT_OWNER="Версия организации","HIDDEN","VISIBLE"),0) -> HIDDEN
F9: Список листов
F10: ="Форма для представления сведений по аренде электросетевого имущества на "&god-1&" и "&god&" годы" -> Форма для представления сведений по аренде электросетевого имущества на -1 и годы
F19: № п/п | G19: Вид документа | H19: № договора | I19: Дата подписания договора | J19: Ссылка на договор со всеми доп соглашениями | K19: Статус договора | L19: Арендодатель | M19: Собственник арендованных объектов электросетевого хозяйства (полное наименование) | Q19: № доп. соглашения (если применимо) | R19: Дата подписания доп. соглашения (если применимо) | S19: Предмет доп. соглашения (если применимо) | T19: Доп. соглашение к договору на передачу э/э на включение точек поставки | U19: Дата начала действия договора / доп. соглашения | V19: Дата окончания действия договора / доп. соглашения | W19: Статус документа - зарегистрирован в Росреестре (да/нет/ получен отказ в регистрации) | X19: Объекты аренды | Y19: Адрес объекта аренды | Z19: Количество арендуемого оборудования в условных единицах, у.е. | AA19: ="Величина арендной платы за владение и (или) пользование имуществом на "&Титульный!E23-1&" год, утверждено,тыс. руб." -> Величина арендной платы за владение и (или) пользование имуществом на -1 год, утверждено,тыс. руб. | AB19: ="Величина арендной платы за владение и (или) пользование имуществом в "&god-1&", тыс. руб. (без НДС)" -> Величина арендной платы за владение и (или) пользование имуществом в -1, тыс. руб. (без НДС) | AH19: ="Величина арендной платы за владение и (или) пользование имуществом в "&god&", тыс. руб. (без НДС)" -> Величина арендной платы за владение и (или) пользование имуществом в , тыс. руб. (без НДС)
AB20: ="Версия регулятора "&Титульный!E23-1 -> Версия регулятора -1 | AC20: ="суммапо договору за "&god-1&" год" -> суммапо договору за -1 год | AD20: в соответствии с пп. 5 п. 28 Основ ценообразования, утв. ПП РФ от 29.12.2011 № 1178 | AH20: ="Предложение ТСО на "&god&" год" -> Предложение ТСО на год | AI20: ="Версия регулятора " & god -> Версия регулятора | AJ20: ="сумма по договору за "&god&" год" -> сумма по договору за год | AK20: в соответствии с пп. 5 п. 28 Основ ценообразования, утв. ПП РФ от 29.12.2011 № 1178
AD21: Всего | AE21: в том числе | AK21: Всего | AL21: в том числе
AE22: амортизация | AF22: налог на имущество | AG22: др. обязательные платежи* | AL22: амортизация | AM22: налог на имущество | AN22: др. обязательные платежи*
F24: 0
G25: Добавить строку
G26: Итого | Z26: =SUM(Z24:Z25) -> 0 | AB26: =SUM(AB23:AB25) -> 0 | AC26: =SUM(AC24:AC25) -> 0 | AD26: 0 | AE26: 0 | AF26: 0 | AG26: 0 | AH26: 0 | AI26: 0 | AJ26: 0 | AK26: 0 | AL26: 0 | AM26: 0 | AN26: 0
U28: Действующий
F31: Примечание: | U31: Расторгнут
F32: * сумму представить с расшифровкой по видам производимых платежей, к суммам платежей приложить обосновывающие документы | U32: Новый
F33: **В случае, если договор предполагает пролонгацию, условия необходимо описать в комментариях
F34: **Указать комментарий по плановому периоду (2018 год)

Sheet 22_Структура потребления план (hidden)
A1: HIDDEN
F9: ="Детализация данных по структуре потребления э/э по арендуемым объектам ЭСХ " & god & " год, план" -> Детализация данных по структуре потребления э/э по арендуемым объектам ЭСХ год, план
F18: № п/п | G18: № договора | H18: Прогнозный полезный объем электрической энергии, передаваемый через арендованные объекты электросетевого хозяйства за год, тыс. кВтч | L18: Крупнейшие потребители по указанному договору/ доп. соглашению (указываются в одной ячейке через запятую) | M18: Ссылка на документ, подтверждающий отсутствие факта 100% доли собственника арендуемого имущества в ПО
H20: Всего | I20: Собственнику арендуемого имущества | J20: Доля собственника арендуемого имущества | K20: Прочим потребителям
F22: 1.0
G23: Добавить строку
F24: 2 | G24: Итого | H24: =SUM(H22:H23) -> 0 | I24: =SUM(I22:I23) -> 0 | J24: =IF(H24=0,0,I24/H24) -> 0 | K24: =SUM(K22:K23) -> 0

Sheet 23_Лизинг ЭСХ факт (hidden)
A1: =IFERROR(IF(region_name="Пермский край","HIDDEN","VISIBLE"),0) -> VISIBLE | AA1: =IFERROR(IF(REPORT_OWNER="Версия организации","HIDDEN","VISIBLE"),0) -> HIDDEN
K8: Дополнительное соглашение/договор в исходной редакции
F10: Список листов
F11: ="Форма для представления сведений по лизингу электросетевого имущества за "&god-2&" год" -> Форма для представления сведений по лизингу электросетевого имущества за -2 год
AE20: Комментарии*
F21: № п/п | G21: Тип документа | H21: № договора | I21: Договор учтен в ИПР (да/нет) | J21: Лизингодатель | K21: Собственник объектов электросетевого хозяйства (полное наименование) | L21: Дата подписания договора | P21: № доп. соглашения (если применимо) | Q21: Дата подписания доп. соглашения (если применимо) | R21: Предмет доп. соглашения (если применимо) | S21: Доп. соглашение к договору на передачу э/э на включение точек поставки | T21: Дата начала действия договора / доп. соглашения | U21: Дата окончания действия договора / доп. соглашения | V21: Статус документа - зарегистрирован в Росреестре (да/нет/ получен отказ в регистрации) | W21: Объекты лизинга | X21: Адрес объекта лизинга | Y21: Количество оборудования, взятого в лизинг, в условных единицах, у.е. | Z21: ="Лизинг электросетевого имущества на "&god-2&" год, утверждено, тыс. руб." -> Лизинг электросетевого имущества на -2 год, утверждено, тыс. руб. | AA21: =god & " факт версия регулятора" -> факт версия регулятора | AB21: ="Сумма лизинговых платежей за "&god -2&" год, тыс. руб. (без НДС)" -> Сумма лизинговых платежей за -2 год, тыс. руб. (без НДС)
AB22: =god -2&", факт (отражен в отчете об исполнении сметы расходов за "&god -2&" год)" -> -2, факт (отражен в отчете об исполнении сметы расходов за -2 год) | AC22: =god -2&" факт, подтвержденный первичными документами (договоры/акты и пр.)" -> -2 факт, подтвержденный первичными документами (договоры/акты и пр.) | AD22: =god -2&" факт, подтвержденный бухгалтерскими документами (оборотно-сальдовые ведомости, карточки счетов)" -> -2 факт, подтвержденный бухгалтерскими документами (оборотно-сальдовые ведомости, карточки счетов)
F25: 0
G26: Добавить строку
G27: Итого | Y27: =SUM(Y25:Y26) -> 0 | AA27: =SUM(AA25:AA26) -> 0 | AB27: =SUM(AB25:AB26) -> 0 | AC27: =SUM(AC25:AC26) -> 0 | AD27: =SUM(AD25:AD26) -> 0
F30: Примечание:
F31: ="*Указать комментарий по фактически завершенному периоду ("&Титульный!E23-2&" год)" -> *Указать комментарий по фактически завершенному периоду (-2 год)
F32: 1) в случае отличия факта, отраженного в смете затрат от показателей, подтвержденных бухгалтерскими документами - указать обоснование

Sheet modLEASING_ESX_FACT (hidden)

Sheet 24_Лизинг ЭСХ план (hidden)
A1: =IFERROR(IF(region_name="Пермский край","HIDDEN","VISIBLE"),0) -> VISIBLE | AB1: =IFERROR(IF(REPORT_OWNER="Версия организации","HIDDEN","VISIBLE"),0) -> HIDDEN
K7: Дополнительное соглашение/договор в исходной редакции
F9: Список листов
F10: ="Форма для представления сведений по лизингу электросетевого имущества на "&god-1&" и "&god&" годы" -> Форма для представления сведений по лизингу электросетевого имущества на -1 и годы
F20: № п/п | G20: Тип документа | H20: № договора | I20: Договор учтен в ИПР (да/нет) | J20: Лизингодатель | K20: Собственник объектов электросетевого хозяйства (полное наименование) | L20: Дата подписания договора | P20: № доп. соглашения (если применимо) | Q20: Дата подписания доп. соглашения (если применимо) | R20: Предмет доп. соглашения (если применимо) | S20: Доп. соглашение к договору на передачу э/э на включение точек поставки | T20: Дата начала действия договора / доп. соглашения | U20: Дата окончания действия договора / доп. соглашения | V20: Статус документа - зарегистрирован в Росреестре (да/нет/ получен отказ в регистрации) | W20: Объекты лизинга | X20: Адрес объекта лизинга | Y20: Количество оборудования, взятого в лизинг, в условных единицах, у.е. | Z20: ="Лизинг электросетевого имущества на "&god -1&" год, утверждено, тыс. руб." -> Лизинг электросетевого имущества на -1 год, утверждено, тыс. руб. | AA20: ="Сумма лизинговых платежей, заявлена в тарифе на "&god &" год, тыс. руб. (без НДС)" -> Сумма лизинговых платежей, заявлена в тарифе на год, тыс. руб. (без НДС) | AB20: ="Сумма лизинговых платежей по договорам за " & god & " год версия регулятора, тыс. руб. (без НДС)" -> Сумма лизинговых платежей по договорам за год версия регулятора, тыс. руб. (без НДС) | AC20: Комментарии*
F24: 0
G25: Добавить строку
G26: Итого | Y26: =SUM(Y24:Y25) -> 0 | AA26: =SUM(AA24:AA25) -> 0

Sheet modLEASING_ESX_PLAN (hidden)

Sheet 25_Аренда прочее им. факт (hidden)
Y1: =IFERROR(IF(REPORT_OWNER="Версия организации","HIDDEN","VISIBLE"),0) -> HIDDEN | AD1: HIDDEN | AE1: HIDDEN | AF1: HIDDEN
F9: Список листов
F10: ="Форма для представления сведений по аренде прочего имущества за "& god-2 & " год, участвующего в деятельности по передаче электрической энергии" -> Форма для представления сведений по аренде прочего имущества за -2 год, участвующего в деятельности по передаче электрической энергии
AA14: -
F20: № п/п | G20: Объект аренды | H20: Аренда/субаренда | I20: № договора | J20: Дата договора | K20: Арендодатель | L20: Собственник арендованного имущества | P20: № доп. соглашения (если применимо) | Q20: Дата начала действия договора / доп. соглашения | R20: Дата окончания действия договора / доп. соглашения | S20: Статус документа - зарегистрирован в Росреестре (да/нет/ получен отказ в регистрации) | T20: Объект, адрес объекта | U20: Площадь | V20: Назначение | W20: ="Величина арендной платы за пользование прочим имуществом на "&god -2&" год, утверждено,тыс. руб." -> Величина арендной платы за пользование прочим имуществом на -2 год, утверждено,тыс. руб. | X20: ="Величина арендной платы за владение и (или) пользование прочим имуществом за "&god -2&" год, тыс. руб. (без НДС)" -> Величина арендной платы за владение и (или) пользование прочим имуществом за -2 год, тыс. руб. (без НДС) | AG20: В соответствии с пп. 5 п. 28 Основ ценообразования, утв. ПП РФ от 29.12.2011 № 1178 | AM20: Комментарии*
X21: =god -2&", факт (отражен в отчете об исполнении сметы расходов за "&god -2&" год)" -> -2, факт (отражен в отчете об исполнении сметы расходов за -2 год) | Y21: =god -2&", факт версия регулятора" -> -2, факт версия регулятора | Z21: =god -2&" факт, подтвержденный первичными документами (договоры/акты и пр.)" -> -2 факт, подтвержденный первичными документами (договоры/акты и пр.) | AA21: =god -2&" факт, подтвержденный бухгалтерскими документами (оборотно-сальдовые ведомости, карточки счетов)" -> -2 факт, подтвержденный бухгалтерскими документами (оборотно-сальдовые ведомости, карточки счетов) | AG21: Всего | AH21: в том числе
AA22: Всего | AB22: Прямые расходы | AC22: Косвенные общепроизводственные расходы, отнесенные на деятельность по передаче э/э | AH22: амортизация | AI22: налог на имущество | AJ22: др. обязательные платежи*
F26: 1 | G26: Аренда нежилых помещений Всего, в том числе: | U26: =SUM(U27,U30) -> 0 | X26: =SUM(X27,X30) -> 0 | Y26: 0 | Z26: 0 | AA26: 0 | AB26: 0 | AC26: 0 | AG26: =AG27+AG30 -> 0 | AH26: =AH27+AH30 -> 0 | AI26: =AI27+AI30 -> 0 | AJ26: =AJ27+AJ30 -> 0
F27: 1.1 | G27: Производственные помещения | U27: =SUM(U28:U29) -> 0 | X27: =SUM(X28:X29) -> 0 | Y27: =SUM(Y28:Y29) -> 0 | Z27: =SUM(Z28:Z29) -> 0 | AA27: =SUM(AB27:AC27)+AE27 -> 0 | AG27: =SUM(AG28:AG29) -> 0 | AH27: =SUM(AH28:AH29) -> 0 | AI27: =SUM(AI28:AI29) -> 0 | AJ27: =SUM(AJ28:AJ29) -> 0
F28: 1.1.0
G29: Добавить
F30: 1.2 | G30: Непроизводственные помещения | U30: =SUM(U31:U32) -> 0 | X30: =SUM(X31:X32) -> 0 | Y30: =SUM(Y31:Y32) -> 0 | Z30: =SUM(Z31:Z32) -> 0 | AA30: =SUM(AB30:AC30)+AE30 -> 0 | AG30: =SUM(AG31:AG32) -> 0 | AH30: =SUM(AH31:AH32) -> 0 | AI30: =SUM(AI31:AI32) -> 0 | AJ30: =SUM(AJ31:AJ32) -> 0
F31: 1.2.0
G32: Добавить
F33: 2 | G33: Аренда автотранспортных средств Всего, в том числе: | U33: =SUM(U34:U35) -> 0 | X33: =SUM(X34:X35) -> 0 | Y33: =SUM(Y34:Y35) -> 0 | Z33: =SUM(Z34:Z35) -> 0 | AA33: =SUM(AB33:AC33)+AE33 -> 0 | AG33: =SUM(AG34:AG35) -> 0 | AH33: =SUM(AH34:AH35) -> 0 | AI33: =SUM(AI34:AI35) -> 0 | AJ33: =SUM(AJ34:AJ35) -> 0
F34: 2.0
G35: Добавить
F36: 3 | G36: Аренда (прочее) Всего, в том числе: | U36: =SUM(U37:U38) -> 0 | X36: =SUM(X37:X38) -> 0 | Y36: =SUM(Y37:Y38) -> 0 | Z36: =SUM(Z37:Z38) -> 0 | AA36: =SUM(AB36:AC36)+AE36 -> 0 | AG36: =SUM(AG37:AG38) -> 0 | AH36: =SUM(AH37:AH38) -> 0 | AI36: =SUM(AI37:AI38) -> 0 | AJ36: =SUM(AJ37:AJ38) -> 0
F37: 3.0
G38: Добавить
F39: 4 | G39: Итого | U39: =U26+U33+U36 -> 0 | W39: =W26+W33+W36 -> 0 | X39: 0 | Y39: 0 | Z39: 0 | AA39: 0 | AB39: 0 | AC39: 0 | AG39: =AG26+AG33+AG36 -> 0 | AH39: =AH26+AH33+AH36 -> 0 | AI39: =AI26+AI33+AI36 -> 0 | AJ39: =AJ26+AJ33+AJ36 -> 0
F41: Примечание:
F42: ="*Указать комментарий по фактически завершенному периоду ("&Титульный!E23-2&" год)" -> *Указать комментарий по фактически завершенному периоду (-2 год)
F43: 1) в случае отличия факта, отраженного в смете затрат от показателей, подтвержденных бухгалтерскими документами - указать обоснование

Sheet modRENT_OTHER_FACT (hidden)

Sheet 26_Аренда прочее им. план (hidden)
Y1: =IFERROR(IF(REPORT_OWNER="Версия организации","HIDDEN","VISIBLE"),0) -> HIDDEN
F9: Список листов
F10: ="Форма для представления сведений по аренде прочего имущества на " & god & " год, участвующего в деятельности по передаче электрической энергии" -> Форма для представления сведений по аренде прочего имущества на год, участвующего в деятельности по передаче электрической энергии
F20: № п/п | G20: Объект аренды | H20: Аренда/субаренда | I20: № договора | J20: Дата договора | K20: Арендодатель | L20: Собственник арендованного имущества | P20: № доп. соглашения (если применимо) | Q20: Дата начала действия договора / доп. соглашения | R20: Дата окончания действия договора / доп. соглашения | S20: Статус документа - зарегистрирован в Росреестре (да/нет/ получен отказ в регистрации) | T20: Объект, адрес объекта | U20: Площадь | V20: Назначение | W20: ="Величина арендной платы за пользование прочим имуществом на "&god -1&" год, утверждено,тыс. руб." -> Величина арендной платы за пользование прочим имуществом на -1 год, утверждено,тыс. руб. | X20: ="Величина арендной платы за владение и (или) пользование прочим имуществом за "&god&" год, тыс. руб. (без НДС)" -> Величина арендной платы за владение и (или) пользование прочим имуществом за год, тыс. руб. (без НДС) | AA20: в соответствии с пп. 5 п. 28 Основ ценообразования, утв. ПП РФ от 29.12.2011 № 1178 | AG20: Комментарии*
X21: ="заявлена в тарифе на "&god&" год" -> заявлена в тарифе на год | Y21: ="Версия регулятора "&god -> Версия регулятора | Z21: ="сумма по договорам за "&god&" год" -> сумма по договорам за год | AA21: Всего | AB21: в том числе
AB22: амортизация | AC22: налог на имущество | AD22: др. обязательные платежи*
F26: 1 | G26: Аренда нежилых помещений Всего, в том числе: | U26: =SUM(U27,U30) -> 0 | X26: =SUM(X27,X30) -> 0 | Y26: =SUM(Y27,Y30) -> 0 | Z26: =SUM(Z27,Z30) -> 0 | AA26: =AA27+AA30 -> 0 | AB26: =AB27+AB30 -> 0 | AC26: =AC27+AC30 -> 0 | AD26: =AD27+AD30 -> 0
F27: 1.1 | G27: Производственные помещения | U27: =SUM(U28:U29) -> 0 | X27: =SUM(X28:X29) -> 0 | Y27: =SUM(Y28:Y29) -> 0 | Z27: =SUM(Z28:Z29) -> 0 | AA27: =SUM(AA28:AA29)/2 -> 0 | AB27: =SUM(AB28:AB29)/2 -> 0 | AC27: =SUM(AC28:AC29)/2 -> 0 | AD27: =SUM(AD28:AD29)/2 -> 0
F28: 1.1.0
G29: Добавить
F30: 1.2 | G30: Непроизводственные помещения | U30: =SUM(U31:U32) -> 0 | X30: =SUM(X31:X32) -> 0 | Y30: =SUM(Y31:Y32) -> 0 | Z30: =SUM(Z31:Z32) -> 0 | AA30: =SUM(AA31:AA32)/2 -> 0 | AB30: =SUM(AB31:AB32)/2 -> 0 | AC30: =SUM(AC31:AC32)/2 -> 0 | AD30: =SUM(AD31:AD32)/2 -> 0
F31: 1.2.0
G32: Добавить
F33: 2 | G33: Аренда автотранспортных средств Всего, в том числе: | U33: =SUM(U34:U35) -> 0 | X33: =SUM(X34:X35) -> 0 | Y33: =SUM(Y34:Y35) -> 0 | Z33: =SUM(Z34:Z35) -> 0 | AA33: =SUM(AA34:AA35)/2 -> 0 | AB33: =SUM(AB34:AB35)/2 -> 0 | AC33: =SUM(AC34:AC35)/2 -> 0 | AD33: =SUM(AD34:AD35)/2 -> 0
F34: 2.0
G35: Добавить
F36: 3 | G36: Аренда (прочее) Всего, в том числе: | U36: =SUM(U37:U38) -> 0 | X36: =SUM(X37:X38) -> 0 | Y36: =SUM(Y37:Y38) -> 0 | Z36: =SUM(Z37:Z38) -> 0 | AA36: =SUM(AA37:AA38)/2 -> 0 | AB36: =SUM(AB37:AB38)/2 -> 0 | AC36: =SUM(AC37:AC38)/2 -> 0 | AD36: =SUM(AD37:AD38)/2 -> 0
F37: 3.0
G38: Добавить
F39: 4 | G39: Итого | U39: =U26+U33+U36 -> 0 | X39: =X26+X33+X36 -> 0 | Y39: 0 | Z39: 0 | AA39: 0 | AB39: 0 | AC39: 0 | AD39: 0
F42: Примечание:
F43: ="*Указать комментарий по плановому периоду ("&Титульный!E23&" год)" -> *Указать комментарий по плановому периоду ( год)
F44: 1) ссылка на документы, подтверждающие/обосновывающие плановые расходы
F45: 2) ссылка на локально-нормативные акты организации (приказы и пр.) - при наличии.

Sheet modRENT_OTHER_PLAN (hidden)

Sheet 27_Лизинг прочее им. факт (hidden)
A1: =IFERROR(IF(region_name="Пермский край","HIDDEN","VISIBLE"),0) -> VISIBLE | V1: =IFERROR(IF(REPORT_OWNER="Версия организации","HIDDEN","VISIBLE"),0) -> HIDDEN | Y1: Добавить группировку, что бы + - можно было скрыть и отобразить
F9: Список листов
F10: ="Форма для представления сведений по лизингу прочего имущества за " & god - 2 &" год, участвующего в деятельности по передаче электрической энергии" -> Форма для представления сведений по лизингу прочего имущества за -2 год, участвующего в деятельности по передаче электрической энергии
Y14: -
F20: № п/п | G20: № договора | H20: Договор учтен в ИПР (да/нет) | I20: Дата договора | J20: Лизингодатель | K20: Собственник объектов, взятых в лизинг | O20: № доп. соглашения | P20: Дата доп. соглашения | Q20: Статус документа - зарегистрирован в Росреестре (да/нет/ получен отказ в регистрации) | R20: Объект, адрес объекта | S20: Площадь | T20: Назначение | U20: ="Лизинг прочего имущества на " & god - 2 &" год, утверждено,тыс. руб." -> Лизинг прочего имущества на -2 год, утверждено,тыс. руб. | V20: =god &" год факт версия регулятора,тыс. руб." -> год факт версия регулятора,тыс. руб. | W20: ="Сумма лизинговых платежей по прочему имуществу за " & god - 2 &" год, тыс. руб. (без НДС)" -> Сумма лизинговых платежей по прочему имуществу за -2 год, тыс. руб. (без НДС) | AE20: Комментарии*
W21: =god - 2 &", факт (отражен в отчете об исполнении сметы расходов за " & god - 2 &" год)" -> -2, факт (отражен в отчете об исполнении сметы расходов за -2 год) | X21: =god - 2 &" факт, подтвержденный первичными документами (договоры/акты и пр.)" -> -2 факт, подтвержденный первичными документами (договоры/акты и пр.) | Y21: =god - 2 &" факт, подтвержденный бухгалтерскими документами (оборотно-сальдовые ведомости, карточки счетов)" -> -2 факт, подтвержденный бухгалтерскими документами (оборотно-сальдовые ведомости, карточки счетов)
Y22: Всего | Z22: Прямые расходы | AA22: Косвенные общепроизводственные расходы, отнесенные на деятельность по передаче э/э | AB22: Фактический процент распределения расходов на деятельность по передаче э/э | AC22: Косвенные общехозяйственные расходы, отнесенные на деятельность по передаче э/э | AD22: Фактический процент распределения расходов на деятельность по передаче э/э
F26: 1 | G26: Лизинг нежилых помещений Всего, в том числе: | S26: =SUM(S27,S30) -> 0 | V26: =SUM(V27,V30) -> 0 | W26: 0 | X26: 0 | Y26: 0 | Z26: 0 | AA26: 0 | AC26: =SUM(AC27,AC30) -> 0 | AD26: =SUM(AD27,AD30) -> 0
F27: 1.1 | G27: Производственные помещения | S27: =SUM(S28:S29) -> 0 | V27: =SUM(V28:V29) -> 0 | W27: =SUM(W28:W29) -> 0 | X27: =SUM(X28:X29) -> 0 | Y27: =SUM(Z27:AA27)+AC27 -> 0 | Z27: =SUM(Z28:Z29) -> 0 | AA27: =SUM(AA28:AA29) -> 0 | AC27: =SUM(AC28:AC29) -> 0 | AD27: =SUM(AD28:AD29) -> 0
F28: 1.1.0
G29: Добавить
F30: 1.2 | G30: Непроизводственные помещения | S30: =SUM(S31:S32) -> 0 | V30: =SUM(V31:V32) -> 0 | W30: =SUM(W31:W32) -> 0 | X30: =SUM(X31:X32) -> 0 | Y30: =SUM(Z30:AA30)+AC30 -> 0
F31: 1.2.0
G32: Добавить
F33: 2 | G33: Лизинг автотранспортных средств Всего, в том числе: | S33: =SUM(S34:S35) -> 0 | V33: =SUM(V34:V35) -> 0 | W33: =SUM(W34:W35) -> 0 | X33: =SUM(X34:X35) -> 0 | Y33: =SUM(Z33:AA33)+AC33 -> 0
F34: 2.0
G35: Добавить
F36: 3 | G36: Лизинг (прочее) Всего, в том числе: | S36: =SUM(S37:S38) -> 0 | V36: =SUM(V37:V38) -> 0 | W36: =SUM(W37:W38) -> 0 | X36: =SUM(X37:X38) -> 0 | Y36: =SUM(Z36:AA36)+AC36 -> 0
F37: 3.0
G38: Добавить
F39: 4 | G39: Итого | S39: =S26+S33+S36 -> 0 | U39: =U36+U33+U26 -> 0 | V39: =V26+V33+V36 -> 0 | W39: 0 | X39: 0 | Y39: 0 | Z39: 0 | AA39: 0 | AC39: =AC26+AC33+AC36 -> 0
F41: Примечание:
F42: ="*Указать комментарий по фактически завершенному периоду ("&Титульный!E23-2&" год)" -> *Указать комментарий по фактически завершенному периоду (-2 год)
F43: 1) в случае отличия факта, отраженного в смете затрат от показателей, подтвержденных бухгалтерскими документами - указать обоснование

Sheet modLEASING_OTHER_FACT (hidden)

Sheet 28_Лизинг прочее им. план (hidden)
A1: =IFERROR(IF(region_name="Пермский край","HIDDEN","VISIBLE"),0) -> VISIBLE
F9: Список листов
F10: ="Форма для представления сведений по лизингу прочего имущества на "& god &" год, участвующего в деятельности по передаче электрической энергии " -> Форма для представления сведений по лизингу прочего имущества на год, участвующего в деятельности по передаче электрической энергии
F20: № п/п | G20: № договора | H20: Договор учтен в ИПР (да/нет) | I20: Дата договора | J20: Лизингодатель | K20: Собственник объектов, взятых в лизинг | O20: № доп. соглашения | P20: Дата доп. соглашения | Q20: Статус документа - зарегистрирован в Росреестре (да/нет/ получен отказ в регистрации) | R20: Объект, адрес объекта | S20: Площадь | T20: Назначение | U20: ="Лизинг прочего имущества " & god - 1 &" год, утверждено,тыс. руб." -> Лизинг прочего имущества -1 год, утверждено,тыс. руб. | V20: ="Сумма лизинговых платежей на "&god&" год, тыс. руб. (без НДС)" -> Сумма лизинговых платежей на год, тыс. руб. (без НДС) | W20: ="Сумма лизинговых платежей на "&(god)&" год версия регулятора, тыс. руб. (без НДС)" -> Сумма лизинговых платежей на год версия регулятора, тыс. руб. (без НДС) | X20: Комментарии*
F26: 1 | G26: Лизинг нежилых помещений Всего, в том числе: | S26: =SUM(S27,S30) -> 0 | V26: =SUM(V27,V30) -> 0 | W26: =SUM(W27,W30) -> 0
F27: 1.1 | G27: Производственные помещения | S27: =SUM(S28:S29) -> 0 | V27: =SUM(V28:V29) -> 0 | W27: =SUM(W28:W29) -> 0
F28: 1.1.0
G29: Добавить
F30: 1.2 | G30: Непроизводственные помещения | S30: =SUM(S31:S32) -> 0 | V30: =SUM(V31:V32) -> 0 | W30: =SUM(W31:W32) -> 0
F31: 1.2.0
G32: Добавить
F33: 2 | G33: Лизинг автотранспортных средств Всего, в том числе: | S33: =SUM(S34:S35) -> 0 | V33: =SUM(V34:V35) -> 0 | W33: =SUM(W34:W35) -> 0
F34: 2.0
G35: Добавить
F36: 3 | G36: Лизинг (прочее) Всего, в том числе: | S36: =SUM(S37:S38) -> 0 | V36: =SUM(V37:V38) -> 0 | W36: =SUM(W37:W38) -> 0
F37: 3.0
G38: Добавить
F39: 4 | G39: Итого | S39: =S26+S33+S36 -> 0 | U39: =U36+U33+U26 -> 0 | V39: =V26+V33+V36 -> 0 | W39: =W26+W33+W36 -> 0
F43: Примечание:
F44: ="*Указать комментарий по плановому периоду ("&Титульный!E23&" год)" -> *Указать комментарий по плановому периоду ( год)

Sheet modLEASING_OTHER_PLAN (hidden)

Sheet modRENT_FACT (hidden)

Sheet 29_Аренда земли факт (hidden)
K1: Дополнительное соглашение/договор в исходной редакции
F9: Список листов
F10: ="Форма для представления сведений по аренде земли за "&(god-2)&" год" -> Форма для представления сведений по аренде земли за -2 год
F20: № п/п | G20: Объект аренды | H20: Вид документа | I20: № договора | J20: Предмет договора | K20: Арендодатель | L20: Собственник арендованной земли (полное наименование) | M20: Дата подписания договора | Q20: № доп. соглашения (если применимо) | R20: Дата подписания доп. соглашения (если применимо) | S20: Предмет доп. соглашения (если применимо) | T20: Дата начала действия договора / доп. соглашения | U20: Дата окончания действия договора / доп. соглашения | V20: Цели эксплуатации | W20: Статус документа - зарегистрирован в Росреестре (да/нет/ получен отказ в регистрации) | X20: Объекты аренды | Y20: Адрес объектов аренды | Z20: Форма аренды | AA20: ="Расходы за "&(god-2)&" год, относящиеся на передачу ээ, тыс.руб" -> Расходы за -2 год, относящиеся на передачу ээ, тыс.руб | AB20: Площадь | AC20: Комментарии*
F25: 0
G26: Добавить
G27: Итого | AA27: =SUM(AA25:AA26) -> 0
F32: Примечание:
F34: ="*Указать комментарий по фактически завершенному периоду ("&Титульный!E23-2&" год)" -> *Указать комментарий по фактически завершенному периоду (-2 год)
F35: 1) в случае отличия факта, отраженного в смете затрат от показателей, подтвержденных бухгалтерскими документами - указать обоснование
F36: 2) ссылка на документы, подтверждающие/обосновывающие фактические расходы
F37: 3) ссылка на локально-нормативные акты организации (приказы и пр.) - при наличии.

Sheet 30_Аренда земли план (hidden)
K1: Дополнительное соглашение/договор в исходной редакции | AC1: =IFERROR(IF(REPORT_OWNER="Версия организации","HIDDEN","VISIBLE"),0) -> HIDDEN
F9: Список листов
F10: ="Форма для представления сведений по аренде земли за "&(god)&" год" -> Форма для представления сведений по аренде земли за год
F20: № п/п | G20: Объект аренды | H20: Вид документа | I20: № договора | J20: Предмет договора | K20: Арендодатель | L20: Собственник арендованной земли (полное наименование) | M20: Дата подписания договора | Q20: № доп. соглашения (если применимо) | R20: Дата подписания доп. соглашения (если применимо) | S20: Предмет доп. соглашения (если применимо) | T20: Доп. соглашение к договору на передачу э/э на включение точек поставки | U20: Дата начала действия договора / доп. соглашения | V20: Дата окончания действия договора / доп. соглашения | W20: Цели эксплуатации | X20: Статус документа - зарегистрирован в Росреестре (да/нет/ получен отказ в регистрации) | Y20: Объекты аренды | Z20: Адрес объектов аренды | AA20: Форма аренды | AB20: Площадь участка под объектом | AC20: Кадастровая стоимость | AD20: Кадастровый номер | AE20: Ставка налога | AF20: =Титульный!E23&", предожение организации" -> , предожение организации | AI20: Комментарии*
AB23: кв.м | AC23: тыс.руб | AE23: % | AF23: тыс.руб
F25: 0
G26: Добавить
G27: Итого | AF27: =SUM(AF25:AF26) -> 0
F32: Примечание:
F34: ="*Указать комментарий по фактически текущему периоду "&Титульный!E23&" год" -> *Указать комментарий по фактически текущему периоду год
F35: 1) в случае отличия факта, отраженного в смете затрат от показателей, подтвержденных бухгалтерскими документами - указать обоснование
F36: 2) ссылка на документы, подтверждающие/обосновывающие фактические расходы
F37: 3) ссылка на локально-нормативные акты организации (приказы и пр.) - при наличии.

Sheet modRENT_PLAN (hidden)

Sheet modNPR (hidden)

Sheet 31_Прочие НПР (hidden)
N1: =IFERROR(IF(REPORT_OWNER="Версия организации","HIDDEN","VISIBLE"),0) -> HIDDEN | T1: HIDDEN | U1: HIDDEN | X1: =IFERROR(IF(REPORT_OWNER="Версия организации","HIDDEN","VISIBLE"),0) -> HIDDEN
D7: Список листов
K8: =IF(god="","Не определено",god+4) -> Не определено | L8: =IF(god="","Не определено",god+5) -> Не определено | M8: =IF(god="","Не определено",god+5) -> Не определено | N8: =IF(god="","Не определено",god+5) -> Не определено | U8: =IF(god="","Не определено",god+5) -> Не определено | V8: =IF(god="","Не определено",god+6) -> Не определено | W8: =IF(god="","Не определено",god+7) -> Не определено | X8: =IF(god="","Не определено",god+7) -> Не определено
D10: Расшифровка неподконтрольных расходов
Y12: Комментарии и примечания (не будут загружены в БД)
D13: № п/п | E13: Показатели, тыс.руб. | I13: Наименование затрат | K13: Договоры/доп. соглашения/ при заполнении факта дополнительно - акты выполненных работ * | L13: =Титульный!E23-2&", утверждено" -> -2, утверждено | M13: =Титульный!E23-2&", факт (отражен в отчете об исполнении сметы расходов за "&Титульный!E23-2&" год)" -> -2, факт (отражен в отчете об исполнении сметы расходов за -2 год) | N13: =Титульный!E23-2&", факт версия регулятора" -> -2, факт версия регулятора | O13: =Титульный!E23-2&" факт, подтвержденный первичными документами (договоры/акты и пр.)" -> -2 факт, подтвержденный первичными документами (договоры/акты и пр.) | P13: =Титульный!E23-2&" факт, подтвержденный первичными документами (договоры/акты и пр.)" -> -2 факт, подтвержденный первичными документами (договоры/акты и пр.) | V13: =Титульный!E23-1&", утверждено" -> -1, утверждено | W13: =Титульный!E23&", предожение" -> , предожение | X13: =Титульный!E23&", версия регулятора" -> , версия регулятора
D14: № п/п | E14: Показатели, тыс.руб. | L14: 2016 год план (утверждённый органами регулирования) | M14: 2016 факт (отражен в отчете об исполнении сметы расходов за 2016 год) | N14: 2016 факт (отражен в отчете об исполнении сметы расходов за 2016 год) | O14: 2016, факт (отражен в отчете об исполнении сметы расходов за 2016 год) | P14: Всего | Q14: Прямые расходы | R14: Косвенные общехозяйственные расходы, отнесенные на деятельность по передаче э/э | S14: Фактический процент распределения расходов на деятельность по передаче э/э | V14: 2017 год план (утверждённый органами регулирования) | W14: 2018 год план | X14: 2018 год план
E16: Прочие неподконтрольные расходы Всего, в том числе: | L16: =SUM(L18:L20) -> 0 | M16: 0 | N16: 0 | O16: 0 | P16: 0 | Q16: 0 | R16: 0 | V16: =SUM(V18:V20) -> 0 | W16: =SUM(W18:W20) -> 0 | X16: =SUM(X18:X20) -> 0
D17: =D16 & ".0" -> .0
C18: О | D18: 1 | E18: Расходы на обслуживание заемных средств на капитальные вложения | L18: 0 | M18: 0 | N18: ='44_кредиты'!M23 -> 0 | P18: =SUM(Q18:R18,T18) -> 0
D19: 1
E20: Добавить расход

Sheet modCalcAmortFact (hidden)

Sheet 32_Расчет амортизации факт (hidden)
F1: Вернуться к перечню форм | AI1: =IFERROR(IF(REPORT_OWNER="Версия организации","HIDDEN","VISIBLE"),0) -> HIDDEN
F9: Список листов
G10: ="Расчет амортизационных отчислений за "&(god-2)&"-"&(god-1)&" по основным средствам, находящимся в собственности организации и участвующих в деятельности по передаче электрической энергии" -> Расчет амортизационных отчислений за -2--1 по основным средствам, находящимся в собственности организации и участвующих в деятельности по передаче электрической энергии
F12: № п/п | G12: Наименование основного средства | H12: Амортизационная группа (в соответствии с классификацией ОС, включаемых в амортизационные группы) | I12: Инвентарный номер | J12: Технический столбцец | K12: Вид объекта сетевого хозяйства | L12: Уровень напряжения | M12: Адрес | N12: Инв. номер группы (если применимо) | O12: Дата ввода в эксплуатацию | P12: Балансовая (первоначальная) стоимость при вводе в эксплуатацию | Q12: Срок полезного использования при вводе в эксплуатацию | R12: ="По состоянию на 01.01."&(god-2)&" (31.12."&(god-3)&")" -> По состоянию на 01.01.-2 (31.12.-3) | V12: ="Изменение балансовой стоимости за "&(god-2)&" год" -> Изменение балансовой стоимости за -2 год | X12: ="Начисленная амортизация за "&(god-2)&" год" -> Начисленная амортизация за -2 год | AD12: ="По состоянию на 01.01."&(god-1)&" (31.12."&(god-2)&")" -> По состоянию на 01.01.-1 (31.12.-2) | AG12: ="Налог на имущество - "&(god-2)&", утверждено" -> Налог на имущество - -2, утверждено | AH12: ="Налог на имущество - "&(god-2)&", факт (отражен в отчете об исполнении сметы расходов за "&(god-2)&" год)" -> Налог на имущество - -2, факт (отражен в отчете об исполнении сметы расходов за -2 год) | AI12: ="Налог на имущество - "&(god-2)&", факт версия регулятора" -> Налог на имущество - -2, факт версия регулятора | AJ12: ="Налог на имущество - "&(god-2)&" факт, подтвержденный бухгалтерскими документами (оборотно-сальдовые ведомости, карточки счетов, налоговые декларации)" -> Налог на имущество - -2 факт, подтвержденный бухгалтерскими документами (оборотно-сальдовые ведомости, карточки счетов, налоговые декларации) | AO12: ="Амортизация за "&(god-1)&" год, утверждено" -> Амортизация за -1 год, утверждено | AP12: ="Налог на имущество - "&(god-1)&", утверждено" -> Налог на имущество - -1, утверждено
R13: балансовая стоимость | S13: накопленная амортизация (Всего с момента ввода в эксплуатацию) | T13: остаточная стоимость | U13: срок полезного использования (остаточный) | V13: введено, в т.ч. по модернизации и реконструкции | W13: выбыло | X13: Величина амортизационных отчислений в год, утверждено | Y13: Фактическая величина амортизационных отчислений в месяц | Z13: Величина амортизационных отчислений за 12 месяцев | AA13: Сумма фактически начисленной амортизации (по данным бухгалтерского учета) | AB13: процент отнесения на передачу э/э | AC13: Сумма фактически начисленной амортизации, отнесенной на передачу э/э | AD13: балансовая стоимость | AE13: остаточная стоимость | AF13: срок полезного использования (остаточный) | AJ13: Среднегодовая стоимость имущества | AK13: Ставка налога | AL13: Всего | AM13: Фактический процент распределения расходов на деятельность по передаче э/э | AN13: Расходы, отнесенные на деятельность по передаче э/э
P14: тыс.руб. | Q14: мес. | R14: тыс.руб. | S14: тыс.руб. | T14: тыс.руб. | U14: мес. | V14: тыс.руб. | W14: тыс.руб. | X14: тыс.руб. | Y14: тыс.руб. | Z14: тыс.руб. | AA14: тыс.руб. | AB14: % | AC14: тыс.руб. | AD14: тыс.руб. | AE14: тыс.руб. | AF14: мес. | AG14: тыс.руб. | AH14: тыс.руб. | AI14: руб. | AJ14: тыс.руб. | AK14: % | AL14: тыс.руб. | AM14: % | AN14: тыс.руб. | AO14: тыс.руб. | AP14: тыс.руб.
F19: 0
G20: Добавить
G21: Итого (тыс. руб.) | P21: =SUM(P19:P20) -> 0 | R21: =SUM(R19:R20) -> 0 | S21: =SUM(S19:S20) -> 0 | T21: =SUM(T19:T20) -> 0 | V21: =SUM(V19:V20) -> 0 | W21: =SUM(W19:W20) -> 0 | Y21: =SUM(Y19:Y20) -> 0 | Z21: =SUM(Z19:Z20) -> 0 | AA21: =SUM(AA19:AA20) -> 0 | AC21: =SUM(AC19:AC20) -> 0 | AD21: =SUM(AD19:AD20) -> 0 | AE21: =SUM(AE19:AE20) -> 0 | AH21: =SUM(AH19:AH20) -> 0 | AI21: =SUM(AI19:AI20) -> 0 | AJ21: =SUM(AJ19:AJ20) -> 0 | AL21: =SUM(AL19:AL20) -> 0 | AN21: =SUM(AN19:AN20) -> 0
G23: Итого Прочие и прочее ЭСХ (тыс. руб.) | J23: Прочее | P23: =SUMIF($J$19:$J$20,$J$23,P$19:P$20)+SUMIF($J$19:$J$20,"ЭСХнет",P$19:P$20) -> 0 | R23: =SUMIF($J$19:$J$20,$J$23,R$19:R$20)+SUMIF($J$19:$J$20,"ЭСХнет",R$19:R$20) -> 0 | S23: =SUMIF($J$19:$J$20,$J$23,S$19:S$20)+SUMIF($J$19:$J$20,"ЭСХнет",S$19:S$20) -> 0 | T23: =SUMIF($J$19:$J$20,$J$23,T$19:T$20)+SUMIF($J$19:$J$20,"ЭСХнет",T$19:T$20) -> 0 | V23: =SUMIF($J$19:$J$20,$J$23,V$19:V$20)+SUMIF($J$19:$J$20,"ЭСХнет",V$19:V$20) -> 0 | W23: =SUMIF($J$19:$J$20,$J$23,W$19:W$20)+SUMIF($J$19:$J$20,"ЭСХнет",W$19:W$20) -> 0 | Y23: =SUMIF($J$19:$J$20,$J$23,Y$19:Y$20)+SUMIF($J$19:$J$20,"ЭСХнет",Y$19:Y$20) -> 0 | Z23: =SUMIF($J$19:$J$20,$J$23,Z$19:Z$20)+SUMIF($J$19:$J$20,"ЭСХнет",Z$19:Z$20) -> 0 | AA23: =SUMIF($J$19:$J$20,$J$23,AA$19:AA$20)+SUMIF($J$19:$J$20,"ЭСХнет",AA$19:AA$20) -> 0 | AC23: =SUMIF($J$19:$J$20,$J$23,AC$19:AC$20)+SUMIF($J$19:$J$20,"ЭСХнет",AC$19:AC$20) -> 0 | AD23: =SUMIF($J$19:$J$20,$J$23,AD$19:AD$20)+SUMIF($J$19:$J$20,"ЭСХнет",AD$19:AD$20) -> 0 | AE23: =SUMIF($J$19:$J$20,$J$23,AE$19:AE$20)+SUMIF($J$19:$J$20,"ЭСХнет",AE$19:AE$20) -> 0 | AH23: =SUMIF($J$19:$J$20,$J$23,AH$19:AH$20)+SUMIF($J$19:$J$20,"ЭСХнет",AH$19:AH$20) -> 0 | AI23: =SUMIF($J$19:$J$20,$J$23,AI$19:AI$20)+SUMIF($J$19:$J$20,"ЭСХнет",AI$19:AI$20) -> 0 | AJ23: =SUMIF($J$19:$J$20,$J$23,AJ$19:AJ$20)+SUMIF($J$19:$J$20,"ЭСХнет",AJ$19:AJ$20) -> 0 | AL23: =SUMIF($J$19:$J$20,$J$23,AL$19:AL$20)+SUMIF($J$19:$J$20,"ЭСХнет",AL$19:AL$20) -> 0 | AN23: =SUMIF($J$19:$J$20,$J$23,AN$19:AN$20)+SUMIF($J$19:$J$20,"ЭСХнет",AN$19:AN$20) -> 0
G24: Итого по ВН (тыс. руб.) | J24: ЭСХВН | P24: =SUMIF($J$19:$J$20,$J$24,P$19:P$20) -> 0 | R24: =SUMIF($J$19:$J$20,$J$24,R$19:R$20) -> 0 | S24: =SUMIF($J$19:$J$20,$J$24,S$19:S$20) -> 0 | T24: =SUMIF($J$19:$J$20,$J$24,T$19:T$20) -> 0 | V24: =SUMIF($J$19:$J$20,$J$24,V$19:V$20) -> 0 | W24: =SUMIF($J$19:$J$20,$J$24,W$19:W$20) -> 0 | Y24: =SUMIF($J$19:$J$20,$J$24,Y$19:Y$20) -> 0 | Z24: =SUMIF($J$19:$J$20,$J$24,Z$19:Z$20) -> 0 | AA24: =SUMIF($J$19:$J$20,$J$24,AA$19:AA$20) -> 0 | AC24: =SUMIF($J$19:$J$20,$J$24,AC$19:AC$20) -> 0 | AD24: =SUMIF($J$19:$J$20,$J$24,AD$19:AD$20) -> 0 | AE24: =SUMIF($J$19:$J$20,$J$24,AE$19:AE$20) -> 0 | AH24: =SUMIF($J$19:$J$20,$J$24,AH$19:AH$20) -> 0 | AI24: =SUMIF($J$19:$J$20,$J$24,AI$19:AI$20) -> 0 | AJ24: =SUMIF($J$19:$J$20,$J$24,AJ$19:AJ$20) -> 0 | AL24: =SUMIF($J$19:$J$20,$J$24,AL$19:AL$20) -> 0 | AN24: =SUMIF($J$19:$J$20,$J$24,AN$19:AN$20) -> 0
G25: Итого по СН1 (тыс. руб.) | J25: ЭСХСН1 | P25: =SUMIF($J$19:$J$20,$J$25,P$19:P$20) -> 0 | R25: =SUMIF($J$19:$J$20,$J$25,R$19:R$20) -> 0 | S25: =SUMIF($J$19:$J$20,$J$25,S$19:S$20) -> 0 | T25: =SUMIF($J$19:$J$20,$J$25,T$19:T$20) -> 0 | V25: =SUMIF($J$19:$J$20,$J$25,V$19:V$20) -> 0 | W25: =SUMIF($J$19:$J$20,$J$25,W$19:W$20) -> 0 | Y25: =SUMIF($J$19:$J$20,$J$25,Y$19:Y$20) -> 0 | Z25: =SUMIF($J$19:$J$20,$J$25,Z$19:Z$20) -> 0 | AA25: =SUMIF($J$19:$J$20,$J$25,AA$19:AA$20) -> 0 | AC25: =SUMIF($J$19:$J$20,$J$25,AC$19:AC$20) -> 0 | AD25: =SUMIF($J$19:$J$20,$J$25,AD$19:AD$20) -> 0 | AE25: =SUMIF($J$19:$J$20,$J$25,AE$19:AE$20) -> 0 | AH25: =SUMIF($J$19:$J$20,$J$25,AH$19:AH$20) -> 0 | AI25: =SUMIF($J$19:$J$20,$J$25,AI$19:AI$20) -> 0 | AJ25: =SUMIF($J$19:$J$20,$J$25,AJ$19:AJ$20) -> 0 | AL25: =SUMIF($J$19:$J$20,$J$25,AL$19:AL$20) -> 0 | AN25: =SUMIF($J$19:$J$20,$J$25,AN$19:AN$20) -> 0
G26: Итого по СН2 (тыс. руб.) | J26: ЭСХСН2 | P26: =SUMIF($J$19:$J$20,$J$26,P$19:P$20) -> 0 | R26: =SUMIF($J$19:$J$20,$J$26,R$19:R$20) -> 0 | S26: =SUMIF($J$19:$J$20,$J$26,S$19:S$20) -> 0 | T26: =SUMIF($J$19:$J$20,$J$26,T$19:T$20) -> 0 | V26: =SUMIF($J$19:$J$20,$J$26,V$19:V$20) -> 0 | W26: =SUMIF($J$19:$J$20,$J$26,W$19:W$20) -> 0 | Y26: =SUMIF($J$19:$J$20,$J$26,Y$19:Y$20) -> 0 | Z26: =SUMIF($J$19:$J$20,$J$26,Z$19:Z$20) -> 0 | AA26: =SUMIF($J$19:$J$20,$J$26,AA$19:AA$20) -> 0 | AC26: =SUMIF($J$19:$J$20,$J$26,AC$19:AC$20) -> 0 | AD26: =SUMIF($J$19:$J$20,$J$26,AD$19:AD$20) -> 0 | AE26: =SUMIF($J$19:$J$20,$J$26,AE$19:AE$20) -> 0 | AH26: =SUMIF($J$19:$J$20,$J$26,AH$19:AH$20) -> 0 | AI26: =SUMIF($J$19:$J$20,$J$26,AI$19:AI$20) -> 0 | AJ26: =SUMIF($J$19:$J$20,$J$26,AJ$19:AJ$20) -> 0 | AL26: =SUMIF($J$19:$J$20,$J$26,AL$19:AL$20) -> 0 | AN26: =SUMIF($J$19:$J$20,$J$26,AN$19:AN$20) -> 0
G27: Итого по НН (тыс. руб.) | J27: ЭСХНН | P27: =SUMIF($J$19:$J$20,$J$27,P$19:P$20) -> 0 | R27: =SUMIF($J$19:$J$20,$J$27,R$19:R$20) -> 0 | S27: =SUMIF($J$19:$J$20,$J$27,S$19:S$20) -> 0 | T27: =SUMIF($J$19:$J$20,$J$27,T$19:T$20) -> 0 | V27: =SUMIF($J$19:$J$20,$J$27,V$19:V$20) -> 0 | W27: =SUMIF($J$19:$J$20,$J$27,W$19:W$20) -> 0 | Y27: =SUMIF($J$19:$J$20,$J$27,Y$19:Y$20) -> 0 | Z27: =SUMIF($J$19:$J$20,$J$27,Z$19:Z$20) -> 0 | AA27: =SUMIF($J$19:$J$20,$J$27,AA$19:AA$20) -> 0 | AC27: =SUMIF($J$19:$J$20,$J$27,AC$19:AC$20) -> 0 | AD27: =SUMIF($J$19:$J$20,$J$27,AD$19:AD$20) -> 0 | AE27: =SUMIF($J$19:$J$20,$J$27,AE$19:AE$20) -> 0 | AH27: =SUMIF($J$19:$J$20,$J$27,AH$19:AH$20) -> 0 | AI27: =SUMIF($J$19:$J$20,$J$27,AI$19:AI$20) -> 0 | AJ27: =SUMIF($J$19:$J$20,$J$27,AJ$19:AJ$20) -> 0 | AL27: =SUMIF($J$19:$J$20,$J$27,AL$19:AL$20) -> 0 | AN27: =SUMIF($J$19:$J$20,$J$27,AN$19:AN$20) -> 0
G28: Итого (тыс. руб.) | P28: =SUM(P24:P27)+P23 -> 0 | R28: =SUM(R24:R27)+R23 -> 0 | S28: =SUM(S24:S27)+S23 -> 0 | T28: =SUM(T24:T27)+T23 -> 0 | V28: =SUM(V24:V27)+V23 -> 0 | W28: =SUM(W24:W27)+W23 -> 0 | X28: =X21 -> 0 | Y28: =SUM(Y24:Y27)+Y23 -> 0 | Z28: =SUM(Z24:Z27)+Z23 -> 0 | AA28: =SUM(AA24:AA27)+AA23 -> 0 | AC28: =SUM(AC24:AC27)+AC23 -> 0 | AD28: =SUM(AD24:AD27)+AD23 -> 0 | AE28: =SUM(AE24:AE27)+AE23 -> 0 | AG28: =AG21 -> 0 | AH28: =SUM(AH24:AH27)+AH23 -> 0 | AI28: =SUM(AI24:AI27)+AI23 -> 0 | AJ28: =SUM(AJ24:AJ27)+AJ23 -> 0 | AL28: =SUM(AL24:AL27)+AL23 -> 0 | AN28: =SUM(AN24:AN27)+AN23 -> 0 | AO28: =AO21 -> 0 | AP28: =AP21 -> 0

Sheet 32_Расчет амортизации факт макс (hidden)
F1: Вернуться к перечню форм | AI1: =IFERROR(IF(REPORT_OWNER="Версия организации","HIDDEN","VISIBLE"),0) -> HIDDEN
F9: Список листов
G10: ="Расчет амортизационных отчислений за "&(god-2)&"-"&(god-1)&" по основным средствам, находящимся в собственности организации и участвующих в деятельности по передаче электрической энергии" -> Расчет амортизационных отчислений за -2--1 по основным средствам, находящимся в собственности организации и участвующих в деятельности по передаче электрической энергии
F12: № п/п | G12: Наименование основного средства | H12: Амортизационная группа (в соответствии с классификацией ОС, включаемых в амортизационные группы) | I12: Инвентарный номер | J12: Технический столбцец | K12: Вид объекта сетевого хозяйства | L12: Уровень напряжения | M12: Адрес | N12: Инв. номер группы (если применимо) | O12: Дата ввода в эксплуатацию | P12: Балансовая (первоначальная) стоимость при вводе в эксплуатацию | Q12: Срок полезного использования - максимальный | R12: ="По состоянию на 01.01."&(god-2)&" (31.12."&(god-3)&")" -> По состоянию на 01.01.-2 (31.12.-3) | V12: ="Изменение балансовой стоимости за "&(god-2)&" год" -> Изменение балансовой стоимости за -2 год | X12: ="Начисленная амортизация за "&(god-2)&" год" -> Начисленная амортизация за -2 год | AD12: ="По состоянию на 01.01."&(god-1)&" (31.12."&(god-2)&")" -> По состоянию на 01.01.-1 (31.12.-2) | AG12: ="Налог на имущество - "&(god-2)&", утверждено" -> Налог на имущество - -2, утверждено | AH12: ="Налог на имущество - "&(god-2)&", факт (отражен в отчете об исполнении сметы расходов за "&(god-2)&" год)" -> Налог на имущество - -2, факт (отражен в отчете об исполнении сметы расходов за -2 год) | AI12: ="Налог на имущество - "&(god-2)&", факт версия регулятора" -> Налог на имущество - -2, факт версия регулятора | AJ12: ="Налог на имущество - "&(god-2)&" факт, подтвержденный бухгалтерскими документами (оборотно-сальдовые ведомости, карточки счетов, налоговые декларации)" -> Налог на имущество - -2 факт, подтвержденный бухгалтерскими документами (оборотно-сальдовые ведомости, карточки счетов, налоговые декларации) | AO12: ="Амортизация за "&(god-1)&" год, утверждено" -> Амортизация за -1 год, утверждено | AP12: ="Налог на имущество - "&(god-1)&", утверждено" -> Налог на имущество - -1, утверждено
R13: балансовая стоимость | S13: накопленная амортизация (Всего с момента ввода в эксплуатацию) | T13: остаточная стоимость | U13: срок полезного использования (остаточный) | V13: введено, в т.ч. по модернизации и реконструкции | W13: выбыло | X13: Величина амортизационных отчислений в год, утверждено | Y13: Фактическая величина амортизационных отчислений в месяц | Z13: Величина амортизационных отчислений за 12 месяцев | AA13: Сумма фактически начисленной амортизации (по данным бухгалтерского учета) | AB13: процент отнесения на передачу э/э | AC13: Сумма фактически начисленной амортизации, отнесенной на передачу э/э | AD13: балансовая стоимость | AE13: остаточная стоимость | AF13: срок полезного использования (остаточный) | AJ13: Среднегодовая стоимость имущества | AK13: Ставка налога | AL13: Всего | AM13: Фактический процент распределения расходов на деятельность по передаче э/э | AN13: Расходы, отнесенные на деятельность по передаче э/э
P14: тыс.руб. | Q14: мес. | R14: тыс.руб. | S14: тыс.руб. | T14: тыс.руб. | U14: мес. | V14: тыс.руб. | W14: тыс.руб. | X14: тыс.руб. | Y14: тыс.руб. | Z14: тыс.руб. | AA14: тыс.руб. | AB14: % | AC14: тыс.руб. | AD14: тыс.руб. | AE14: тыс.руб. | AF14: мес. | AG14: тыс.руб. | AH14: тыс.руб. | AI14: руб. | AJ14: тыс.руб. | AK14: % | AL14: тыс.руб. | AM14: % | AN14: тыс.руб. | AO14: тыс.руб. | AP14: тыс.руб.
F19: 0
G20: Добавить
G21: Итого (тыс. руб.) | P21: =SUM(P19:P20) -> 0 | R21: =SUM(R19:R20) -> 0 | S21: =SUM(S19:S20) -> 0 | T21: =SUM(T19:T20) -> 0 | V21: =SUM(V19:V20) -> 0 | W21: =SUM(W19:W20) -> 0 | Y21: =SUM(Y19:Y20) -> 0 | Z21: =SUM(Z19:Z20) -> 0 | AA21: =SUM(AA19:AA20) -> 0 | AC21: =SUM(AC19:AC20) -> 0 | AD21: =SUM(AD19:AD20) -> 0 | AE21: =SUM(AE19:AE20) -> 0 | AH21: =SUM(AH19:AH20) -> 0 | AI21: =SUM(AI19:AI20) -> 0 | AJ21: =SUM(AJ19:AJ20) -> 0 | AL21: =SUM(AL19:AL20) -> 0 | AN21: =SUM(AN19:AN20) -> 0
G23: Итого Прочие и прочее ЭСХ (тыс. руб.) | J23: Прочее | P23: =SUMIF($J$19:$J$20,$J$23,P$19:P$20)+SUMIF($J$19:$J$20,"ЭСХнет",P$19:P$20) -> 0 | R23: =SUMIF($J$19:$J$20,$J$23,R$19:R$20)+SUMIF($J$19:$J$20,"ЭСХнет",R$19:R$20) -> 0 | S23: =SUMIF($J$19:$J$20,$J$23,S$19:S$20)+SUMIF($J$19:$J$20,"ЭСХнет",S$19:S$20) -> 0 | T23: =SUMIF($J$19:$J$20,$J$23,T$19:T$20)+SUMIF($J$19:$J$20,"ЭСХнет",T$19:T$20) -> 0 | V23: =SUMIF($J$19:$J$20,$J$23,V$19:V$20)+SUMIF($J$19:$J$20,"ЭСХнет",V$19:V$20) -> 0 | W23: =SUMIF($J$19:$J$20,$J$23,W$19:W$20)+SUMIF($J$19:$J$20,"ЭСХнет",W$19:W$20) -> 0 | Y23: =SUMIF($J$19:$J$20,$J$23,Y$19:Y$20)+SUMIF($J$19:$J$20,"ЭСХнет",Y$19:Y$20) -> 0 | Z23: =SUMIF($J$19:$J$20,$J$23,Z$19:Z$20)+SUMIF($J$19:$J$20,"ЭСХнет",Z$19:Z$20) -> 0 | AA23: =SUMIF($J$19:$J$20,$J$23,AA$19:AA$20)+SUMIF($J$19:$J$20,"ЭСХнет",AA$19:AA$20) -> 0 | AC23: =SUMIF($J$19:$J$20,$J$23,AC$19:AC$20)+SUMIF($J$19:$J$20,"ЭСХнет",AC$19:AC$20) -> 0 | AD23: =SUMIF($J$19:$J$20,$J$23,AD$19:AD$20)+SUMIF($J$19:$J$20,"ЭСХнет",AD$19:AD$20) -> 0 | AE23: =SUMIF($J$19:$J$20,$J$23,AE$19:AE$20)+SUMIF($J$19:$J$20,"ЭСХнет",AE$19:AE$20) -> 0 | AH23: =SUMIF($J$19:$J$20,$J$23,AH$19:AH$20)+SUMIF($J$19:$J$20,"ЭСХнет",AH$19:AH$20) -> 0 | AI23: =SUMIF($J$19:$J$20,$J$23,AI$19:AI$20)+SUMIF($J$19:$J$20,"ЭСХнет",AI$19:AI$20) -> 0 | AJ23: =SUMIF($J$19:$J$20,$J$23,AJ$19:AJ$20)+SUMIF($J$19:$J$20,"ЭСХнет",AJ$19:AJ$20) -> 0 | AL23: =SUMIF($J$19:$J$20,$J$23,AL$19:AL$20)+SUMIF($J$19:$J$20,"ЭСХнет",AL$19:AL$20) -> 0 | AN23: =SUMIF($J$19:$J$20,$J$23,AN$19:AN$20)+SUMIF($J$19:$J$20,"ЭСХнет",AN$19:AN$20) -> 0
G24: Итого по ВН (тыс. руб.) | J24: ЭСХВН | P24: =SUMIF($J$19:$J$20,$J$24,P$19:P$20) -> 0 | R24: =SUMIF($J$19:$J$20,$J$24,R$19:R$20) -> 0 | S24: =SUMIF($J$19:$J$20,$J$24,S$19:S$20) -> 0 | T24: =SUMIF($J$19:$J$20,$J$24,T$19:T$20) -> 0 | V24: =SUMIF($J$19:$J$20,$J$24,V$19:V$20) -> 0 | W24: =SUMIF($J$19:$J$20,$J$24,W$19:W$20) -> 0 | Y24: =SUMIF($J$19:$J$20,$J$24,Y$19:Y$20) -> 0 | Z24: =SUMIF($J$19:$J$20,$J$24,Z$19:Z$20) -> 0 | AA24: =SUMIF($J$19:$J$20,$J$24,AA$19:AA$20) -> 0 | AC24: =SUMIF($J$19:$J$20,$J$24,AC$19:AC$20) -> 0 | AD24: =SUMIF($J$19:$J$20,$J$24,AD$19:AD$20) -> 0 | AE24: =SUMIF($J$19:$J$20,$J$24,AE$19:AE$20) -> 0 | AH24: =SUMIF($J$19:$J$20,$J$24,AH$19:AH$20) -> 0 | AI24: =SUMIF($J$19:$J$20,$J$24,AI$19:AI$20) -> 0 | AJ24: =SUMIF($J$19:$J$20,$J$24,AJ$19:AJ$20) -> 0 | AL24: =SUMIF($J$19:$J$20,$J$24,AL$19:AL$20) -> 0 | AN24: =SUMIF($J$19:$J$20,$J$24,AN$19:AN$20) -> 0
G25: Итого по СН1 (тыс. руб.) | J25: ЭСХСН1 | P25: =SUMIF($J$19:$J$20,$J$25,P$19:P$20) -> 0 | R25: =SUMIF($J$19:$J$20,$J$25,R$19:R$20) -> 0 | S25: =SUMIF($J$19:$J$20,$J$25,S$19:S$20) -> 0 | T25: =SUMIF($J$19:$J$20,$J$25,T$19:T$20) -> 0 | V25: =SUMIF($J$19:$J$20,$J$25,V$19:V$20) -> 0 | W25: =SUMIF($J$19:$J$20,$J$25,W$19:W$20) -> 0 | Y25: =SUMIF($J$19:$J$20,$J$25,Y$19:Y$20) -> 0 | Z25: =SUMIF($J$19:$J$20,$J$25,Z$19:Z$20) -> 0 | AA25: =SUMIF($J$19:$J$20,$J$25,AA$19:AA$20) -> 0 | AC25: =SUMIF($J$19:$J$20,$J$25,AC$19:AC$20) -> 0 | AD25: =SUMIF($J$19:$J$20,$J$25,AD$19:AD$20) -> 0 | AE25: =SUMIF($J$19:$J$20,$J$25,AE$19:AE$20) -> 0 | AH25: =SUMIF($J$19:$J$20,$J$25,AH$19:AH$20) -> 0 | AI25: =SUMIF($J$19:$J$20,$J$25,AI$19:AI$20) -> 0 | AJ25: =SUMIF($J$19:$J$20,$J$25,AJ$19:AJ$20) -> 0 | AL25: =SUMIF($J$19:$J$20,$J$25,AL$19:AL$20) -> 0 | AN25: =SUMIF($J$19:$J$20,$J$25,AN$19:AN$20) -> 0
G26: Итого по СН2 (тыс. руб.) | J26: ЭСХСН2 | P26: =SUMIF($J$19:$J$20,$J$26,P$19:P$20) -> 0 | R26: =SUMIF($J$19:$J$20,$J$26,R$19:R$20) -> 0 | S26: =SUMIF($J$19:$J$20,$J$26,S$19:S$20) -> 0 | T26: =SUMIF($J$19:$J$20,$J$26,T$19:T$20) -> 0 | V26: =SUMIF($J$19:$J$20,$J$26,V$19:V$20) -> 0 | W26: =SUMIF($J$19:$J$20,$J$26,W$19:W$20) -> 0 | Y26: =SUMIF($J$19:$J$20,$J$26,Y$19:Y$20) -> 0 | Z26: =SUMIF($J$19:$J$20,$J$26,Z$19:Z$20) -> 0 | AA26: =SUMIF($J$19:$J$20,$J$26,AA$19:AA$20) -> 0 | AC26: =SUMIF($J$19:$J$20,$J$26,AC$19:AC$20) -> 0 | AD26: =SUMIF($J$19:$J$20,$J$26,AD$19:AD$20) -> 0 | AE26: =SUMIF($J$19:$J$20,$J$26,AE$19:AE$20) -> 0 | AH26: =SUMIF($J$19:$J$20,$J$26,AH$19:AH$20) -> 0 | AI26: =SUMIF($J$19:$J$20,$J$26,AI$19:AI$20) -> 0 | AJ26: =SUMIF($J$19:$J$20,$J$26,AJ$19:AJ$20) -> 0 | AL26: =SUMIF($J$19:$J$20,$J$26,AL$19:AL$20) -> 0 | AN26: =SUMIF($J$19:$J$20,$J$26,AN$19:AN$20) -> 0
G27: Итого по НН (тыс. руб.) | J27: ЭСХНН | P27: =SUMIF($J$19:$J$20,$J$27,P$19:P$20) -> 0 | R27: =SUMIF($J$19:$J$20,$J$27,R$19:R$20) -> 0 | S27: =SUMIF($J$19:$J$20,$J$27,S$19:S$20) -> 0 | T27: =SUMIF($J$19:$J$20,$J$27,T$19:T$20) -> 0 | V27: =SUMIF($J$19:$J$20,$J$27,V$19:V$20) -> 0 | W27: =SUMIF($J$19:$J$20,$J$27,W$19:W$20) -> 0 | Y27: =SUMIF($J$19:$J$20,$J$27,Y$19:Y$20) -> 0 | Z27: =SUMIF($J$19:$J$20,$J$27,Z$19:Z$20) -> 0 | AA27: =SUMIF($J$19:$J$20,$J$27,AA$19:AA$20) -> 0 | AC27: =SUMIF($J$19:$J$20,$J$27,AC$19:AC$20) -> 0 | AD27: =SUMIF($J$19:$J$20,$J$27,AD$19:AD$20) -> 0 | AE27: =SUMIF($J$19:$J$20,$J$27,AE$19:AE$20) -> 0 | AH27: =SUMIF($J$19:$J$20,$J$27,AH$19:AH$20) -> 0 | AI27: =SUMIF($J$19:$J$20,$J$27,AI$19:AI$20) -> 0 | AJ27: =SUMIF($J$19:$J$20,$J$27,AJ$19:AJ$20) -> 0 | AL27: =SUMIF($J$19:$J$20,$J$27,AL$19:AL$20) -> 0 | AN27: =SUMIF($J$19:$J$20,$J$27,AN$19:AN$20) -> 0
G28: Итого (тыс. руб.) | P28: =SUM(P24:P27)+P23 -> 0 | R28: =SUM(R24:R27)+R23 -> 0 | S28: =SUM(S24:S27)+S23 -> 0 | T28: =SUM(T24:T27)+T23 -> 0 | V28: =SUM(V24:V27)+V23 -> 0 | W28: =SUM(W24:W27)+W23 -> 0 | X28: =X21 -> 0 | Y28: =SUM(Y24:Y27)+Y23 -> 0 | Z28: =SUM(Z24:Z27)+Z23 -> 0 | AA28: =SUM(AA24:AA27)+AA23 -> 0 | AC28: =SUM(AC24:AC27)+AC23 -> 0 | AD28: =SUM(AD24:AD27)+AD23 -> 0 | AE28: =SUM(AE24:AE27)+AE23 -> 0 | AG28: =AG21 -> 0 | AH28: =SUM(AH24:AH27)+AH23 -> 0 | AI28: =SUM(AI24:AI27)+AI23 -> 0 | AJ28: =SUM(AJ24:AJ27)+AJ23 -> 0 | AL28: =SUM(AL24:AL27)+AL23 -> 0 | AN28: =SUM(AN24:AN27)+AN23 -> 0 | AO28: =AO21 -> 0 | AP28: =AP21 -> 0

Sheet modCalcAmortFactMax (hidden)

Sheet modCalcAmortPlan (hidden)

Sheet 33_Расчет Амортизации план (hidden)
F1: Вернуться к перечню форм | H1: Проверить работоспособность 1000 заполненных строк предусмотреть кнопку "пересчитать", если не будет работать, то отдельный файл Для столбца G (уровень напряжения) предуспотреть возможность выбора пустого значения или 0 для прочих видов ОС, не относящихся к ЭСХ | AK1: =IFERROR(IF(REPORT_OWNER="Версия организации","HIDDEN","VISIBLE"),0) -> HIDDEN | AL1: =IFERROR(IF(REPORT_OWNER="Версия организации","HIDDEN","VISIBLE"),0) -> HIDDEN | AM1: =IFERROR(IF(REPORT_OWNER="Версия организации","HIDDEN","VISIBLE"),0) -> HIDDEN | AN1: =IFERROR(IF(REPORT_OWNER="Версия организации","HIDDEN","VISIBLE"),0) -> HIDDEN
F8: Список листов
G10: Расчет амортизационных отчислений по основным средствам, находящимся в собственности организации и участвующих в деятельности по передаче электрической энергии | AF10: СН2 | AI10: Подстанция | AK10: СН2 | AM10: Подстанция
AF11: НН | AI11: Прочее | AK11: НН | AM11: Прочее
F12: № п/п | G12: Наименование основного средства | H12: Амортизационная группа (в соответствии с классификацией ОС, включаемых в амортизационные группы) | I12: Инвентарный номер | J12: Технический столбцец | K12: Вид объекта сетевого хозяйства (КЛЭП, ВЛЭП, Подстанция, прочее) | L12: Уровень напряжения | M12: Адрес | N12: Инв. номер или № группы* | O12: Дата ввода в эксплуатацию | P12: Балансовая (первоначальная) стоимость при вводе в эксплуатацию | Q12: Срок полезного использования при вводе в эксплуатацию | R12: Расчитывать налог на имущество от кадастровой стоимости (да/нет) | S12: Кадастровая стоимость | T12: ="По состоянию на 01.01."&(god)&" (31.12."&(god-1)&")" -> По состоянию на 01.01. (31.12.-1) | X12: ="Изменение балансовой стоимости за "&(god)&" год" -> Изменение балансовой стоимости за год | Z12: ="Амортизация на "&(god)&" год" -> Амортизация на год | AC12: ="По состоянию на 01.01."&(god+1)&" (31.12."&(god)&")" -> По состоянию на 01.01.1 (31.12.) | AF12: ="Налог на имущество - заявлено в тарифе на "&(god)&" год" -> Налог на имущество - заявлено в тарифе на год | AK12: ="Налог на имущество - "&(god)&" год версия регулятора" -> Налог на имущество - год версия регулятора | AO12: процент отнесения на передачу э/э
T13: балансовая стоимость | U13: накопленная амортизация (Всего с момента ввода в эксплуатацию) | V13: остаточная стоимость | W13: срок полезного использования (остаточный) | X13: введено, в т.ч. по модернизации и реконструкции | Y13: выбыло | Z13: Величина амортизационных отчислений в месяц | AA13: Величина амортизационных отчислений за 12 месяцев | AB13: Величина амортизационных отчислений, отнесенная на передачу э/э, учтенная в смете затрат, за год | AC13: балансовая стоимость | AD13: остаточная стоимость | AE13: срок полезного использования (остаточный) | AF13: ="Сумма налога на имущество - заявлено в тарифе на "&(god)&" год" -> Сумма налога на имущество - заявлено в тарифе на год | AG13: Фактический процент распределения расходов на деятельность по передаче э/э | AH13: Всего | AI13: Среднегодовая стоимость имущества | AJ13: Ставка налога на имущество | AK13: ="Сумма налога на имущество - заявлено в тарифе на "&(god)&" год" -> Сумма налога на имущество - заявлено в тарифе на год | AL13: Всего | AM13: Среднегодовая стоимость имущества | AN13: Ставка налога на имущество
P14: тыс.руб. | Q14: мес. | T14: тыс.руб. | U14: тыс.руб. | V14: тыс.руб. | W14: мес. | X14: тыс.руб. | Y14: тыс.руб. | Z14: тыс.руб. | AA14: тыс.руб. | AB14: тыс.руб. | AC14: тыс.руб. | AD14: тыс.руб. | AE14: мес. | AF14: тыс.руб. | AG14: абс.знач | AH14: тыс.руб. | AI14: тыс.руб. | AJ14: абс.знач | AK14: тыс.руб. | AL14: тыс.руб. | AM14: тыс.руб. | AN14: абс.знач | AO14: абс.знач
F19: 0
G20: Добавить
F21: 2.0
G22: Добавить
F23: 3 | G23: Итого (тыс. руб.) | P23: =SUM(P19:P22) -> 0 | T23: =SUM(T19:T22) -> 0 | U23: =SUM(U19:U22) -> 0 | V23: =SUM(V19:V22) -> 0 | X23: =SUM(X19:X22) -> 0 | Y23: 0 | Z23: 0 | AA23: 0 | AB23: 0 | AC23: 0 | AD23: 0 | AF23: =SUM(AF19:AF22) -> 0 | AH23: =SUM(AH19:AH22) -> 0 | AI23: =SUM(AI19:AI22) -> 0 | AK23: =SUM(AK19:AK22) -> 0 | AL23: =SUM(AL19:AL22) -> 0 | AM23: =SUM(AM19:AM22) -> 0
F24: 4 | G24: Итого ЭСХ (тыс. руб.) | P24: =SUM(P25:P28) -> 0 | T24: =SUM(T25:T28) -> 0 | U24: 0 | V24: 0 | X24: 0 | Y24: 0 | Z24: 0 | AA24: 0 | AB24: 0 | AC24: 0 | AD24: 0 | AF24: =SUM(AF25:AF28) -> 0 | AH24: =SUM(AH25:AH28) -> 0 | AI24: =SUM(AI25:AI28) -> 0 | AL24: =SUM(AL25:AL28) -> 0 | AM24: =SUM(AM25:AM28) -> 0
F25: 5 | G25: Итого ЭСХ по ВН (тыс. руб.) | J25: ЭСХВН | K25: ВЛЭП | P25: =SUMIF($J$19:$J$22,$J25,P$19:P$22) -> 0 | T25: =SUMIF($J$19:$J$22,$J25,T$19:T$22) -> 0 | U25: 0 | V25: 0 | X25: =SUMIF($J$19:$J$22,$J25,X$19:X$22) -> 0 | Y25: 0 | Z25: 0 | AA25: 0 | AB25: 0 | AC25: 0 | AD25: 0 | AF25: =SUMIF($J$19:$J$22,$J25,AF$19:AF$22) -> 0 | AH25: =SUMIF($J$19:$J$22,$J25,AH$19:AH$22) -> 0 | AI25: 0 | AL25: =SUMIF($J$19:$J$22,$J25,AL$19:AL$22) -> 0 | AM25: 0
F26: 6 | G26: Итого ЭСХ по СН1 (тыс. руб.) | J26: ЭСХСН1 | K26: КЛЭП | P26: =SUMIF($J$19:$J$22,$J26,P$19:P$22) -> 0 | T26: 0 | U26: 0 | V26: 0 | X26: 0 | Y26: 0 | Z26: 0 | AA26: 0 | AB26: 0 | AC26: 0 | AD26: 0 | AF26: =SUMIF($J$19:$J$22,$J26,AF$19:AF$22) -> 0 | AH26: 0 | AI26: 0 | AL26: 0 | AM26: 0
F27: 7 | G27: Итого ЭСХ по СН2 (тыс. руб.) | J27: ЭСХСН2 | K27: Подстанция | P27: =SUMIF($J$19:$J$22,$J27,P$19:P$22) -> 0 | T27: 0 | U27: 0 | V27: 0 | X27: 0 | Y27: 0 | Z27: 0 | AA27: 0 | AB27: 0 | AC27: 0 | AD27: 0 | AF27: =SUMIF($J$19:$J$22,$J27,AF$19:AF$22) -> 0 | AH27: 0 | AI27: 0 | AL27: 0 | AM27: 0
F28: 8 | G28: Итого ЭСХ по НН (тыс. руб.) | J28: ЭСХНН | P28: =SUMIF($J$19:$J$22,$J28,P$19:P$22) -> 0 | T28: 0 | U28: 0 | V28: 0 | X28: 0 | Y28: 0 | Z28: 0 | AA28: 0 | AB28: 0 | AC28: 0 | AD28: 0 | AF28: =SUMIF($J$19:$J$22,$J28,AF$19:AF$22) -> 0 | AH28: 0 | AI28: 0 | AL28: 0 | AM28: 0
F30: 9 | G30: Итого Прочие и прочее ЭСХ (тыс. руб.) | J30: Прочее | P30: =SUMIF($J$19:$J$22,$J30,P$19:P$22)+SUMIF($J$19:$J$22,"ЭСХнет",P$19:P$22) -> 0 | T30: =SUMIF($J$19:$J$22,$J30,T$19:T$22)+SUMIF($J$19:$J$22,"ЭСХнет",T$19:T$22) -> 0 | U30: =SUMIF($J$19:$J$22,$J30,U$19:U$22)+SUMIF($J$19:$J$22,"ЭСХнет",U$19:U$22) -> 0 | V30: =SUMIF($J$19:$J$22,$J30,V$19:V$22)+SUMIF($J$19:$J$22,"ЭСХнет",V$19:V$22) -> 0 | X30: =SUMIF($J$19:$J$22,$J30,X$19:X$22)+SUMIF($J$19:$J$22,"ЭСХнет",X$19:X$22) -> 0 | Y30: =SUMIF($J$19:$J$22,$J30,Y$19:Y$22)+SUMIF($J$19:$J$22,"ЭСХнет",Y$19:Y$22) -> 0 | Z30: =SUMIF($J$19:$J$22,$J30,Z$19:Z$22)+SUMIF($J$19:$J$22,"ЭСХнет",Z$19:Z$22) -> 0 | AA30: =SUMIF($J$19:$J$22,$J30,AA$19:AA$22)+SUMIF($J$19:$J$22,"ЭСХнет",AA$19:AA$22) -> 0 | AB30: =SUMIF($J$19:$J$22,$J30,AB$19:AB$22)+SUMIF($J$19:$J$22,"ЭСХнет",AB$19:AB$22) -> 0 | AC30: =SUMIF($J$19:$J$22,$J30,AC$19:AC$22)+SUMIF($J$19:$J$22,"ЭСХнет",AC$19:AC$22) -> 0 | AD30: =SUMIF($J$19:$J$22,$J30,AD$19:AD$22)+SUMIF($J$19:$J$22,"ЭСХнет",AD$19:AD$22) -> 0 | AF30: =SUMIF($J$19:$J$22,$J30,AF$19:AF$22)+SUMIF($J$19:$J$22,"ЭСХнет",AF$19:AF$22) -> 0 | AH30: =SUMIF($J$19:$J$22,$J30,AH$19:AH$22)+SUMIF($J$19:$J$22,"ЭСХнет",AH$19:AH$22) -> 0 | AI30: =SUMIF($J$19:$J$22,$J30,AI$19:AI$22)+SUMIF($J$19:$J$22,"ЭСХнет",AI$19:AI$22) -> 0 | AL30: =SUMIF($J$19:$J$22,$J30,AL$19:AL$22)+SUMIF($J$19:$J$22,"ЭСХнет",AL$19:AL$22) -> 0 | AM30: =SUMIF($J$19:$J$22,$J30,AM$19:AM$22)+SUMIF($J$19:$J$22,"ЭСХнет",AM$19:AM$22) -> 0
F31: 10 | G31: Итого по Прочее_ ВН (тыс. руб.) | Z31: =IF('7_Свод УЕ '!$L$39=0,0,Z$30*'7_Свод УЕ '!$H$39/'7_Свод УЕ '!$L$39) -> 0 | AA31: =IF('7_Свод УЕ '!$L$39=0,0,AA$30*'7_Свод УЕ '!$H$39/'7_Свод УЕ '!$L$39) -> 0 | AB31: =IF('7_Свод УЕ '!$L$39=0,0,AB$30*'7_Свод УЕ '!$H$39/'7_Свод УЕ '!$L$39) -> 0 | AF31: =IF('7_Свод УЕ '!$L$39=0,0,AF$30*'7_Свод УЕ '!$H$39/'7_Свод УЕ '!$L$39) -> 0 | AH31: =IF('7_Свод УЕ '!$L$39=0,0,AH$30*'7_Свод УЕ '!$H$39/'7_Свод УЕ '!$L$39) -> 0 | AI31: =IF('7_Свод УЕ '!$L$39=0,0,AI$30*'7_Свод УЕ '!$H$39/'7_Свод УЕ '!$L$39) -> 0 | AL31: =IF('7_Свод УЕ '!$L$39=0,0,AL$30*'7_Свод УЕ '!$H$39/'7_Свод УЕ '!$L$39) -> 0 | AM31: =IF('7_Свод УЕ '!$L$39=0,0,AM$30*'7_Свод УЕ '!$H$39/'7_Свод УЕ '!$L$39) -> 0
F32: 11 | G32: Итого по Прочее_ СН1 (тыс. руб.) | Z32: =IF('7_Свод УЕ '!$L$39=0,0,Z$30*'7_Свод УЕ '!$I$39/'7_Свод УЕ '!$L$39) -> 0 | AA32: =IF('7_Свод УЕ '!$L$39=0,0,AA$30*'7_Свод УЕ '!$I$39/'7_Свод УЕ '!$L$39) -> 0 | AB32: =IF('7_Свод УЕ '!$L$39=0,0,AB$30*'7_Свод УЕ '!$I$39/'7_Свод УЕ '!$L$39) -> 0 | AF32: =IF('7_Свод УЕ '!$L$39=0,0,AF$30*'7_Свод УЕ '!$I$39/'7_Свод УЕ '!$L$39) -> 0 | AH32: =IF('7_Свод УЕ '!$L$39=0,0,AH$30*'7_Свод УЕ '!$I$39/'7_Свод УЕ '!$L$39) -> 0 | AI32: =IF('7_Свод УЕ '!$L$39=0,0,AI$30*'7_Свод УЕ '!$I$39/'7_Свод УЕ '!$L$39) -> 0 | AL32: =IF('7_Свод УЕ '!$L$39=0,0,AL$30*'7_Свод УЕ '!$I$39/'7_Свод УЕ '!$L$39) -> 0 | AM32: =IF('7_Свод УЕ '!$L$39=0,0,AM$30*'7_Свод УЕ '!$I$39/'7_Свод УЕ '!$L$39) -> 0
F33: 12 | G33: Итого по Прочее_ СН2 (тыс. руб.) | Z33: =IF('7_Свод УЕ '!$L$39=0,0,Z$30*'7_Свод УЕ '!$J$39/'7_Свод УЕ '!$L$39) -> 0 | AA33: =IF('7_Свод УЕ '!$L$39=0,0,AA$30*'7_Свод УЕ '!$J$39/'7_Свод УЕ '!$L$39) -> 0 | AB33: =IF('7_Свод УЕ '!$L$39=0,0,AB$30*'7_Свод УЕ '!$J$39/'7_Свод УЕ '!$L$39) -> 0 | AF33: =IF('7_Свод УЕ '!$L$39=0,0,AF$30*'7_Свод УЕ '!$J$39/'7_Свод УЕ '!$L$39) -> 0 | AH33: =IF('7_Свод УЕ '!$L$39=0,0,AH$30*'7_Свод УЕ '!$J$39/'7_Свод УЕ '!$L$39) -> 0 | AI33: =IF('7_Свод УЕ '!$L$39=0,0,AI$30*'7_Свод УЕ '!$J$39/'7_Свод УЕ '!$L$39) -> 0 | AL33: =IF('7_Свод УЕ '!$L$39=0,0,AL$30*'7_Свод УЕ '!$J$39/'7_Свод УЕ '!$L$39) -> 0 | AM33: =IF('7_Свод УЕ '!$L$39=0,0,AM$30*'7_Свод УЕ '!$J$39/'7_Свод УЕ '!$L$39) -> 0
F34: 13 | G34: Итого по Прочее_ НН (тыс. руб.) | Z34: =IF('7_Свод УЕ '!$L$39=0,0,Z$30*'7_Свод УЕ '!$K$39/'7_Свод УЕ '!$L$39) -> 0 | AA34: =IF('7_Свод УЕ '!$L$39=0,0,AA$30*'7_Свод УЕ '!$K$39/'7_Свод УЕ '!$L$39) -> 0 | AB34: =IF('7_Свод УЕ '!$L$39=0,0,AB$30*'7_Свод УЕ '!$K$39/'7_Свод УЕ '!$L$39) -> 0 | AF34: =IF('7_Свод УЕ '!$L$39=0,0,AF$30*'7_Свод УЕ '!$K$39/'7_Свод УЕ '!$L$39) -> 0 | AH34: =IF('7_Свод УЕ '!$L$39=0,0,AH$30*'7_Свод УЕ '!$K$39/'7_Свод УЕ '!$L$39) -> 0 | AI34: =IF('7_Свод УЕ '!$L$39=0,0,AI$30*'7_Свод УЕ '!$K$39/'7_Свод УЕ '!$L$39) -> 0 | AL34: =IF('7_Свод УЕ '!$L$39=0,0,AL$30*'7_Свод УЕ '!$K$39/'7_Свод УЕ '!$L$39) -> 0 | AM34: =IF('7_Свод УЕ '!$L$39=0,0,AM$30*'7_Свод УЕ '!$K$39/'7_Свод УЕ '!$L$39) -> 0
F36: 14 | G36: Итого (тыс. руб.) | P36: =P24+P30 -> 0 | T36: =T24+T30 -> 0 | U36: =U24+U30 -> 0 | V36: =V24+V30 -> 0 | X36: =X24+X30 -> 0 | Y36: 0 | Z36: 0 | AA36: 0 | AB36: 0 | AC36: =AC24+AC30 -> 0 | AD36: 0 | AF36: =AF24+AF30 -> 0 | AH36: =AH24+AH30 -> 0 | AI36: =AI24+AI30 -> 0 | AL36: =AL24+AL30 -> 0 | AM36: 0
F37: 15 | G37: Итого по ВН (тыс. руб.) | Z37: =Z25+Z31 -> 0 | AA37: =AA25+AA31 -> 0 | AB37: 0 | AF37: =AF25+AF31 -> 0 | AH37: =AH25+AH31 -> 0 | AI37: 0 | AL37: 0 | AM37: 0
F38: 16 | G38: Итого по СН1 (тыс. руб.) | Z38: 0 | AA38: 0 | AB38: 0 | AF38: =AF26+AF32 -> 0 | AH38: 0 | AI38: 0 | AL38: 0 | AM38: 0
F39: 17 | G39: Итого по СН2 (тыс. руб.) | Z39: 0 | AA39: 0 | AB39: 0 | AF39: =AF27+AF33 -> 0 | AH39: 0 | AI39: 0 | AL39: 0 | AM39: 0
F40: 18 | G40: Итого по НН (тыс. руб.) | Z40: 0 | AA40: 0 | AB40: 0 | AF40: =AF28+AF34 -> 0 | AH40: 0 | AI40: 0 | AL40: 0 | AM40: 0
G42: Проверка итогов | P42: =P23-P36 -> 0 | T42: =T23-T36 -> 0 | U42: 0 | V42: 0 | X42: 0 | Y42: 0 | Z42: 0 | AA42: 0 | AB42: 0 | AC42: 0 | AD42: 0 | AF42: 0 | AH42: 0 | AI42: 0 | AL42: 0 | AM42: 0

Sheet 34_Амортизация свод (hidden)
A1: =IFERROR(IF(region_name="Пермский край","HIDDEN","VISIBLE"),0) -> VISIBLE | M1: =IFERROR(IF(REPORT_OWNER="Версия организации","HIDDEN","VISIBLE"),0) -> HIDDEN
F7: Список листов
F10: Свод амортизационных отчислений на восстановление ОС
L15: тыс.руб.
F16: № п/п | G16: Показатели | H16: =(god-2)&", утверждено" -> -2, утверждено | I16: =(god-2)&", факт (отражен в отчете об исполнении сметы расходов за "&(god-2)&" год)" -> -2, факт (отражен в отчете об исполнении сметы расходов за -2 год) | J16: =(god-2)&", факт версия регулятора" -> -2, факт версия регулятора | K16: =(god-1)&", утверждено" -> -1, утверждено | L16: =(god)&", предложение" -> , предложение | M16: =(god)&", версия регулятора" -> , версия регулятора
F20: 1 | G20: Балансовая стоимость основных производственных фондов на начало периода регулирования | I20: ='32_Расчет амортизации факт'!R28 -> 0 | L20: ='33_Расчет Амортизации план'!T36 -> 0
F21: 2 | G21: Ввод основных производственных фондов | I21: ='32_Расчет амортизации факт'!V28 -> 0 | L21: ='33_Расчет Амортизации план'!X36 -> 0
F22: 3 | G22: Выбытие основных производственных фондов | I22: ='32_Расчет амортизации факт'!W28 -> 0 | L22: ='33_Расчет Амортизации план'!Y36 -> 0
F23: 4 | G23: Средняя за отчетный период стоимость основных производственных фондов, в том числе: | I23: ='32_Расчет амортизации факт'!AJ28 -> 0 | L23: ='33_Расчет Амортизации план'!AI36 -> 0 | M23: ='33_Расчет Амортизации план'!AM36 -> 0
F24: 5 | G24: Средняя норма амортизации | I24: =IFERROR(I25/I23,0) -> 0 | L24: =IFERROR(L25/L23,0) -> 0
F25: 6 | G25: Сумма амортизационных отчислений | H25: ='32_Расчет амортизации факт'!X28 -> 0 | I25: ='32_Расчет амортизации факт'!AC21 -> 0 | K25: ='32_Расчет амортизации факт'!AO28 -> 0 | L25: ='33_Расчет Амортизации план'!AA23 -> 0 | M25: ='33_Расчет Амортизации план'!AB36 -> 0

Sheet 35_Средняя стоимость ОС (hidden)
A1: =IFERROR(IF(region_name="Пермский край","HIDDEN","VISIBLE"),0) -> VISIBLE
F9: Список листов
F10: ="Расчет среднегодовой стоимости основных производственных фондов по линиям электропередач и подстанциям на "&god&" год" -> Расчет среднегодовой стоимости основных производственных фондов по линиям электропередач и подстанциям на год
M12: руб.
F13: № п.п. | G13: Виды производственных фондов | H13: стоимость на начало регулируемого периода | I13: Ввод основных производственных фондов | J13: Выбытие основных производственных фондов | K13: стоимость на конец регулируемого периода | L13: среднегодовая стоимость | M13: Амортизация
F20: 1 | G20: Линии электропередач | H20: =H21+H26 -> 0 | I20: 0 | J20: 0 | K20: 0 | L20: 0 | M20: 0
F21: 1.1 | G21: ВЛЭП | H21: =SUM(H22:H25) -> 0 | I21: 0 | J21: 0 | K21: 0 | L21: 0 | M21: 0
F22: 1.2 | G22: ВН | H22: =SUMIFS('33_Расчет Амортизации план'!$T$20:$T$22,'33_Расчет Амортизации план'!$L$20:$L$22,"ВН",'33_Расчет Амортизации план'!$K$20:$K$22,"ВЛЭП") -> 0 | I22: =SUMIFS('33_Расчет Амортизации план'!$X$20:$X$22,'33_Расчет Амортизации план'!$L$20:$L$22,"ВН",'33_Расчет Амортизации план'!$K$20:$K$22,"ВЛЭП") -> 0 | J22: =SUMIFS('33_Расчет Амортизации план'!$Y$20:$Y$22,'33_Расчет Амортизации план'!$L$20:$L$22,"ВН",'33_Расчет Амортизации план'!$K$20:$K$22,"ВЛЭП") -> 0 | K22: =H22+I22-J22 -> 0 | L22: =SUMIFS('33_Расчет Амортизации план'!$AI$20:$AI$22,'33_Расчет Амортизации план'!$L$20:$L$22,"ВН",'33_Расчет Амортизации план'!$K$20:$K$22,"ВЛЭП") -> 0 | M22: =SUMIFS('33_Расчет Амортизации план'!$AB$20:$AB$22,'33_Расчет Амортизации план'!$L$20:$L$22,"ВН",'33_Расчет Амортизации план'!$K$20:$K$22,"ВЛЭП") -> 0
F23: 1.3 | G23: СН1 | H23: =SUMIFS('33_Расчет Амортизации план'!$T$20:$T$22,'33_Расчет Амортизации план'!$L$20:$L$22,"СН1",'33_Расчет Амортизации план'!$K$20:$K$22,"ВЛЭП") -> 0 | I23: =SUMIFS('33_Расчет Амортизации план'!$X$20:$X$22,'33_Расчет Амортизации план'!$L$20:$L$22,"СН1",'33_Расчет Амортизации план'!$K$20:$K$22,"ВЛЭП") -> 0 | J23: =SUMIFS('33_Расчет Амортизации план'!$Y$20:$Y$22,'33_Расчет Амортизации план'!$L$20:$L$22,"СН1",'33_Расчет Амортизации план'!$K$20:$K$22,"ВЛЭП") -> 0 | K23: =H23+I23-J23 -> 0 | L23: =SUMIFS('33_Расчет Амортизации план'!$AI$20:$AI$22,'33_Расчет Амортизации план'!$L$20:$L$22,"СН1",'33_Расчет Амортизации план'!$K$20:$K$22,"ВЛЭП") -> 0 | M23: =SUMIFS('33_Расчет Амортизации план'!$AB$20:$AB$22,'33_Расчет Амортизации план'!$L$20:$L$22,"СН1",'33_Расчет Амортизации план'!$K$20:$K$22,"ВЛЭП") -> 0
F24: 1.4 | G24: СН2 | H24: =SUMIFS('33_Расчет Амортизации план'!$T$20:$T$22,'33_Расчет Амортизации план'!$L$20:$L$22,"СН2",'33_Расчет Амортизации план'!$K$20:$K$22,"ВЛЭП") -> 0 | I24: =SUMIFS('33_Расчет Амортизации план'!$X$20:$X$22,'33_Расчет Амортизации план'!$L$20:$L$22,"СН2",'33_Расчет Амортизации план'!$K$20:$K$22,"ВЛЭП") -> 0 | J24: =SUMIFS('33_Расчет Амортизации план'!$Y$20:$Y$22,'33_Расчет Амортизации план'!$L$20:$L$22,"СН2",'33_Расчет Амортизации план'!$K$20:$K$22,"ВЛЭП") -> 0 | K24: =H24+I24-J24 -> 0 | L24: =SUMIFS('33_Расчет Амортизации план'!$AI$20:$AI$22,'33_Расчет Амортизации план'!$L$20:$L$22,"СН2",'33_Расчет Амортизации план'!$K$20:$K$22,"ВЛЭП") -> 0 | M24: =SUMIFS('33_Расчет Амортизации план'!$AB$20:$AB$22,'33_Расчет Амортизации план'!$L$20:$L$22,"СН2",'33_Расчет Амортизации план'!$K$20:$K$22,"ВЛЭП") -> 0
F25: 1.5 | G25: НН | H25: =SUMIFS('33_Расчет Амортизации план'!$T$20:$T$22,'33_Расчет Амортизации план'!$L$20:$L$22,"НН",'33_Расчет Амортизации план'!$K$20:$K$22,"ВЛЭП") -> 0 | I25: =SUMIFS('33_Расчет Амортизации план'!$X$20:$X$22,'33_Расчет Амортизации план'!$L$20:$L$22,"НН",'33_Расчет Амортизации план'!$K$20:$K$22,"ВЛЭП") -> 0 | J25: =SUMIFS('33_Расчет Амортизации план'!$Y$20:$Y$22,'33_Расчет Амортизации план'!$L$20:$L$22,"НН",'33_Расчет Амортизации план'!$K$20:$K$22,"ВЛЭП") -> 0 | K25: =H25+I25-J25 -> 0 | L25: =SUMIFS('33_Расчет Амортизации план'!$AI$20:$AI$22,'33_Расчет Амортизации план'!$L$20:$L$22,"НН",'33_Расчет Амортизации план'!$K$20:$K$22,"ВЛЭП") -> 0 | M25: =SUMIFS('33_Расчет Амортизации план'!$AB$20:$AB$22,'33_Расчет Амортизации план'!$L$20:$L$22,"НН",'33_Расчет Амортизации план'!$K$20:$K$22,"ВЛЭП") -> 0
F26: 1.6 | G26: КЛЭП | H26: =SUM(H27:H30) -> 0 | I26: 0 | J26: =SUM(J27:J30) -> 0 | K26: 0 | L26: 0 | M26: 0
